Workbook

Sheet CUADRO RENTING
C1: Potencia Wp | D1: 10000 | E1: Mantenimiento | F1: 100 | G1: PROVINCIA | H1: Ciudad_Real | Q1: Puertollano | R1: ANGULO | V1: ADOSADO | AU1: Vivienda conectada
C2: Precio €/Wp | D2: 1.25 | E2: Seguro | F2: 100 | G2: ZONA | H2: =Q2 -> 4 | N2: zona | Q2: =VLOOKUP($Q$1,'ZONAS CLIMÁTICAS'!H22:L500,2,0) -> 4 | W2: 2.0A | Y2: 30º | AA2: Tipo 1 | AB2: Autoconsumo | AU2: Vivienda aislada
C3: Coste | D3: =D1*D2 -> 12500 | E3: Cuota ESE | F3: 0 | G3: Coef. Produccion | H3: =Q3 -> 1.5228 | N3: coef producción | Q3: =IF(V1="30º",VLOOKUP($Q$1,'ZONAS CLIMÁTICAS'!H22:L500,3,0),IF(V1="ÓPTIMO",VLOOKUP($Q$1,'ZONAS CLIMÁTICAS'!H22:L500,4,0),IF(V1="ADOSADO",VLOOKUP($Q$1,'ZONAS CLIMÁTICAS'!H22:L500,3,0)*0.94,1))) -> 1.5228 | W3: 2.0DHA | Y3: ÓPTIMO | AA3: Tipo 2 | AB3: Venta | AU3: Comunidad de propietarios
C4: Subvención | D4: 0 | Q4: ='AHORRO FOTOVOLTAICA'!N1 -> 0 | W4: 2.1A | Y4: ADOSADO | AU4: Empresa
C5: FONDOS PROPIOS | D5: 1 | E5: Financiación | F5: renting | G5: Tipo de instalación | H5: Tipo 2 | I5: =VLOOKUP(H5,AA2:AB3,2) -> Venta | K5: Ahorro Potencia | L5: 200 | W5: 2.1DHA
C6: ACTIVIDAD | D6: Empresa | G6: Precio de Venta | H6: 0.045
N7: se tiene en cuenta un porcentaje de pérdidas del 10 % y acimutal de 0 | W7: 3.0A
B8: Operación de Préstamo | E8: Gastos Escritura | F8: 0.005 | G8: Precio kWh a 25 años | I8: =SUM(M16:M41)/SUM(Q17:Q41) -> 0.05043079631 | W8: 3.1A
B9: FP | C9: =D5*D3 -> 12500 | E9: Comisión Aptra | F9: 0.005 | G9: Precio kWh a 40 años | I9: =SUM(M16:M56)/SUM(Q17:Q56) -> 0.04157984093 | W9: 6.1A
B10: Cf | C10: =D3-C9+S14+U14 -> 0 | E10: Anualidad | F10: =IF(C11=0,0,PMT(C12,C11,-C10,C13)) -> 0 | G10: Precio kWh a 10 años | I10: =SUM(M16:M26)/SUM(Q16:Q26) -> 0.09654616601
B11: año | C11: 0 | E11: IPC | F11: 0.02 | G11: Precio kWh a 7 años | I11: =SUM(M16:M23)/SUM(Q16:Q23) -> 0.1309402612
B12: i | C12: 0.025 | E12: IMP. SOCIEDADES | F12: 0.25
B13: VR | C13: 0 | E13: IPE | F13: 0.04
E14: DED. VIVIENDAS | F14: 0 | S14: =SUMIF(T17:T56,"OK",S17:S56) -> 0 | U14: =SUMIF(T17:T56,"OK",U17:U56) -> 0
B15: Año | C15: Anualidad | D15: Intereses | E15: Amortización | F15: IVA | G15: Mantenimiento | H15: Seguro | I15: Gastos Banc | J15: SUBVENCIÓN | K15: DED. FISCAL | L15: AHORRO REAL | M15: CUOTA REAL | N15: Cap. Vivo | O15: Cap. Amort. | P15: €/kWh | Q15: Produccion | S15: Coste Mantenimiento | U15: Coste Seguro | V15: Coste fv
B16: 0 | C16: =C9 -> 12500 | D16: 0 | E16: 0 | F16: =IF(F5="renting",IF(D5=100%,D3*21%,C16*21%),D3*21%) -> 2625 | G16: =IF($D$6="Empresa",IF($C$11>=B16,0,S16),S16*1.21) -> 0 | H16: =IF($C$11>=B16,0,U16) -> 0 | I16: =C10*F9+C10*F8 -> 0 | K16: =IF($F$5="renting",IF($C$11>=B16,-(C16+S16+U16)*$F$12,-(S16+U16)*$F$12),-(D3)*$F$12) -> -3125 | M16: =IF($C$11>=B16,IF($D$6="Empresa",C16+G16+H16+I16,C16+G16+H16+I16+F16),+G16+H16+I16-J16) -> 12500 | N16: =+C10 -> 0
B17: 1 | C17: =IF($C$11>=B17,+$F$10,"") ->  | D17: =IF($C$11>=B17,+N16*$C$12,"") ->  | E17: =IF($C$11>=B17,+C17-D17,"") ->  | F17: =IF($C$11-B17<0,0,IF($F$5="renting",IF(C17>0,C17*0.21,0),0)) -> 0 | G17: =IF($D$6="Empresa",IF($C$11>=B17,0,S17),S17*1.21) -> 0 | H17: =IF($C$11>=B17,0,U17) -> 100 | J17: =D4*D3 -> 0 | K17: =IF($F$5="renting",IF($C$11>=B17,-(C17+S17+U17)*$F$12,-(S17+U17)*$F$12),-(S17+U17)*$F$12) -> -25 | L17: ='AHORRO FUTURO'!C22 -> 1366.091011 | M17: 100 | N17: =IF($C$11>=B17,+N16-E17,"") ->  | O17: =IF($C$11>=B17,+O16+E17,"") ->  | P17: =M17/Q17 -> 0.006566850538 | Q17: =Q3*D1 -> 15228 | S17: 0 | T17: =IF($C$11-$B17>=0,"OK","FAIL") -> FAIL | U17: =F2 -> 100 | V17: =Q17*P17 -> 100
B18: 2 | E18: =IF($C$11>=B18,+C18-D18,"") ->  | F18: 0 | G18: 100 | H18: 102 | K18: -50.5 | L18: ='AHORRO FUTURO'!C23 -> 1417.893182 | M18: 202 | P18: 0.01329162133 | Q18: =Q17*0.998 -> 15197.544 | S18: =F1 -> 100 | T18: =IF($C$11-$B18>=0,"OK","FAIL") -> FAIL | U18: =U17+$F$11*U17 -> 102 | V18: 202
B19: 3 | F19: 0 | G19: 102 | H19: 104.04 | K19: -51.51 | L19: ='AHORRO FUTURO'!C24 -> 1471.659692 | M19: 206.04 | P19: 0.013584623 | Q19: =Q18*0.998 -> 15167.14891 | S19: =S18+$F$11*S18 -> 102 | T19: FAIL | U19: 104.04 | V19: 206.04
B20: 4 | F20: 0 | G20: 104.04 | H20: 106.1208 | K20: -52.5402 | L20: ='AHORRO FUTURO'!C25 -> 1527.465027 | M20: 210.1608 | P20: 0.01388408363 | Q20: 15136.81461 | S20: 104.04 | T20: FAIL | U20: 106.1208 | V20: 210.1608
B21: 5 | F21: 0 | G21: 106.1208 | H21: 108.243216 | K21: -53.591004 | L21: ='AHORRO FUTURO'!C26 -> 1585.386501 | M21: 214.364016 | P21: 0.01419014559 | Q21: 15106.54098 | S21: 106.1208 | T21: FAIL | U21: 108.243216 | V21: 214.364016
B22: 6 | F22: 0 | G22: 108.243216 | H22: 110.4080803 | K22: -54.66282408 | L22: ='AHORRO FUTURO'!C27 -> 1645.504357 | M22: 218.6512963 | P22: 0.01450295441 | Q22: 15076.3279 | S22: 108.243216 | T22: FAIL | U22: 110.4080803 | V22: 218.6512963
B23: 7 | F23: 0 | G23: 110.4080803 | H23: 112.6162419 | K23: -55.75608056 | L23: ='AHORRO FUTURO'!C28 -> 1707.901883 | M23: 223.0243222 | P23: 0.01482265882 | Q23: 15046.17525 | S23: 110.4080803 | T23: FAIL | U23: 112.6162419 | V23: 223.0243222
B24: 8 | F24: 0 | G24: 112.6162419 | H24: 114.8685668 | K24: -56.87120217 | L24: ='AHORRO FUTURO'!C29 -> 1772.665522 | M24: 227.4848087 | P24: 0.01514941082 | Q24: 15016.0829 | S24: 112.6162419 | T24: FAIL | U24: 114.8685668 | V24: 227.4848087
B25: 9 | F25: 0 | G25: 114.8685668 | H25: 117.1659381 | K25: -58.00862622 | L25: ='AHORRO FUTURO'!C30 -> 1839.884999 | M25: 232.0345049 | P25: 0.01548336577 | Q25: 14986.05073 | S25: 114.8685668 | T25: FAIL | U25: 117.1659381 | V25: 232.0345049
B26: 10 | F26: 0 | G26: 117.1659381 | H26: 119.5092569 | K26: -59.16879874 | L26: ='AHORRO FUTURO'!C31 -> 1909.653438 | M26: 236.675195 | P26: 0.01582468245 | Q26: 14956.07863 | S26: 117.1659381 | T26: FAIL | U26: 119.5092569 | V26: 236.675195
B27: 11 | F27: 0 | G27: 119.5092569 | H27: 121.899442 | K27: -60.35217472 | L27: ='AHORRO FUTURO'!C32 -> 1982.067496 | M27: 241.4086989 | P27: 0.01617352314 | Q27: 14926.16647 | S27: 119.5092569 | T27: FAIL | U27: 121.899442 | V27: 241.4086989
B28: 12 | F28: 0 | G28: 121.899442 | H28: 124.3374308 | K28: -61.55921821 | L28: ='AHORRO FUTURO'!C33 -> 2057.227495 | M28: 246.2368728 | P28: 0.01653005371 | Q28: 14896.31414 | S28: 121.899442 | T28: FAIL | U28: 124.3374308 | V28: 246.2368728
B29: 13 | F29: 0 | G29: 124.3374308 | H29: 126.8241795 | K29: -62.79040257 | L29: ='AHORRO FUTURO'!C34 -> 2135.237562 | M29: 251.1616103 | P29: 0.01689444367 | Q29: 14866.52151 | S29: 124.3374308 | T29: FAIL | U29: 126.8241795 | V29: 251.1616103
B30: 14 | F30: 0 | G30: 126.8241795 | H30: 129.360663 | K30: -64.04621063 | L30: ='AHORRO FUTURO'!C35 -> 2216.20577 | M30: 256.1848425 | P30: 0.01726686628 | Q30: 14836.78847 | S30: 126.8241795 | T30: FAIL | U30: 129.360663 | V30: 256.1848425
B31: 15 | F31: 0 | G31: 129.360663 | H31: 131.9478763 | K31: -65.32713484 | L31: ='AHORRO FUTURO'!C36 -> 2300.244293 | M31: 261.3085394 | P31: 0.0176474986 | Q31: 14807.11489 | S31: 129.360663 | T31: FAIL | U31: 131.9478763 | V31: 261.3085394
B32: 16 | F32: 0 | G32: 131.9478763 | H32: 134.5868338 | K32: -66.63367753 | L32: ='AHORRO FUTURO'!C37 -> 2387.469557 | M32: 266.5347101 | P32: 0.01803652162 | Q32: 14777.50066 | S32: 131.9478763 | T32: FAIL | U32: 134.5868338 | V32: 266.5347101
B33: 17 | F33: 0 | G33: 134.5868338 | H33: 137.2785705 | K33: -67.96635109 | L33: ='AHORRO FUTURO'!C38 -> 2478.002402 | M33: 271.8654043 | P33: 0.01843412029 | Q33: 14747.94566 | S33: 134.5868338 | T33: FAIL | U33: 137.2785705 | V33: 271.8654043
B34: 18 | F34: 0 | G34: 137.2785705 | H34: 140.0241419 | K34: -69.32567811 | L34: ='AHORRO FUTURO'!C39 -> 2571.968254 | M34: 277.3027124 | P34: 0.01884048366 | Q34: 14718.44977 | S34: 137.2785705 | T34: FAIL | U34: 140.0241419 | V34: 277.3027124
B35: 19 | F35: 0 | G35: 140.0241419 | H35: 142.8246248 | K35: -70.71219167 | L35: ='AHORRO FUTURO'!C40 -> 2669.49729 | M35: 282.8487667 | P35: 0.01925580495 | Q35: 14689.01287 | S35: 140.0241419 | T35: FAIL | U35: 142.8246248 | V35: 282.8487667
B36: 20 | F36: 0 | G36: 142.8246248 | H36: 145.6811173 | K36: -72.1264355 | L36: ='AHORRO FUTURO'!C41 -> 2770.724627 | M36: 288.505742 | P36: 0.01968028161 | Q36: 14659.63484 | S36: 142.8246248 | T36: FAIL | U36: 145.6811173 | V36: 288.505742
B37: 21 | F37: 0 | G37: 145.6811173 | H37: 148.5947396 | K37: -73.56896421 | L37: ='AHORRO FUTURO'!C42 -> 2875.790505 | M37: 294.2758569 | P37: 0.02011411547 | Q37: 14630.31557 | S37: 145.6811173 | T37: FAIL | U37: 148.5947396 | V37: 294.2758569
B38: 22 | F38: 0 | G38: 148.5947396 | H38: 151.5666344 | K38: -75.0403435 | L38: ='AHORRO FUTURO'!C43 -> 2984.840481 | M38: 300.161374 | P38: 0.02055751281 | Q38: 14601.05494 | S38: 148.5947396 | T38: FAIL | U38: 151.5666344 | V38: 300.161374
B39: 23 | F39: 0 | G39: 151.5666344 | H39: 154.5979671 | K39: -76.54115037 | L39: ='AHORRO FUTURO'!C44 -> 3098.025632 | M39: 306.1646015 | P39: 0.02101068443 | Q39: 14571.85283 | S39: 151.5666344 | T39: FAIL | U39: 154.5979671 | V39: 306.1646015
B40: 24 | F40: 0 | G40: 154.5979671 | H40: 157.6899264 | K40: -78.07197337 | L40: ='AHORRO FUTURO'!C45 -> 3215.502764 | M40: 312.2878935 | P40: 0.02147384581 | Q40: 14542.70913 | S40: 154.5979671 | T40: FAIL | U40: 157.6899264 | V40: 312.2878935
B41: 25 | F41: 0 | G41: 157.6899264 | H41: 160.8437249 | K41: -79.63341284 | L41: ='AHORRO FUTURO'!C46 -> 3337.434629 | M41: 318.5336514 | P41: 0.02194721716 | Q41: 14513.62371 | S41: 157.6899264 | T41: FAIL | U41: 160.8437249 | V41: 318.5336514
B42: 26 | E42: =IF($C$11>=B42,+C42-D42,"") ->  | F42: 0 | G42: 160.8437249 | H42: 164.0605994 | K42: -81.2260811 | L42: ='AHORRO FUTURO'!C47 -> 3463.99015 | M42: 324.9043244 | P42: 0.02243102355 | Q42: 14484.59646 | S42: =S41+$F$11*S41 -> 160.8437249 | T42: FAIL | U42: =U41+$F$11*U41 -> 164.0605994 | V42: 324.9043244
B43: 27 | F43: 0 | G43: 164.0605994 | H43: 167.3418114 | K43: -82.85060272 | L43: ='AHORRO FUTURO'!C48 -> 3595.344656 | M43: 331.4024109 | P43: 0.02292549502 | Q43: 14455.62727 | S43: 164.0605994 | T43: FAIL | U43: 167.3418114 | V43: 331.4024109
B44: 28 | F44: 0 | G44: 167.3418114 | H44: 170.6886477 | K44: -84.50761477 | L44: ='AHORRO FUTURO'!C49 -> 3731.680126 | M44: 338.0304591 | P44: 0.02343086665 | Q44: 14426.71601 | S44: 167.3418114 | T44: FAIL | U44: 170.6886477 | V44: 338.0304591
B45: 29 | F45: 0 | G45: 170.6886477 | H45: 174.1024206 | K45: -86.19776707 | L45: ='AHORRO FUTURO'!C50 -> 3873.185436 | M45: 344.7910683 | P45: 0.02394737874 | Q45: 14397.86258 | S45: 170.6886477 | T45: FAIL | U45: 174.1024206 | V45: 344.7910683
B46: 30 | F46: 0 | G46: 174.1024206 | H46: 177.584469 | K46: -87.92172241 | L46: ='AHORRO FUTURO'!C51 -> 4020.056628 | M46: 351.6868896 | P46: 0.02447527687 | Q46: 14369.06686 | S46: 174.1024206 | T46: FAIL | U46: 177.584469 | V46: 351.6868896
B47: 31 | F47: 0 | G47: 177.584469 | H47: 181.1361584 | K47: -89.68015686 | L47: ='AHORRO FUTURO'!C52 -> 4172.497175 | M47: 358.7206274 | P47: 0.02501481203 | Q47: 14340.32872 | S47: 177.584469 | T47: FAIL | U47: 181.1361584 | V47: 358.7206274
B48: 32 | F48: 0 | G48: 181.1361584 | H48: 184.7588816 | K48: -91.47376 | L48: ='AHORRO FUTURO'!C53 -> 4330.718268 | M48: 365.89504 | P48: 0.02556624075 | Q48: 14311.64807 | S48: 181.1361584 | T48: FAIL | U48: 184.7588816 | V48: 365.89504
B49: 33 | F49: 0 | G49: 184.7588816 | H49: 188.4540592 | K49: -93.3032352 | L49: ='AHORRO FUTURO'!C54 -> 4494.939105 | M49: 373.2129408 | P49: 0.02612982522 | Q49: 14283.02477 | S49: 184.7588816 | T49: FAIL | U49: 188.4540592 | V49: 373.2129408
B50: 34 | F50: 0 | G50: 188.4540592 | H50: 192.2231404 | K50: -95.1692999 | L50: ='AHORRO FUTURO'!C55 -> 4665.387195 | M50: 380.6771996 | P50: 0.02670583339 | Q50: 14254.45872 | S50: 188.4540592 | T50: FAIL | U50: 192.2231404 | V50: 380.6771996
B51: 35 | F51: 0 | G51: 192.2231404 | H51: 196.0676032 | K51: -97.0726859 | L51: ='AHORRO FUTURO'!C56 -> 4842.298678 | M51: 388.2907436 | P51: 0.02729453913 | Q51: 14225.9498 | S51: 192.2231404 | T51: FAIL | U51: 196.0676032 | V51: 388.2907436
B52: 36 | F52: 0 | G52: 196.0676032 | H52: 199.9889553 | K52: -99.01413962 | L52: ='AHORRO FUTURO'!C57 -> 5025.918644 | M52: 396.0565585 | P52: 0.02789622236 | Q52: 14197.4979 | S52: 196.0676032 | T52: FAIL | U52: 199.9889553 | V52: 396.0565585
B53: 37 | E53: =IF($C$11>=B53,+C53-D53,"") ->  | F53: 0 | G53: 199.9889553 | H53: 203.9887344 | K53: -100.9944224 | L53: ='AHORRO FUTURO'!C58 -> 5216.501479 | M53: 403.9776896 | P53: 0.02851116915 | Q53: 14169.10291 | S53: 199.9889553 | T53: FAIL | U53: 203.9887344 | V53: 403.9776896
B54: 38 | E54: =IF($C$11>=B54,+C54-D54,"") ->  | F54: 0 | G54: 203.9887344 | H54: 208.0685091 | K54: -103.0143109 | L54: ='AHORRO FUTURO'!C59 -> 5414.311215 | M54: 412.0572434 | P54: 0.02913967187 | Q54: 14140.7647 | S54: 203.9887344 | T54: FAIL | U54: 208.0685091 | V54: 412.0572434
B55: 39 | E55: =IF($C$11>=B55,+C55-D55,"") ->  | F55: 0 | G55: 208.0685091 | H55: 212.2298792 | K55: -105.0745971 | L55: ='AHORRO FUTURO'!C60 -> 5619.621896 | M55: 420.2983883 | P55: 0.02978202937 | Q55: 14112.48317 | S55: 208.0685091 | T55: FAIL | U55: 212.2298792 | V55: 420.2983883
B56: 40 | E56: =IF($C$11>=B56,+C56-D56,"") ->  | F56: 0 | G56: 212.2298792 | H56: 216.4744768 | K56: -107.176089 | L56: ='AHORRO FUTURO'!C61 -> 5832.717958 | M56: 428.7043561 | P56: 0.03043854705 | Q56: 14084.25821 | S56: 212.2298792 | T56: FAIL | U56: 216.4744768 | V56: 428.7043561

Sheet AHORRO FOTOVOLTAICA
A1: Tarifa | B1: 2.1A | I1: =B1 -> 2.1A | O1: tarifas | S1: 0 | T1: 0
A2: Periodos | B2: =IF($B$1="tarifas","","1 (Punta)") -> 1 (Punta) | C2: =IF($B$1="3.0A","2 (Llano)",IF($B$1="3.1A","2 (Llano)",IF($B$1="6.1A","2 (Llano)",""))) ->  | D2: =IF($B$1="3.0A","3 (Valle)",IF($B$1="3.1A","3 (Valle)",IF($B$1="6.1A","3 (Valle)",IF($B$1="2.0DHA","3 (Valle)",IF($B$1="2.1DHA","3 (Valle)",""))))) ->  | E2: =IF($B$1="tarifas","",IF($B$1="6.1A",4,"")) ->  | F2: =IF($B$1="tarifas","",IF($B$1="6.1A",5,"")) ->  | G2: =IF($B$1="tarifas","",IF($B$1="6.1A",6,"")) ->  | O2: 2.0A
A3: Precio kWh | B3: 0.105056 | C3: 0 | D3: 0 | E3: 0 | F3: 0 | G3: 0 | I3: =B3 -> 0.105056 | J3: 0 | K3: 0 | L3: 0 | M3: 0 | N3: 0 | O3: 2.0DHA
A4: Potencia kW | O4: 2.1A
A5: Precio kW | O5: 2.1DHA
A6: Consumo anual | D6: 0 | F6: 0 | H6: 0 | J6: 0 | L6: 0 | O6: 3.0A
B7: =IF($B$2="","",$B$2) -> 1 (Punta) | C7: =IF(B7="","","Precio Real") -> Precio Real | D7: =IF($B$1="3.0A","2 (Llano)",IF($B$1="3.1A","2 (Llano)",IF($B$1="6.1A","2 (Llano)",""))) ->  | E7: =IF(D7="","","Precio Real") ->  | F7: =IF($B$1="3.0A","3 (Valle)",IF($B$1="3.1A","3 (Valle)",IF($B$1="6.1A","3 (Valle)",IF($B$1="2.0DHA","3 (Valle)",IF($B$1="2.1DHA","3 (Valle)",""))))) ->  | G7: =IF(F7="","","Precio Real") ->  | H7: =IF($B$1="tarifas","",IF($B$1="6.1A",4,"")) ->  | I7: =IF(H7="","","Precio Real") ->  | J7: =IF($B$1="tarifas","",IF($B$1="6.1A",5,"")) ->  | K7: =IF(J7="","","Precio Real") ->  | L7: =IF($B$1="tarifas","",IF($B$1="6.1A",6,"")) ->  | M7: =IF(L7="","","Precio Real") ->  | O7: 3.1A
A8: Enero | B8: =Hoja2!F41+Hoja2!I41 -> 244 | C8: =IF(C7="","",IF('CUADRO RENTING'!$D$6="Empresa",($B$3)*(1+1.05113*4.864%),($B$3+$B$4*$B$5*31/B9)*(1+1.05113*4.864%)*1.21)) -> 0.1104271942 | D8: 0 | E8: =IF(E7="","",IF($C$3="","",IF('CUADRO RENTING'!$D$6="Empresa",$C$3*(1+1.05113*4.864%),$C$3*(1+1.05113*4.864%)*1.21))) ->  | F8: 0 | G8: =IF(G7="","",IF($D$3="","",IF('CUADRO RENTING'!$D$6="Empresa",$D$3*(1+1.05113*4.864%),$D$3*(1+1.05113*4.864%)*1.21))) ->  | H8: 0 | I8: =IF(I7="","",IF($E$3="","",IF('CUADRO RENTING'!$D$6="Empresa",$E$3*(1+1.05113*4.864%),$E$3*(1+1.05113*4.864%)*1.21))) ->  | J8: 0 | K8: =IF(K7="","",IF($F$3="","",IF('CUADRO RENTING'!$D$6="Empresa",$F$3*(1+1.05113*4.864%),$F$3*(1+1.05113*4.864%)*1.21))) ->  | L8: 0 | M8: =IF(M7="","",IF($G$3="","",IF('CUADRO RENTING'!$D$6="Empresa",$G$3*(1+1.05113*4.864%),$G$3*(1+1.05113*4.864%)*1.21))) ->  | O8: 6.1A
A9: Febrero | B9: =Hoja2!F42+Hoja2!I42 -> 269 | C9: =IF(C8="","",IF('CUADRO RENTING'!$D$6="Empresa",($B$3)*(1+1.05113*4.864%),($B$3)*(1+1.05113*4.864%)*1.21)) -> 0.1104271942 | D9: 0 | E9: =IF(E8="","",IF($C$3="","",IF('CUADRO RENTING'!$D$6="Empresa",$C$3*(1+1.05113*4.864%),$C$3*(1+1.05113*4.864%)*1.21))) ->  | F9: 0 | G9: =IF(G8="","",IF($D$3="","",IF('CUADRO RENTING'!$D$6="Empresa",$D$3*(1+1.05113*4.864%),$D$3*(1+1.05113*4.864%)*1.21))) ->  | H9: 0 | I9: =IF(I8="","",IF($E$3="","",IF('CUADRO RENTING'!$D$6="Empresa",$E$3*(1+1.05113*4.864%),$E$3*(1+1.05113*4.864%)*1.21))) ->  | J9: 0 | K9: =IF(K8="","",IF($F$3="","",IF('CUADRO RENTING'!$D$6="Empresa",$F$3*(1+1.05113*4.864%),$F$3*(1+1.05113*4.864%)*1.21))) ->  | L9: 0 | M9: =IF(M8="","",IF($G$3="","",IF('CUADRO RENTING'!$D$6="Empresa",$G$3*(1+1.05113*4.864%),$G$3*(1+1.05113*4.864%)*1.21))) -> 
A10: Marzo | B10: =Hoja2!F43+Hoja2!I43 -> 1877 | C10: =IF(C9="","",IF('CUADRO RENTING'!$D$6="Empresa",($B$3)*(1+1.05113*4.864%),($B$3)*(1+1.05113*4.864%)*1.21)) -> 0.1104271942 | D10: 0 | E10: =IF(E9="","",IF($C$3="","",IF('CUADRO RENTING'!$D$6="Empresa",$C$3*(1+1.05113*4.864%),$C$3*(1+1.05113*4.864%)*1.21))) ->  | F10: 0 | G10: =IF(G9="","",IF($D$3="","",IF('CUADRO RENTING'!$D$6="Empresa",$D$3*(1+1.05113*4.864%),$D$3*(1+1.05113*4.864%)*1.21))) ->  | H10: 0 | I10: =IF(I9="","",IF($E$3="","",IF('CUADRO RENTING'!$D$6="Empresa",$E$3*(1+1.05113*4.864%),$E$3*(1+1.05113*4.864%)*1.21))) ->  | J10: 0 | K10: =IF(K9="","",IF($F$3="","",IF('CUADRO RENTING'!$D$6="Empresa",$F$3*(1+1.05113*4.864%),$F$3*(1+1.05113*4.864%)*1.21))) ->  | L10: 0 | M10: =IF(M9="","",IF($G$3="","",IF('CUADRO RENTING'!$D$6="Empresa",$G$3*(1+1.05113*4.864%),$G$3*(1+1.05113*4.864%)*1.21))) -> 
A11: Abril | B11: =Hoja2!F44+Hoja2!I44 -> 3602 | C11: =IF(C10="","",IF('CUADRO RENTING'!$D$6="Empresa",($B$3)*(1+1.05113*4.864%),($B$3)*(1+1.05113*4.864%)*1.21)) -> 0.1104271942 | D11: 0 | E11: =IF(E10="","",IF($C$3="","",IF('CUADRO RENTING'!$D$6="Empresa",$C$3*(1+1.05113*4.864%),$C$3*(1+1.05113*4.864%)*1.21))) ->  | F11: 0 | G11: =IF(G10="","",IF($D$3="","",IF('CUADRO RENTING'!$D$6="Empresa",$D$3*(1+1.05113*4.864%),$D$3*(1+1.05113*4.864%)*1.21))) ->  | H11: 0 | I11: =IF(I10="","",IF($E$3="","",IF('CUADRO RENTING'!$D$6="Empresa",$E$3*(1+1.05113*4.864%),$E$3*(1+1.05113*4.864%)*1.21))) ->  | J11: 0 | K11: =IF(K10="","",IF($F$3="","",IF('CUADRO RENTING'!$D$6="Empresa",$F$3*(1+1.05113*4.864%),$F$3*(1+1.05113*4.864%)*1.21))) ->  | L11: 0 | M11: =IF(M10="","",IF($G$3="","",IF('CUADRO RENTING'!$D$6="Empresa",$G$3*(1+1.05113*4.864%),$G$3*(1+1.05113*4.864%)*1.21))) -> 
A12: Mayo | B12: =Hoja2!F45+Hoja2!I45 -> 4133 | C12: =IF(C11="","",IF('CUADRO RENTING'!$D$6="Empresa",($B$3)*(1+1.05113*4.864%),($B$3)*(1+1.05113*4.864%)*1.21)) -> 0.1104271942 | D12: 0 | E12: =IF(E11="","",IF($C$3="","",IF('CUADRO RENTING'!$D$6="Empresa",$C$3*(1+1.05113*4.864%),$C$3*(1+1.05113*4.864%)*1.21))) ->  | F12: 0 | G12: =IF(G11="","",IF($D$3="","",IF('CUADRO RENTING'!$D$6="Empresa",$D$3*(1+1.05113*4.864%),$D$3*(1+1.05113*4.864%)*1.21))) ->  | H12: 0 | I12: =IF(I11="","",IF($E$3="","",IF('CUADRO RENTING'!$D$6="Empresa",$E$3*(1+1.05113*4.864%),$E$3*(1+1.05113*4.864%)*1.21))) ->  | J12: 0 | K12: =IF(K11="","",IF($F$3="","",IF('CUADRO RENTING'!$D$6="Empresa",$F$3*(1+1.05113*4.864%),$F$3*(1+1.05113*4.864%)*1.21))) ->  | L12: 0 | M12: =IF(M11="","",IF($G$3="","",IF('CUADRO RENTING'!$D$6="Empresa",$G$3*(1+1.05113*4.864%),$G$3*(1+1.05113*4.864%)*1.21))) -> 
A13: Junio | B13: =Hoja2!F46+Hoja2!I46 -> 5758 | C13: =IF(C12="","",IF('CUADRO RENTING'!$D$6="Empresa",($B$3)*(1+1.05113*4.864%),($B$3)*(1+1.05113*4.864%)*1.21)) -> 0.1104271942 | D13: 0 | E13: =IF(E12="","",IF($C$3="","",IF('CUADRO RENTING'!$D$6="Empresa",$C$3*(1+1.05113*4.864%),$C$3*(1+1.05113*4.864%)*1.21))) ->  | F13: 0 | G13: =IF(G12="","",IF($D$3="","",IF('CUADRO RENTING'!$D$6="Empresa",$D$3*(1+1.05113*4.864%),$D$3*(1+1.05113*4.864%)*1.21))) ->  | H13: 0 | I13: =IF(I12="","",IF($E$3="","",IF('CUADRO RENTING'!$D$6="Empresa",$E$3*(1+1.05113*4.864%),$E$3*(1+1.05113*4.864%)*1.21))) ->  | J13: 0 | K13: =IF(K12="","",IF($F$3="","",IF('CUADRO RENTING'!$D$6="Empresa",$F$3*(1+1.05113*4.864%),$F$3*(1+1.05113*4.864%)*1.21))) ->  | L13: 0 | M13: =IF(M12="","",IF($G$3="","",IF('CUADRO RENTING'!$D$6="Empresa",$G$3*(1+1.05113*4.864%),$G$3*(1+1.05113*4.864%)*1.21))) -> 
A14: Julio | B14: =Hoja2!F47+Hoja2!I47 -> 5876 | C14: =IF(C13="","",IF('CUADRO RENTING'!$D$6="Empresa",($B$3)*(1+1.05113*4.864%),($B$3)*(1+1.05113*4.864%)*1.21)) -> 0.1104271942 | D14: 0 | E14: =IF(E13="","",IF($C$3="","",IF('CUADRO RENTING'!$D$6="Empresa",$C$3*(1+1.05113*4.864%),$C$3*(1+1.05113*4.864%)*1.21))) ->  | F14: 0 | G14: =IF(G13="","",IF($D$3="","",IF('CUADRO RENTING'!$D$6="Empresa",$D$3*(1+1.05113*4.864%),$D$3*(1+1.05113*4.864%)*1.21))) ->  | H14: 0 | I14: =IF(I13="","",IF($E$3="","",IF('CUADRO RENTING'!$D$6="Empresa",$E$3*(1+1.05113*4.864%),$E$3*(1+1.05113*4.864%)*1.21))) ->  | J14: 0 | K14: =IF(K13="","",IF($F$3="","",IF('CUADRO RENTING'!$D$6="Empresa",$F$3*(1+1.05113*4.864%),$F$3*(1+1.05113*4.864%)*1.21))) ->  | L14: 0 | M14: =IF(M13="","",IF($G$3="","",IF('CUADRO RENTING'!$D$6="Empresa",$G$3*(1+1.05113*4.864%),$G$3*(1+1.05113*4.864%)*1.21))) -> 
A15: Agosto | B15: =Hoja2!F48+Hoja2!I48 -> 4479 | C15: =IF(C14="","",IF('CUADRO RENTING'!$D$6="Empresa",($B$3)*(1+1.05113*4.864%),($B$3)*(1+1.05113*4.864%)*1.21)) -> 0.1104271942 | D15: 0 | E15: =IF(E14="","",IF($C$3="","",IF('CUADRO RENTING'!$D$6="Empresa",$C$3*(1+1.05113*4.864%),$C$3*(1+1.05113*4.864%)*1.21))) ->  | F15: 0 | G15: =IF(G14="","",IF($D$3="","",IF('CUADRO RENTING'!$D$6="Empresa",$D$3*(1+1.05113*4.864%),$D$3*(1+1.05113*4.864%)*1.21))) ->  | H15: 0 | I15: =IF(I14="","",IF($E$3="","",IF('CUADRO RENTING'!$D$6="Empresa",$E$3*(1+1.05113*4.864%),$E$3*(1+1.05113*4.864%)*1.21))) ->  | J15: 0 | K15: =IF(K14="","",IF($F$3="","",IF('CUADRO RENTING'!$D$6="Empresa",$F$3*(1+1.05113*4.864%),$F$3*(1+1.05113*4.864%)*1.21))) ->  | L15: 0 | M15: =IF(M14="","",IF($G$3="","",IF('CUADRO RENTING'!$D$6="Empresa",$G$3*(1+1.05113*4.864%),$G$3*(1+1.05113*4.864%)*1.21))) -> 
A16: Septiembre | B16: =Hoja2!F49+Hoja2!I49 -> 3333 | C16: =IF(C15="","",IF('CUADRO RENTING'!$D$6="Empresa",($B$3)*(1+1.05113*4.864%),($B$3)*(1+1.05113*4.864%)*1.21)) -> 0.1104271942 | D16: 0 | E16: =IF(E15="","",IF($C$3="","",IF('CUADRO RENTING'!$D$6="Empresa",$C$3*(1+1.05113*4.864%),$C$3*(1+1.05113*4.864%)*1.21))) ->  | F16: 0 | G16: =IF(G15="","",IF($D$3="","",IF('CUADRO RENTING'!$D$6="Empresa",$D$3*(1+1.05113*4.864%),$D$3*(1+1.05113*4.864%)*1.21))) ->  | H16: 0 | I16: =IF(I15="","",IF($E$3="","",IF('CUADRO RENTING'!$D$6="Empresa",$E$3*(1+1.05113*4.864%),$E$3*(1+1.05113*4.864%)*1.21))) ->  | J16: 0 | K16: =IF(K15="","",IF($F$3="","",IF('CUADRO RENTING'!$D$6="Empresa",$F$3*(1+1.05113*4.864%),$F$3*(1+1.05113*4.864%)*1.21))) ->  | L16: 0 | M16: =IF(M15="","",IF($G$3="","",IF('CUADRO RENTING'!$D$6="Empresa",$G$3*(1+1.05113*4.864%),$G$3*(1+1.05113*4.864%)*1.21))) -> 
A17: Octubre | B17: =Hoja2!F50+Hoja2!I50 -> 2087 | C17: =IF(C16="","",IF('CUADRO RENTING'!$D$6="Empresa",($B$3)*(1+1.05113*4.864%),($B$3)*(1+1.05113*4.864%)*1.21)) -> 0.1104271942 | D17: 0 | E17: =IF(E16="","",IF($C$3="","",IF('CUADRO RENTING'!$D$6="Empresa",$C$3*(1+1.05113*4.864%),$C$3*(1+1.05113*4.864%)*1.21))) ->  | F17: 0 | G17: =IF(G16="","",IF($D$3="","",IF('CUADRO RENTING'!$D$6="Empresa",$D$3*(1+1.05113*4.864%),$D$3*(1+1.05113*4.864%)*1.21))) ->  | H17: 0 | I17: =IF(I16="","",IF($E$3="","",IF('CUADRO RENTING'!$D$6="Empresa",$E$3*(1+1.05113*4.864%),$E$3*(1+1.05113*4.864%)*1.21))) ->  | J17: 0 | K17: =IF(K16="","",IF($F$3="","",IF('CUADRO RENTING'!$D$6="Empresa",$F$3*(1+1.05113*4.864%),$F$3*(1+1.05113*4.864%)*1.21))) ->  | L17: 0 | M17: =IF(M16="","",IF($G$3="","",IF('CUADRO RENTING'!$D$6="Empresa",$G$3*(1+1.05113*4.864%),$G$3*(1+1.05113*4.864%)*1.21))) -> 
A18: Noviembre | B18: =Hoja2!F51+Hoja2!I51 -> 219 | C18: =IF(C17="","",IF('CUADRO RENTING'!$D$6="Empresa",($B$3)*(1+1.05113*4.864%),($B$3)*(1+1.05113*4.864%)*1.21)) -> 0.1104271942 | D18: 0 | E18: =IF(E17="","",IF($C$3="","",IF('CUADRO RENTING'!$D$6="Empresa",$C$3*(1+1.05113*4.864%),$C$3*(1+1.05113*4.864%)*1.21))) ->  | F18: 0 | G18: =IF(G17="","",IF($D$3="","",IF('CUADRO RENTING'!$D$6="Empresa",$D$3*(1+1.05113*4.864%),$D$3*(1+1.05113*4.864%)*1.21))) ->  | H18: 0 | I18: =IF(I17="","",IF($E$3="","",IF('CUADRO RENTING'!$D$6="Empresa",$E$3*(1+1.05113*4.864%),$E$3*(1+1.05113*4.864%)*1.21))) ->  | J18: 0 | K18: =IF(K17="","",IF($F$3="","",IF('CUADRO RENTING'!$D$6="Empresa",$F$3*(1+1.05113*4.864%),$F$3*(1+1.05113*4.864%)*1.21))) ->  | L18: 0 | M18: =IF(M17="","",IF($G$3="","",IF('CUADRO RENTING'!$D$6="Empresa",$G$3*(1+1.05113*4.864%),$G$3*(1+1.05113*4.864%)*1.21))) -> 
A19: Diciembre | B19: =Hoja2!F52+Hoja2!I52 -> 217 | C19: =IF(C18="","",IF('CUADRO RENTING'!$D$6="Empresa",($B$3)*(1+1.05113*4.864%),($B$3)*(1+1.05113*4.864%)*1.21)) -> 0.1104271942 | D19: 0 | E19: =IF(E18="","",IF($C$3="","",IF('CUADRO RENTING'!$D$6="Empresa",$C$3*(1+1.05113*4.864%),$C$3*(1+1.05113*4.864%)*1.21))) ->  | F19: 0 | G19: =IF(G18="","",IF($D$3="","",IF('CUADRO RENTING'!$D$6="Empresa",$D$3*(1+1.05113*4.864%),$D$3*(1+1.05113*4.864%)*1.21))) ->  | H19: 0 | I19: =IF(I18="","",IF($E$3="","",IF('CUADRO RENTING'!$D$6="Empresa",$E$3*(1+1.05113*4.864%),$E$3*(1+1.05113*4.864%)*1.21))) ->  | J19: 0 | K19: =IF(K18="","",IF($F$3="","",IF('CUADRO RENTING'!$D$6="Empresa",$F$3*(1+1.05113*4.864%),$F$3*(1+1.05113*4.864%)*1.21))) ->  | L19: 0 | M19: =IF(M18="","",IF($G$3="","",IF('CUADRO RENTING'!$D$6="Empresa",$G$3*(1+1.05113*4.864%),$G$3*(1+1.05113*4.864%)*1.21))) -> 
A20: TOTAL | B20: =SUM(B8:B19) -> 32094 | D20: =SUM(D8:D19) -> 0 | F20: =SUM(F8:F19) -> 0 | H20: =SUM(H8:H19) -> 0 | J20: =SUM(J8:J19) -> 0 | L20: =SUM(L8:L19) -> 0
A21: Producción Fotovoltaica
B23: =IF($B$2="","",$B$2) -> 1 (Punta) | C23: =IF(B23="","","Precio FV") -> Precio FV | D23: =IF($C$2="","",$C$2) ->  | E23: =IF(D23="","","Precio FV") ->  | F23: =IF($D$2="","",$D$2) ->  | G23: =IF(F23="","","Precio FV") ->  | H23: =IF($E$2="","",$E$2) ->  | I23: =IF(H23="","","Precio FV") ->  | J23: =IF($F$2="","",$F$2) ->  | K23: =IF(J23="","","Precio FV") ->  | L23: =IF($G$2="","",$G$2) ->  | M23: =IF(L23="","","Precio FV") -> 
A24: Enero | B24: =IF($B$1="2.0A",PORCENTAJES!G3*'CUADRO RENTING'!$Q$17,IF($B$1="2.1A",'CUADRO RENTING'!$Q$17*PORCENTAJES!J3,IF($B$1="2.0DHA",'CUADRO RENTING'!$Q$17*PORCENTAJES!H3,IF($B$1="2.1DHA",'CUADRO RENTING'!$Q$17*PORCENTAJES!K3,IF($B$1="3.0A",'CUADRO RENTING'!$Q$17*PORCENTAJES!M3,IF($B$1="3.1A",'CUADRO RENTING'!$Q$17*PORCENTAJES!P3,IF($B$1="6.1A",'CUADRO RENTING'!$Q$17*PORCENTAJES!S3,0))))))) -> 961.6464621 | C24: =IF(C23="","",'CUADRO RENTING'!$P$17) -> 0.006566850538 | D24: =IF($B$1="3.0A",'CUADRO RENTING'!$Q$17*PORCENTAJES!N3,IF($B$1="3.1A",'CUADRO RENTING'!$Q$17*PORCENTAJES!Q3,IF($B$1="6.1A",'CUADRO RENTING'!$Q$17*PORCENTAJES!T3,""))) ->  | E24: =IF(E23="","",'CUADRO RENTING'!$P$17) ->  | F24: =IF($B$1="2.0DHA",'CUADRO RENTING'!$Q$17*PORCENTAJES!I3,IF($B$1="2.1DHA",'CUADRO RENTING'!$Q$17*PORCENTAJES!L3,IF($B$1="3.0A",'CUADRO RENTING'!$Q$17*PORCENTAJES!O3,IF($B$1="3.1A",'CUADRO RENTING'!$Q$17*PORCENTAJES!R3,IF($B$1="6.1A",'CUADRO RENTING'!$Q$17*PORCENTAJES!U3,""))))) ->  | G24: =IF(G23="","",'CUADRO RENTING'!$P$17) ->  | H24: =IF($B$1="6.1A",'CUADRO RENTING'!$Q$17*PORCENTAJES!V3,"") ->  | I24: =IF(I23="","",'CUADRO RENTING'!$P$17) ->  | J24: =IF($B$1="6.1A",'CUADRO RENTING'!$Q$17*PORCENTAJES!W3,"") ->  | K24: =IF(K23="","",'CUADRO RENTING'!$P$17) ->  | L24: =IF($B$1="6.1A",'CUADRO RENTING'!$Q$17*PORCENTAJES!X3,"") ->  | M24: =IF(M23="","",'CUADRO RENTING'!$P$17) ->  | N24: =B24+F24+D24+H24+J24+L24 ->  | O24: 105
A25: Febrero | B25: =IF($B$1="2.0A",PORCENTAJES!G4*'CUADRO RENTING'!$Q$17,IF($B$1="2.1A",'CUADRO RENTING'!$Q$17*PORCENTAJES!J4,IF($B$1="2.0DHA",'CUADRO RENTING'!$Q$17*PORCENTAJES!H4,IF($B$1="2.1DHA",'CUADRO RENTING'!$Q$17*PORCENTAJES!K4,IF($B$1="3.0A",'CUADRO RENTING'!$Q$17*PORCENTAJES!M4,IF($B$1="3.1A",'CUADRO RENTING'!$Q$17*PORCENTAJES!P4,IF($B$1="6.1A",'CUADRO RENTING'!$Q$17*PORCENTAJES!S4,0))))))) -> 1042.749176 | C25: =IF(C24="","",'CUADRO RENTING'!$P$17) -> 0.006566850538 | D25: =IF($B$1="3.0A",'CUADRO RENTING'!$Q$17*PORCENTAJES!N4,IF($B$1="3.1A",'CUADRO RENTING'!$Q$17*PORCENTAJES!Q4,IF($B$1="6.1A",'CUADRO RENTING'!$Q$17*PORCENTAJES!T4,""))) ->  | E25: =IF(E24="","",'CUADRO RENTING'!$P$17) ->  | F25: =IF($B$1="2.0DHA",'CUADRO RENTING'!$Q$17*PORCENTAJES!I4,IF($B$1="2.1DHA",'CUADRO RENTING'!$Q$17*PORCENTAJES!L4,IF($B$1="3.0A",'CUADRO RENTING'!$Q$17*PORCENTAJES!O4,IF($B$1="3.1A",'CUADRO RENTING'!$Q$17*PORCENTAJES!R4,IF($B$1="6.1A",'CUADRO RENTING'!$Q$17*PORCENTAJES!U4,""))))) ->  | G25: =IF(G24="","",'CUADRO RENTING'!$P$17) ->  | H25: =IF($B$1="6.1A",'CUADRO RENTING'!$Q$17*PORCENTAJES!V4,"") ->  | I25: =IF(I24="","",'CUADRO RENTING'!$P$17) ->  | J25: =IF($B$1="6.1A",'CUADRO RENTING'!$Q$17*PORCENTAJES!W4,"") ->  | K25: =IF(K24="","",'CUADRO RENTING'!$P$17) ->  | L25: =IF($B$1="6.1A",'CUADRO RENTING'!$Q$17*PORCENTAJES!X4,"") ->  | M25: =IF(M24="","",'CUADRO RENTING'!$P$17) ->  | N25: =B25+F25+D25+H25+J25+L25 ->  | O25: 112
A26: Marzo | B26: =IF($B$1="2.0A",PORCENTAJES!G5*'CUADRO RENTING'!$Q$17,IF($B$1="2.1A",'CUADRO RENTING'!$Q$17*PORCENTAJES!J5,IF($B$1="2.0DHA",'CUADRO RENTING'!$Q$17*PORCENTAJES!H5,IF($B$1="2.1DHA",'CUADRO RENTING'!$Q$17*PORCENTAJES!K5,IF($B$1="3.0A",'CUADRO RENTING'!$Q$17*PORCENTAJES!M5,IF($B$1="3.1A",'CUADRO RENTING'!$Q$17*PORCENTAJES!P5,IF($B$1="6.1A",'CUADRO RENTING'!$Q$17*PORCENTAJES!S5,0))))))) -> 1390.332234 | C26: =IF(C25="","",'CUADRO RENTING'!$P$17) -> 0.006566850538 | D26: =IF($B$1="3.0A",'CUADRO RENTING'!$Q$17*PORCENTAJES!N5,IF($B$1="3.1A",'CUADRO RENTING'!$Q$17*PORCENTAJES!Q5,IF($B$1="6.1A",'CUADRO RENTING'!$Q$17*PORCENTAJES!T5,""))) ->  | E26: =IF(E25="","",'CUADRO RENTING'!$P$17) ->  | F26: =IF($B$1="2.0DHA",'CUADRO RENTING'!$Q$17*PORCENTAJES!I5,IF($B$1="2.1DHA",'CUADRO RENTING'!$Q$17*PORCENTAJES!L5,IF($B$1="3.0A",'CUADRO RENTING'!$Q$17*PORCENTAJES!O5,IF($B$1="3.1A",'CUADRO RENTING'!$Q$17*PORCENTAJES!R5,IF($B$1="6.1A",'CUADRO RENTING'!$Q$17*PORCENTAJES!U5,""))))) ->  | G26: =IF(G25="","",'CUADRO RENTING'!$P$17) ->  | H26: =IF($B$1="6.1A",'CUADRO RENTING'!$Q$17*PORCENTAJES!V5,"") ->  | I26: =IF(I25="","",'CUADRO RENTING'!$P$17) ->  | J26: =IF($B$1="6.1A",'CUADRO RENTING'!$Q$17*PORCENTAJES!W5,"") ->  | K26: =IF(K25="","",'CUADRO RENTING'!$P$17) ->  | L26: =IF($B$1="6.1A",'CUADRO RENTING'!$Q$17*PORCENTAJES!X5,"") ->  | M26: =IF(M25="","",'CUADRO RENTING'!$P$17) ->  | O26: 151
A27: Abril | B27: =IF($B$1="2.0A",PORCENTAJES!G6*'CUADRO RENTING'!$Q$17,IF($B$1="2.1A",'CUADRO RENTING'!$Q$17*PORCENTAJES!J6,IF($B$1="2.0DHA",'CUADRO RENTING'!$Q$17*PORCENTAJES!H6,IF($B$1="2.1DHA",'CUADRO RENTING'!$Q$17*PORCENTAJES!K6,IF($B$1="3.0A",'CUADRO RENTING'!$Q$17*PORCENTAJES!M6,IF($B$1="3.1A",'CUADRO RENTING'!$Q$17*PORCENTAJES!P6,IF($B$1="6.1A",'CUADRO RENTING'!$Q$17*PORCENTAJES!S6,0))))))) -> 1371.022064 | C27: =IF(C26="","",'CUADRO RENTING'!$P$17) -> 0.006566850538 | D27: =IF($B$1="3.0A",'CUADRO RENTING'!$Q$17*PORCENTAJES!N6,IF($B$1="3.1A",'CUADRO RENTING'!$Q$17*PORCENTAJES!Q6,IF($B$1="6.1A",'CUADRO RENTING'!$Q$17*PORCENTAJES!T6,""))) ->  | E27: =IF(E26="","",'CUADRO RENTING'!$P$17) ->  | F27: =IF($B$1="2.0DHA",'CUADRO RENTING'!$Q$17*PORCENTAJES!I6,IF($B$1="2.1DHA",'CUADRO RENTING'!$Q$17*PORCENTAJES!L6,IF($B$1="3.0A",'CUADRO RENTING'!$Q$17*PORCENTAJES!O6,IF($B$1="3.1A",'CUADRO RENTING'!$Q$17*PORCENTAJES!R6,IF($B$1="6.1A",'CUADRO RENTING'!$Q$17*PORCENTAJES!U6,""))))) ->  | G27: =IF(G26="","",'CUADRO RENTING'!$P$17) ->  | H27: =IF($B$1="6.1A",'CUADRO RENTING'!$Q$17*PORCENTAJES!V6,"") ->  | I27: =IF(I26="","",'CUADRO RENTING'!$P$17) ->  | J27: =IF($B$1="6.1A",'CUADRO RENTING'!$Q$17*PORCENTAJES!W6,"") ->  | K27: =IF(K26="","",'CUADRO RENTING'!$P$17) ->  | L27: =IF($B$1="6.1A",'CUADRO RENTING'!$Q$17*PORCENTAJES!X6,"") ->  | M27: =IF(M26="","",'CUADRO RENTING'!$P$17) ->  | O27: 149
A28: Mayo | B28: =IF($B$1="2.0A",PORCENTAJES!G7*'CUADRO RENTING'!$Q$17,IF($B$1="2.1A",'CUADRO RENTING'!$Q$17*PORCENTAJES!J7,IF($B$1="2.0DHA",'CUADRO RENTING'!$Q$17*PORCENTAJES!H7,IF($B$1="2.1DHA",'CUADRO RENTING'!$Q$17*PORCENTAJES!K7,IF($B$1="3.0A",'CUADRO RENTING'!$Q$17*PORCENTAJES!M7,IF($B$1="3.1A",'CUADRO RENTING'!$Q$17*PORCENTAJES!P7,IF($B$1="6.1A",'CUADRO RENTING'!$Q$17*PORCENTAJES!S7,0))))))) -> 1506.193254 | C28: =IF(C27="","",'CUADRO RENTING'!$P$17) -> 0.006566850538 | D28: =IF($B$1="3.0A",'CUADRO RENTING'!$Q$17*PORCENTAJES!N7,IF($B$1="3.1A",'CUADRO RENTING'!$Q$17*PORCENTAJES!Q7,IF($B$1="6.1A",'CUADRO RENTING'!$Q$17*PORCENTAJES!T7,""))) ->  | E28: =IF(E27="","",'CUADRO RENTING'!$P$17) ->  | F28: =IF($B$1="2.0DHA",'CUADRO RENTING'!$Q$17*PORCENTAJES!I7,IF($B$1="2.1DHA",'CUADRO RENTING'!$Q$17*PORCENTAJES!L7,IF($B$1="3.0A",'CUADRO RENTING'!$Q$17*PORCENTAJES!O7,IF($B$1="3.1A",'CUADRO RENTING'!$Q$17*PORCENTAJES!R7,IF($B$1="6.1A",'CUADRO RENTING'!$Q$17*PORCENTAJES!U7,""))))) ->  | G28: =IF(G27="","",'CUADRO RENTING'!$P$17) ->  | H28: =IF($B$1="6.1A",'CUADRO RENTING'!$Q$17*PORCENTAJES!V7,"") ->  | I28: =IF(I27="","",'CUADRO RENTING'!$P$17) ->  | J28: =IF($B$1="6.1A",'CUADRO RENTING'!$Q$17*PORCENTAJES!W7,"") ->  | K28: =IF(K27="","",'CUADRO RENTING'!$P$17) ->  | L28: =IF($B$1="6.1A",'CUADRO RENTING'!$Q$17*PORCENTAJES!X7,"") ->  | M28: =IF(M27="","",'CUADRO RENTING'!$P$17) ->  | O28: 164
A29: Junio | B29: =IF($B$1="2.0A",PORCENTAJES!G8*'CUADRO RENTING'!$Q$17,IF($B$1="2.1A",'CUADRO RENTING'!$Q$17*PORCENTAJES!J8,IF($B$1="2.0DHA",'CUADRO RENTING'!$Q$17*PORCENTAJES!H8,IF($B$1="2.1DHA",'CUADRO RENTING'!$Q$17*PORCENTAJES!K8,IF($B$1="3.0A",'CUADRO RENTING'!$Q$17*PORCENTAJES!M8,IF($B$1="3.1A",'CUADRO RENTING'!$Q$17*PORCENTAJES!P8,IF($B$1="6.1A",'CUADRO RENTING'!$Q$17*PORCENTAJES!S8,0))))))) -> 1535.158509 | C29: =IF(C28="","",'CUADRO RENTING'!$P$17) -> 0.006566850538 | D29: =IF($B$1="3.0A",'CUADRO RENTING'!$Q$17*PORCENTAJES!N8,IF($B$1="3.1A",'CUADRO RENTING'!$Q$17*PORCENTAJES!Q8,IF($B$1="6.1A",'CUADRO RENTING'!$Q$17*PORCENTAJES!T8,""))) ->  | E29: =IF(E28="","",'CUADRO RENTING'!$P$17) ->  | F29: =IF($B$1="2.0DHA",'CUADRO RENTING'!$Q$17*PORCENTAJES!I8,IF($B$1="2.1DHA",'CUADRO RENTING'!$Q$17*PORCENTAJES!L8,IF($B$1="3.0A",'CUADRO RENTING'!$Q$17*PORCENTAJES!O8,IF($B$1="3.1A",'CUADRO RENTING'!$Q$17*PORCENTAJES!R8,IF($B$1="6.1A",'CUADRO RENTING'!$Q$17*PORCENTAJES!U8,""))))) ->  | G29: =IF(G28="","",'CUADRO RENTING'!$P$17) ->  | H29: =IF($B$1="6.1A",'CUADRO RENTING'!$Q$17*PORCENTAJES!V8,"") ->  | I29: =IF(I28="","",'CUADRO RENTING'!$P$17) ->  | J29: =IF($B$1="6.1A",'CUADRO RENTING'!$Q$17*PORCENTAJES!W8,"") ->  | K29: =IF(K28="","",'CUADRO RENTING'!$P$17) ->  | L29: =IF($B$1="6.1A",'CUADRO RENTING'!$Q$17*PORCENTAJES!X8,"") ->  | M29: =IF(M28="","",'CUADRO RENTING'!$P$17) ->  | O29: 167
A30: Julio | B30: =IF($B$1="2.0A",PORCENTAJES!G9*'CUADRO RENTING'!$Q$17,IF($B$1="2.1A",'CUADRO RENTING'!$Q$17*PORCENTAJES!J9,IF($B$1="2.0DHA",'CUADRO RENTING'!$Q$17*PORCENTAJES!H9,IF($B$1="2.1DHA",'CUADRO RENTING'!$Q$17*PORCENTAJES!K9,IF($B$1="3.0A",'CUADRO RENTING'!$Q$17*PORCENTAJES!M9,IF($B$1="3.1A",'CUADRO RENTING'!$Q$17*PORCENTAJES!P9,IF($B$1="6.1A",'CUADRO RENTING'!$Q$17*PORCENTAJES!S9,0))))))) -> 1583.433934 | C30: =IF(C29="","",'CUADRO RENTING'!$P$17) -> 0.006566850538 | D30: =IF($B$1="3.0A",'CUADRO RENTING'!$Q$17*PORCENTAJES!N9,IF($B$1="3.1A",'CUADRO RENTING'!$Q$17*PORCENTAJES!Q9,IF($B$1="6.1A",'CUADRO RENTING'!$Q$17*PORCENTAJES!T9,""))) ->  | E30: =IF(E29="","",'CUADRO RENTING'!$P$17) ->  | F30: =IF($B$1="2.0DHA",'CUADRO RENTING'!$Q$17*PORCENTAJES!I9,IF($B$1="2.1DHA",'CUADRO RENTING'!$Q$17*PORCENTAJES!L9,IF($B$1="3.0A",'CUADRO RENTING'!$Q$17*PORCENTAJES!O9,IF($B$1="3.1A",'CUADRO RENTING'!$Q$17*PORCENTAJES!R9,IF($B$1="6.1A",'CUADRO RENTING'!$Q$17*PORCENTAJES!U9,""))))) ->  | G30: =IF(G29="","",'CUADRO RENTING'!$P$17) ->  | H30: =IF($B$1="6.1A",'CUADRO RENTING'!$Q$17*PORCENTAJES!V9,"") ->  | I30: =IF(I29="","",'CUADRO RENTING'!$P$17) ->  | J30: =IF($B$1="6.1A",'CUADRO RENTING'!$Q$17*PORCENTAJES!W9,"") ->  | K30: =IF(K29="","",'CUADRO RENTING'!$P$17) ->  | L30: =IF($B$1="6.1A",'CUADRO RENTING'!$Q$17*PORCENTAJES!X9,"") ->  | M30: =IF(M29="","",'CUADRO RENTING'!$P$17) ->  | O30: 174
A31: Agosto | B31: =IF($B$1="2.0A",PORCENTAJES!G10*'CUADRO RENTING'!$Q$17,IF($B$1="2.1A",'CUADRO RENTING'!$Q$17*PORCENTAJES!J10,IF($B$1="2.0DHA",'CUADRO RENTING'!$Q$17*PORCENTAJES!H10,IF($B$1="2.1DHA",'CUADRO RENTING'!$Q$17*PORCENTAJES!K10,IF($B$1="3.0A",'CUADRO RENTING'!$Q$17*PORCENTAJES!M10,IF($B$1="3.1A",'CUADRO RENTING'!$Q$17*PORCENTAJES!P10,IF($B$1="6.1A",'CUADRO RENTING'!$Q$17*PORCENTAJES!S10,0))))))) -> 1525.503424 | C31: =IF(C30="","",'CUADRO RENTING'!$P$17) -> 0.006566850538 | D31: =IF($B$1="3.0A",'CUADRO RENTING'!$Q$17*PORCENTAJES!N10,IF($B$1="3.1A",'CUADRO RENTING'!$Q$17*PORCENTAJES!Q10,IF($B$1="6.1A",'CUADRO RENTING'!$Q$17*PORCENTAJES!T10,""))) ->  | E31: =IF(E30="","",'CUADRO RENTING'!$P$17) ->  | F31: =IF($B$1="2.0DHA",'CUADRO RENTING'!$Q$17*PORCENTAJES!I10,IF($B$1="2.1DHA",'CUADRO RENTING'!$Q$17*PORCENTAJES!L10,IF($B$1="3.0A",'CUADRO RENTING'!$Q$17*PORCENTAJES!O10,IF($B$1="3.1A",'CUADRO RENTING'!$Q$17*PORCENTAJES!R10,IF($B$1="6.1A",'CUADRO RENTING'!$Q$17*PORCENTAJES!U10,""))))) ->  | G31: =IF(G30="","",'CUADRO RENTING'!$P$17) ->  | H31: =IF($B$1="6.1A",'CUADRO RENTING'!$Q$17*PORCENTAJES!V10,"") ->  | I31: =IF(I30="","",'CUADRO RENTING'!$P$17) ->  | J31: =IF($B$1="6.1A",'CUADRO RENTING'!$Q$17*PORCENTAJES!W10,"") ->  | K31: =IF(K30="","",'CUADRO RENTING'!$P$17) ->  | L31: =IF($B$1="6.1A",'CUADRO RENTING'!$Q$17*PORCENTAJES!X10,"") ->  | M31: =IF(M30="","",'CUADRO RENTING'!$P$17) ->  | O31: 167
A32: Septiembre | B32: =IF($B$1="2.0A",PORCENTAJES!G11*'CUADRO RENTING'!$Q$17,IF($B$1="2.1A",'CUADRO RENTING'!$Q$17*PORCENTAJES!J11,IF($B$1="2.0DHA",'CUADRO RENTING'!$Q$17*PORCENTAJES!H11,IF($B$1="2.1DHA",'CUADRO RENTING'!$Q$17*PORCENTAJES!K11,IF($B$1="3.0A",'CUADRO RENTING'!$Q$17*PORCENTAJES!M11,IF($B$1="3.1A",'CUADRO RENTING'!$Q$17*PORCENTAJES!P11,IF($B$1="6.1A",'CUADRO RENTING'!$Q$17*PORCENTAJES!S11,0))))))) -> 1303.43647 | C32: =IF(C31="","",'CUADRO RENTING'!$P$17) -> 0.006566850538 | D32: =IF($B$1="3.0A",'CUADRO RENTING'!$Q$17*PORCENTAJES!N11,IF($B$1="3.1A",'CUADRO RENTING'!$Q$17*PORCENTAJES!Q11,IF($B$1="6.1A",'CUADRO RENTING'!$Q$17*PORCENTAJES!T11,""))) ->  | E32: =IF(E31="","",'CUADRO RENTING'!$P$17) ->  | F32: =IF($B$1="2.0DHA",'CUADRO RENTING'!$Q$17*PORCENTAJES!I11,IF($B$1="2.1DHA",'CUADRO RENTING'!$Q$17*PORCENTAJES!L11,IF($B$1="3.0A",'CUADRO RENTING'!$Q$17*PORCENTAJES!O11,IF($B$1="3.1A",'CUADRO RENTING'!$Q$17*PORCENTAJES!R11,IF($B$1="6.1A",'CUADRO RENTING'!$Q$17*PORCENTAJES!U11,""))))) ->  | G32: =IF(G31="","",'CUADRO RENTING'!$P$17) ->  | H32: =IF($B$1="6.1A",'CUADRO RENTING'!$Q$17*PORCENTAJES!V11,"") ->  | I32: =IF(I31="","",'CUADRO RENTING'!$P$17) ->  | J32: =IF($B$1="6.1A",'CUADRO RENTING'!$Q$17*PORCENTAJES!W11,"") ->  | K32: =IF(K31="","",'CUADRO RENTING'!$P$17) ->  | L32: =IF($B$1="6.1A",'CUADRO RENTING'!$Q$17*PORCENTAJES!X11,"") ->  | M32: =IF(M31="","",'CUADRO RENTING'!$P$17) ->  | O32: 143
A33: Octubre | B33: =IF($B$1="2.0A",PORCENTAJES!G12*'CUADRO RENTING'!$Q$17,IF($B$1="2.1A",'CUADRO RENTING'!$Q$17*PORCENTAJES!J12,IF($B$1="2.0DHA",'CUADRO RENTING'!$Q$17*PORCENTAJES!H12,IF($B$1="2.1DHA",'CUADRO RENTING'!$Q$17*PORCENTAJES!K12,IF($B$1="3.0A",'CUADRO RENTING'!$Q$17*PORCENTAJES!M12,IF($B$1="3.1A",'CUADRO RENTING'!$Q$17*PORCENTAJES!P12,IF($B$1="6.1A",'CUADRO RENTING'!$Q$17*PORCENTAJES!S12,0))))))) -> 1206.88562 | C33: =IF(C32="","",'CUADRO RENTING'!$P$17) -> 0.006566850538 | D33: =IF($B$1="3.0A",'CUADRO RENTING'!$Q$17*PORCENTAJES!N12,IF($B$1="3.1A",'CUADRO RENTING'!$Q$17*PORCENTAJES!Q12,IF($B$1="6.1A",'CUADRO RENTING'!$Q$17*PORCENTAJES!T12,""))) ->  | E33: =IF(E32="","",'CUADRO RENTING'!$P$17) ->  | F33: =IF($B$1="2.0DHA",'CUADRO RENTING'!$Q$17*PORCENTAJES!I12,IF($B$1="2.1DHA",'CUADRO RENTING'!$Q$17*PORCENTAJES!L12,IF($B$1="3.0A",'CUADRO RENTING'!$Q$17*PORCENTAJES!O12,IF($B$1="3.1A",'CUADRO RENTING'!$Q$17*PORCENTAJES!R12,IF($B$1="6.1A",'CUADRO RENTING'!$Q$17*PORCENTAJES!U12,""))))) ->  | G33: =IF(G32="","",'CUADRO RENTING'!$P$17) ->  | H33: =IF($B$1="6.1A",'CUADRO RENTING'!$Q$17*PORCENTAJES!V12,"") ->  | I33: =IF(I32="","",'CUADRO RENTING'!$P$17) ->  | J33: =IF($B$1="6.1A",'CUADRO RENTING'!$Q$17*PORCENTAJES!W12,"") ->  | K33: =IF(K32="","",'CUADRO RENTING'!$P$17) ->  | L33: =IF($B$1="6.1A",'CUADRO RENTING'!$Q$17*PORCENTAJES!X12,"") ->  | M33: =IF(M32="","",'CUADRO RENTING'!$P$17) ->  | O33: 132
A34: Noviembre | B34: =IF($B$1="2.0A",PORCENTAJES!G13*'CUADRO RENTING'!$Q$17,IF($B$1="2.1A",'CUADRO RENTING'!$Q$17*PORCENTAJES!J13,IF($B$1="2.0DHA",'CUADRO RENTING'!$Q$17*PORCENTAJES!H13,IF($B$1="2.1DHA",'CUADRO RENTING'!$Q$17*PORCENTAJES!K13,IF($B$1="3.0A",'CUADRO RENTING'!$Q$17*PORCENTAJES!M13,IF($B$1="3.1A",'CUADRO RENTING'!$Q$17*PORCENTAJES!P13,IF($B$1="6.1A",'CUADRO RENTING'!$Q$17*PORCENTAJES!S13,0))))))) -> 939.4397667 | C34: =IF(C33="","",'CUADRO RENTING'!$P$17) -> 0.006566850538 | D34: =IF($B$1="3.0A",'CUADRO RENTING'!$Q$17*PORCENTAJES!N13,IF($B$1="3.1A",'CUADRO RENTING'!$Q$17*PORCENTAJES!Q13,IF($B$1="6.1A",'CUADRO RENTING'!$Q$17*PORCENTAJES!T13,""))) ->  | E34: =IF(E33="","",'CUADRO RENTING'!$P$17) ->  | F34: =IF($B$1="2.0DHA",'CUADRO RENTING'!$Q$17*PORCENTAJES!I13,IF($B$1="2.1DHA",'CUADRO RENTING'!$Q$17*PORCENTAJES!L13,IF($B$1="3.0A",'CUADRO RENTING'!$Q$17*PORCENTAJES!O13,IF($B$1="3.1A",'CUADRO RENTING'!$Q$17*PORCENTAJES!R13,IF($B$1="6.1A",'CUADRO RENTING'!$Q$17*PORCENTAJES!U13,""))))) ->  | G34: =IF(G33="","",'CUADRO RENTING'!$P$17) ->  | H34: =IF($B$1="6.1A",'CUADRO RENTING'!$Q$17*PORCENTAJES!V13,"") ->  | I34: =IF(I33="","",'CUADRO RENTING'!$P$17) ->  | J34: =IF($B$1="6.1A",'CUADRO RENTING'!$Q$17*PORCENTAJES!W13,"") ->  | K34: =IF(K33="","",'CUADRO RENTING'!$P$17) ->  | L34: =IF($B$1="6.1A",'CUADRO RENTING'!$Q$17*PORCENTAJES!X13,"") ->  | M34: =IF(M33="","",'CUADRO RENTING'!$P$17) ->  | O34: 102
A35: Diciembre | B35: =IF($B$1="2.0A",PORCENTAJES!G14*'CUADRO RENTING'!$Q$17,IF($B$1="2.1A",'CUADRO RENTING'!$Q$17*PORCENTAJES!J14,IF($B$1="2.0DHA",'CUADRO RENTING'!$Q$17*PORCENTAJES!H14,IF($B$1="2.1DHA",'CUADRO RENTING'!$Q$17*PORCENTAJES!K14,IF($B$1="3.0A",'CUADRO RENTING'!$Q$17*PORCENTAJES!M14,IF($B$1="3.1A",'CUADRO RENTING'!$Q$17*PORCENTAJES!P14,IF($B$1="6.1A",'CUADRO RENTING'!$Q$17*PORCENTAJES!S14,0))))))) -> 862.199087 | C35: =IF(C34="","",'CUADRO RENTING'!$P$17) -> 0.006566850538 | D35: =IF($B$1="3.0A",'CUADRO RENTING'!$Q$17*PORCENTAJES!N14,IF($B$1="3.1A",'CUADRO RENTING'!$Q$17*PORCENTAJES!Q14,IF($B$1="6.1A",'CUADRO RENTING'!$Q$17*PORCENTAJES!T14,""))) ->  | E35: =IF(E34="","",'CUADRO RENTING'!$P$17) ->  | F35: =IF($B$1="2.0DHA",'CUADRO RENTING'!$Q$17*PORCENTAJES!I14,IF($B$1="2.1DHA",'CUADRO RENTING'!$Q$17*PORCENTAJES!L14,IF($B$1="3.0A",'CUADRO RENTING'!$Q$17*PORCENTAJES!O14,IF($B$1="3.1A",'CUADRO RENTING'!$Q$17*PORCENTAJES!R14,IF($B$1="6.1A",'CUADRO RENTING'!$Q$17*PORCENTAJES!U14,""))))) ->  | G35: =IF(G34="","",'CUADRO RENTING'!$P$17) ->  | H35: =IF($B$1="6.1A",'CUADRO RENTING'!$Q$17*PORCENTAJES!V14,"") ->  | I35: =IF(I34="","",'CUADRO RENTING'!$P$17) ->  | J35: =IF($B$1="6.1A",'CUADRO RENTING'!$Q$17*PORCENTAJES!W14,"") ->  | K35: =IF(K34="","",'CUADRO RENTING'!$P$17) ->  | L35: =IF($B$1="6.1A",'CUADRO RENTING'!$Q$17*PORCENTAJES!X14,"") ->  | M35: =IF(M34="","",'CUADRO RENTING'!$P$17) ->  | O35: 93.7
A37: TOTAL | B37: =SUM(B24:B35) -> 15228 | D37: =SUM(D24:D35) -> 0 | F37: =SUM(F24:F35) -> 0 | H37: =SUM(H24:H35) -> 0 | J37: =SUM(J24:J35) -> 0 | L37: =SUM(L24:L35) -> 0
A38: =B37+D37+F37+H37+J37+L37 -> 15228

Sheet AHORRO FUTURO
A1: Tipo de tarifa | C1: ='AHORRO FOTOVOLTAICA'!B1 -> 2.1A | D1: ESTUDIO RENTABILIDAD CON PEAJES
C2: =IF($C$1="tarifas","","1 (Punta)") -> 1 (Punta) | D2: =IF($C$1="3.0A","2 (Llano)",IF($C$1="3.1A","2 (Llano)",IF($C$1="6.1A","2 (Llano)",""))) ->  | E2: =IF($C$1="3.0A","3 (Valle)",IF($C$1="3.1A","3 (Valle)",IF($C$1="6.1A","3 (Valle)",IF($C$1="2.0DHA","3 (Valle)",IF($C$1="2.1DHA","3 (Valle)",""))))) ->  | F2: 4 | G2: 5 | H2: 6
A3: Precio peaje (€/kWh) | C3: =VLOOKUP($C$1,$L$118:$R$130,2,FALSE) -> 0.051848 | D3: =VLOOKUP($C$1,$L$118:$R$130,3,FALSE) -> 0 | E3: =VLOOKUP($C$1,$L$118:$R$130,4,FALSE) -> 0 | F3: =VLOOKUP($C$1,$L$118:$R$130,5,FALSE) -> 0 | G3: =VLOOKUP($C$1,$L$118:$R$130,6,FALSE) -> 0 | H3: =VLOOKUP($C$1,$L$118:$R$130,7,FALSE) -> 0 | L3: consumo
M4: p1 | N4: precio p1 | O4: p2 | P4: precio p2 | Q4: p3 | R4: precio p3 | S4: p4 | T4: precio p4 | U4: p5 | V4: precio p5 | W4: p6 | X4: precio p6 | Z4: PRECIO 2 | AA4: PRECIO 3 | AB4: PRECIO 4 | AC4: PRECIO 5 | AD4: PRECIO 6
A5: Precio peaje (€/kWh) promedio | C5: =IF(C1="2.0A",C3,IF(C1="2.1A",C3,IF(C1="2.0DHA",C3*0.5833+'AHORRO FUTURO'!E3*(1-0.5833),IF(C1="2.1DHA",C3*0.5833+'AHORRO FUTURO'!E3*(1-0.5833),IF(C1="3.0A",C3*0.1666+D3*0.5+E3*0.3333,IF(C1="3.1A",C3*0.1196+D3*0.4295+E3*0.4509,IF(C1="6.1A",0.0695*C3+0.1009*D3+0.1114*E3+0.0669*G3+0.1284*H3+0.5626*K3,0))))))) -> 0.051848 | L5: Enero | M5: ='AHORRO FOTOVOLTAICA'!B8 -> 244 | N5: ='AHORRO FOTOVOLTAICA'!C8 -> 0.1104271942 | O5: ='AHORRO FOTOVOLTAICA'!D8 -> 0 | P5: ='AHORRO FOTOVOLTAICA'!E8 ->  | Q5: ='AHORRO FOTOVOLTAICA'!F8 -> 0 | R5: ='AHORRO FOTOVOLTAICA'!G8 ->  | S5: ='AHORRO FOTOVOLTAICA'!H8 -> 0 | T5: ='AHORRO FOTOVOLTAICA'!I8 ->  | U5: ='AHORRO FOTOVOLTAICA'!J8 -> 0 | V5: ='AHORRO FOTOVOLTAICA'!K8 ->  | W5: ='AHORRO FOTOVOLTAICA'!L8 -> 0 | X5: ='AHORRO FOTOVOLTAICA'!M8 ->  | Z5: =IF(P5="",0,P5) -> 0 | AA5: =IF(R5="",0,R5) -> 0 | AB5: =IF(T5="",0,T5) -> 0 | AC5: =IF(V5="",0,V5) -> 0 | AD5: =IF(X5="",0,X5) -> 0
L6: Febrero | M6: ='AHORRO FOTOVOLTAICA'!B9 -> 269 | N6: ='AHORRO FOTOVOLTAICA'!C9 -> 0.1104271942 | O6: ='AHORRO FOTOVOLTAICA'!D9 -> 0 | P6: ='AHORRO FOTOVOLTAICA'!E9 ->  | Q6: ='AHORRO FOTOVOLTAICA'!F9 -> 0 | R6: ='AHORRO FOTOVOLTAICA'!G9 ->  | S6: ='AHORRO FOTOVOLTAICA'!H9 -> 0 | T6: ='AHORRO FOTOVOLTAICA'!I9 ->  | U6: ='AHORRO FOTOVOLTAICA'!J9 -> 0 | V6: ='AHORRO FOTOVOLTAICA'!K9 ->  | W6: ='AHORRO FOTOVOLTAICA'!L9 -> 0 | X6: ='AHORRO FOTOVOLTAICA'!M9 ->  | Z6: =IF(P6="",0,P6) -> 0 | AA6: =IF(R6="",0,R6) -> 0 | AB6: =IF(T6="",0,T6) -> 0 | AC6: =IF(V6="",0,V6) -> 0 | AD6: =IF(X6="",0,X6) -> 0
L7: Marzo | M7: ='AHORRO FOTOVOLTAICA'!B10 -> 1877 | N7: ='AHORRO FOTOVOLTAICA'!C10 -> 0.1104271942 | O7: ='AHORRO FOTOVOLTAICA'!D10 -> 0 | P7: ='AHORRO FOTOVOLTAICA'!E10 ->  | Q7: ='AHORRO FOTOVOLTAICA'!F10 -> 0 | R7: ='AHORRO FOTOVOLTAICA'!G10 ->  | S7: ='AHORRO FOTOVOLTAICA'!H10 -> 0 | T7: ='AHORRO FOTOVOLTAICA'!I10 ->  | U7: ='AHORRO FOTOVOLTAICA'!J10 -> 0 | V7: ='AHORRO FOTOVOLTAICA'!K10 ->  | W7: ='AHORRO FOTOVOLTAICA'!L10 -> 0 | X7: ='AHORRO FOTOVOLTAICA'!M10 ->  | Z7: 0 | AA7: 0 | AB7: 0 | AC7: 0 | AD7: 0
L8: Abril | M8: ='AHORRO FOTOVOLTAICA'!B11 -> 3602 | N8: ='AHORRO FOTOVOLTAICA'!C11 -> 0.1104271942 | O8: ='AHORRO FOTOVOLTAICA'!D11 -> 0 | P8: ='AHORRO FOTOVOLTAICA'!E11 ->  | Q8: ='AHORRO FOTOVOLTAICA'!F11 -> 0 | R8: ='AHORRO FOTOVOLTAICA'!G11 ->  | S8: ='AHORRO FOTOVOLTAICA'!H11 -> 0 | T8: ='AHORRO FOTOVOLTAICA'!I11 ->  | U8: ='AHORRO FOTOVOLTAICA'!J11 -> 0 | V8: ='AHORRO FOTOVOLTAICA'!K11 ->  | W8: ='AHORRO FOTOVOLTAICA'!L11 -> 0 | X8: ='AHORRO FOTOVOLTAICA'!M11 ->  | Z8: 0 | AA8: 0 | AB8: 0 | AC8: 0 | AD8: 0
L9: Mayo | M9: ='AHORRO FOTOVOLTAICA'!B12 -> 4133 | N9: ='AHORRO FOTOVOLTAICA'!C12 -> 0.1104271942 | O9: ='AHORRO FOTOVOLTAICA'!D12 -> 0 | P9: ='AHORRO FOTOVOLTAICA'!E12 ->  | Q9: ='AHORRO FOTOVOLTAICA'!F12 -> 0 | R9: ='AHORRO FOTOVOLTAICA'!G12 ->  | S9: ='AHORRO FOTOVOLTAICA'!H12 -> 0 | T9: ='AHORRO FOTOVOLTAICA'!I12 ->  | U9: ='AHORRO FOTOVOLTAICA'!J12 -> 0 | V9: ='AHORRO FOTOVOLTAICA'!K12 ->  | W9: ='AHORRO FOTOVOLTAICA'!L12 -> 0 | X9: ='AHORRO FOTOVOLTAICA'!M12 ->  | Z9: 0 | AA9: 0 | AB9: 0 | AC9: 0 | AD9: 0
L10: Junio | M10: ='AHORRO FOTOVOLTAICA'!B13 -> 5758 | N10: ='AHORRO FOTOVOLTAICA'!C13 -> 0.1104271942 | O10: ='AHORRO FOTOVOLTAICA'!D13 -> 0 | P10: ='AHORRO FOTOVOLTAICA'!E13 ->  | Q10: ='AHORRO FOTOVOLTAICA'!F13 -> 0 | R10: ='AHORRO FOTOVOLTAICA'!G13 ->  | S10: ='AHORRO FOTOVOLTAICA'!H13 -> 0 | T10: ='AHORRO FOTOVOLTAICA'!I13 ->  | U10: ='AHORRO FOTOVOLTAICA'!J13 -> 0 | V10: ='AHORRO FOTOVOLTAICA'!K13 ->  | W10: ='AHORRO FOTOVOLTAICA'!L13 -> 0 | X10: ='AHORRO FOTOVOLTAICA'!M13 ->  | Z10: 0 | AA10: 0 | AB10: 0 | AC10: 0 | AD10: 0
L11: Julio | M11: ='AHORRO FOTOVOLTAICA'!B14 -> 5876 | N11: ='AHORRO FOTOVOLTAICA'!C14 -> 0.1104271942 | O11: ='AHORRO FOTOVOLTAICA'!D14 -> 0 | P11: ='AHORRO FOTOVOLTAICA'!E14 ->  | Q11: ='AHORRO FOTOVOLTAICA'!F14 -> 0 | R11: ='AHORRO FOTOVOLTAICA'!G14 ->  | S11: ='AHORRO FOTOVOLTAICA'!H14 -> 0 | T11: ='AHORRO FOTOVOLTAICA'!I14 ->  | U11: ='AHORRO FOTOVOLTAICA'!J14 -> 0 | V11: ='AHORRO FOTOVOLTAICA'!K14 ->  | W11: ='AHORRO FOTOVOLTAICA'!L14 -> 0 | X11: ='AHORRO FOTOVOLTAICA'!M14 ->  | Z11: 0 | AA11: 0 | AB11: 0 | AC11: 0 | AD11: 0
L12: Agosto | M12: ='AHORRO FOTOVOLTAICA'!B15 -> 4479 | N12: ='AHORRO FOTOVOLTAICA'!C15 -> 0.1104271942 | O12: ='AHORRO FOTOVOLTAICA'!D15 -> 0 | P12: ='AHORRO FOTOVOLTAICA'!E15 ->  | Q12: ='AHORRO FOTOVOLTAICA'!F15 -> 0 | R12: ='AHORRO FOTOVOLTAICA'!G15 ->  | S12: ='AHORRO FOTOVOLTAICA'!H15 -> 0 | T12: ='AHORRO FOTOVOLTAICA'!I15 ->  | U12: ='AHORRO FOTOVOLTAICA'!J15 -> 0 | V12: ='AHORRO FOTOVOLTAICA'!K15 ->  | W12: ='AHORRO FOTOVOLTAICA'!L15 -> 0 | X12: ='AHORRO FOTOVOLTAICA'!M15 ->  | Z12: 0 | AA12: 0 | AB12: 0 | AC12: 0 | AD12: 0
L13: Septiembre | M13: ='AHORRO FOTOVOLTAICA'!B16 -> 3333 | N13: ='AHORRO FOTOVOLTAICA'!C16 -> 0.1104271942 | O13: ='AHORRO FOTOVOLTAICA'!D16 -> 0 | P13: ='AHORRO FOTOVOLTAICA'!E16 ->  | Q13: ='AHORRO FOTOVOLTAICA'!F16 -> 0 | R13: ='AHORRO FOTOVOLTAICA'!G16 ->  | S13: ='AHORRO FOTOVOLTAICA'!H16 -> 0 | T13: ='AHORRO FOTOVOLTAICA'!I16 ->  | U13: ='AHORRO FOTOVOLTAICA'!J16 -> 0 | V13: ='AHORRO FOTOVOLTAICA'!K16 ->  | W13: ='AHORRO FOTOVOLTAICA'!L16 -> 0 | X13: ='AHORRO FOTOVOLTAICA'!M16 ->  | Z13: 0 | AA13: 0 | AB13: 0 | AC13: 0 | AD13: 0
L14: Octubre | M14: ='AHORRO FOTOVOLTAICA'!B17 -> 2087 | N14: ='AHORRO FOTOVOLTAICA'!C17 -> 0.1104271942 | O14: ='AHORRO FOTOVOLTAICA'!D17 -> 0 | P14: ='AHORRO FOTOVOLTAICA'!E17 ->  | Q14: ='AHORRO FOTOVOLTAICA'!F17 -> 0 | R14: ='AHORRO FOTOVOLTAICA'!G17 ->  | S14: ='AHORRO FOTOVOLTAICA'!H17 -> 0 | T14: ='AHORRO FOTOVOLTAICA'!I17 ->  | U14: ='AHORRO FOTOVOLTAICA'!J17 -> 0 | V14: ='AHORRO FOTOVOLTAICA'!K17 ->  | W14: ='AHORRO FOTOVOLTAICA'!L17 -> 0 | X14: ='AHORRO FOTOVOLTAICA'!M17 ->  | Z14: 0 | AA14: 0 | AB14: 0 | AC14: 0 | AD14: 0
L15: Noviembre | M15: ='AHORRO FOTOVOLTAICA'!B18 -> 219 | N15: ='AHORRO FOTOVOLTAICA'!C18 -> 0.1104271942 | O15: ='AHORRO FOTOVOLTAICA'!D18 -> 0 | P15: ='AHORRO FOTOVOLTAICA'!E18 ->  | Q15: ='AHORRO FOTOVOLTAICA'!F18 -> 0 | R15: ='AHORRO FOTOVOLTAICA'!G18 ->  | S15: ='AHORRO FOTOVOLTAICA'!H18 -> 0 | T15: ='AHORRO FOTOVOLTAICA'!I18 ->  | U15: ='AHORRO FOTOVOLTAICA'!J18 -> 0 | V15: ='AHORRO FOTOVOLTAICA'!K18 ->  | W15: ='AHORRO FOTOVOLTAICA'!L18 -> 0 | X15: ='AHORRO FOTOVOLTAICA'!M18 ->  | Z15: 0 | AA15: 0 | AB15: 0 | AC15: 0 | AD15: 0
L16: Diciembre | M16: ='AHORRO FOTOVOLTAICA'!B19 -> 217 | N16: ='AHORRO FOTOVOLTAICA'!C19 -> 0.1104271942 | O16: ='AHORRO FOTOVOLTAICA'!D19 -> 0 | P16: ='AHORRO FOTOVOLTAICA'!E19 ->  | Q16: ='AHORRO FOTOVOLTAICA'!F19 -> 0 | R16: ='AHORRO FOTOVOLTAICA'!G19 ->  | S16: ='AHORRO FOTOVOLTAICA'!H19 -> 0 | T16: ='AHORRO FOTOVOLTAICA'!I19 ->  | U16: ='AHORRO FOTOVOLTAICA'!J19 -> 0 | V16: ='AHORRO FOTOVOLTAICA'!K19 ->  | W16: ='AHORRO FOTOVOLTAICA'!L19 -> 0 | X16: ='AHORRO FOTOVOLTAICA'!M19 ->  | Z16: 0 | AA16: 0 | AB16: 0 | AC16: 0 | AD16: 0
L17: Total | M17: =SUM(M5:M16) -> 32094 | O17: =SUM(O5:O16) -> 0 | Q17: =SUM(Q5:Q16) -> 0 | S17: =SUM(S5:S16) -> 0 | U17: =SUM(U5:U16) -> 0 | W17: =SUM(W5:W16) -> 0
A18: no incluido IBIZA Y FORMENTERA
M19: precio p1 | N19: precio p2 | O19: precio p3 | P19: precio p4 | Q19: precio p5 | R19: precio p6 | S19: Total mes
A20: AÑO | B20: PRECIO CONSUMO ANUAL | C20: AHORRO FOTOVOLTAICA | D20: PRECIO COSTE FOTOVOLTAICA | E20: PRECIO PEAJE RESPALDO | F20: VENTA+POTENCIA | G20: AHORRO REAL | H20: %AHORRO FRENTE A CONSUMO | I20: AHORRO ACUMULADO | K20: %RENTABILIDAD | L20: Enero | M20: =M5*N5 -> 26.9442354 | N20: =O5*Z5 -> 0 | O20: =Q5*AA5 -> 0 | P20: =S5*AB5 -> 0 | Q20: =U5*AC5 -> 0 | R20: =W5*AD5 -> 0 | S20: =SUM(M20:R20) -> 26.9442354 | AZ20: COSTE | BA20: ='CUADRO RENTING'!D3 -> 12500
A21: 0 | C21: =S96 -> 0 | D21: ='CUADRO RENTING'!M16 -> 12500 | E21: =AA97 -> 0 | G21: =C21-D21-E21 -> -12500 | I21: =G21 -> -12500
A22: 1 | B22: =S33 -> 3544.050372 | C22: =S97 -> 1366.091011 | D22: ='CUADRO RENTING'!M17 -> 100 | E22: =AA98 -> 641.4098197 | F22: =Venta!M3 -> 328.5665521 | G22: =C22-D22-E22+F22 -> 953.2477436 | H22: =G22/B22 -> 0.268971274 | I22: =G22+I21 -> -11546.75226 | J22: =IF(ISERROR(IRR($G$22:$G22)),"",IRR($G$22:$G22)) ->  | L22: Febrero | M22: =M6*N6 -> 29.70491525 | N22: =O6*Z6 -> 0 | O22: =Q6*AA6 -> 0 | P22: =S6*AB6 -> 0 | Q22: =U6*AC6 -> 0 | R22: =W6*AD6 -> 0 | S22: =SUM(M22:R22) -> 29.70491525 | BA22: =BA20-G22 -> 11546.75226
A23: 2 | B23: =B22*(1+'CUADRO RENTING'!$F$11) -> 3614.93138 | C23: =C22*0.998*(1+'CUADRO RENTING'!$F$13) -> 1417.893182 | D23: ='CUADRO RENTING'!M18 -> 202 | E23: =E22 -> 641.4098197 | F23: =F22*0.99*(1+'CUADRO RENTING'!$F$11) -> 331.7865043 | G23: =C23-D23-E23+F23 -> 906.269867 | H23: 0.2507018175 | I23: =G23+I22 -> -10640.48239 | J23: =IF(ISERROR(IRR($G$22:$G23)),"",IRR($G$22:$G23)) ->  | L23: Marzo | M23: 207.2718436 | N23: 0 | O23: 0 | P23: 0 | Q23: 0 | R23: 0 | S23: 207.2718436 | BA23: =BA22-G23 -> 10640.48239
A24: 3 | B24: =B23*(1+'CUADRO RENTING'!$F$11) -> 3687.230007 | C24: =C23*0.998*(1+'CUADRO RENTING'!$F$13) -> 1471.659692 | D24: ='CUADRO RENTING'!M19 -> 206.04 | E24: =E23 -> 641.4098197 | F24: =F23*0.99*(1+'CUADRO RENTING'!$F$11) -> 335.0380121 | G24: 959.2478842 | H24: 0.2601540675 | I24: =G24+I23 -> -9681.234505 | J24: =IF(ISERROR(IRR($G$22:$G24)),"",IRR($G$22:$G24)) ->  | L24: Abril | M24: 397.7587537 | N24: 0 | O24: 0 | P24: 0 | Q24: 0 | R24: 0 | S24: 397.7587537 | BA24: 9681.234505
A25: 4 | B25: =B24*(1+'CUADRO RENTING'!$F$11) -> 3760.974607 | C25: =C24*0.998*(1+'CUADRO RENTING'!$F$13) -> 1527.465027 | D25: ='CUADRO RENTING'!M20 -> 210.1608 | E25: 641.4098197 | F25: =F24*0.99*(1+'CUADRO RENTING'!$F$11) -> 338.3213846 | G25: 1014.215792 | H25: 0.2696683435 | I25: -8667.018713 | J25: =IF(ISERROR(IRR($G$22:$G25)),"",IRR($G$22:$G25)) ->  | L25: Mayo | M25: 456.3955938 | N25: 0 | O25: 0 | P25: 0 | Q25: 0 | R25: 0 | S25: 456.3955938 | BA25: 8667.018713
A26: 5 | B26: =B25*(1+'CUADRO RENTING'!$F$11) -> 3836.194099 | C26: =C25*0.998*(1+'CUADRO RENTING'!$F$13) -> 1585.386501 | D26: ='CUADRO RENTING'!M21 -> 214.364016 | E26: 641.4098197 | F26: =F25*0.99*(1+'CUADRO RENTING'!$F$11) -> 341.6369342 | G26: 1071.2496 | H26: 0.2792480182 | I26: -7595.769113 | J26: =IF(ISERROR(IRR($G$22:$G26)),"",IRR($G$22:$G26)) ->  | L26: Junio | M26: 635.8397845 | N26: 0 | O26: 0 | P26: 0 | Q26: 0 | R26: 0 | S26: 635.8397845 | BA26: 7595.769113
A27: 6 | B27: =B26*(1+'CUADRO RENTING'!$F$11) -> 3912.917981 | C27: =C26*0.998*(1+'CUADRO RENTING'!$F$13) -> 1645.504357 | D27: ='CUADRO RENTING'!M22 -> 218.6512963 | E27: 641.4098197 | F27: =F26*0.99*(1+'CUADRO RENTING'!$F$11) -> 344.9849761 | G27: 1130.428217 | H27: 0.2888964764 | I27: -6465.340896 | J27: =IF(ISERROR(IRR($G$22:$G27)),"",IRR($G$22:$G27)) ->  | L27: Julio | M27: 648.8701934 | N27: 0 | O27: 0 | P27: 0 | Q27: 0 | R27: 0 | S27: 648.8701934 | BA27: 6465.340896
A28: 7 | B28: =B27*(1+'CUADRO RENTING'!$F$11) -> 3991.176341 | C28: =C27*0.998*(1+'CUADRO RENTING'!$F$13) -> 1707.901883 | D28: ='CUADRO RENTING'!M23 -> 223.0243222 | E28: 641.4098197 | F28: =F27*0.99*(1+'CUADRO RENTING'!$F$11) -> 348.3658289 | G28: 1191.833569 | H28: 0.2986171163 | I28: -5273.507326 | J28: =IF(ISERROR(IRR($G$22:$G28)),"",IRR($G$22:$G28)) ->  | L28: Agosto | M28: 494.603403 | N28: 0 | O28: 0 | P28: 0 | Q28: 0 | R28: 0 | S28: 494.603403 | BA28: 5273.507326
A29: 8 | B29: =B28*(1+'CUADRO RENTING'!$F$11) -> 4070.999868 | C29: =C28*0.998*(1+'CUADRO RENTING'!$F$13) -> 1772.665522 | D29: ='CUADRO RENTING'!M24 -> 227.4848087 | E29: 641.4098197 | F29: =F28*0.99*(1+'CUADRO RENTING'!$F$11) -> 351.779814 | G29: 1255.550708 | H29: 0.3084133501 | I29: -4017.956619 | J29: =IF(ISERROR(IRR($G$22:$G29)),"",IRR($G$22:$G29)) ->  | L29: Septiembre | M29: 368.0538384 | N29: 0 | O29: 0 | P29: 0 | Q29: 0 | R29: 0 | S29: 368.0538384 | BA29: 4017.956619
A30: 9 | B30: =B29*(1+'CUADRO RENTING'!$F$11) -> 4152.419865 | C30: =C29*0.998*(1+'CUADRO RENTING'!$F$13) -> 1839.884999 | D30: ='CUADRO RENTING'!M25 -> 232.0345049 | E30: 641.4098197 | F30: =F29*0.99*(1+'CUADRO RENTING'!$F$11) -> 355.2272562 | G30: 1321.66793 | H30: 0.3182886059 | I30: -2696.288689 | J30: =IF(ISERROR(IRR($G$22:$G30)),"",IRR($G$22:$G30)) ->  | L30: Octubre | M30: 230.4615544 | N30: 0 | O30: 0 | P30: 0 | Q30: 0 | R30: 0 | S30: 230.4615544 | BA30: 2696.288689
A31: 10 | B31: =B30*(1+'CUADRO RENTING'!$F$11) -> 4235.468263 | C31: =C30*0.998*(1+'CUADRO RENTING'!$F$13) -> 1909.653438 | D31: ='CUADRO RENTING'!M26 -> 236.675195 | E31: 641.4098197 | F31: =F30*0.99*(1+'CUADRO RENTING'!$F$11) -> 358.7084833 | G31: 1390.276906 | H31: 0.3282463284 | I31: -1306.011782 | J31: =IF(ISERROR(IRR($G$22:$G31)),"",IRR($G$22:$G31)) ->  | L31: Noviembre | M31: 24.18355554 | N31: 0 | O31: 0 | P31: 0 | Q31: 0 | R31: 0 | S31: 24.18355554 | BA31: 1306.011782
A32: 11 | B32: =B31*(1+'CUADRO RENTING'!$F$11) -> 4320.177628 | C32: =C31*0.998*(1+'CUADRO RENTING'!$F$13) -> 1982.067496 | D32: ='CUADRO RENTING'!M27 -> 241.4086989 | E32: 641.4098197 | F32: =F31*0.99*(1+'CUADRO RENTING'!$F$11) -> 362.2238264 | G32: 1461.472804 | H32: 0.3382899801 | I32: 155.4610216 | J32: =IF(ISERROR(IRR($G$22:$G32)),"",IRR($G$22:$G32)) ->  | L32: Diciembre | M32: =M16*N16 -> 23.96270115 | N32: 0 | O32: 0 | P32: 0 | Q32: 0 | R32: 0 | S32: 23.96270115 | T32: =SUM(S20:S32) -> 3544.050372 | BA32: -155.4610216
A33: 12 | B33: =B32*(1+'CUADRO RENTING'!$F$11) -> 4406.58118 | C33: =C32*0.998*(1+'CUADRO RENTING'!$F$13) -> 2057.227495 | D33: ='CUADRO RENTING'!M28 -> 246.2368728 | E33: 641.4098197 | F33: =F32*0.99*(1+'CUADRO RENTING'!$F$11) -> 365.7736199 | G33: 1535.354423 | H33: 0.3484230427 | I33: 1690.815444 | J33: =IF(ISERROR(IRR($G$22:$G33)),"",IRR($G$22:$G33)) ->  | L33: Total periodo | M33: =SUM(M20:M32) -> 3544.050372 | N33: 0 | O33: 0 | P33: 0 | Q33: 0 | R33: 0 | S33: =SUM(M33:R33) -> 3544.050372 | BA33: -1690.815444
A34: 13 | B34: =B33*(1+'CUADRO RENTING'!$F$11) -> 4494.712804 | C34: =C33*0.998*(1+'CUADRO RENTING'!$F$13) -> 2135.237562 | D34: ='CUADRO RENTING'!M29 -> 251.1616103 | E34: 641.4098197 | F34: =F33*0.99*(1+'CUADRO RENTING'!$F$11) -> 369.3582014 | G34: 1612.024334 | H34: 0.358649018 | I34: 3302.839778 | J34: =IF(ISERROR(IRR($G$22:$G34)),"",IRR($G$22:$G34)) ->  | BA34: -3302.839778
A35: 14 | B35: =B34*(1+'CUADRO RENTING'!$F$11) -> 4584.60706 | C35: =C34*0.998*(1+'CUADRO RENTING'!$F$13) -> 2216.20577 | D35: ='CUADRO RENTING'!M30 -> 256.1848425 | E35: 641.4098197 | F35: =F34*0.99*(1+'CUADRO RENTING'!$F$11) -> 372.9779118 | G35: 1691.58902 | H35: 0.3689714294 | I35: 4994.428798 | J35: =IF(ISERROR(IRR($G$22:$G35)),"",IRR($G$22:$G35)) ->  | L35: PRODUCCION FOTOVOLTAICA | BA35: -4994.428798
A36: 15 | B36: =B35*(1+'CUADRO RENTING'!$F$11) -> 4676.299201 | C36: =C35*0.998*(1+'CUADRO RENTING'!$F$13) -> 2300.244293 | D36: ='CUADRO RENTING'!M31 -> 261.3085394 | E36: 641.4098197 | F36: =F35*0.99*(1+'CUADRO RENTING'!$F$11) -> 376.6330953 | G36: 1774.15903 | H36: 0.3793938226 | I36: 6768.587828 | J36: =IF(ISERROR(IRR($G$22:$G36)),"",IRR($G$22:$G36)) ->  | BA36: -6768.587828
A37: 16 | B37: =B36*(1+'CUADRO RENTING'!$F$11) -> 4769.825185 | C37: =C36*0.998*(1+'CUADRO RENTING'!$F$13) -> 2387.469557 | D37: ='CUADRO RENTING'!M32 -> 266.5347101 | E37: 641.4098197 | F37: =F36*0.99*(1+'CUADRO RENTING'!$F$11) -> 380.3240996 | G37: 1859.849127 | H37: 0.3899197674 | I37: 8628.436954 | J37: =IF(ISERROR(IRR($G$22:$G37)),"",IRR($G$22:$G37)) ->  | M37: p1 | N37: precio p1 | O37: p2 | P37: precio p2 | Q37: p3 | R37: precio p3 | S37: p4 | T37: precio p4 | U37: p5 | V37: precio p5 | W37: p6 | X37: precio p6 | Z37: PRECIO P2 | AA37: PRECIO P3 | AB37: PRECIO P4 | AC37: PRECIO P5 | AD37: PRECIO P6 | BA37: -8628.436954
A38: 17 | B38: =B37*(1+'CUADRO RENTING'!$F$11) -> 4865.221689 | C38: =C37*0.998*(1+'CUADRO RENTING'!$F$13) -> 2478.002402 | D38: ='CUADRO RENTING'!M33 -> 271.8654043 | E38: 641.4098197 | F38: =F37*0.99*(1+'CUADRO RENTING'!$F$11) -> 384.0512758 | G38: 1948.778454 | H38: 0.4005528584 | I38: 10577.21541 | J38: =IF(ISERROR(IRR($G$22:$G38)),"",IRR($G$22:$G38)) ->  | L38: Enero | M38: ='AHORRO FOTOVOLTAICA'!B24 -> 961.6464621 | N38: ='AHORRO FOTOVOLTAICA'!C24 -> 0.006566850538 | O38: ='AHORRO FOTOVOLTAICA'!D24 ->  | P38: ='AHORRO FOTOVOLTAICA'!E24 ->  | Q38: ='AHORRO FOTOVOLTAICA'!F24 ->  | R38: ='AHORRO FOTOVOLTAICA'!G24 ->  | S38: ='AHORRO FOTOVOLTAICA'!H24 ->  | T38: ='AHORRO FOTOVOLTAICA'!I24 ->  | U38: ='AHORRO FOTOVOLTAICA'!J24 ->  | V38: ='AHORRO FOTOVOLTAICA'!K24 ->  | W38: ='AHORRO FOTOVOLTAICA'!L24 ->  | X38: ='AHORRO FOTOVOLTAICA'!M24 ->  | Y38: Enero | Z38: =IF(P38="",0,P38) -> 0 | AA38: =IF(R38="",0,R38) -> 0 | AB38: =IF(T38="",0,T38) -> 0 | AC38: =IF(V38="",0,V38) -> 0 | AD38: =IF(X38="",0,X38) -> 0 | BA38: -10577.21541
A39: 18 | B39: =B38*(1+'CUADRO RENTING'!$F$11) -> 4962.526123 | C39: =C38*0.998*(1+'CUADRO RENTING'!$F$13) -> 2571.968254 | D39: ='CUADRO RENTING'!M34 -> 277.3027124 | E39: 641.4098197 | F39: =F38*0.99*(1+'CUADRO RENTING'!$F$11) -> 387.8149783 | G39: 2041.0707 | H39: 0.4112967165 | I39: 12618.28611 | J39: =IF(ISERROR(IRR($G$22:$G39)),"",IRR($G$22:$G39)) ->  | L39: Febrero | M39: ='AHORRO FOTOVOLTAICA'!B25 -> 1042.749176 | N39: ='AHORRO FOTOVOLTAICA'!C25 -> 0.006566850538 | O39: ='AHORRO FOTOVOLTAICA'!D25 ->  | P39: ='AHORRO FOTOVOLTAICA'!E25 ->  | Q39: ='AHORRO FOTOVOLTAICA'!F25 ->  | R39: ='AHORRO FOTOVOLTAICA'!G25 ->  | S39: ='AHORRO FOTOVOLTAICA'!H25 ->  | T39: ='AHORRO FOTOVOLTAICA'!I25 ->  | U39: ='AHORRO FOTOVOLTAICA'!J25 ->  | V39: ='AHORRO FOTOVOLTAICA'!K25 ->  | W39: ='AHORRO FOTOVOLTAICA'!L25 ->  | X39: ='AHORRO FOTOVOLTAICA'!M25 ->  | Y39: Febrero | Z39: =IF(P39="",0,P39) -> 0 | AA39: =IF(R39="",0,R39) -> 0 | AB39: =IF(T39="",0,T39) -> 0 | AC39: =IF(V39="",0,V39) -> 0 | AD39: =IF(X39="",0,X39) -> 0 | BA39: -12618.28611
A40: 19 | B40: =B39*(1+'CUADRO RENTING'!$F$11) -> 5061.776645 | C40: =C39*0.998*(1+'CUADRO RENTING'!$F$13) -> 2669.49729 | D40: ='CUADRO RENTING'!M35 -> 282.8487667 | E40: 641.4098197 | F40: =F39*0.99*(1+'CUADRO RENTING'!$F$11) -> 391.6155651 | G40: 2136.854268 | H40: 0.4221549899 | I40: 14755.14038 | J40: =IF(ISERROR(IRR($G$22:$G40)),"",IRR($G$22:$G40)) ->  | L40: Marzo | M40: ='AHORRO FOTOVOLTAICA'!B26 -> 1390.332234 | N40: ='AHORRO FOTOVOLTAICA'!C26 -> 0.006566850538 | O40: ='AHORRO FOTOVOLTAICA'!D26 ->  | P40: ='AHORRO FOTOVOLTAICA'!E26 ->  | Q40: ='AHORRO FOTOVOLTAICA'!F26 ->  | R40: ='AHORRO FOTOVOLTAICA'!G26 ->  | S40: ='AHORRO FOTOVOLTAICA'!H26 ->  | T40: ='AHORRO FOTOVOLTAICA'!I26 ->  | U40: ='AHORRO FOTOVOLTAICA'!J26 ->  | V40: ='AHORRO FOTOVOLTAICA'!K26 ->  | W40: ='AHORRO FOTOVOLTAICA'!L26 ->  | X40: ='AHORRO FOTOVOLTAICA'!M26 ->  | Y40: Marzo | Z40: 0 | AA40: 0 | AB40: 0 | AC40: 0 | AD40: 0 | BA40: -14755.14038
A41: 20 | B41: =B40*(1+'CUADRO RENTING'!$F$11) -> 5163.012178 | C41: =C40*0.998*(1+'CUADRO RENTING'!$F$13) -> 2770.724627 | D41: ='CUADRO RENTING'!M36 -> 288.505742 | E41: 641.4098197 | F41: =F40*0.99*(1+'CUADRO RENTING'!$F$11) -> 395.4533976 | G41: 2236.262463 | H41: 0.4331313555 | I41: 16991.40284 | J41: =IF(ISERROR(IRR($G$22:$G41)),"",IRR($G$22:$G41)) ->  | L41: Abril | M41: ='AHORRO FOTOVOLTAICA'!B27 -> 1371.022064 | N41: ='AHORRO FOTOVOLTAICA'!C27 -> 0.006566850538 | O41: ='AHORRO FOTOVOLTAICA'!D27 ->  | P41: ='AHORRO FOTOVOLTAICA'!E27 ->  | Q41: ='AHORRO FOTOVOLTAICA'!F27 ->  | R41: ='AHORRO FOTOVOLTAICA'!G27 ->  | S41: ='AHORRO FOTOVOLTAICA'!H27 ->  | T41: ='AHORRO FOTOVOLTAICA'!I27 ->  | U41: ='AHORRO FOTOVOLTAICA'!J27 ->  | V41: ='AHORRO FOTOVOLTAICA'!K27 ->  | W41: ='AHORRO FOTOVOLTAICA'!L27 ->  | X41: ='AHORRO FOTOVOLTAICA'!M27 ->  | Y41: Abril | Z41: 0 | AA41: 0 | AB41: 0 | AC41: 0 | AD41: 0 | BA41: -16991.40284
A42: 21 | B42: =B41*(1+'CUADRO RENTING'!$F$11) -> 5266.272422 | C42: =C41*0.998*(1+'CUADRO RENTING'!$F$13) -> 2875.790505 | D42: ='CUADRO RENTING'!M37 -> 294.2758569 | E42: 641.4098197 | F42: =F41*0.99*(1+'CUADRO RENTING'!$F$11) -> 399.3288409 | G42: 2339.433669 | H42: 0.4442295198 | I42: 19330.83651 | J42: =IF(ISERROR(IRR($G$22:$G42)),"",IRR($G$22:$G42)) ->  | L42: Mayo | M42: ='AHORRO FOTOVOLTAICA'!B28 -> 1506.193254 | N42: ='AHORRO FOTOVOLTAICA'!C28 -> 0.006566850538 | O42: ='AHORRO FOTOVOLTAICA'!D28 ->  | P42: ='AHORRO FOTOVOLTAICA'!E28 ->  | Q42: ='AHORRO FOTOVOLTAICA'!F28 ->  | R42: ='AHORRO FOTOVOLTAICA'!G28 ->  | S42: ='AHORRO FOTOVOLTAICA'!H28 ->  | T42: ='AHORRO FOTOVOLTAICA'!I28 ->  | U42: ='AHORRO FOTOVOLTAICA'!J28 ->  | V42: ='AHORRO FOTOVOLTAICA'!K28 ->  | W42: ='AHORRO FOTOVOLTAICA'!L28 ->  | X42: ='AHORRO FOTOVOLTAICA'!M28 ->  | Y42: Mayo | Z42: 0 | AA42: 0 | AB42: 0 | AC42: 0 | AD42: 0 | BA42: -19330.83651
A43: 22 | B43: =B42*(1+'CUADRO RENTING'!$F$11) -> 5371.59787 | C43: =C42*0.998*(1+'CUADRO RENTING'!$F$13) -> 2984.840481 | D43: ='CUADRO RENTING'!M38 -> 300.161374 | E43: 641.4098197 | F43: =F42*0.99*(1+'CUADRO RENTING'!$F$11) -> 403.2422636 | G43: 2446.511551 | H43: 0.4554532208 | I43: 21777.34806 | J43: =IF(ISERROR(IRR($G$22:$G43)),"",IRR($G$22:$G43)) ->  | L43: Junio | M43: ='AHORRO FOTOVOLTAICA'!B29 -> 1535.158509 | N43: ='AHORRO FOTOVOLTAICA'!C29 -> 0.006566850538 | O43: ='AHORRO FOTOVOLTAICA'!D29 ->  | P43: ='AHORRO FOTOVOLTAICA'!E29 ->  | Q43: ='AHORRO FOTOVOLTAICA'!F29 ->  | R43: ='AHORRO FOTOVOLTAICA'!G29 ->  | S43: ='AHORRO FOTOVOLTAICA'!H29 ->  | T43: ='AHORRO FOTOVOLTAICA'!I29 ->  | U43: ='AHORRO FOTOVOLTAICA'!J29 ->  | V43: ='AHORRO FOTOVOLTAICA'!K29 ->  | W43: ='AHORRO FOTOVOLTAICA'!L29 ->  | X43: ='AHORRO FOTOVOLTAICA'!M29 ->  | Y43: Junio | Z43: 0 | AA43: 0 | AB43: 0 | AC43: 0 | AD43: 0 | BA43: -21777.34806
A44: 23 | B44: =B43*(1+'CUADRO RENTING'!$F$11) -> 5479.029828 | C44: =C43*0.998*(1+'CUADRO RENTING'!$F$13) -> 3098.025632 | D44: ='CUADRO RENTING'!M39 -> 306.1646015 | E44: 641.4098197 | F44: =F43*0.99*(1+'CUADRO RENTING'!$F$11) -> 407.1940378 | G44: 2557.645248 | H44: 0.4668062283 | I44: 24334.99331 | J44: =IF(ISERROR(IRR($G$22:$G44)),"",IRR($G$22:$G44)) ->  | L44: Julio | M44: ='AHORRO FOTOVOLTAICA'!B30 -> 1583.433934 | N44: ='AHORRO FOTOVOLTAICA'!C30 -> 0.006566850538 | O44: ='AHORRO FOTOVOLTAICA'!D30 ->  | P44: ='AHORRO FOTOVOLTAICA'!E30 ->  | Q44: ='AHORRO FOTOVOLTAICA'!F30 ->  | R44: ='AHORRO FOTOVOLTAICA'!G30 ->  | S44: ='AHORRO FOTOVOLTAICA'!H30 ->  | T44: ='AHORRO FOTOVOLTAICA'!I30 ->  | U44: ='AHORRO FOTOVOLTAICA'!J30 ->  | V44: ='AHORRO FOTOVOLTAICA'!K30 ->  | W44: ='AHORRO FOTOVOLTAICA'!L30 ->  | X44: ='AHORRO FOTOVOLTAICA'!M30 ->  | Y44: Julio | Z44: 0 | AA44: 0 | AB44: 0 | AC44: 0 | AD44: 0 | BA44: -24334.99331
A45: 24 | B45: =B44*(1+'CUADRO RENTING'!$F$11) -> 5588.610424 | C45: =C44*0.998*(1+'CUADRO RENTING'!$F$13) -> 3215.502764 | D45: ='CUADRO RENTING'!M40 -> 312.2878935 | E45: 641.4098197 | F45: =F44*0.99*(1+'CUADRO RENTING'!$F$11) -> 411.1845393 | G45: 2672.98959 | H45: 0.4782923459 | I45: 27007.9829 | J45: =IF(ISERROR(IRR($G$22:$G45)),"",IRR($G$22:$G45)) ->  | K45: TIR A 25 AÑOS | L45: Agosto | M45: ='AHORRO FOTOVOLTAICA'!B31 -> 1525.503424 | N45: ='AHORRO FOTOVOLTAICA'!C31 -> 0.006566850538 | O45: ='AHORRO FOTOVOLTAICA'!D31 ->  | P45: ='AHORRO FOTOVOLTAICA'!E31 ->  | Q45: ='AHORRO FOTOVOLTAICA'!F31 ->  | R45: ='AHORRO FOTOVOLTAICA'!G31 ->  | S45: ='AHORRO FOTOVOLTAICA'!H31 ->  | T45: ='AHORRO FOTOVOLTAICA'!I31 ->  | U45: ='AHORRO FOTOVOLTAICA'!J31 ->  | V45: ='AHORRO FOTOVOLTAICA'!K31 ->  | W45: ='AHORRO FOTOVOLTAICA'!L31 ->  | X45: ='AHORRO FOTOVOLTAICA'!M31 ->  | Y45: Agosto | Z45: 0 | AA45: 0 | AB45: 0 | AC45: 0 | AD45: 0 | BA45: -27007.9829
A46: 25 | B46: =B45*(1+'CUADRO RENTING'!$F$11) -> 5700.382633 | C46: =C45*0.998*(1+'CUADRO RENTING'!$F$13) -> 3337.434629 | D46: ='CUADRO RENTING'!M41 -> 318.5336514 | E46: 641.4098197 | F46: =F45*0.99*(1+'CUADRO RENTING'!$F$11) -> 415.2141478 | G46: 2792.705305 | H46: 0.4899154119 | I46: 29800.6882 | J46: =IF(ISERROR(IRR($G$22:$G46)),"",IRR($G$22:$G46)) ->  | K46: =IRR(G21:G46) -> 0.09779168906 | L46: Septiembre | M46: ='AHORRO FOTOVOLTAICA'!B32 -> 1303.43647 | N46: ='AHORRO FOTOVOLTAICA'!C32 -> 0.006566850538 | O46: ='AHORRO FOTOVOLTAICA'!D32 ->  | P46: ='AHORRO FOTOVOLTAICA'!E32 ->  | Q46: ='AHORRO FOTOVOLTAICA'!F32 ->  | R46: ='AHORRO FOTOVOLTAICA'!G32 ->  | S46: ='AHORRO FOTOVOLTAICA'!H32 ->  | T46: ='AHORRO FOTOVOLTAICA'!I32 ->  | U46: ='AHORRO FOTOVOLTAICA'!J32 ->  | V46: ='AHORRO FOTOVOLTAICA'!K32 ->  | W46: ='AHORRO FOTOVOLTAICA'!L32 ->  | X46: ='AHORRO FOTOVOLTAICA'!M32 ->  | Y46: Septiembre | Z46: 0 | AA46: 0 | AB46: 0 | AC46: 0 | AD46: 0 | BA46: -29800.6882
A47: 26 | B47: =B46*(1+'CUADRO RENTING'!$F$11) -> 5814.390285 | C47: =C46*0.998*(1+'CUADRO RENTING'!$F$13) -> 3463.99015 | D47: ='CUADRO RENTING'!M42 -> 324.9043244 | E47: 641.4098197 | F47: =F46*0.99*(1+'CUADRO RENTING'!$F$11) -> 419.2832465 | G47: 2916.959252 | H47: 0.5016793007 | I47: 32717.64746 | J47: =IF(ISERROR(IRR($G$22:$G47)),"",IRR($G$22:$G47)) ->  | L47: Octubre | M47: ='AHORRO FOTOVOLTAICA'!B33 -> 1206.88562 | N47: ='AHORRO FOTOVOLTAICA'!C33 -> 0.006566850538 | O47: ='AHORRO FOTOVOLTAICA'!D33 ->  | P47: ='AHORRO FOTOVOLTAICA'!E33 ->  | Q47: ='AHORRO FOTOVOLTAICA'!F33 ->  | R47: ='AHORRO FOTOVOLTAICA'!G33 ->  | S47: ='AHORRO FOTOVOLTAICA'!H33 ->  | T47: ='AHORRO FOTOVOLTAICA'!I33 ->  | U47: ='AHORRO FOTOVOLTAICA'!J33 ->  | V47: ='AHORRO FOTOVOLTAICA'!K33 ->  | W47: ='AHORRO FOTOVOLTAICA'!L33 ->  | X47: ='AHORRO FOTOVOLTAICA'!M33 ->  | Y47: Octubre | Z47: 0 | AA47: 0 | AB47: 0 | AC47: 0 | AD47: 0 | BA47: -32717.64746
A48: 27 | B48: =B47*(1+'CUADRO RENTING'!$F$11) -> 5930.678091 | C48: =C47*0.998*(1+'CUADRO RENTING'!$F$13) -> 3595.344656 | D48: ='CUADRO RENTING'!M43 -> 331.4024109 | E48: 641.4098197 | F48: =F47*0.99*(1+'CUADRO RENTING'!$F$11) -> 423.3922223 | G48: 3045.924648 | H48: 0.5135879239 | I48: 35763.5721 | J48: =IF(ISERROR(IRR($G$22:$G48)),"",IRR($G$22:$G48)) ->  | L48: Noviembre | M48: ='AHORRO FOTOVOLTAICA'!B34 -> 939.4397667 | N48: ='AHORRO FOTOVOLTAICA'!C34 -> 0.006566850538 | O48: ='AHORRO FOTOVOLTAICA'!D34 ->  | P48: ='AHORRO FOTOVOLTAICA'!E34 ->  | Q48: ='AHORRO FOTOVOLTAICA'!F34 ->  | R48: ='AHORRO FOTOVOLTAICA'!G34 ->  | S48: ='AHORRO FOTOVOLTAICA'!H34 ->  | T48: ='AHORRO FOTOVOLTAICA'!I34 ->  | U48: ='AHORRO FOTOVOLTAICA'!J34 ->  | V48: ='AHORRO FOTOVOLTAICA'!K34 ->  | W48: ='AHORRO FOTOVOLTAICA'!L34 ->  | X48: ='AHORRO FOTOVOLTAICA'!M34 ->  | Y48: Noviembre | Z48: 0 | AA48: 0 | AB48: 0 | AC48: 0 | AD48: 0 | BA48: -35763.5721
A49: 28 | B49: =B48*(1+'CUADRO RENTING'!$F$11) -> 6049.291653 | C49: =C48*0.998*(1+'CUADRO RENTING'!$F$13) -> 3731.680126 | D49: ='CUADRO RENTING'!M44 -> 338.0304591 | E49: 641.4098197 | F49: =F48*0.99*(1+'CUADRO RENTING'!$F$11) -> 427.5414661 | G49: 3179.781313 | H49: 0.5256452318 | I49: 38943.35342 | J49: =IF(ISERROR(IRR($G$22:$G49)),"",IRR($G$22:$G49)) ->  | L49: Diciembre | M49: ='AHORRO FOTOVOLTAICA'!B35 -> 862.199087 | N49: ='AHORRO FOTOVOLTAICA'!C35 -> 0.006566850538 | O49: ='AHORRO FOTOVOLTAICA'!D35 ->  | P49: ='AHORRO FOTOVOLTAICA'!E35 ->  | Q49: ='AHORRO FOTOVOLTAICA'!F35 ->  | R49: ='AHORRO FOTOVOLTAICA'!G35 ->  | S49: ='AHORRO FOTOVOLTAICA'!H35 ->  | T49: ='AHORRO FOTOVOLTAICA'!I35 ->  | U49: ='AHORRO FOTOVOLTAICA'!J35 ->  | V49: ='AHORRO FOTOVOLTAICA'!K35 ->  | W49: ='AHORRO FOTOVOLTAICA'!L35 ->  | X49: ='AHORRO FOTOVOLTAICA'!M35 ->  | Y49: Diciembre | Z49: 0 | AA49: 0 | AB49: 0 | AC49: 0 | AD49: 0 | BA49: -38943.35342
A50: 29 | B50: =B49*(1+'CUADRO RENTING'!$F$11) -> 6170.277486 | C50: =C49*0.998*(1+'CUADRO RENTING'!$F$13) -> 3873.185436 | D50: ='CUADRO RENTING'!M45 -> 344.7910683 | E50: 641.4098197 | F50: =F49*0.99*(1+'CUADRO RENTING'!$F$11) -> 431.7313724 | G50: 3318.71592 | H50: 0.5378552145 | I50: 42262.06934 | J50: =IF(ISERROR(IRR($G$22:$G50)),"",IRR($G$22:$G50)) ->  | BA50: -42262.06934
A51: 30 | B51: =B50*(1+'CUADRO RENTING'!$F$11) -> 6293.683035 | C51: =C50*0.998*(1+'CUADRO RENTING'!$F$13) -> 4020.056628 | D51: ='CUADRO RENTING'!M46 -> 351.6868896 | E51: 641.4098197 | F51: =F50*0.99*(1+'CUADRO RENTING'!$F$11) -> 435.9623399 | G51: 3462.922258 | H51: 0.5502219032 | I51: 45724.99159 | J51: =IF(ISERROR(IRR($G$22:$G51)),"",IRR($G$22:$G51)) ->  | Z51: p2 | AA51: p3 | AB51: p4 | AC51: p5 | AD51: p6 | BA51: -45724.99159
A52: 31 | B52: =B51*(1+'CUADRO RENTING'!$F$11) -> 6419.556696 | C52: =C51*0.998*(1+'CUADRO RENTING'!$F$13) -> 4172.497175 | D52: ='CUADRO RENTING'!M47 -> 358.7206274 | E52: =E51 -> 641.4098197 | F52: =F51*0.99*(1+'CUADRO RENTING'!$F$11) -> 440.2347708 | G52: 3612.601499 | H52: 0.5627493719 | I52: 49337.59309 | J52: =IF(ISERROR(IRR($G$22:$G52)),"",IRR($G$22:$G52)) ->  | M52: precio p1 | N52: precio p2 | O52: precio p3 | P52: precio p4 | Q52: precio p5 | R52: precio p6 | S52: Total mes | Y52: Enero | Z52: =IF(O38="",0,O38) -> 0 | AA52: =IF(Q38="",0,Q38) -> 0 | AB52: =IF(S38="",0,S38) -> 0 | AC52: =IF(U38="",0,U38) -> 0 | AD52: =IF(W38="",0,W38) -> 0 | BA52: -49337.59309
A53: 32 | B53: =B52*(1+'CUADRO RENTING'!$F$11) -> 6547.94783 | C53: =C52*0.998*(1+'CUADRO RENTING'!$F$13) -> 4330.718268 | D53: ='CUADRO RENTING'!M48 -> 365.89504 | E53: 641.4098197 | F53: =F52*0.99*(1+'CUADRO RENTING'!$F$11) -> 444.5490716 | G53: 3767.96248 | H53: 0.575441738 | I53: 53105.55557 | J53: =IF(ISERROR(IRR($G$22:$G53)),"",IRR($G$22:$G53)) ->  | L53: Enero | M53: =M38*N38 -> 6.314988587 | N53: =Z52*Z38 -> 0 | O53: =AA52*AA38 -> 0 | P53: =AB52*AB38 -> 0 | Q53: =AC52*AC38 -> 0 | R53: =AD52*AD38 -> 0 | S53: =SUM(M53:R53) -> 6.314988587 | Y53: Febrero | Z53: =IF(O39="",0,O39) -> 0 | AA53: =IF(Q39="",0,Q39) -> 0 | AB53: =IF(S39="",0,S39) -> 0 | AC53: =IF(U39="",0,U39) -> 0 | AD53: =IF(W39="",0,W39) -> 0 | BA53: -53105.55557
A54: 33 | B54: =B53*(1+'CUADRO RENTING'!$F$11) -> 6678.906787 | C54: =C53*0.998*(1+'CUADRO RENTING'!$F$13) -> 4494.939105 | D54: ='CUADRO RENTING'!M49 -> 373.2129408 | E54: 641.4098197 | F54: =F53*0.99*(1+'CUADRO RENTING'!$F$11) -> 448.9056525 | G54: 3929.221997 | H54: 0.5883031643 | I54: 57034.77757 | J54: =IF(ISERROR(IRR($G$22:$G54)),"",IRR($G$22:$G54)) ->  | L54: Febrero | M54: =M39*N39 -> 6.847577986 | N54: =Z53*Z39 -> 0 | O54: =AA53*AA39 -> 0 | P54: =AB53*AB39 -> 0 | Q54: =AC53*AC39 -> 0 | R54: =AD53*AD39 -> 0 | S54: =SUM(M54:R54) -> 6.847577986 | Y54: Marzo | Z54: 0 | AA54: 0 | AB54: 0 | AC54: 0 | AD54: 0 | BA54: -57034.77757
A55: 34 | B55: =B54*(1+'CUADRO RENTING'!$F$11) -> 6812.484922 | C55: =C54*0.998*(1+'CUADRO RENTING'!$F$13) -> 4665.387195 | D55: ='CUADRO RENTING'!M50 -> 380.6771996 | E55: 641.4098197 | F55: =F54*0.99*(1+'CUADRO RENTING'!$F$11) -> 453.3049279 | G55: 4096.605104 | H55: 0.6013378599 | I55: 61131.38267 | J55: =IF(ISERROR(IRR($G$22:$G55)),"",IRR($G$22:$G55)) ->  | L55: Marzo | M55: 9.130103982 | N55: 0 | O55: 0 | P55: 0 | Q55: 0 | R55: 0 | S55: 9.130103982 | Y55: Abril | Z55: 0 | AA55: 0 | AB55: 0 | AC55: 0 | AD55: 0 | BA55: -61131.38267
A56: 35 | B56: =B55*(1+'CUADRO RENTING'!$F$11) -> 6948.734621 | C56: =C55*0.998*(1+'CUADRO RENTING'!$F$13) -> 4842.298678 | D56: ='CUADRO RENTING'!M51 -> 388.2907436 | E56: 641.4098197 | F56: =F55*0.99*(1+'CUADRO RENTING'!$F$11) -> 457.7473162 | G56: 4270.345431 | H56: 0.6145500819 | I56: 65401.7281 | J56: =IF(ISERROR(IRR($G$22:$G56)),"",IRR($G$22:$G56)) ->  | L56: Abril | M56: 9.003296982 | N56: 0 | O56: 0 | P56: 0 | Q56: 0 | R56: 0 | S56: 9.003296982 | Y56: Mayo | Z56: 0 | AA56: 0 | AB56: 0 | AC56: 0 | AD56: 0 | BA56: -65401.7281
A57: 36 | B57: =B56*(1+'CUADRO RENTING'!$F$11) -> 7087.709313 | C57: =C56*0.998*(1+'CUADRO RENTING'!$F$13) -> 5025.918644 | D57: ='CUADRO RENTING'!M52 -> 396.0565585 | E57: 641.4098197 | F57: =F56*0.99*(1+'CUADRO RENTING'!$F$11) -> 462.2332399 | G57: 4450.685505 | H57: 0.6279441366 | I57: 69852.41361 | J57: =IF(ISERROR(IRR($G$22:$G57)),"",IRR($G$22:$G57)) ->  | L57: Mayo | M57: 9.89094598 | N57: 0 | O57: 0 | P57: 0 | Q57: 0 | R57: 0 | S57: 9.89094598 | Y57: Junio | Z57: 0 | AA57: 0 | AB57: 0 | AC57: 0 | AD57: 0 | BA57: -69852.41361
A58: 37 | B58: =B57*(1+'CUADRO RENTING'!$F$11) -> 7229.4635 | C58: =C57*0.998*(1+'CUADRO RENTING'!$F$13) -> 5216.501479 | D58: ='CUADRO RENTING'!M53 -> 403.9776896 | E58: 641.4098197 | F58: =F57*0.99*(1+'CUADRO RENTING'!$F$11) -> 466.7631256 | G58: 4637.877095 | H58: 0.6415243808 | I58: 74490.2907 | J58: =IF(ISERROR(IRR($G$22:$G58)),"",IRR($G$22:$G58)) ->  | L58: Junio | M58: 10.08115648 | N58: 0 | O58: 0 | P58: 0 | Q58: 0 | R58: 0 | S58: 10.08115648 | Y58: Julio | Z58: 0 | AA58: 0 | AB58: 0 | AC58: 0 | AD58: 0 | BA58: -74490.2907
A59: 38 | B59: =B58*(1+'CUADRO RENTING'!$F$11) -> 7374.05277 | C59: =C58*0.998*(1+'CUADRO RENTING'!$F$13) -> 5414.311215 | D59: ='CUADRO RENTING'!M54 -> 412.0572434 | E59: 641.4098197 | F59: =F58*0.99*(1+'CUADRO RENTING'!$F$11) -> 471.3374042 | G59: 4832.181556 | H59: 0.6552952232 | I59: 79322.47226 | J59: =IF(ISERROR(IRR($G$22:$G59)),"",IRR($G$22:$G59)) ->  | L59: Julio | M59: 10.39817398 | N59: 0 | O59: 0 | P59: 0 | Q59: 0 | R59: 0 | S59: 10.39817398 | Y59: Agosto | Z59: 0 | AA59: 0 | AB59: 0 | AC59: 0 | AD59: 0 | BA59: -79322.47226
A60: 39 | B60: =B59*(1+'CUADRO RENTING'!$F$11) -> 7521.533825 | C60: =C59*0.998*(1+'CUADRO RENTING'!$F$13) -> 5619.621896 | D60: ='CUADRO RENTING'!M55 -> 420.2983883 | E60: 641.4098197 | F60: =F59*0.99*(1+'CUADRO RENTING'!$F$11) -> 475.9565108 | G60: 5033.870199 | H60: 0.6692611262 | I60: 84356.34246 | J60: =IF(ISERROR(IRR($G$22:$G60)),"",IRR($G$22:$G60)) ->  | K60: TIR A 40 AÑOS | L60: Agosto | M60: 10.01775298 | N60: 0 | O60: 0 | P60: 0 | Q60: 0 | R60: 0 | S60: 10.01775298 | Y60: Septiembre | Z60: 0 | AA60: 0 | AB60: 0 | AC60: 0 | AD60: 0 | BA60: -84356.34246
A61: 40 | B61: =B60*(1+'CUADRO RENTING'!$F$11) -> 7671.964501 | C61: =C60*0.998*(1+'CUADRO RENTING'!$F$13) -> 5832.717958 | D61: ='CUADRO RENTING'!M56 -> 428.7043561 | E61: 641.4098197 | F61: =F60*0.99*(1+'CUADRO RENTING'!$F$11) -> 480.6208846 | G61: 5243.224667 | H61: 0.6834266068 | I61: 89599.56713 | J61: =IF(ISERROR(IRR($G$22:$G61)),"",IRR($G$22:$G61)) ->  | K61: =IRR(G21:G61) -> 0.1138548098 | L61: Septiembre | M61: 8.559472483 | N61: 0 | O61: 0 | P61: 0 | Q61: 0 | R61: 0 | S61: 8.559472483 | Y61: Octubre | Z61: 0 | AA61: 0 | AB61: 0 | AC61: 0 | AD61: 0 | BA61: -89599.56713
L62: Octubre | M62: 7.925437484 | N62: 0 | O62: 0 | P62: 0 | Q62: 0 | R62: 0 | S62: 7.925437484 | Y62: Noviembre | Z62: 0 | AA62: 0 | AB62: 0 | AC62: 0 | AD62: 0
L63: Noviembre | M63: 6.169160538 | N63: 0 | O63: 0 | P63: 0 | Q63: 0 | R63: 0 | S63: 6.169160538 | Y63: Diciembre | Z63: 0 | AA63: 0 | AB63: 0 | AC63: 0 | AD63: 0
L64: Diciembre | M64: 5.661932539 | N64: 0 | O64: 0 | P64: 0 | Q64: 0 | R64: 0 | S64: 5.661932539
L65: Total periodo | M65: =SUM(M53:M64) -> 100 | N65: 0 | O65: 0 | P65: 0 | Q65: 0 | R65: 0 | S65: =SUM(M65:R65) -> 100 | T65: =SUM(S53:S64) -> 100
M68: PRODUCCIÓN FOTOVOLTAICA | U68: PRECIO CONSUMO | AC68: EXCESOS(NEGATIVO, TE FALTA) | AK68: FALTA(NEGATIVO, TE SOBRA) | AR68: PRECIO FALTA ENERGÍA Y QUE CONSUMES DE RED
M69: P1 | N69: p2 | O69: p3 | P69: p4 | Q69: p5 | R69: p6 | U69: PRECIO 1 | V69: PRECIO 2 | W69: PRECIO 3 | X69: PRECIO 4 | Y69: PRECIO 5 | Z69: PRECIO 6 | AC69: P1 | AD69: p2 | AE69: p3 | AF69: p4 | AG69: p5 | AH69: p6 | AK69: P1 | AL69: p2 | AM69: p3 | AN69: p4 | AO69: p5 | AP69: p6 | AS69: P1 | AT69: p2 | AU69: p3 | AV69: p4 | AW69: p5 | AX69: p6
L70: Enero | M70: =M38 -> 961.6464621 | N70: =Z52 -> 0 | O70: =AA52 -> 0 | P70: =AB52 -> 0 | Q70: =AC52 -> 0 | R70: =AD52 -> 0 | S70: =SUM(M70:R70) -> 961.6464621 | T70: Enero | U70: =N5 -> 0.1104271942 | V70: =Z5 -> 0 | W70: =AA5 -> 0 | X70: =AB5 -> 0 | Y70: =AC5 -> 0 | Z70: =AD5 -> 0 | AB70: Enero | AC70: =M70-M5 -> 717.6464621 | AD70: =N70-O5 -> 0 | AE70: =O70-Q5 -> 0 | AF70: =P70-S5 -> 0 | AG70: =Q70-U5 -> 0 | AH70: =R70-W5 -> 0 | AJ70: Enero | AK70: =M5-M70 -> -717.6464621 | AL70: =O5-N70 -> 0 | AM70: =Q5-O70 -> 0 | AN70: =S5-P70 -> 0 | AO70: =U5-Q70 -> 0 | AP70: =W5-R70 -> 0 | AR70: Enero | AS70: =IF(AK70<0,0,AK70*'AHORRO FOTOVOLTAICA'!$B$3) -> 0 | AT70: =IF(AL70<0,0,AL70*'AHORRO FOTOVOLTAICA'!$C$3) -> 0 | AU70: =IF(AM70<0,0,AM70*'AHORRO FOTOVOLTAICA'!$D$3) -> 0 | AV70: =IF(AN70<0,0,AN70*'AHORRO FOTOVOLTAICA'!$E$3) -> 0 | AW70: =IF(AO70<0,0,AO70*'AHORRO FOTOVOLTAICA'!$F$3) -> 0 | AX70: =IF(AP70<0,0,AP70*'AHORRO FOTOVOLTAICA'!$G$3) -> 0
L71: Febrero | M71: 1042.749176 | N71: 0 | O71: 0 | P71: 0 | Q71: 0 | R71: 0 | S71: =SUM(M71:R71) -> 1042.749176 | T71: Febrero | U71: 0.1104271942 | V71: 0 | W71: 0 | X71: 0 | Y71: 0 | Z71: 0 | AB71: Febrero | AC71: 773.7491758 | AD71: 0 | AE71: 0 | AF71: 0 | AG71: 0 | AH71: 0 | AJ71: Febrero | AK71: -773.7491758 | AL71: 0 | AM71: 0 | AN71: 0 | AO71: 0 | AP71: 0 | AR71: Febrero | AS71: =IF(AK71<0,0,AK71*'AHORRO FOTOVOLTAICA'!$B$3) -> 0 | AT71: =IF(AL71<0,0,AL71*'AHORRO FOTOVOLTAICA'!$C$3) -> 0 | AU71: =IF(AM71<0,0,AM71*'AHORRO FOTOVOLTAICA'!$D$3) -> 0 | AV71: =IF(AN71<0,0,AN71*'AHORRO FOTOVOLTAICA'!$E$3) -> 0 | AW71: =IF(AO71<0,0,AO71*'AHORRO FOTOVOLTAICA'!$F$3) -> 0 | AX71: =IF(AP71<0,0,AP71*'AHORRO FOTOVOLTAICA'!$G$3) -> 0
L72: Marzo | M72: 1390.332234 | N72: 0 | O72: 0 | P72: 0 | Q72: 0 | R72: 0 | S72: 1390.332234 | T72: Marzo | U72: 0.1104271942 | V72: 0 | W72: 0 | X72: 0 | Y72: 0 | Z72: 0 | AB72: Marzo | AC72: -486.6677657 | AD72: 0 | AE72: 0 | AF72: 0 | AG72: 0 | AH72: 0 | AJ72: Marzo | AK72: 486.6677657 | AL72: 0 | AM72: 0 | AN72: 0 | AO72: 0 | AP72: 0 | AR72: Marzo | AS72: =IF(AK72<0,0,AK72*'AHORRO FOTOVOLTAICA'!$B$3) -> 51.12736879 | AT72: =IF(AL72<0,0,AL72*'AHORRO FOTOVOLTAICA'!$C$3) -> 0 | AU72: =IF(AM72<0,0,AM72*'AHORRO FOTOVOLTAICA'!$D$3) -> 0 | AV72: =IF(AN72<0,0,AN72*'AHORRO FOTOVOLTAICA'!$E$3) -> 0 | AW72: =IF(AO72<0,0,AO72*'AHORRO FOTOVOLTAICA'!$F$3) -> 0 | AX72: =IF(AP72<0,0,AP72*'AHORRO FOTOVOLTAICA'!$G$3) -> 0
L73: Abril | M73: 1371.022064 | N73: 0 | O73: 0 | P73: 0 | Q73: 0 | R73: 0 | S73: 1371.022064 | T73: Abril | U73: 0.1104271942 | V73: 0 | W73: 0 | X73: 0 | Y73: 0 | Z73: 0 | AB73: Abril | AC73: -2230.977936 | AD73: 0 | AE73: 0 | AF73: 0 | AG73: 0 | AH73: 0 | AJ73: Abril | AK73: 2230.977936 | AL73: 0 | AM73: 0 | AN73: 0 | AO73: 0 | AP73: 0 | AR73: Abril | AS73: =IF(AK73<0,0,AK73*'AHORRO FOTOVOLTAICA'!$B$3) -> 234.377618 | AT73: =IF(AL73<0,0,AL73*'AHORRO FOTOVOLTAICA'!$C$3) -> 0 | AU73: =IF(AM73<0,0,AM73*'AHORRO FOTOVOLTAICA'!$D$3) -> 0 | AV73: =IF(AN73<0,0,AN73*'AHORRO FOTOVOLTAICA'!$E$3) -> 0 | AW73: =IF(AO73<0,0,AO73*'AHORRO FOTOVOLTAICA'!$F$3) -> 0 | AX73: =IF(AP73<0,0,AP73*'AHORRO FOTOVOLTAICA'!$G$3) -> 0
L74: Mayo | M74: 1506.193254 | N74: 0 | O74: 0 | P74: 0 | Q74: 0 | R74: 0 | S74: 1506.193254 | T74: Mayo | U74: 0.1104271942 | V74: 0 | W74: 0 | X74: 0 | Y74: 0 | Z74: 0 | AB74: Mayo | AC74: -2626.806746 | AD74: 0 | AE74: 0 | AF74: 0 | AG74: 0 | AH74: 0 | AJ74: Mayo | AK74: 2626.806746 | AL74: 0 | AM74: 0 | AN74: 0 | AO74: 0 | AP74: 0 | AR74: Mayo | AS74: =IF(AK74<0,0,AK74*'AHORRO FOTOVOLTAICA'!$B$3) -> 275.9618095 | AT74: =IF(AL74<0,0,AL74*'AHORRO FOTOVOLTAICA'!$C$3) -> 0 | AU74: =IF(AM74<0,0,AM74*'AHORRO FOTOVOLTAICA'!$D$3) -> 0 | AV74: =IF(AN74<0,0,AN74*'AHORRO FOTOVOLTAICA'!$E$3) -> 0 | AW74: =IF(AO74<0,0,AO74*'AHORRO FOTOVOLTAICA'!$F$3) -> 0 | AX74: =IF(AP74<0,0,AP74*'AHORRO FOTOVOLTAICA'!$G$3) -> 0
L75: Junio | M75: 1535.158509 | N75: 0 | O75: 0 | P75: 0 | Q75: 0 | R75: 0 | S75: 1535.158509 | T75: Junio | U75: 0.1104271942 | V75: 0 | W75: 0 | X75: 0 | Y75: 0 | Z75: 0 | AB75: Junio | AC75: -4222.841491 | AD75: 0 | AE75: 0 | AF75: 0 | AG75: 0 | AH75: 0 | AJ75: Junio | AK75: 4222.841491 | AL75: 0 | AM75: 0 | AN75: 0 | AO75: 0 | AP75: 0 | AR75: Junio | AS75: =IF(AK75<0,0,AK75*'AHORRO FOTOVOLTAICA'!$B$3) -> 443.6348357 | AT75: =IF(AL75<0,0,AL75*'AHORRO FOTOVOLTAICA'!$C$3) -> 0 | AU75: =IF(AM75<0,0,AM75*'AHORRO FOTOVOLTAICA'!$D$3) -> 0 | AV75: =IF(AN75<0,0,AN75*'AHORRO FOTOVOLTAICA'!$E$3) -> 0 | AW75: =IF(AO75<0,0,AO75*'AHORRO FOTOVOLTAICA'!$F$3) -> 0 | AX75: =IF(AP75<0,0,AP75*'AHORRO FOTOVOLTAICA'!$G$3) -> 0
L76: Julio | M76: 1583.433934 | N76: 0 | O76: 0 | P76: 0 | Q76: 0 | R76: 0 | S76: 1583.433934 | T76: Julio | U76: 0.1104271942 | V76: 0 | W76: 0 | X76: 0 | Y76: 0 | Z76: 0 | AB76: Julio | AC76: -4292.566066 | AD76: 0 | AE76: 0 | AF76: 0 | AG76: 0 | AH76: 0 | AJ76: Julio | AK76: 4292.566066 | AL76: 0 | AM76: 0 | AN76: 0 | AO76: 0 | AP76: 0 | AR76: Julio | AS76: =IF(AK76<0,0,AK76*'AHORRO FOTOVOLTAICA'!$B$3) -> 450.9598207 | AT76: =IF(AL76<0,0,AL76*'AHORRO FOTOVOLTAICA'!$C$3) -> 0 | AU76: =IF(AM76<0,0,AM76*'AHORRO FOTOVOLTAICA'!$D$3) -> 0 | AV76: =IF(AN76<0,0,AN76*'AHORRO FOTOVOLTAICA'!$E$3) -> 0 | AW76: =IF(AO76<0,0,AO76*'AHORRO FOTOVOLTAICA'!$F$3) -> 0 | AX76: =IF(AP76<0,0,AP76*'AHORRO FOTOVOLTAICA'!$G$3) -> 0
L77: Agosto | M77: 1525.503424 | N77: 0 | O77: 0 | P77: 0 | Q77: 0 | R77: 0 | S77: 1525.503424 | T77: Agosto | U77: 0.1104271942 | V77: 0 | W77: 0 | X77: 0 | Y77: 0 | Z77: 0 | AB77: Agosto | AC77: -2953.496576 | AD77: 0 | AE77: 0 | AF77: 0 | AG77: 0 | AH77: 0 | AJ77: Agosto | AK77: 2953.496576 | AL77: 0 | AM77: 0 | AN77: 0 | AO77: 0 | AP77: 0 | AR77: Agosto | AS77: =IF(AK77<0,0,AK77*'AHORRO FOTOVOLTAICA'!$B$3) -> 310.2825363 | AT77: =IF(AL77<0,0,AL77*'AHORRO FOTOVOLTAICA'!$C$3) -> 0 | AU77: =IF(AM77<0,0,AM77*'AHORRO FOTOVOLTAICA'!$D$3) -> 0 | AV77: =IF(AN77<0,0,AN77*'AHORRO FOTOVOLTAICA'!$E$3) -> 0 | AW77: =IF(AO77<0,0,AO77*'AHORRO FOTOVOLTAICA'!$F$3) -> 0 | AX77: =IF(AP77<0,0,AP77*'AHORRO FOTOVOLTAICA'!$G$3) -> 0
L78: Septiembre | M78: 1303.43647 | N78: 0 | O78: 0 | P78: 0 | Q78: 0 | R78: 0 | S78: 1303.43647 | T78: Septiembre | U78: 0.1104271942 | V78: 0 | W78: 0 | X78: 0 | Y78: 0 | Z78: 0 | AB78: Septiembre | AC78: -2029.56353 | AD78: 0 | AE78: 0 | AF78: 0 | AG78: 0 | AH78: 0 | AJ78: Septiembre | AK78: 2029.56353 | AL78: 0 | AM78: 0 | AN78: 0 | AO78: 0 | AP78: 0 | AR78: Septiembre | AS78: =IF(AK78<0,0,AK78*'AHORRO FOTOVOLTAICA'!$B$3) -> 213.2178262 | AT78: =IF(AL78<0,0,AL78*'AHORRO FOTOVOLTAICA'!$C$3) -> 0 | AU78: =IF(AM78<0,0,AM78*'AHORRO FOTOVOLTAICA'!$D$3) -> 0 | AV78: =IF(AN78<0,0,AN78*'AHORRO FOTOVOLTAICA'!$E$3) -> 0 | AW78: =IF(AO78<0,0,AO78*'AHORRO FOTOVOLTAICA'!$F$3) -> 0 | AX78: =IF(AP78<0,0,AP78*'AHORRO FOTOVOLTAICA'!$G$3) -> 0
L79: Octubre | M79: 1206.88562 | N79: 0 | O79: 0 | P79: 0 | Q79: 0 | R79: 0 | S79: 1206.88562 | T79: Octubre | U79: 0.1104271942 | V79: 0 | W79: 0 | X79: 0 | Y79: 0 | Z79: 0 | AB79: Octubre | AC79: -880.1143799 | AD79: 0 | AE79: 0 | AF79: 0 | AG79: 0 | AH79: 0 | AJ79: Octubre | AK79: 880.1143799 | AL79: 0 | AM79: 0 | AN79: 0 | AO79: 0 | AP79: 0 | AR79: Octubre | AS79: =IF(AK79<0,0,AK79*'AHORRO FOTOVOLTAICA'!$B$3) -> 92.4612963 | AT79: =IF(AL79<0,0,AL79*'AHORRO FOTOVOLTAICA'!$C$3) -> 0 | AU79: =IF(AM79<0,0,AM79*'AHORRO FOTOVOLTAICA'!$D$3) -> 0 | AV79: =IF(AN79<0,0,AN79*'AHORRO FOTOVOLTAICA'!$E$3) -> 0 | AW79: =IF(AO79<0,0,AO79*'AHORRO FOTOVOLTAICA'!$F$3) -> 0 | AX79: =IF(AP79<0,0,AP79*'AHORRO FOTOVOLTAICA'!$G$3) -> 0
L80: Noviembre | M80: 939.4397667 | N80: 0 | O80: 0 | P80: 0 | Q80: 0 | R80: 0 | S80: 939.4397667 | T80: Noviembre | U80: 0.1104271942 | V80: 0 | W80: 0 | X80: 0 | Y80: 0 | Z80: 0 | AB80: Noviembre | AC80: 720.4397667 | AD80: 0 | AE80: 0 | AF80: 0 | AG80: 0 | AH80: 0 | AJ80: Noviembre | AK80: -720.4397667 | AL80: 0 | AM80: 0 | AN80: 0 | AO80: 0 | AP80: 0 | AR80: Noviembre | AS80: =IF(AK80<0,0,AK80*'AHORRO FOTOVOLTAICA'!$B$3) -> 0 | AT80: =IF(AL80<0,0,AL80*'AHORRO FOTOVOLTAICA'!$C$3) -> 0 | AU80: =IF(AM80<0,0,AM80*'AHORRO FOTOVOLTAICA'!$D$3) -> 0 | AV80: =IF(AN80<0,0,AN80*'AHORRO FOTOVOLTAICA'!$E$3) -> 0 | AW80: =IF(AO80<0,0,AO80*'AHORRO FOTOVOLTAICA'!$F$3) -> 0 | AX80: =IF(AP80<0,0,AP80*'AHORRO FOTOVOLTAICA'!$G$3) -> 0
L81: Diciembre | M81: 862.199087 | N81: 0 | O81: 0 | P81: 0 | Q81: 0 | R81: 0 | S81: 862.199087 | T81: Diciembre | U81: 0.1104271942 | V81: 0 | W81: 0 | X81: 0 | Y81: 0 | Z81: 0 | AB81: Diciembre | AC81: 645.199087 | AD81: 0 | AE81: 0 | AF81: 0 | AG81: 0 | AH81: 0 | AJ81: Diciembre | AK81: -645.199087 | AL81: 0 | AM81: 0 | AN81: 0 | AO81: 0 | AP81: 0 | AR81: Diciembre | AS81: =IF(AK81<0,0,AK81*'AHORRO FOTOVOLTAICA'!$B$3) -> 0 | AT81: =IF(AL81<0,0,AL81*'AHORRO FOTOVOLTAICA'!$C$3) -> 0 | AU81: =IF(AM81<0,0,AM81*'AHORRO FOTOVOLTAICA'!$D$3) -> 0 | AV81: =IF(AN81<0,0,AN81*'AHORRO FOTOVOLTAICA'!$E$3) -> 0 | AW81: =IF(AO81<0,0,AO81*'AHORRO FOTOVOLTAICA'!$F$3) -> 0 | AX81: =IF(AP81<0,0,AP81*'AHORRO FOTOVOLTAICA'!$G$3) -> 0 | AY81: PRECIO ENERGÍA NO PRODUCIDA Y QUE CONSUMES DE RED
M82: =SUM(M70:M81) -> 15228 | N82: 0 | O82: 0 | P82: 0 | Q82: 0 | R82: 0 | S82: 15228 | AS82: =SUM(AS70:AS81) -> 2072.023112 | AT82: 0 | AU82: 0 | AV82: 0 | AW82: 0 | AX82: 0 | AY82: =SUM(AS82:AX82) -> 2072.023112
U84: PRECIO PEAJE
L85: Enero | M85: =IF( M70<M5,M70*U70,M5*U70) -> 26.9442354 | N85: =IF( N70<O5,N70*V70,O5*V70) -> 0 | O85: =IF(O70<Q5,O70*W70,Q5*W70) -> 0 | P85: =IF(P70<S5,P70*X70,S5*X70) -> 0 | Q85: =IF(Q70<U5,Q70*Y70,U5*Y70) -> 0 | R85: =IF(R70<W5,R70*Z70,W5*Z70) -> 0 | U85: PRECIO 1 | V85: PRECIO 2 | W85: PRECIO 3 | X85: PRECIO 4 | Y85: PRECIO 5 | Z85: PRECIO 6
L86: Febrero | M86: 29.70491525 | N86: 0 | O86: 0 | P86: 0 | Q86: 0 | R86: 0 | T86: Enero | U86: =IF(M70<M5,M70*$C$3,M5*$C$3) -> 12.650912 | V86: =IF(N70<O5,N70*$D$3,O5*$D$3) -> 0 | W86: =IF(O70<Q5,O70*$E$3,Q5*$E$3) -> 0 | X86: =IF(P70<S5,P70*$G$3,S5*$G$3) -> 0 | Y86: =IF(Q70<U5,Q70*$H$3,U5*$H$3) -> 0 | Z86: =IF(R70<W5,R70*$K$3,W5*$K$3) -> 0
L87: Marzo | M87: 153.5304877 | N87: 0 | O87: 0 | P87: 0 | Q87: 0 | R87: 0 | T87: Febrero | U87: 13.947112 | V87: 0 | W87: 0 | X87: 0 | Y87: 0 | Z87: 0
L88: Abril | M88: 151.3981198 | N88: 0 | O88: 0 | P88: 0 | Q88: 0 | R88: 0 | T88: Marzo | U88: 72.08594569 | V88: 0 | W88: 0 | X88: 0 | Y88: 0 | Z88: 0
L89: Mayo | M89: 166.324695 | N89: 0 | O89: 0 | P89: 0 | Q89: 0 | R89: 0 | T89: Abril | U89: 71.084752 | V89: 0 | W89: 0 | X89: 0 | Y89: 0 | Z89: 0
L90: Junio | M90: 169.5232468 | N90: 0 | O90: 0 | P90: 0 | Q90: 0 | R90: 0 | T90: Mayo | U90: 78.09310783 | V90: 0 | W90: 0 | X90: 0 | Y90: 0 | Z90: 0
L91: Julio | M91: 174.8541666 | N91: 0 | O91: 0 | P91: 0 | Q91: 0 | R91: 0 | T91: Junio | U91: 79.59489836 | V91: 0 | W91: 0 | X91: 0 | Y91: 0 | Z91: 0
L92: Agosto | M92: 168.4570629 | N92: 0 | O92: 0 | P92: 0 | Q92: 0 | R92: 0 | T92: Julio | U92: 82.09788259 | V92: 0 | W92: 0 | X92: 0 | Y92: 0 | Z92: 0
L93: Septiembre | M93: 143.9348322 | N93: 0 | O93: 0 | P93: 0 | Q93: 0 | R93: 0 | T93: Agosto | U93: 79.09430152 | V93: 0 | W93: 0 | X93: 0 | Y93: 0 | Z93: 0
L94: Octubre | M94: 133.2729928 | N94: 0 | O94: 0 | P94: 0 | Q94: 0 | R94: 0 | T94: Septiembre | U94: 67.58057408 | V94: 0 | W94: 0 | X94: 0 | Y94: 0 | Z94: 0
L95: Noviembre | M95: 24.18355554 | N95: 0 | O95: 0 | P95: 0 | Q95: 0 | R95: 0 | T95: Octubre | U95: 62.57460563 | V95: 0 | W95: 0 | X95: 0 | Y95: 0 | Z95: 0
L96: Diciembre | M96: 23.96270115 | N96: 0 | O96: 0 | P96: 0 | Q96: 0 | R96: 0 | T96: Noviembre | U96: 11.354712 | V96: 0 | W96: 0 | X96: 0 | Y96: 0 | Z96: 0
M97: =SUM(M85:M96) -> 1366.091011 | N97: 0 | O97: 0 | P97: 0 | Q97: 0 | R97: 0 | S97: =SUM(M97:R97) -> 1366.091011 | T97: Diciembre | U97: 11.251016 | V97: 0 | W97: 0 | X97: 0 | Y97: 0 | Z97: 0
U98: =SUM(U86:U97) -> 641.4098197 | V98: 0 | W98: 0 | X98: 0 | Y98: 0 | Z98: 0 | AA98: =SUM(U98:Z98) -> 641.4098197
M117: P1 | N117: P2 | O117: P3 | P117: P4 | Q117: P5 | R117: P6
I118: 2.0A | L118: 2.0A | M118: 0.0407 | N118: 0 | O118: 0 | P118: 0 | Q118: 0 | R118: 0
I119: 2.0DHA | L119: 2.0DHA | M119: 0.054169 | O119: 0.006006
L120: 2.0DHS | M120: 0.054169 | N120: 0.006288 | O120: 0.005936
L121: 2.1A | M121: 0.051848
I122: 2.1A | L122: 2.1DHA | M122: 0.064596 | O122: 0.014449
I123: 2.1DHA | L123: 2.1DHS | M123: 0.064817 | N123: 0.016985 | O123: 0.010767
I124: 3.0A | L124: 3.0A | M124: 0.019894 | N124: 0.013147 | O124: 0.008459
I125: 3.1A | L125: 3.1A | M125: 0.01478 | N125: 0.010914 | O125: 0.011973
I126: 6.1A | L126: 6.1A | M126: 0.011633 | N126: 0.010569 | O126: 0.00718 | P126: 0.008897 | Q126: 0.00983 | R126: 0.006497
L127: 6.1B | M127: 0.011633 | N127: 0.00817 | O127: 0.00718 | P127: 0.008005 | Q127: 0.009249 | R127: 0.00614
L128: 6.2 | M128: 0.012016 | N128: 0.011069 | O128: 0.007541 | P128: 0.008169 | Q128: 0.008566 | R128: 0.006063
L129: 6.3 | M129: 0.014549 | N129: 0.012384 | O129: 0.008217 | P129: 0.008527 | Q129: 0.008527 | R129: 0.006106
L130: 6.4 | M130: 0.011633 | N130: 0.00817 | O130: 0.00718 | P130: 0.007596 | Q130: 0.008111 | R130: 0.005943

Sheet AHORRO SIN PEAJES
A1: Tipo de tarifa | C1: ='AHORRO FOTOVOLTAICA'!B1 -> 2.1A | D1: ESTUDIO RENTABILIDAD SIN PEAJES
C2: =IF($C$1="tarifas","","1 (Punta)") -> 1 (Punta) | D2: =IF($C$1="3.0A","2 (Llano)",IF($C$1="3.1A","2 (Llano)",IF($C$1="6.1A","2 (Llano)",""))) ->  | E2: =IF($C$1="3.0A","3 (Valle)",IF($C$1="3.1A","3 (Valle)",IF($C$1="6.1A","3 (Valle)",IF($C$1="2.0DHA","3 (Valle)",IF($C$1="2.1DHA","3 (Valle)",""))))) ->  | F2: =IF($C$1="tarifas","",IF($C$1="6.1A",4,"")) ->  | G2: =IF($C$1="tarifas","",IF($C$1="6.1A",5,"")) ->  | J2: =IF($C$1="tarifas","",IF($C$1="6.1A",6,"")) -> 
A3: Precio peaje (€/kWh) | C3: 0 | D3: 0 | E3: 0 | F3: 0 | G3: 0 | H3: 0 | J3: 0 | L3: consumo
M4: p1 | N4: precio p1 | O4: p2 | P4: precio p2 | Q4: p3 | R4: precio p3 | S4: p4 | T4: precio p4 | U4: p5 | V4: precio p5 | W4: p6 | X4: precio p6 | Z4: PRECIO 2 | AA4: PRECIO 3 | AB4: PRECIO 4 | AC4: PRECIO 5 | AD4: PRECIO 6
A5: Precio peaje (€/kWh) promedio | C5: =IF(C1="2.0A",C3,IF(C1="2.1A",C3,IF(C1="2.0DHA",C3*0.5833+'AHORRO SIN PEAJES'!E3*(1-0.5833),IF(C1="2.1DHA",C3*0.5833+'AHORRO SIN PEAJES'!E3*(1-0.5833),IF(C1="3.0A",C3*0.1666+D3*0.5+E3*0.3333,IF(C1="3.1A",C3*0.1196+D3*0.4295+E3*0.4509,IF(C1="6.1A",0.0695*C3+0.1009*D3+0.1114*E3+0.0669*F3+0.1284*G3+0.5626*J3,0))))))) -> 0 | L5: Enero | M5: ='AHORRO FOTOVOLTAICA'!B8 -> 244 | N5: ='AHORRO FOTOVOLTAICA'!C8 -> 0.1104271942 | O5: ='AHORRO FOTOVOLTAICA'!D8 -> 0 | P5: ='AHORRO FOTOVOLTAICA'!E8 ->  | Q5: ='AHORRO FOTOVOLTAICA'!F8 -> 0 | R5: ='AHORRO FOTOVOLTAICA'!G8 ->  | S5: ='AHORRO FOTOVOLTAICA'!H8 -> 0 | T5: ='AHORRO FOTOVOLTAICA'!I8 ->  | U5: ='AHORRO FOTOVOLTAICA'!J8 -> 0 | V5: ='AHORRO FOTOVOLTAICA'!K8 ->  | W5: ='AHORRO FOTOVOLTAICA'!L8 -> 0 | X5: ='AHORRO FOTOVOLTAICA'!M8 ->  | Z5: =IF(P5="",0,P5) -> 0 | AA5: =IF(R5="",0,R5) -> 0 | AB5: =IF(T5="",0,T5) -> 0 | AC5: =IF(V5="",0,V5) -> 0 | AD5: =IF(X5="",0,X5) -> 0
L6: Febrero | M6: ='AHORRO FOTOVOLTAICA'!B9 -> 269 | N6: ='AHORRO FOTOVOLTAICA'!C9 -> 0.1104271942 | O6: ='AHORRO FOTOVOLTAICA'!D9 -> 0 | P6: ='AHORRO FOTOVOLTAICA'!E9 ->  | Q6: ='AHORRO FOTOVOLTAICA'!F9 -> 0 | R6: ='AHORRO FOTOVOLTAICA'!G9 ->  | S6: ='AHORRO FOTOVOLTAICA'!H9 -> 0 | T6: ='AHORRO FOTOVOLTAICA'!I9 ->  | U6: ='AHORRO FOTOVOLTAICA'!J9 -> 0 | V6: ='AHORRO FOTOVOLTAICA'!K9 ->  | W6: ='AHORRO FOTOVOLTAICA'!L9 -> 0 | X6: ='AHORRO FOTOVOLTAICA'!M9 ->  | Z6: =IF(P6="",0,P6) -> 0 | AA6: =IF(R6="",0,R6) -> 0 | AB6: =IF(T6="",0,T6) -> 0 | AC6: =IF(V6="",0,V6) -> 0 | AD6: =IF(X6="",0,X6) -> 0
L7: Marzo | M7: ='AHORRO FOTOVOLTAICA'!B10 -> 1877 | N7: ='AHORRO FOTOVOLTAICA'!C10 -> 0.1104271942 | O7: ='AHORRO FOTOVOLTAICA'!D10 -> 0 | P7: ='AHORRO FOTOVOLTAICA'!E10 ->  | Q7: ='AHORRO FOTOVOLTAICA'!F10 -> 0 | R7: ='AHORRO FOTOVOLTAICA'!G10 ->  | S7: ='AHORRO FOTOVOLTAICA'!H10 -> 0 | T7: ='AHORRO FOTOVOLTAICA'!I10 ->  | U7: ='AHORRO FOTOVOLTAICA'!J10 -> 0 | V7: ='AHORRO FOTOVOLTAICA'!K10 ->  | W7: ='AHORRO FOTOVOLTAICA'!L10 -> 0 | X7: ='AHORRO FOTOVOLTAICA'!M10 ->  | Z7: 0 | AA7: 0 | AB7: 0 | AC7: 0 | AD7: 0
L8: Abril | M8: ='AHORRO FOTOVOLTAICA'!B11 -> 3602 | N8: ='AHORRO FOTOVOLTAICA'!C11 -> 0.1104271942 | O8: ='AHORRO FOTOVOLTAICA'!D11 -> 0 | P8: ='AHORRO FOTOVOLTAICA'!E11 ->  | Q8: ='AHORRO FOTOVOLTAICA'!F11 -> 0 | R8: ='AHORRO FOTOVOLTAICA'!G11 ->  | S8: ='AHORRO FOTOVOLTAICA'!H11 -> 0 | T8: ='AHORRO FOTOVOLTAICA'!I11 ->  | U8: ='AHORRO FOTOVOLTAICA'!J11 -> 0 | V8: ='AHORRO FOTOVOLTAICA'!K11 ->  | W8: ='AHORRO FOTOVOLTAICA'!L11 -> 0 | X8: ='AHORRO FOTOVOLTAICA'!M11 ->  | Z8: 0 | AA8: 0 | AB8: 0 | AC8: 0 | AD8: 0
L9: Mayo | M9: ='AHORRO FOTOVOLTAICA'!B12 -> 4133 | N9: ='AHORRO FOTOVOLTAICA'!C12 -> 0.1104271942 | O9: ='AHORRO FOTOVOLTAICA'!D12 -> 0 | P9: ='AHORRO FOTOVOLTAICA'!E12 ->  | Q9: ='AHORRO FOTOVOLTAICA'!F12 -> 0 | R9: ='AHORRO FOTOVOLTAICA'!G12 ->  | S9: ='AHORRO FOTOVOLTAICA'!H12 -> 0 | T9: ='AHORRO FOTOVOLTAICA'!I12 ->  | U9: ='AHORRO FOTOVOLTAICA'!J12 -> 0 | V9: ='AHORRO FOTOVOLTAICA'!K12 ->  | W9: ='AHORRO FOTOVOLTAICA'!L12 -> 0 | X9: ='AHORRO FOTOVOLTAICA'!M12 ->  | Z9: 0 | AA9: 0 | AB9: 0 | AC9: 0 | AD9: 0
L10: Junio | M10: ='AHORRO FOTOVOLTAICA'!B13 -> 5758 | N10: ='AHORRO FOTOVOLTAICA'!C13 -> 0.1104271942 | O10: ='AHORRO FOTOVOLTAICA'!D13 -> 0 | P10: ='AHORRO FOTOVOLTAICA'!E13 ->  | Q10: ='AHORRO FOTOVOLTAICA'!F13 -> 0 | R10: ='AHORRO FOTOVOLTAICA'!G13 ->  | S10: ='AHORRO FOTOVOLTAICA'!H13 -> 0 | T10: ='AHORRO FOTOVOLTAICA'!I13 ->  | U10: ='AHORRO FOTOVOLTAICA'!J13 -> 0 | V10: ='AHORRO FOTOVOLTAICA'!K13 ->  | W10: ='AHORRO FOTOVOLTAICA'!L13 -> 0 | X10: ='AHORRO FOTOVOLTAICA'!M13 ->  | Z10: 0 | AA10: 0 | AB10: 0 | AC10: 0 | AD10: 0
L11: Julio | M11: ='AHORRO FOTOVOLTAICA'!B14 -> 5876 | N11: ='AHORRO FOTOVOLTAICA'!C14 -> 0.1104271942 | O11: ='AHORRO FOTOVOLTAICA'!D14 -> 0 | P11: ='AHORRO FOTOVOLTAICA'!E14 ->  | Q11: ='AHORRO FOTOVOLTAICA'!F14 -> 0 | R11: ='AHORRO FOTOVOLTAICA'!G14 ->  | S11: ='AHORRO FOTOVOLTAICA'!H14 -> 0 | T11: ='AHORRO FOTOVOLTAICA'!I14 ->  | U11: ='AHORRO FOTOVOLTAICA'!J14 -> 0 | V11: ='AHORRO FOTOVOLTAICA'!K14 ->  | W11: ='AHORRO FOTOVOLTAICA'!L14 -> 0 | X11: ='AHORRO FOTOVOLTAICA'!M14 ->  | Z11: 0 | AA11: 0 | AB11: 0 | AC11: 0 | AD11: 0
L12: Agosto | M12: ='AHORRO FOTOVOLTAICA'!B15 -> 4479 | N12: ='AHORRO FOTOVOLTAICA'!C15 -> 0.1104271942 | O12: ='AHORRO FOTOVOLTAICA'!D15 -> 0 | P12: ='AHORRO FOTOVOLTAICA'!E15 ->  | Q12: ='AHORRO FOTOVOLTAICA'!F15 -> 0 | R12: ='AHORRO FOTOVOLTAICA'!G15 ->  | S12: ='AHORRO FOTOVOLTAICA'!H15 -> 0 | T12: ='AHORRO FOTOVOLTAICA'!I15 ->  | U12: ='AHORRO FOTOVOLTAICA'!J15 -> 0 | V12: ='AHORRO FOTOVOLTAICA'!K15 ->  | W12: ='AHORRO FOTOVOLTAICA'!L15 -> 0 | X12: ='AHORRO FOTOVOLTAICA'!M15 ->  | Z12: 0 | AA12: 0 | AB12: 0 | AC12: 0 | AD12: 0
L13: Septiembre | M13: ='AHORRO FOTOVOLTAICA'!B16 -> 3333 | N13: ='AHORRO FOTOVOLTAICA'!C16 -> 0.1104271942 | O13: ='AHORRO FOTOVOLTAICA'!D16 -> 0 | P13: ='AHORRO FOTOVOLTAICA'!E16 ->  | Q13: ='AHORRO FOTOVOLTAICA'!F16 -> 0 | R13: ='AHORRO FOTOVOLTAICA'!G16 ->  | S13: ='AHORRO FOTOVOLTAICA'!H16 -> 0 | T13: ='AHORRO FOTOVOLTAICA'!I16 ->  | U13: ='AHORRO FOTOVOLTAICA'!J16 -> 0 | V13: ='AHORRO FOTOVOLTAICA'!K16 ->  | W13: ='AHORRO FOTOVOLTAICA'!L16 -> 0 | X13: ='AHORRO FOTOVOLTAICA'!M16 ->  | Z13: 0 | AA13: 0 | AB13: 0 | AC13: 0 | AD13: 0
L14: Octubre | M14: ='AHORRO FOTOVOLTAICA'!B17 -> 2087 | N14: ='AHORRO FOTOVOLTAICA'!C17 -> 0.1104271942 | O14: ='AHORRO FOTOVOLTAICA'!D17 -> 0 | P14: ='AHORRO FOTOVOLTAICA'!E17 ->  | Q14: ='AHORRO FOTOVOLTAICA'!F17 -> 0 | R14: ='AHORRO FOTOVOLTAICA'!G17 ->  | S14: ='AHORRO FOTOVOLTAICA'!H17 -> 0 | T14: ='AHORRO FOTOVOLTAICA'!I17 ->  | U14: ='AHORRO FOTOVOLTAICA'!J17 -> 0 | V14: ='AHORRO FOTOVOLTAICA'!K17 ->  | W14: ='AHORRO FOTOVOLTAICA'!L17 -> 0 | X14: ='AHORRO FOTOVOLTAICA'!M17 ->  | Z14: 0 | AA14: 0 | AB14: 0 | AC14: 0 | AD14: 0
L15: Noviembre | M15: ='AHORRO FOTOVOLTAICA'!B18 -> 219 | N15: ='AHORRO FOTOVOLTAICA'!C18 -> 0.1104271942 | O15: ='AHORRO FOTOVOLTAICA'!D18 -> 0 | P15: ='AHORRO FOTOVOLTAICA'!E18 ->  | Q15: ='AHORRO FOTOVOLTAICA'!F18 -> 0 | R15: ='AHORRO FOTOVOLTAICA'!G18 ->  | S15: ='AHORRO FOTOVOLTAICA'!H18 -> 0 | T15: ='AHORRO FOTOVOLTAICA'!I18 ->  | U15: ='AHORRO FOTOVOLTAICA'!J18 -> 0 | V15: ='AHORRO FOTOVOLTAICA'!K18 ->  | W15: ='AHORRO FOTOVOLTAICA'!L18 -> 0 | X15: ='AHORRO FOTOVOLTAICA'!M18 ->  | Z15: 0 | AA15: 0 | AB15: 0 | AC15: 0 | AD15: 0
L16: Diciembre | M16: ='AHORRO FOTOVOLTAICA'!B19 -> 217 | N16: ='AHORRO FOTOVOLTAICA'!C19 -> 0.1104271942 | O16: ='AHORRO FOTOVOLTAICA'!D19 -> 0 | P16: ='AHORRO FOTOVOLTAICA'!E19 ->  | Q16: ='AHORRO FOTOVOLTAICA'!F19 -> 0 | R16: ='AHORRO FOTOVOLTAICA'!G19 ->  | S16: ='AHORRO FOTOVOLTAICA'!H19 -> 0 | T16: ='AHORRO FOTOVOLTAICA'!I19 ->  | U16: ='AHORRO FOTOVOLTAICA'!J19 -> 0 | V16: ='AHORRO FOTOVOLTAICA'!K19 ->  | W16: ='AHORRO FOTOVOLTAICA'!L19 -> 0 | X16: ='AHORRO FOTOVOLTAICA'!M19 ->  | Z16: 0 | AA16: 0 | AB16: 0 | AC16: 0 | AD16: 0
L17: Total | M17: =SUM(M5:M16) -> 32094 | O17: =SUM(O5:O16) -> 0 | Q17: =SUM(Q5:Q16) -> 0 | S17: =SUM(S5:S16) -> 0 | U17: =SUM(U5:U16) -> 0 | W17: =SUM(W5:W16) -> 0
M19: precio p1 | N19: precio p2 | O19: precio p3 | P19: precio p4 | Q19: precio p5 | R19: precio p6 | S19: Total mes
A20: AÑO | B20: PRECIO CONSUMO ANUAL | C20: AHORRO FOTOVOLTAICA | D20: PRECIO COSTE FOTOVOLTAICA | E20: PRECIO PEAJE RESPALDO | F20: VENTA | G20: AHORRO REAL | H20: %AHORRO FRENTE A CONSUMO | I20: AHORRO ACUMULADO | K20: %RENTABILIDAD | L20: Enero | M20: =M5*N5 -> 26.9442354 | N20: =O5*Z5 -> 0 | O20: =Q5*AA5 -> 0 | P20: =S5*AB5 -> 0 | Q20: =U5*AC5 -> 0 | R20: =W5*AD5 -> 0 | S20: =SUM(M20:R20) -> 26.9442354 | AZ20: COSTE | BA20: ='CUADRO RENTING'!D3 -> 12500
A21: 0 | C21: =S96 -> 0 | D21: ='CUADRO RENTING'!M16 -> 12500 | E21: =AA97 -> 0 | G21: =C21-D21-E21 -> -12500 | I21: =G21 -> -12500 | J21: =IF(ISERROR(IRR($G21:$G$22)),"",IRR($G21:$G$22)) -> -0.8987127191
A22: 1 | B22: =S33 -> 3544.050372 | C22: =S97 -> 1366.091011 | D22: ='CUADRO RENTING'!M17 -> 100 | E22: =AA98 -> 0 | F22: =Venta!M3 -> 328.5665521 | G22: 1266.091011 | H22: =G22/B22 -> 0.357244079 | I22: =G22+I21+F22 -> -10905.34244 | J22: =IF(ISERROR(IRR($G$22:$G22)),"",IRR($G$22:$G22)) ->  | L22: Febrero | M22: =M6*N6 -> 29.70491525 | N22: =O6*Z6 -> 0 | O22: =Q6*AA6 -> 0 | P22: =S6*AB6 -> 0 | Q22: =U6*AC6 -> 0 | R22: =W6*AD6 -> 0 | S22: =SUM(M22:R22) -> 29.70491525 | BA22: =BA20-G22 -> 11233.90899
A23: 2 | B23: =B22*(1+'CUADRO RENTING'!$F$13) -> 3685.812387 | C23: =C22*0.996*(1+'CUADRO RENTING'!$F$13) -> 1415.051713 | D23: ='CUADRO RENTING'!M18 -> 202 | E23: =E22*(1+'CUADRO RENTING'!$F$11) -> 0 | F23: =F22*0.99*(1+'CUADRO RENTING'!$F$11) -> 331.7865043 | G23: 1213.051713 | H23: 0.3291137979 | I23: =G23+I22+F23 -> -9360.504219 | L23: Marzo | M23: 207.2718436 | N23: 0 | O23: 0 | P23: 0 | Q23: 0 | R23: 0 | S23: 207.2718436 | BA23: =BA22-G23 -> 10020.85728
A24: 3 | B24: =B23*(1+'CUADRO RENTING'!$F$13) -> 3833.244882 | C24: =C23*0.996*(1+'CUADRO RENTING'!$F$13) -> 1465.767166 | D24: ='CUADRO RENTING'!M19 -> 206.04 | E24: =E23*(1+'CUADRO RENTING'!$F$11) -> 0 | F24: =F23*0.99*(1+'CUADRO RENTING'!$F$11) -> 335.0380121 | G24: 1259.727166 | H24: 0.3286320611 | I24: -7765.739041 | J24: =IF(ISERROR(IRR($G$22:$G24)),"",IRR($G$22:$G24)) ->  | L24: Abril | M24: 397.7587537 | N24: 0 | O24: 0 | P24: 0 | Q24: 0 | R24: 0 | S24: 397.7587537 | BA24: 8761.130109
A25: 4 | B25: =B24*(1+'CUADRO RENTING'!$F$13) -> 3986.574678 | C25: =C24*0.996*(1+'CUADRO RENTING'!$F$13) -> 1518.300262 | D25: ='CUADRO RENTING'!M20 -> 210.1608 | E25: =E24*(1+'CUADRO RENTING'!$F$11) -> 0 | F25: =F24*0.99*(1+'CUADRO RENTING'!$F$11) -> 338.3213846 | G25: 1308.139462 | H25: 0.328136199 | I25: -6119.278194 | J25: =IF(ISERROR(IRR($G$22:$G25)),"",IRR($G$22:$G25)) ->  | L25: Mayo | M25: 456.3955938 | N25: 0 | O25: 0 | P25: 0 | Q25: 0 | R25: 0 | S25: 456.3955938 | BA25: 7452.990648
A26: 5 | B26: =B25*(1+'CUADRO RENTING'!$F$13) -> 4146.037665 | C26: =C25*0.996*(1+'CUADRO RENTING'!$F$13) -> 1572.716143 | D26: ='CUADRO RENTING'!M21 -> 214.364016 | E26: =E25*(1+'CUADRO RENTING'!$F$11) -> 0 | F26: =F25*0.99*(1+'CUADRO RENTING'!$F$11) -> 341.6369342 | G26: 1358.352127 | H26: 0.3276265767 | I26: -4419.289133 | J26: =IF(ISERROR(IRR($G$22:$G26)),"",IRR($G$22:$G26)) ->  | L26: Junio | M26: 635.8397845 | N26: 0 | O26: 0 | P26: 0 | Q26: 0 | R26: 0 | S26: 635.8397845 | BA26: 6094.63852
A27: 6 | B27: =B26*(1+'CUADRO RENTING'!$F$13) -> 4311.879172 | C27: =C26*0.996*(1+'CUADRO RENTING'!$F$13) -> 1629.08229 | D27: ='CUADRO RENTING'!M22 -> 218.6512963 | E27: =E26*(1+'CUADRO RENTING'!$F$11) -> 0 | F27: =F26*0.99*(1+'CUADRO RENTING'!$F$11) -> 344.9849761 | G27: 1410.430993 | H27: 0.3271035521 | I27: -2663.873164 | J27: =IF(ISERROR(IRR($G$22:$G27)),"",IRR($G$22:$G27)) ->  | L27: Julio | M27: 648.8701934 | N27: 0 | O27: 0 | P27: 0 | Q27: 0 | R27: 0 | S27: 648.8701934 | BA27: 4684.207527
A28: 7 | B28: =B27*(1+'CUADRO RENTING'!$F$13) -> 4484.354338 | C28: =C27*0.996*(1+'CUADRO RENTING'!$F$13) -> 1687.468599 | D28: ='CUADRO RENTING'!M23 -> 223.0243222 | E28: =E27*(1+'CUADRO RENTING'!$F$11) -> 0 | F28: =F27*0.99*(1+'CUADRO RENTING'!$F$11) -> 348.3658289 | G28: 1464.444277 | H28: 0.3265674758 | I28: -851.0630582 | J28: =IF(ISERROR(IRR($G$22:$G28)),"",IRR($G$22:$G28)) ->  | L28: Agosto | M28: 494.603403 | N28: 0 | O28: 0 | P28: 0 | Q28: 0 | R28: 0 | S28: 494.603403 | BA28: 3219.763251
A29: 8 | B29: =B28*(1+'CUADRO RENTING'!$F$13) -> 4663.728512 | C29: =C28*0.996*(1+'CUADRO RENTING'!$F$13) -> 1747.947473 | D29: ='CUADRO RENTING'!M24 -> 227.4848087 | E29: =E28*(1+'CUADRO RENTING'!$F$11) -> 0 | F29: =F28*0.99*(1+'CUADRO RENTING'!$F$11) -> 351.779814 | G29: 1520.462665 | H29: 0.326018691 | I29: 1021.179421 | J29: =IF(ISERROR(IRR($G$22:$G29)),"",IRR($G$22:$G29)) ->  | L29: Septiembre | M29: 368.0538384 | N29: 0 | O29: 0 | P29: 0 | Q29: 0 | R29: 0 | S29: 368.0538384 | BA29: 1699.300586
A30: 9 | B30: =B29*(1+'CUADRO RENTING'!$F$13) -> 4850.277652 | C30: =C29*0.996*(1+'CUADRO RENTING'!$F$13) -> 1810.593911 | D30: ='CUADRO RENTING'!M25 -> 232.0345049 | E30: =E29*(1+'CUADRO RENTING'!$F$11) -> 0 | F30: =F29*0.99*(1+'CUADRO RENTING'!$F$11) -> 355.2272562 | G30: 1578.559406 | H30: 0.3254575344 | I30: 2954.966083 | J30: =IF(ISERROR(IRR($G$22:$G30)),"",IRR($G$22:$G30)) ->  | L30: Octubre | M30: 230.4615544 | N30: 0 | O30: 0 | P30: 0 | Q30: 0 | R30: 0 | S30: 230.4615544 | BA30: 120.7411796
A31: 10 | B31: =B30*(1+'CUADRO RENTING'!$F$13) -> 5044.288758 | C31: =C30*0.996*(1+'CUADRO RENTING'!$F$13) -> 1875.485597 | D31: ='CUADRO RENTING'!M26 -> 236.675195 | E31: =E30*(1+'CUADRO RENTING'!$F$11) -> 0 | F31: =F30*0.99*(1+'CUADRO RENTING'!$F$11) -> 358.7084833 | G31: 1638.810402 | H31: 0.3248843356 | I31: 4952.484968 | J31: =IF(ISERROR(IRR($G$22:$G31)),"",IRR($G$22:$G31)) ->  | L31: Noviembre | M31: 24.18355554 | N31: 0 | O31: 0 | P31: 0 | Q31: 0 | R31: 0 | S31: 24.18355554 | BA31: -1518.069222
A32: 11 | B32: =B31*(1+'CUADRO RENTING'!$F$13) -> 5246.060309 | C32: =C31*0.996*(1+'CUADRO RENTING'!$F$13) -> 1942.703 | D32: ='CUADRO RENTING'!M27 -> 241.4086989 | E32: =E31*(1+'CUADRO RENTING'!$F$11) -> 0 | F32: =F31*0.99*(1+'CUADRO RENTING'!$F$11) -> 362.2238264 | G32: 1701.294302 | H32: 0.3242994174 | I32: 7016.003096 | J32: =IF(ISERROR(IRR($G$22:$G32)),"",IRR($G$22:$G32)) ->  | L32: Diciembre | M32: 23.96270115 | N32: 0 | O32: 0 | P32: 0 | Q32: 0 | R32: 0 | S32: 23.96270115 | T32: =SUM(S20:S32) -> 3544.050372 | BA32: -3219.363524
A33: 12 | B33: =B32*(1+'CUADRO RENTING'!$F$13) -> 5455.902721 | C33: =C32*0.996*(1+'CUADRO RENTING'!$F$13) -> 2012.329476 | D33: ='CUADRO RENTING'!M28 -> 246.2368728 | E33: =E32*(1+'CUADRO RENTING'!$F$11) -> 0 | F33: =F32*0.99*(1+'CUADRO RENTING'!$F$11) -> 365.7736199 | G33: 1766.092603 | H33: 0.3237030962 | I33: 9147.869319 | J33: =IF(ISERROR(IRR($G$22:$G33)),"",IRR($G$22:$G33)) ->  | L33: Total periodo | M33: =SUM(M20:M32) -> 3544.050372 | N33: 0 | O33: 0 | P33: 0 | Q33: 0 | R33: 0 | S33: =SUM(M33:R33) -> 3544.050372 | BA33: -4985.456127
A34: 13 | B34: =B33*(1+'CUADRO RENTING'!$F$13) -> 5674.13883 | C34: =C33*0.996*(1+'CUADRO RENTING'!$F$13) -> 2084.451364 | D34: ='CUADRO RENTING'!M29 -> 251.1616103 | E34: =E33*(1+'CUADRO RENTING'!$F$11) -> 0 | F34: =F33*0.99*(1+'CUADRO RENTING'!$F$11) -> 369.3582014 | G34: 1833.289754 | H34: 0.3230956818 | I34: 11350.51727 | J34: =IF(ISERROR(IRR($G$22:$G34)),"",IRR($G$22:$G34)) ->  | BA34: -6818.745881
A35: 14 | B35: =B34*(1+'CUADRO RENTING'!$F$13) -> 5901.104383 | C35: =C34*0.996*(1+'CUADRO RENTING'!$F$13) -> 2159.158101 | D35: ='CUADRO RENTING'!M30 -> 256.1848425 | E35: =E34*(1+'CUADRO RENTING'!$F$11) -> 0 | F35: =F34*0.99*(1+'CUADRO RENTING'!$F$11) -> 372.9779118 | G35: 1902.973259 | H35: 0.322477478 | I35: 13626.46845 | J35: =IF(ISERROR(IRR($G$22:$G35)),"",IRR($G$22:$G35)) ->  | L35: PRODUCCION FOTOVOLTAICA | BA35: -8721.71914
A36: 15 | B36: =B35*(1+'CUADRO RENTING'!$F$13) -> 6137.148559 | C36: =C35*0.996*(1+'CUADRO RENTING'!$F$13) -> 2236.542328 | D36: ='CUADRO RENTING'!M31 -> 261.3085394 | E36: =E35*(1+'CUADRO RENTING'!$F$11) -> 0 | F36: =F35*0.99*(1+'CUADRO RENTING'!$F$11) -> 376.6330953 | G36: 1975.233788 | H36: 0.321848782 | I36: 15978.33533 | J36: =IF(ISERROR(IRR($G$22:$G36)),"",IRR($G$22:$G36)) ->  | BA36: -10696.95293
A37: 16 | B37: =B36*(1+'CUADRO RENTING'!$F$13) -> 6382.634501 | C37: =C36*0.996*(1+'CUADRO RENTING'!$F$13) -> 2316.700005 | D37: ='CUADRO RENTING'!M32 -> 266.5347101 | E37: =E36*(1+'CUADRO RENTING'!$F$11) -> 0 | F37: =F36*0.99*(1+'CUADRO RENTING'!$F$11) -> 380.3240996 | G37: 2050.165295 | H37: 0.3212098851 | I37: 18408.82472 | J37: =IF(ISERROR(IRR($G$22:$G37)),"",IRR($G$22:$G37)) ->  | M37: p1 | N37: precio p1 | O37: p2 | P37: precio p2 | Q37: p3 | R37: precio p3 | S37: p4 | T37: precio p4 | U37: p5 | V37: precio p5 | W37: p6 | X37: precio p6 | Z37: PRECIO P2 | AA37: PRECIO P3 | AB37: PRECIO P4 | AC37: PRECIO P5 | AD37: PRECIO P6 | BA37: -12747.11822
A38: 17 | B38: =B37*(1+'CUADRO RENTING'!$F$13) -> 6637.939881 | C38: =C37*0.996*(1+'CUADRO RENTING'!$F$13) -> 2399.730533 | D38: ='CUADRO RENTING'!M33 -> 271.8654043 | E38: =E37*(1+'CUADRO RENTING'!$F$11) -> 0 | F38: =F37*0.99*(1+'CUADRO RENTING'!$F$11) -> 384.0512758 | G38: 2127.865129 | H38: 0.3205610727 | I38: 20920.74113 | J38: =IF(ISERROR(IRR($G$22:$G38)),"",IRR($G$22:$G38)) ->  | L38: Enero | M38: ='AHORRO FOTOVOLTAICA'!B24 -> 961.6464621 | N38: ='AHORRO FOTOVOLTAICA'!C24 -> 0.006566850538 | O38: ='AHORRO FOTOVOLTAICA'!D24 ->  | P38: ='AHORRO FOTOVOLTAICA'!E24 ->  | Q38: ='AHORRO FOTOVOLTAICA'!F24 ->  | R38: ='AHORRO FOTOVOLTAICA'!G24 ->  | S38: ='AHORRO FOTOVOLTAICA'!H24 ->  | T38: ='AHORRO FOTOVOLTAICA'!I24 ->  | U38: ='AHORRO FOTOVOLTAICA'!J24 ->  | V38: ='AHORRO FOTOVOLTAICA'!K24 ->  | W38: ='AHORRO FOTOVOLTAICA'!L24 ->  | X38: ='AHORRO FOTOVOLTAICA'!M24 ->  | Y38: Enero | Z38: =IF(P38="",0,P38) -> 0 | AA38: =IF(R38="",0,R38) -> 0 | AB38: =IF(T38="",0,T38) -> 0 | AC38: =IF(V38="",0,V38) -> 0 | AD38: =IF(X38="",0,X38) -> 0 | BA38: -14874.98335
A39: 18 | B39: =B38*(1+'CUADRO RENTING'!$F$13) -> 6903.457476 | C39: =C38*0.996*(1+'CUADRO RENTING'!$F$13) -> 2485.736875 | D39: ='CUADRO RENTING'!M34 -> 277.3027124 | E39: =E38*(1+'CUADRO RENTING'!$F$11) -> 0 | F39: =F38*0.99*(1+'CUADRO RENTING'!$F$11) -> 387.8149783 | G39: 2208.434163 | H39: 0.3199026242 | I39: 23516.99027 | J39: =IF(ISERROR(IRR($G$22:$G39)),"",IRR($G$22:$G39)) ->  | L39: Febrero | M39: ='AHORRO FOTOVOLTAICA'!B25 -> 1042.749176 | N39: ='AHORRO FOTOVOLTAICA'!C25 -> 0.006566850538 | O39: ='AHORRO FOTOVOLTAICA'!D25 ->  | P39: ='AHORRO FOTOVOLTAICA'!E25 ->  | Q39: ='AHORRO FOTOVOLTAICA'!F25 ->  | R39: ='AHORRO FOTOVOLTAICA'!G25 ->  | S39: ='AHORRO FOTOVOLTAICA'!H25 ->  | T39: ='AHORRO FOTOVOLTAICA'!I25 ->  | U39: ='AHORRO FOTOVOLTAICA'!J25 ->  | V39: ='AHORRO FOTOVOLTAICA'!K25 ->  | W39: ='AHORRO FOTOVOLTAICA'!L25 ->  | X39: ='AHORRO FOTOVOLTAICA'!M25 ->  | Y39: Febrero | Z39: =IF(P39="",0,P39) -> 0 | AA39: =IF(R39="",0,R39) -> 0 | AB39: =IF(T39="",0,T39) -> 0 | AC39: =IF(V39="",0,V39) -> 0 | AD39: =IF(X39="",0,X39) -> 0 | BA39: -17083.41751
A40: 19 | B40: =B39*(1+'CUADRO RENTING'!$F$13) -> 7179.595775 | C40: =C39*0.996*(1+'CUADRO RENTING'!$F$13) -> 2574.825685 | D40: ='CUADRO RENTING'!M35 -> 282.8487667 | E40: =E39*(1+'CUADRO RENTING'!$F$11) -> 0 | F40: =F39*0.99*(1+'CUADRO RENTING'!$F$11) -> 391.6155651 | G40: 2291.976918 | H40: 0.3192348135 | I40: 26200.58275 | J40: =IF(ISERROR(IRR($G$22:$G40)),"",IRR($G$22:$G40)) ->  | L40: Marzo | M40: ='AHORRO FOTOVOLTAICA'!B26 -> 1390.332234 | N40: ='AHORRO FOTOVOLTAICA'!C26 -> 0.006566850538 | O40: ='AHORRO FOTOVOLTAICA'!D26 ->  | P40: ='AHORRO FOTOVOLTAICA'!E26 ->  | Q40: ='AHORRO FOTOVOLTAICA'!F26 ->  | R40: ='AHORRO FOTOVOLTAICA'!G26 ->  | S40: ='AHORRO FOTOVOLTAICA'!H26 ->  | T40: ='AHORRO FOTOVOLTAICA'!I26 ->  | U40: ='AHORRO FOTOVOLTAICA'!J26 ->  | V40: ='AHORRO FOTOVOLTAICA'!K26 ->  | W40: ='AHORRO FOTOVOLTAICA'!L26 ->  | X40: ='AHORRO FOTOVOLTAICA'!M26 ->  | Y40: Marzo | Z40: 0 | AA40: 0 | AB40: 0 | AC40: 0 | AD40: 0 | BA40: -19375.39443
A41: 20 | B41: =B40*(1+'CUADRO RENTING'!$F$13) -> 7466.779606 | C41: =C40*0.996*(1+'CUADRO RENTING'!$F$13) -> 2667.107437 | D41: ='CUADRO RENTING'!M36 -> 288.505742 | E41: =E40*(1+'CUADRO RENTING'!$F$11) -> 0 | F41: =F40*0.99*(1+'CUADRO RENTING'!$F$11) -> 395.4533976 | G41: 2378.601695 | H41: 0.3185579086 | I41: 28974.63784 | J41: =IF(ISERROR(IRR($G$22:$G41)),"",IRR($G$22:$G41)) ->  | L41: Abril | M41: ='AHORRO FOTOVOLTAICA'!B27 -> 1371.022064 | N41: ='AHORRO FOTOVOLTAICA'!C27 -> 0.006566850538 | O41: ='AHORRO FOTOVOLTAICA'!D27 ->  | P41: ='AHORRO FOTOVOLTAICA'!E27 ->  | Q41: ='AHORRO FOTOVOLTAICA'!F27 ->  | R41: ='AHORRO FOTOVOLTAICA'!G27 ->  | S41: ='AHORRO FOTOVOLTAICA'!H27 ->  | T41: ='AHORRO FOTOVOLTAICA'!I27 ->  | U41: ='AHORRO FOTOVOLTAICA'!J27 ->  | V41: ='AHORRO FOTOVOLTAICA'!K27 ->  | W41: ='AHORRO FOTOVOLTAICA'!L27 ->  | X41: ='AHORRO FOTOVOLTAICA'!M27 ->  | Y41: Abril | Z41: 0 | AA41: 0 | AB41: 0 | AC41: 0 | AD41: 0 | BA41: -21753.99613
A42: 21 | B42: =B41*(1+'CUADRO RENTING'!$F$13) -> 7765.45079 | C42: =C41*0.996*(1+'CUADRO RENTING'!$F$13) -> 2762.696568 | D42: ='CUADRO RENTING'!M37 -> 294.2758569 | E42: =E41*(1+'CUADRO RENTING'!$F$11) -> 0 | F42: =F41*0.99*(1+'CUADRO RENTING'!$F$11) -> 399.3288409 | G42: 2468.420711 | H42: 0.3178721722 | I42: 31842.3874 | J42: =IF(ISERROR(IRR($G$22:$G42)),"",IRR($G$22:$G42)) ->  | L42: Mayo | M42: ='AHORRO FOTOVOLTAICA'!B28 -> 1506.193254 | N42: ='AHORRO FOTOVOLTAICA'!C28 -> 0.006566850538 | O42: ='AHORRO FOTOVOLTAICA'!D28 ->  | P42: ='AHORRO FOTOVOLTAICA'!E28 ->  | Q42: ='AHORRO FOTOVOLTAICA'!F28 ->  | R42: ='AHORRO FOTOVOLTAICA'!G28 ->  | S42: ='AHORRO FOTOVOLTAICA'!H28 ->  | T42: ='AHORRO FOTOVOLTAICA'!I28 ->  | U42: ='AHORRO FOTOVOLTAICA'!J28 ->  | V42: ='AHORRO FOTOVOLTAICA'!K28 ->  | W42: ='AHORRO FOTOVOLTAICA'!L28 ->  | X42: ='AHORRO FOTOVOLTAICA'!M28 ->  | Y42: Mayo | Z42: 0 | AA42: 0 | AB42: 0 | AC42: 0 | AD42: 0 | BA42: -24222.41684
A43: 22 | B43: =B42*(1+'CUADRO RENTING'!$F$13) -> 8076.068822 | C43: =C42*0.996*(1+'CUADRO RENTING'!$F$13) -> 2861.711613 | D43: ='CUADRO RENTING'!M38 -> 300.161374 | E43: =E42*(1+'CUADRO RENTING'!$F$11) -> 0 | F43: =F42*0.99*(1+'CUADRO RENTING'!$F$11) -> 403.2422636 | G43: 2561.550239 | H43: 0.3171778616 | I43: 34807.1799 | J43: =IF(ISERROR(IRR($G$22:$G43)),"",IRR($G$22:$G43)) ->  | L43: Junio | M43: ='AHORRO FOTOVOLTAICA'!B29 -> 1535.158509 | N43: ='AHORRO FOTOVOLTAICA'!C29 -> 0.006566850538 | O43: ='AHORRO FOTOVOLTAICA'!D29 ->  | P43: ='AHORRO FOTOVOLTAICA'!E29 ->  | Q43: ='AHORRO FOTOVOLTAICA'!F29 ->  | R43: ='AHORRO FOTOVOLTAICA'!G29 ->  | S43: ='AHORRO FOTOVOLTAICA'!H29 ->  | T43: ='AHORRO FOTOVOLTAICA'!I29 ->  | U43: ='AHORRO FOTOVOLTAICA'!J29 ->  | V43: ='AHORRO FOTOVOLTAICA'!K29 ->  | W43: ='AHORRO FOTOVOLTAICA'!L29 ->  | X43: ='AHORRO FOTOVOLTAICA'!M29 ->  | Y43: Junio | Z43: 0 | AA43: 0 | AB43: 0 | AC43: 0 | AD43: 0 | BA43: -26783.96708
A44: 23 | B44: =B43*(1+'CUADRO RENTING'!$F$13) -> 8399.111575 | C44: =C43*0.996*(1+'CUADRO RENTING'!$F$13) -> 2964.275357 | D44: ='CUADRO RENTING'!M39 -> 306.1646015 | E44: =E43*(1+'CUADRO RENTING'!$F$11) -> 0 | F44: =F43*0.99*(1+'CUADRO RENTING'!$F$11) -> 407.1940378 | G44: 2658.110756 | H44: 0.3164752286 | I44: 37872.48469 | J44: =IF(ISERROR(IRR($G$22:$G44)),"",IRR($G$22:$G44)) ->  | L44: Julio | M44: ='AHORRO FOTOVOLTAICA'!B30 -> 1583.433934 | N44: ='AHORRO FOTOVOLTAICA'!C30 -> 0.006566850538 | O44: ='AHORRO FOTOVOLTAICA'!D30 ->  | P44: ='AHORRO FOTOVOLTAICA'!E30 ->  | Q44: ='AHORRO FOTOVOLTAICA'!F30 ->  | R44: ='AHORRO FOTOVOLTAICA'!G30 ->  | S44: ='AHORRO FOTOVOLTAICA'!H30 ->  | T44: ='AHORRO FOTOVOLTAICA'!I30 ->  | U44: ='AHORRO FOTOVOLTAICA'!J30 ->  | V44: ='AHORRO FOTOVOLTAICA'!K30 ->  | W44: ='AHORRO FOTOVOLTAICA'!L30 ->  | X44: ='AHORRO FOTOVOLTAICA'!M30 ->  | Y44: Julio | Z44: 0 | AA44: 0 | AB44: 0 | AC44: 0 | AD44: 0 | BA44: -29442.07783
A45: 24 | B45: =B44*(1+'CUADRO RENTING'!$F$13) -> 8735.076038 | C45: =C44*0.996*(1+'CUADRO RENTING'!$F$13) -> 3070.514986 | D45: ='CUADRO RENTING'!M40 -> 312.2878935 | E45: =E44*(1+'CUADRO RENTING'!$F$11) -> 0 | F45: =F44*0.99*(1+'CUADRO RENTING'!$F$11) -> 411.1845393 | G45: 2758.227092 | H45: 0.31576452 | I45: 41041.89632 | J45: =IF(ISERROR(IRR($G$22:$G45)),"",IRR($G$22:$G45)) ->  | K45: TIR A 25 AÑOS | L45: Agosto | M45: ='AHORRO FOTOVOLTAICA'!B31 -> 1525.503424 | N45: ='AHORRO FOTOVOLTAICA'!C31 -> 0.006566850538 | O45: ='AHORRO FOTOVOLTAICA'!D31 ->  | P45: ='AHORRO FOTOVOLTAICA'!E31 ->  | Q45: ='AHORRO FOTOVOLTAICA'!F31 ->  | R45: ='AHORRO FOTOVOLTAICA'!G31 ->  | S45: ='AHORRO FOTOVOLTAICA'!H31 ->  | T45: ='AHORRO FOTOVOLTAICA'!I31 ->  | U45: ='AHORRO FOTOVOLTAICA'!J31 ->  | V45: ='AHORRO FOTOVOLTAICA'!K31 ->  | W45: ='AHORRO FOTOVOLTAICA'!L31 ->  | X45: ='AHORRO FOTOVOLTAICA'!M31 ->  | Y45: Agosto | Z45: 0 | AA45: 0 | AB45: 0 | AC45: 0 | AD45: 0 | BA45: -32200.30493
A46: 25 | B46: =B45*(1+'CUADRO RENTING'!$F$13) -> 9084.479079 | C46: =C45*0.996*(1+'CUADRO RENTING'!$F$13) -> 3180.562243 | D46: ='CUADRO RENTING'!M41 -> 318.5336514 | E46: =E45*(1+'CUADRO RENTING'!$F$11) -> 0 | F46: =F45*0.99*(1+'CUADRO RENTING'!$F$11) -> 415.2141478 | G46: 2862.028592 | H46: 0.3150459775 | I46: 44319.13906 | J46: =IF(ISERROR(IRR($G$22:$G46)),"",IRR($G$22:$G46)) ->  | K46: =IRR(G21:G46) -> 0.1173394465 | L46: Septiembre | M46: ='AHORRO FOTOVOLTAICA'!B32 -> 1303.43647 | N46: ='AHORRO FOTOVOLTAICA'!C32 -> 0.006566850538 | O46: ='AHORRO FOTOVOLTAICA'!D32 ->  | P46: ='AHORRO FOTOVOLTAICA'!E32 ->  | Q46: ='AHORRO FOTOVOLTAICA'!F32 ->  | R46: ='AHORRO FOTOVOLTAICA'!G32 ->  | S46: ='AHORRO FOTOVOLTAICA'!H32 ->  | T46: ='AHORRO FOTOVOLTAICA'!I32 ->  | U46: ='AHORRO FOTOVOLTAICA'!J32 ->  | V46: ='AHORRO FOTOVOLTAICA'!K32 ->  | W46: ='AHORRO FOTOVOLTAICA'!L32 ->  | X46: ='AHORRO FOTOVOLTAICA'!M32 ->  | Y46: Septiembre | Z46: 0 | AA46: 0 | AB46: 0 | AC46: 0 | AD46: 0 | BA46: -35062.33352
A47: 26 | B47: =B46*(1+'CUADRO RENTING'!$F$13) -> 9447.858243 | C47: =C46*0.996*(1+'CUADRO RENTING'!$F$13) -> 3294.553594 | D47: ='CUADRO RENTING'!M42 -> 324.9043244 | E47: =E46*(1+'CUADRO RENTING'!$F$11) -> 0 | F47: =F46*0.99*(1+'CUADRO RENTING'!$F$11) -> 419.2832465 | G47: 2969.649269 | H47: 0.3143198377 | I47: 47708.07158 | J47: =IF(ISERROR(IRR($G$22:$G47)),"",IRR($G$22:$G47)) ->  | L47: Octubre | M47: ='AHORRO FOTOVOLTAICA'!B33 -> 1206.88562 | N47: ='AHORRO FOTOVOLTAICA'!C33 -> 0.006566850538 | O47: ='AHORRO FOTOVOLTAICA'!D33 ->  | P47: ='AHORRO FOTOVOLTAICA'!E33 ->  | Q47: ='AHORRO FOTOVOLTAICA'!F33 ->  | R47: ='AHORRO FOTOVOLTAICA'!G33 ->  | S47: ='AHORRO FOTOVOLTAICA'!H33 ->  | T47: ='AHORRO FOTOVOLTAICA'!I33 ->  | U47: ='AHORRO FOTOVOLTAICA'!J33 ->  | V47: ='AHORRO FOTOVOLTAICA'!K33 ->  | W47: ='AHORRO FOTOVOLTAICA'!L33 ->  | X47: ='AHORRO FOTOVOLTAICA'!M33 ->  | Y47: Octubre | Z47: 0 | AA47: 0 | AB47: 0 | AC47: 0 | AD47: 0 | BA47: -38031.98279
A48: 27 | B48: =B47*(1+'CUADRO RENTING'!$F$13) -> 9825.772572 | C48: =C47*0.996*(1+'CUADRO RENTING'!$F$13) -> 3412.630395 | D48: ='CUADRO RENTING'!M43 -> 331.4024109 | E48: =E47*(1+'CUADRO RENTING'!$F$11) -> 0 | F48: =F47*0.99*(1+'CUADRO RENTING'!$F$11) -> 423.3922223 | G48: 3081.227984 | H48: 0.3135863324 | I48: 51212.69179 | J48: =IF(ISERROR(IRR($G$22:$G48)),"",IRR($G$22:$G48)) ->  | L48: Noviembre | M48: ='AHORRO FOTOVOLTAICA'!B34 -> 939.4397667 | N48: ='AHORRO FOTOVOLTAICA'!C34 -> 0.006566850538 | O48: ='AHORRO FOTOVOLTAICA'!D34 ->  | P48: ='AHORRO FOTOVOLTAICA'!E34 ->  | Q48: ='AHORRO FOTOVOLTAICA'!F34 ->  | R48: ='AHORRO FOTOVOLTAICA'!G34 ->  | S48: ='AHORRO FOTOVOLTAICA'!H34 ->  | T48: ='AHORRO FOTOVOLTAICA'!I34 ->  | U48: ='AHORRO FOTOVOLTAICA'!J34 ->  | V48: ='AHORRO FOTOVOLTAICA'!K34 ->  | W48: ='AHORRO FOTOVOLTAICA'!L34 ->  | X48: ='AHORRO FOTOVOLTAICA'!M34 ->  | Y48: Noviembre | Z48: 0 | AA48: 0 | AB48: 0 | AC48: 0 | AD48: 0 | BA48: -41113.21077
A49: 28 | B49: =B48*(1+'CUADRO RENTING'!$F$13) -> 10218.80348 | C49: =C48*0.996*(1+'CUADRO RENTING'!$F$13) -> 3534.939068 | D49: ='CUADRO RENTING'!M44 -> 338.0304591 | E49: =E48*(1+'CUADRO RENTING'!$F$11) -> 0 | F49: =F48*0.99*(1+'CUADRO RENTING'!$F$11) -> 427.5414661 | G49: 3196.908609 | H49: 0.3128456885 | I49: 54837.14186 | J49: =IF(ISERROR(IRR($G$22:$G49)),"",IRR($G$22:$G49)) ->  | L49: Diciembre | M49: ='AHORRO FOTOVOLTAICA'!B35 -> 862.199087 | N49: ='AHORRO FOTOVOLTAICA'!C35 -> 0.006566850538 | O49: ='AHORRO FOTOVOLTAICA'!D35 ->  | P49: ='AHORRO FOTOVOLTAICA'!E35 ->  | Q49: ='AHORRO FOTOVOLTAICA'!F35 ->  | R49: ='AHORRO FOTOVOLTAICA'!G35 ->  | S49: ='AHORRO FOTOVOLTAICA'!H35 ->  | T49: ='AHORRO FOTOVOLTAICA'!I35 ->  | U49: ='AHORRO FOTOVOLTAICA'!J35 ->  | V49: ='AHORRO FOTOVOLTAICA'!K35 ->  | W49: ='AHORRO FOTOVOLTAICA'!L35 ->  | X49: ='AHORRO FOTOVOLTAICA'!M35 ->  | Y49: Diciembre | Z49: 0 | AA49: 0 | AB49: 0 | AC49: 0 | AD49: 0 | BA49: -44310.11938
A50: 29 | B50: =B49*(1+'CUADRO RENTING'!$F$13) -> 10627.55561 | C50: =C49*0.996*(1+'CUADRO RENTING'!$F$13) -> 3661.631284 | D50: ='CUADRO RENTING'!M45 -> 344.7910683 | E50: =E49*(1+'CUADRO RENTING'!$F$11) -> 0 | F50: =F49*0.99*(1+'CUADRO RENTING'!$F$11) -> 431.7313724 | G50: 3316.840216 | H50: 0.3120981283 | I50: 58585.71345 | J50: =IF(ISERROR(IRR($G$22:$G50)),"",IRR($G$22:$G50)) ->  | BA50: -47626.9596
A51: 30 | B51: =B50*(1+'CUADRO RENTING'!$F$13) -> 11052.65784 | C51: =C50*0.996*(1+'CUADRO RENTING'!$F$13) -> 3792.864149 | D51: ='CUADRO RENTING'!M46 -> 351.6868896 | E51: =E50*(1+'CUADRO RENTING'!$F$11) -> 0 | F51: =F50*0.99*(1+'CUADRO RENTING'!$F$11) -> 435.9623399 | G51: 3441.17726 | H51: 0.3113438695 | I51: 62462.85305 | J51: =IF(ISERROR(IRR($G$22:$G51)),"",IRR($G$22:$G51)) ->  | Z51: p2 | AA51: p3 | AB51: p4 | AC51: p5 | AD51: p6 | BA51: -51068.13685
A52: 31 | B52: =B51*(1+'CUADRO RENTING'!$F$13) -> 11494.76415 | C52: =C51*0.996*(1+'CUADRO RENTING'!$F$13) -> 3928.8004 | D52: ='CUADRO RENTING'!M47 -> 358.7206274 | E52: =E51*(1+'CUADRO RENTING'!$F$11) -> 0 | F52: =F51*0.99*(1+'CUADRO RENTING'!$F$11) -> 440.2347708 | G52: 3570.079773 | H52: 0.3105831251 | I52: 66473.16759 | J52: =IF(ISERROR(IRR($G$22:$G52)),"",IRR($G$22:$G52)) ->  | M52: precio p1 | N52: precio p2 | O52: precio p3 | P52: precio p4 | Q52: precio p5 | R52: precio p6 | S52: Total mes | Y52: Enero | Z52: =IF(O38="",0,O38) -> 0 | AA52: =IF(Q38="",0,Q38) -> 0 | AB52: =IF(S38="",0,S38) -> 0 | AC52: =IF(U38="",0,U38) -> 0 | AD52: =IF(W38="",0,W38) -> 0 | BA52: -54638.21663
A53: 32 | B53: =B52*(1+'CUADRO RENTING'!$F$13) -> 11954.55472 | C53: =C52*0.996*(1+'CUADRO RENTING'!$F$13) -> 4069.608607 | D53: ='CUADRO RENTING'!M48 -> 365.89504 | E53: =E52*(1+'CUADRO RENTING'!$F$11) -> 0 | F53: =F52*0.99*(1+'CUADRO RENTING'!$F$11) -> 444.5490716 | G53: 3703.713567 | H53: 0.3098161039 | I53: 70621.43023 | J53: =IF(ISERROR(IRR($G$22:$G53)),"",IRR($G$22:$G53)) ->  | L53: Enero | M53: =M38*N38 -> 6.314988587 | N53: =Z52*Z38 -> 0 | O53: =AA52*AA38 -> 0 | P53: =AB52*AB38 -> 0 | Q53: =AC52*AC38 -> 0 | R53: =AD52*AD38 -> 0 | S53: =SUM(M53:R53) -> 6.314988587 | Y53: Febrero | Z53: =IF(O39="",0,O39) -> 0 | AA53: =IF(Q39="",0,Q39) -> 0 | AB53: =IF(S39="",0,S39) -> 0 | AC53: =IF(U39="",0,U39) -> 0 | AD53: =IF(W39="",0,W39) -> 0 | BA53: -58341.93019
A54: 33 | B54: =B53*(1+'CUADRO RENTING'!$F$13) -> 12432.73691 | C54: =C53*0.996*(1+'CUADRO RENTING'!$F$13) -> 4215.463379 | D54: ='CUADRO RENTING'!M49 -> 373.2129408 | E54: =E53*(1+'CUADRO RENTING'!$F$11) -> 0 | F54: =F53*0.99*(1+'CUADRO RENTING'!$F$11) -> 448.9056525 | G54: 3842.250439 | H54: 0.3090430102 | I54: 74912.58632 | J54: =IF(ISERROR(IRR($G$22:$G54)),"",IRR($G$22:$G54)) ->  | L54: Febrero | M54: =M39*N39 -> 6.847577986 | N54: =Z53*Z39 -> 0 | O54: 0 | P54: 0 | Q54: 0 | R54: 0 | S54: =SUM(M54:R54) -> 6.847577986 | Y54: Marzo | Z54: 0 | AA54: 0 | AB54: 0 | AC54: 0 | AD54: 0 | BA54: -62184.18063
A55: 34 | B55: =B54*(1+'CUADRO RENTING'!$F$13) -> 12930.04638 | C55: =C54*0.996*(1+'CUADRO RENTING'!$F$13) -> 4366.545587 | D55: ='CUADRO RENTING'!M50 -> 380.6771996 | E55: =E54*(1+'CUADRO RENTING'!$F$11) -> 0 | F55: =F54*0.99*(1+'CUADRO RENTING'!$F$11) -> 453.3049279 | G55: 3985.868387 | H55: 0.308264044 | I55: 79351.75964 | J55: =IF(ISERROR(IRR($G$22:$G55)),"",IRR($G$22:$G55)) ->  | L55: Marzo | M55: 9.130103982 | N55: 0 | O55: 0 | P55: 0 | Q55: 0 | R55: 0 | S55: 9.130103982 | Y55: Abril | Z55: 0 | AA55: 0 | AB55: 0 | AC55: 0 | AD55: 0 | BA55: -66170.04902
A56: 35 | B56: =B55*(1+'CUADRO RENTING'!$F$13) -> 13447.24824 | C56: =C55*0.996*(1+'CUADRO RENTING'!$F$13) -> 4523.042581 | D56: ='CUADRO RENTING'!M51 -> 388.2907436 | E56: =E55*(1+'CUADRO RENTING'!$F$11) -> 0 | F56: =F55*0.99*(1+'CUADRO RENTING'!$F$11) -> 457.7473162 | G56: 4134.751837 | H56: 0.3074794013 | I56: 83944.25879 | J56: =IF(ISERROR(IRR($G$22:$G56)),"",IRR($G$22:$G56)) ->  | L56: Abril | M56: 9.003296982 | N56: 0 | O56: 0 | P56: 0 | Q56: 0 | R56: 0 | S56: 9.003296982 | Y56: Mayo | Z56: 0 | AA56: 0 | AB56: 0 | AC56: 0 | AD56: 0 | BA56: -70304.80086
A57: 36 | B57: =B56*(1+'CUADRO RENTING'!$F$13) -> 13985.13817 | C57: =C56*0.996*(1+'CUADRO RENTING'!$F$13) -> 4685.148427 | D57: ='CUADRO RENTING'!M52 -> 396.0565585 | E57: =E56*(1+'CUADRO RENTING'!$F$11) -> 0 | F57: =F56*0.99*(1+'CUADRO RENTING'!$F$11) -> 462.2332399 | G57: 4289.091868 | H57: 0.3066892738 | I57: 88695.5839 | J57: =IF(ISERROR(IRR($G$22:$G57)),"",IRR($G$22:$G57)) ->  | L57: Mayo | M57: 9.89094598 | N57: 0 | O57: 0 | P57: 0 | Q57: 0 | R57: 0 | S57: 9.89094598 | Y57: Junio | Z57: 0 | AA57: 0 | AB57: 0 | AC57: 0 | AD57: 0 | BA57: -74593.89273
A58: 37 | B58: =B57*(1+'CUADRO RENTING'!$F$13) -> 14544.5437 | C58: =C57*0.996*(1+'CUADRO RENTING'!$F$13) -> 4853.064146 | D58: ='CUADRO RENTING'!M53 -> 403.9776896 | E58: =E57*(1+'CUADRO RENTING'!$F$11) -> 0 | F58: =F57*0.99*(1+'CUADRO RENTING'!$F$11) -> 466.7631256 | G58: 4449.086457 | H58: 0.3058938493 | I58: 93611.43348 | J58: =IF(ISERROR(IRR($G$22:$G58)),"",IRR($G$22:$G58)) ->  | L58: Junio | M58: 10.08115648 | N58: 0 | O58: 0 | P58: 0 | Q58: 0 | R58: 0 | S58: 10.08115648 | Y58: Julio | Z58: 0 | AA58: 0 | AB58: 0 | AC58: 0 | AD58: 0 | BA58: -79042.97918
A59: 38 | B59: =B58*(1+'CUADRO RENTING'!$F$13) -> 15126.32544 | C59: =C58*0.996*(1+'CUADRO RENTING'!$F$13) -> 5026.997965 | D59: ='CUADRO RENTING'!M54 -> 412.0572434 | E59: =E58*(1+'CUADRO RENTING'!$F$11) -> 0 | F59: =F58*0.99*(1+'CUADRO RENTING'!$F$11) -> 471.3374042 | G59: 4614.940722 | H59: 0.3050933116 | I59: 98697.71161 | J59: =IF(ISERROR(IRR($G$22:$G59)),"",IRR($G$22:$G59)) ->  | L59: Julio | M59: 10.39817398 | N59: 0 | O59: 0 | P59: 0 | Q59: 0 | R59: 0 | S59: 10.39817398 | Y59: Agosto | Z59: 0 | AA59: 0 | AB59: 0 | AC59: 0 | AD59: 0 | BA59: -83657.9199
A60: 39 | B60: =B59*(1+'CUADRO RENTING'!$F$13) -> 15731.37846 | C60: =C59*0.996*(1+'CUADRO RENTING'!$F$13) -> 5207.165572 | D60: ='CUADRO RENTING'!M55 -> 420.2983883 | E60: =E59*(1+'CUADRO RENTING'!$F$11) -> 0 | F60: =F59*0.99*(1+'CUADRO RENTING'!$F$11) -> 475.9565108 | G60: 4786.867184 | H60: 0.3042878408 | I60: 103960.5353 | J60: =IF(ISERROR(IRR($G$22:$G60)),"",IRR($G$22:$G60)) ->  | K60: TIR A 40 AÑOS | L60: Agosto | M60: 10.01775298 | N60: 0 | O60: 0 | P60: 0 | Q60: 0 | R60: 0 | S60: 10.01775298 | Y60: Septiembre | Z60: 0 | AA60: 0 | AB60: 0 | AC60: 0 | AD60: 0 | BA60: -88444.78709
A61: 40 | B61: =B60*(1+'CUADRO RENTING'!$F$13) -> 16360.6336 | C61: =C60*0.996*(1+'CUADRO RENTING'!$F$13) -> 5393.790387 | D61: ='CUADRO RENTING'!M56 -> 428.7043561 | E61: =E60*(1+'CUADRO RENTING'!$F$11) -> 0 | F61: =F60*0.99*(1+'CUADRO RENTING'!$F$11) -> 480.6208846 | G61: 4965.08603 | H61: 0.3034776129 | I61: 109406.2422 | J61: =IF(ISERROR(IRR($G$22:$G61)),"",IRR($G$22:$G61)) ->  | K61: =IRR(G21:G61) -> 0.1289771044 | L61: Septiembre | M61: 8.559472483 | N61: 0 | O61: 0 | P61: 0 | Q61: 0 | R61: 0 | S61: 8.559472483 | Y61: Octubre | Z61: 0 | AA61: 0 | AB61: 0 | AC61: 0 | AD61: 0 | BA61: -93409.87312
L62: Octubre | M62: 7.925437484 | N62: 0 | O62: 0 | P62: 0 | Q62: 0 | R62: 0 | S62: 7.925437484 | Y62: Noviembre | Z62: 0 | AA62: 0 | AB62: 0 | AC62: 0 | AD62: 0
L63: Noviembre | M63: 6.169160538 | N63: 0 | O63: 0 | P63: 0 | Q63: 0 | R63: 0 | S63: 6.169160538 | Y63: Diciembre | Z63: 0 | AA63: 0 | AB63: 0 | AC63: 0 | AD63: 0
L64: Diciembre | M64: 5.661932539 | N64: 0 | O64: 0 | P64: 0 | Q64: 0 | R64: 0 | S64: 5.661932539
L65: Total periodo | M65: =SUM(M53:M64) -> 100 | N65: 0 | O65: 0 | P65: 0 | Q65: 0 | R65: 0 | S65: =SUM(M65:R65) -> 100 | T65: =SUM(S53:S64) -> 100
M68: PRODUCCIÓN FOTOVOLTAICA | U68: PRECIO CONSUMO | AC68: EXCESOS(NEGATIVO, TE FALTA) | AK68: FALTA(NEGATIVO, TE SOBRA) | AR68: PRECIO FALTA ENERGÍA Y QUE CONSUMES DE RED
M69: P1 | N69: p2 | O69: p3 | P69: p4 | Q69: p5 | R69: p6 | U69: PRECIO 1 | V69: PRECIO 2 | W69: PRECIO 3 | X69: PRECIO 4 | Y69: PRECIO 5 | Z69: PRECIO 6 | AC69: P1 | AD69: p2 | AE69: p3 | AF69: p4 | AG69: p5 | AH69: p6 | AK69: P1 | AL69: p2 | AM69: p3 | AN69: p4 | AO69: p5 | AP69: p6 | AS69: P1 | AT69: p2 | AU69: p3 | AV69: p4 | AW69: p5 | AX69: p6
L70: Enero | M70: =M38 -> 961.6464621 | N70: =Z52 -> 0 | O70: 0 | P70: 0 | Q70: 0 | R70: 0 | S70: =SUM(M70:R70) -> 961.6464621 | T70: Enero | U70: =N5 -> 0.1104271942 | V70: =Z5 -> 0 | W70: =AA5 -> 0 | X70: =AB5 -> 0 | Y70: =AC5 -> 0 | Z70: =AD5 -> 0 | AB70: Enero | AC70: =M70-M5 -> 717.6464621 | AD70: =N70-O5 -> 0 | AE70: =O70-Q5 -> 0 | AF70: =P70-S5 -> 0 | AG70: =Q70-U5 -> 0 | AH70: =R70-W5 -> 0 | AJ70: Enero | AK70: =M5-M70 -> -717.6464621 | AL70: =O5-N70 -> 0 | AM70: =Q5-O70 -> 0 | AN70: =S5-P70 -> 0 | AO70: =U5-Q70 -> 0 | AP70: =W5-R70 -> 0 | AR70: Enero | AS70: =IF(AK70<0,0,AK70*'AHORRO FOTOVOLTAICA'!$B$3) -> 0 | AT70: =IF(AL70<0,0,AL70*'AHORRO FOTOVOLTAICA'!$C$3) -> 0 | AU70: =IF(AM70<0,0,AM70*'AHORRO FOTOVOLTAICA'!$D$3) -> 0 | AV70: =IF(AN70<0,0,AN70*'AHORRO FOTOVOLTAICA'!$E$3) -> 0 | AW70: =IF(AO70<0,0,AO70*'AHORRO FOTOVOLTAICA'!$F$3) -> 0 | AX70: =IF(AP70<0,0,AP70*'AHORRO FOTOVOLTAICA'!$G$3) -> 0
L71: Febrero | M71: 1042.749176 | N71: 0 | O71: 0 | P71: 0 | Q71: 0 | R71: 0 | S71: =SUM(M71:R71) -> 1042.749176 | T71: Febrero | U71: 0.1104271942 | V71: 0 | W71: 0 | X71: 0 | Y71: 0 | Z71: 0 | AB71: Febrero | AC71: 773.7491758 | AD71: 0 | AE71: 0 | AF71: 0 | AG71: 0 | AH71: 0 | AJ71: Febrero | AK71: -773.7491758 | AL71: 0 | AM71: 0 | AN71: 0 | AO71: 0 | AP71: 0 | AR71: Febrero | AS71: =IF(AK71<0,0,AK71*'AHORRO FOTOVOLTAICA'!$B$3) -> 0 | AT71: =IF(AL71<0,0,AL71*'AHORRO FOTOVOLTAICA'!$C$3) -> 0 | AU71: =IF(AM71<0,0,AM71*'AHORRO FOTOVOLTAICA'!$D$3) -> 0 | AV71: =IF(AN71<0,0,AN71*'AHORRO FOTOVOLTAICA'!$E$3) -> 0 | AW71: =IF(AO71<0,0,AO71*'AHORRO FOTOVOLTAICA'!$F$3) -> 0 | AX71: =IF(AP71<0,0,AP71*'AHORRO FOTOVOLTAICA'!$G$3) -> 0
L72: Marzo | M72: 1390.332234 | N72: 0 | O72: 0 | P72: 0 | Q72: 0 | R72: 0 | S72: 1390.332234 | T72: Marzo | U72: 0.1104271942 | V72: 0 | W72: 0 | X72: 0 | Y72: 0 | Z72: 0 | AB72: Marzo | AC72: -486.6677657 | AD72: 0 | AE72: 0 | AF72: 0 | AG72: 0 | AH72: 0 | AJ72: Marzo | AK72: 486.6677657 | AL72: 0 | AM72: 0 | AN72: 0 | AO72: 0 | AP72: 0 | AR72: Marzo | AS72: =IF(AK72<0,0,AK72*'AHORRO FOTOVOLTAICA'!$B$3) -> 51.12736879 | AT72: =IF(AL72<0,0,AL72*'AHORRO FOTOVOLTAICA'!$C$3) -> 0 | AU72: =IF(AM72<0,0,AM72*'AHORRO FOTOVOLTAICA'!$D$3) -> 0 | AV72: =IF(AN72<0,0,AN72*'AHORRO FOTOVOLTAICA'!$E$3) -> 0 | AW72: =IF(AO72<0,0,AO72*'AHORRO FOTOVOLTAICA'!$F$3) -> 0 | AX72: =IF(AP72<0,0,AP72*'AHORRO FOTOVOLTAICA'!$G$3) -> 0
L73: Abril | M73: 1371.022064 | N73: 0 | O73: 0 | P73: 0 | Q73: 0 | R73: 0 | S73: 1371.022064 | T73: Abril | U73: 0.1104271942 | V73: 0 | W73: 0 | X73: 0 | Y73: 0 | Z73: 0 | AB73: Abril | AC73: -2230.977936 | AD73: 0 | AE73: 0 | AF73: 0 | AG73: 0 | AH73: 0 | AJ73: Abril | AK73: 2230.977936 | AL73: 0 | AM73: 0 | AN73: 0 | AO73: 0 | AP73: 0 | AR73: Abril | AS73: =IF(AK73<0,0,AK73*'AHORRO FOTOVOLTAICA'!$B$3) -> 234.377618 | AT73: =IF(AL73<0,0,AL73*'AHORRO FOTOVOLTAICA'!$C$3) -> 0 | AU73: =IF(AM73<0,0,AM73*'AHORRO FOTOVOLTAICA'!$D$3) -> 0 | AV73: =IF(AN73<0,0,AN73*'AHORRO FOTOVOLTAICA'!$E$3) -> 0 | AW73: =IF(AO73<0,0,AO73*'AHORRO FOTOVOLTAICA'!$F$3) -> 0 | AX73: =IF(AP73<0,0,AP73*'AHORRO FOTOVOLTAICA'!$G$3) -> 0
L74: Mayo | M74: 1506.193254 | N74: 0 | O74: 0 | P74: 0 | Q74: 0 | R74: 0 | S74: 1506.193254 | T74: Mayo | U74: 0.1104271942 | V74: 0 | W74: 0 | X74: 0 | Y74: 0 | Z74: 0 | AB74: Mayo | AC74: -2626.806746 | AD74: 0 | AE74: 0 | AF74: 0 | AG74: 0 | AH74: 0 | AJ74: Mayo | AK74: 2626.806746 | AL74: 0 | AM74: 0 | AN74: 0 | AO74: 0 | AP74: 0 | AR74: Mayo | AS74: =IF(AK74<0,0,AK74*'AHORRO FOTOVOLTAICA'!$B$3) -> 275.9618095 | AT74: =IF(AL74<0,0,AL74*'AHORRO FOTOVOLTAICA'!$C$3) -> 0 | AU74: =IF(AM74<0,0,AM74*'AHORRO FOTOVOLTAICA'!$D$3) -> 0 | AV74: =IF(AN74<0,0,AN74*'AHORRO FOTOVOLTAICA'!$E$3) -> 0 | AW74: =IF(AO74<0,0,AO74*'AHORRO FOTOVOLTAICA'!$F$3) -> 0 | AX74: =IF(AP74<0,0,AP74*'AHORRO FOTOVOLTAICA'!$G$3) -> 0
L75: Junio | M75: 1535.158509 | N75: 0 | O75: 0 | P75: 0 | Q75: 0 | R75: 0 | S75: 1535.158509 | T75: Junio | U75: 0.1104271942 | V75: 0 | W75: 0 | X75: 0 | Y75: 0 | Z75: 0 | AB75: Junio | AC75: -4222.841491 | AD75: 0 | AE75: 0 | AF75: 0 | AG75: 0 | AH75: 0 | AJ75: Junio | AK75: 4222.841491 | AL75: 0 | AM75: 0 | AN75: 0 | AO75: 0 | AP75: 0 | AR75: Junio | AS75: =IF(AK75<0,0,AK75*'AHORRO FOTOVOLTAICA'!$B$3) -> 443.6348357 | AT75: =IF(AL75<0,0,AL75*'AHORRO FOTOVOLTAICA'!$C$3) -> 0 | AU75: =IF(AM75<0,0,AM75*'AHORRO FOTOVOLTAICA'!$D$3) -> 0 | AV75: =IF(AN75<0,0,AN75*'AHORRO FOTOVOLTAICA'!$E$3) -> 0 | AW75: =IF(AO75<0,0,AO75*'AHORRO FOTOVOLTAICA'!$F$3) -> 0 | AX75: =IF(AP75<0,0,AP75*'AHORRO FOTOVOLTAICA'!$G$3) -> 0
L76: Julio | M76: 1583.433934 | N76: 0 | O76: 0 | P76: 0 | Q76: 0 | R76: 0 | S76: 1583.433934 | T76: Julio | U76: 0.1104271942 | V76: 0 | W76: 0 | X76: 0 | Y76: 0 | Z76: 0 | AB76: Julio | AC76: -4292.566066 | AD76: 0 | AE76: 0 | AF76: 0 | AG76: 0 | AH76: 0 | AJ76: Julio | AK76: 4292.566066 | AL76: 0 | AM76: 0 | AN76: 0 | AO76: 0 | AP76: 0 | AR76: Julio | AS76: =IF(AK76<0,0,AK76*'AHORRO FOTOVOLTAICA'!$B$3) -> 450.9598207 | AT76: =IF(AL76<0,0,AL76*'AHORRO FOTOVOLTAICA'!$C$3) -> 0 | AU76: =IF(AM76<0,0,AM76*'AHORRO FOTOVOLTAICA'!$D$3) -> 0 | AV76: =IF(AN76<0,0,AN76*'AHORRO FOTOVOLTAICA'!$E$3) -> 0 | AW76: =IF(AO76<0,0,AO76*'AHORRO FOTOVOLTAICA'!$F$3) -> 0 | AX76: =IF(AP76<0,0,AP76*'AHORRO FOTOVOLTAICA'!$G$3) -> 0
L77: Agosto | M77: 1525.503424 | N77: 0 | O77: 0 | P77: 0 | Q77: 0 | R77: 0 | S77: 1525.503424 | T77: Agosto | U77: 0.1104271942 | V77: 0 | W77: 0 | X77: 0 | Y77: 0 | Z77: 0 | AB77: Agosto | AC77: -2953.496576 | AD77: 0 | AE77: 0 | AF77: 0 | AG77: 0 | AH77: 0 | AJ77: Agosto | AK77: 2953.496576 | AL77: 0 | AM77: 0 | AN77: 0 | AO77: 0 | AP77: 0 | AR77: Agosto | AS77: =IF(AK77<0,0,AK77*'AHORRO FOTOVOLTAICA'!$B$3) -> 310.2825363 | AT77: =IF(AL77<0,0,AL77*'AHORRO FOTOVOLTAICA'!$C$3) -> 0 | AU77: =IF(AM77<0,0,AM77*'AHORRO FOTOVOLTAICA'!$D$3) -> 0 | AV77: =IF(AN77<0,0,AN77*'AHORRO FOTOVOLTAICA'!$E$3) -> 0 | AW77: =IF(AO77<0,0,AO77*'AHORRO FOTOVOLTAICA'!$F$3) -> 0 | AX77: =IF(AP77<0,0,AP77*'AHORRO FOTOVOLTAICA'!$G$3) -> 0
L78: Septiembre | M78: 1303.43647 | N78: 0 | O78: 0 | P78: 0 | Q78: 0 | R78: 0 | S78: 1303.43647 | T78: Septiembre | U78: 0.1104271942 | V78: 0 | W78: 0 | X78: 0 | Y78: 0 | Z78: 0 | AB78: Septiembre | AC78: -2029.56353 | AD78: 0 | AE78: 0 | AF78: 0 | AG78: 0 | AH78: 0 | AJ78: Septiembre | AK78: 2029.56353 | AL78: 0 | AM78: 0 | AN78: 0 | AO78: 0 | AP78: 0 | AR78: Septiembre | AS78: =IF(AK78<0,0,AK78*'AHORRO FOTOVOLTAICA'!$B$3) -> 213.2178262 | AT78: =IF(AL78<0,0,AL78*'AHORRO FOTOVOLTAICA'!$C$3) -> 0 | AU78: =IF(AM78<0,0,AM78*'AHORRO FOTOVOLTAICA'!$D$3) -> 0 | AV78: =IF(AN78<0,0,AN78*'AHORRO FOTOVOLTAICA'!$E$3) -> 0 | AW78: =IF(AO78<0,0,AO78*'AHORRO FOTOVOLTAICA'!$F$3) -> 0 | AX78: =IF(AP78<0,0,AP78*'AHORRO FOTOVOLTAICA'!$G$3) -> 0
L79: Octubre | M79: 1206.88562 | N79: 0 | O79: 0 | P79: 0 | Q79: 0 | R79: 0 | S79: 1206.88562 | T79: Octubre | U79: 0.1104271942 | V79: 0 | W79: 0 | X79: 0 | Y79: 0 | Z79: 0 | AB79: Octubre | AC79: -880.1143799 | AD79: 0 | AE79: 0 | AF79: 0 | AG79: 0 | AH79: 0 | AJ79: Octubre | AK79: 880.1143799 | AL79: 0 | AM79: 0 | AN79: 0 | AO79: 0 | AP79: 0 | AR79: Octubre | AS79: =IF(AK79<0,0,AK79*'AHORRO FOTOVOLTAICA'!$B$3) -> 92.4612963 | AT79: =IF(AL79<0,0,AL79*'AHORRO FOTOVOLTAICA'!$C$3) -> 0 | AU79: =IF(AM79<0,0,AM79*'AHORRO FOTOVOLTAICA'!$D$3) -> 0 | AV79: =IF(AN79<0,0,AN79*'AHORRO FOTOVOLTAICA'!$E$3) -> 0 | AW79: =IF(AO79<0,0,AO79*'AHORRO FOTOVOLTAICA'!$F$3) -> 0 | AX79: =IF(AP79<0,0,AP79*'AHORRO FOTOVOLTAICA'!$G$3) -> 0
L80: Noviembre | M80: 939.4397667 | N80: 0 | O80: 0 | P80: 0 | Q80: 0 | R80: 0 | S80: 939.4397667 | T80: Noviembre | U80: 0.1104271942 | V80: 0 | W80: 0 | X80: 0 | Y80: 0 | Z80: 0 | AB80: Noviembre | AC80: 720.4397667 | AD80: 0 | AE80: 0 | AF80: 0 | AG80: 0 | AH80: 0 | AJ80: Noviembre | AK80: -720.4397667 | AL80: 0 | AM80: 0 | AN80: 0 | AO80: 0 | AP80: 0 | AR80: Noviembre | AS80: =IF(AK80<0,0,AK80*'AHORRO FOTOVOLTAICA'!$B$3) -> 0 | AT80: =IF(AL80<0,0,AL80*'AHORRO FOTOVOLTAICA'!$C$3) -> 0 | AU80: =IF(AM80<0,0,AM80*'AHORRO FOTOVOLTAICA'!$D$3) -> 0 | AV80: =IF(AN80<0,0,AN80*'AHORRO FOTOVOLTAICA'!$E$3) -> 0 | AW80: =IF(AO80<0,0,AO80*'AHORRO FOTOVOLTAICA'!$F$3) -> 0 | AX80: =IF(AP80<0,0,AP80*'AHORRO FOTOVOLTAICA'!$G$3) -> 0
L81: Diciembre | M81: 862.199087 | N81: 0 | O81: 0 | P81: 0 | Q81: 0 | R81: 0 | S81: 862.199087 | T81: Diciembre | U81: 0.1104271942 | V81: 0 | W81: 0 | X81: 0 | Y81: 0 | Z81: 0 | AB81: Diciembre | AC81: 645.199087 | AD81: 0 | AE81: 0 | AF81: 0 | AG81: 0 | AH81: 0 | AJ81: Diciembre | AK81: -645.199087 | AL81: 0 | AM81: 0 | AN81: 0 | AO81: 0 | AP81: 0 | AR81: Diciembre | AS81: =IF(AK81<0,0,AK81*'AHORRO FOTOVOLTAICA'!$B$3) -> 0 | AT81: =IF(AL81<0,0,AL81*'AHORRO FOTOVOLTAICA'!$C$3) -> 0 | AU81: =IF(AM81<0,0,AM81*'AHORRO FOTOVOLTAICA'!$D$3) -> 0 | AV81: =IF(AN81<0,0,AN81*'AHORRO FOTOVOLTAICA'!$E$3) -> 0 | AW81: =IF(AO81<0,0,AO81*'AHORRO FOTOVOLTAICA'!$F$3) -> 0 | AX81: =IF(AP81<0,0,AP81*'AHORRO FOTOVOLTAICA'!$G$3) -> 0 | AY81: PRECIO ENERGÍA NO PRODUCIDA Y QUE CONSUMES DE RED
M82: =SUM(M70:M81) -> 15228 | N82: 0 | O82: 0 | P82: 0 | Q82: 0 | R82: 0 | S82: 15228 | AS82: =SUM(AS70:AS81) -> 2072.023112 | AT82: 0 | AU82: 0 | AV82: 0 | AW82: 0 | AX82: 0 | AY82: =SUM(AS82:AX82) -> 2072.023112
U84: PRECIO PEAJE
L85: Enero | M85: =IF( M70<M5,M70*U70,M5*U70) -> 26.9442354 | N85: =IF( N70<O5,N70*V70,O5*V70) -> 0 | O85: =IF(O70<Q5,O70*W70,Q5*W70) -> 0 | P85: =IF(P70<S5,P70*X70,S5*X70) -> 0 | Q85: =IF(Q70<U5,Q70*Y70,U5*Y70) -> 0 | R85: =IF(R70<W5,R70*Z70,W5*Z70) -> 0 | U85: PRECIO 1 | V85: PRECIO 2 | W85: PRECIO 3 | X85: PRECIO 4 | Y85: PRECIO 5 | Z85: PRECIO 6
L86: Febrero | M86: 29.70491525 | N86: 0 | O86: 0 | P86: 0 | Q86: 0 | R86: 0 | T86: Enero | U86: =IF(M70<M5,M70*$C$3,M5*$C$3) -> 0 | V86: =IF(N70<O5,N70*$D$3,O5*$D$3) -> 0 | W86: =IF(O70<Q5,O70*$E$3,Q5*$E$3) -> 0 | X86: =IF(P70<S5,P70*$F$3,S5*$F$3) -> 0 | Y86: =IF(Q70<U5,Q70*$G$3,U5*$G$3) -> 0 | Z86: =IF(R70<W5,R70*$J$3,W5*$J$3) -> 0
L87: Marzo | M87: 153.5304877 | N87: 0 | O87: 0 | P87: 0 | Q87: 0 | R87: 0 | T87: Febrero | U87: 0 | V87: 0 | W87: 0 | X87: 0 | Y87: 0 | Z87: 0
L88: Abril | M88: 151.3981198 | N88: 0 | O88: 0 | P88: 0 | Q88: 0 | R88: 0 | T88: Marzo | U88: 0 | V88: 0 | W88: 0 | X88: 0 | Y88: 0 | Z88: 0
L89: Mayo | M89: 166.324695 | N89: 0 | O89: 0 | P89: 0 | Q89: 0 | R89: 0 | T89: Abril | U89: 0 | V89: 0 | W89: 0 | X89: 0 | Y89: 0 | Z89: 0
L90: Junio | M90: 169.5232468 | N90: 0 | O90: 0 | P90: 0 | Q90: 0 | R90: 0 | T90: Mayo | U90: 0 | V90: 0 | W90: 0 | X90: 0 | Y90: 0 | Z90: 0
L91: Julio | M91: 174.8541666 | N91: 0 | O91: 0 | P91: 0 | Q91: 0 | R91: 0 | T91: Junio | U91: 0 | V91: 0 | W91: 0 | X91: 0 | Y91: 0 | Z91: 0
L92: Agosto | M92: 168.4570629 | N92: 0 | O92: 0 | P92: 0 | Q92: 0 | R92: 0 | T92: Julio | U92: 0 | V92: 0 | W92: 0 | X92: 0 | Y92: 0 | Z92: 0
L93: Septiembre | M93: 143.9348322 | N93: 0 | O93: 0 | P93: 0 | Q93: 0 | R93: 0 | T93: Agosto | U93: 0 | V93: 0 | W93: 0 | X93: 0 | Y93: 0 | Z93: 0
L94: Octubre | M94: 133.2729928 | N94: 0 | O94: 0 | P94: 0 | Q94: 0 | R94: 0 | T94: Septiembre | U94: 0 | V94: 0 | W94: 0 | X94: 0 | Y94: 0 | Z94: 0
L95: Noviembre | M95: 24.18355554 | N95: 0 | O95: 0 | P95: 0 | Q95: 0 | R95: 0 | T95: Octubre | U95: 0 | V95: 0 | W95: 0 | X95: 0 | Y95: 0 | Z95: 0
L96: Diciembre | M96: 23.96270115 | N96: 0 | O96: 0 | P96: 0 | Q96: 0 | R96: 0 | T96: Noviembre | U96: 0 | V96: 0 | W96: 0 | X96: 0 | Y96: 0 | Z96: 0
M97: =SUM(M85:M96) -> 1366.091011 | N97: 0 | O97: 0 | P97: 0 | Q97: 0 | R97: 0 | S97: =SUM(M97:R97) -> 1366.091011 | T97: Diciembre | U97: 0 | V97: 0 | W97: 0 | X97: 0 | Y97: 0 | Z97: 0
U98: =SUM(U86:U97) -> 0 | V98: 0 | W98: 0 | X98: 0 | Y98: 0 | Z98: 0 | AA98: =SUM(U98:Z98) -> 0
M117: P1 | N117: P2 | O117: P3 | P117: P4 | Q117: P5 | R117: P6
L118: 2.0 A | M118: 0.049033 | N118: 0 | O118: 0 | P118: 0 | Q118: 0 | R118: 0
L119: 2.0 DHA | M119: 0.063141 | O119: 0.008907
L120: 2.1 A | M120: 0.060728
L121: 2.1 DHA | M121: 0.074079 | O121: 0.018282
L122: 3.0 A | M122: 0.029399 | N122: 0.019334 | O122: 0.011155
L123: 3.1 A | M123: 0.022656 | N123: 0.0151 | O123: 0.014197
L124: 6.1 A | M124: 0.018849 | N124: 0.016196 | O124: 0.011534 | P124: 0.012518 | Q124: 0.013267 | R124: 0.008879

Sheet AHORRO FUTURO (2) (hidden)
A1: Tipo de tarifa | C1: ='AHORRO FOTOVOLTAICA'!B1 -> 2.1A
C2: =IF($C$1="tarifas","","1 (Punta)") -> 1 (Punta) | D2: =IF($C$1="3.0A","2 (Llano)",IF($C$1="3.1A","2 (Llano)",IF($C$1="6.1A","2 (Llano)",""))) ->  | E2: =IF($C$1="3.0A","3 (Valle)",IF($C$1="3.1A","3 (Valle)",IF($C$1="6.1A","3 (Valle)",IF($C$1="2.0DHA","3 (Valle)",IF($C$1="2.1DHA","3 (Valle)",""))))) ->  | F2: 4 | G2: 5 | H2: 6
A3: Precio peaje (€/kWh) | C3: =VLOOKUP($C$1,$L$118:$R$130,2,FALSE) -> 0.054883 | D3: =VLOOKUP($C$1,$L$118:$R$130,3,FALSE) -> 0 | E3: =VLOOKUP($C$1,$L$118:$R$130,4,FALSE) -> 0 | F3: =VLOOKUP($C$1,$L$118:$R$130,5,FALSE) -> 0 | G3: =VLOOKUP($C$1,$L$118:$R$130,6,FALSE) -> 0 | H3: =VLOOKUP($C$1,$L$118:$R$130,7,FALSE) -> 0 | L3: consumo
M4: p1 | N4: precio p1 | O4: p2 | P4: precio p2 | Q4: p3 | R4: precio p3 | S4: p4 | T4: precio p4 | U4: p5 | V4: precio p5 | W4: p6 | X4: precio p6 | Z4: PRECIO 2 | AA4: PRECIO 3 | AB4: PRECIO 4 | AC4: PRECIO 5 | AD4: PRECIO 6
A5: Precio peaje (€/kWh) promedio | C5: =IF(C1="2.0A",C3,IF(C1="2.1A",C3,IF(C1="2.0DHA",C3*0.5833+'AHORRO FUTURO (2)'!E3*(1-0.5833),IF(C1="2.1DHA",C3*0.5833+'AHORRO FUTURO (2)'!E3*(1-0.5833),IF(C1="3.0A",C3*0.1666+D3*0.5+E3*0.3333,IF(C1="3.1A",C3*0.1196+D3*0.4295+E3*0.4509,IF(C1="6.1A",0.0695*C3+0.1009*D3+0.1114*E3+0.0669*G3+0.1284*H3+0.5626*K3,0))))))) -> 0.054883 | L5: Enero | M5: ='AHORRO FOTOVOLTAICA'!B8 -> 244 | N5: ='AHORRO FOTOVOLTAICA'!C8 -> 0.1104271942 | O5: ='AHORRO FOTOVOLTAICA'!D8 -> 0 | P5: ='AHORRO FOTOVOLTAICA'!E8 ->  | Q5: ='AHORRO FOTOVOLTAICA'!F8 -> 0 | R5: ='AHORRO FOTOVOLTAICA'!G8 ->  | S5: ='AHORRO FOTOVOLTAICA'!H8 -> 0 | T5: ='AHORRO FOTOVOLTAICA'!I8 ->  | U5: ='AHORRO FOTOVOLTAICA'!J8 -> 0 | V5: ='AHORRO FOTOVOLTAICA'!K8 ->  | W5: ='AHORRO FOTOVOLTAICA'!L8 -> 0 | X5: ='AHORRO FOTOVOLTAICA'!M8 ->  | Z5: =IF(P5="",0,P5) -> 0 | AA5: =IF(R5="",0,R5) -> 0 | AB5: =IF(T5="",0,T5) -> 0 | AC5: =IF(V5="",0,V5) -> 0 | AD5: =IF(X5="",0,X5) -> 0
L6: Febrero | M6: ='AHORRO FOTOVOLTAICA'!B9 -> 269 | N6: ='AHORRO FOTOVOLTAICA'!C9 -> 0.1104271942 | O6: ='AHORRO FOTOVOLTAICA'!D9 -> 0 | P6: ='AHORRO FOTOVOLTAICA'!E9 ->  | Q6: ='AHORRO FOTOVOLTAICA'!F9 -> 0 | R6: ='AHORRO FOTOVOLTAICA'!G9 ->  | S6: ='AHORRO FOTOVOLTAICA'!H9 -> 0 | T6: ='AHORRO FOTOVOLTAICA'!I9 ->  | U6: ='AHORRO FOTOVOLTAICA'!J9 -> 0 | V6: ='AHORRO FOTOVOLTAICA'!K9 ->  | W6: ='AHORRO FOTOVOLTAICA'!L9 -> 0 | X6: ='AHORRO FOTOVOLTAICA'!M9 ->  | Z6: =IF(P6="",0,P6) -> 0 | AA6: =IF(R6="",0,R6) -> 0 | AB6: =IF(T6="",0,T6) -> 0 | AC6: =IF(V6="",0,V6) -> 0 | AD6: =IF(X6="",0,X6) -> 0
L7: Marzo | M7: ='AHORRO FOTOVOLTAICA'!B10 -> 1877 | N7: ='AHORRO FOTOVOLTAICA'!C10 -> 0.1104271942 | O7: ='AHORRO FOTOVOLTAICA'!D10 -> 0 | P7: ='AHORRO FOTOVOLTAICA'!E10 ->  | Q7: ='AHORRO FOTOVOLTAICA'!F10 -> 0 | R7: ='AHORRO FOTOVOLTAICA'!G10 ->  | S7: ='AHORRO FOTOVOLTAICA'!H10 -> 0 | T7: ='AHORRO FOTOVOLTAICA'!I10 ->  | U7: ='AHORRO FOTOVOLTAICA'!J10 -> 0 | V7: ='AHORRO FOTOVOLTAICA'!K10 ->  | W7: ='AHORRO FOTOVOLTAICA'!L10 -> 0 | X7: ='AHORRO FOTOVOLTAICA'!M10 ->  | Z7: 0 | AA7: 0 | AB7: 0 | AC7: 0 | AD7: 0
L8: Abril | M8: ='AHORRO FOTOVOLTAICA'!B11 -> 3602 | N8: ='AHORRO FOTOVOLTAICA'!C11 -> 0.1104271942 | O8: ='AHORRO FOTOVOLTAICA'!D11 -> 0 | P8: ='AHORRO FOTOVOLTAICA'!E11 ->  | Q8: ='AHORRO FOTOVOLTAICA'!F11 -> 0 | R8: ='AHORRO FOTOVOLTAICA'!G11 ->  | S8: ='AHORRO FOTOVOLTAICA'!H11 -> 0 | T8: ='AHORRO FOTOVOLTAICA'!I11 ->  | U8: ='AHORRO FOTOVOLTAICA'!J11 -> 0 | V8: ='AHORRO FOTOVOLTAICA'!K11 ->  | W8: ='AHORRO FOTOVOLTAICA'!L11 -> 0 | X8: ='AHORRO FOTOVOLTAICA'!M11 ->  | Z8: 0 | AA8: 0 | AB8: 0 | AC8: 0 | AD8: 0
L9: Mayo | M9: ='AHORRO FOTOVOLTAICA'!B12 -> 4133 | N9: ='AHORRO FOTOVOLTAICA'!C12 -> 0.1104271942 | O9: ='AHORRO FOTOVOLTAICA'!D12 -> 0 | P9: ='AHORRO FOTOVOLTAICA'!E12 ->  | Q9: ='AHORRO FOTOVOLTAICA'!F12 -> 0 | R9: ='AHORRO FOTOVOLTAICA'!G12 ->  | S9: ='AHORRO FOTOVOLTAICA'!H12 -> 0 | T9: ='AHORRO FOTOVOLTAICA'!I12 ->  | U9: ='AHORRO FOTOVOLTAICA'!J12 -> 0 | V9: ='AHORRO FOTOVOLTAICA'!K12 ->  | W9: ='AHORRO FOTOVOLTAICA'!L12 -> 0 | X9: ='AHORRO FOTOVOLTAICA'!M12 ->  | Z9: 0 | AA9: 0 | AB9: 0 | AC9: 0 | AD9: 0
L10: Junio | M10: ='AHORRO FOTOVOLTAICA'!B13 -> 5758 | N10: ='AHORRO FOTOVOLTAICA'!C13 -> 0.1104271942 | O10: ='AHORRO FOTOVOLTAICA'!D13 -> 0 | P10: ='AHORRO FOTOVOLTAICA'!E13 ->  | Q10: ='AHORRO FOTOVOLTAICA'!F13 -> 0 | R10: ='AHORRO FOTOVOLTAICA'!G13 ->  | S10: ='AHORRO FOTOVOLTAICA'!H13 -> 0 | T10: ='AHORRO FOTOVOLTAICA'!I13 ->  | U10: ='AHORRO FOTOVOLTAICA'!J13 -> 0 | V10: ='AHORRO FOTOVOLTAICA'!K13 ->  | W10: ='AHORRO FOTOVOLTAICA'!L13 -> 0 | X10: ='AHORRO FOTOVOLTAICA'!M13 ->  | Z10: 0 | AA10: 0 | AB10: 0 | AC10: 0 | AD10: 0
L11: Julio | M11: ='AHORRO FOTOVOLTAICA'!B14 -> 5876 | N11: ='AHORRO FOTOVOLTAICA'!C14 -> 0.1104271942 | O11: ='AHORRO FOTOVOLTAICA'!D14 -> 0 | P11: ='AHORRO FOTOVOLTAICA'!E14 ->  | Q11: ='AHORRO FOTOVOLTAICA'!F14 -> 0 | R11: ='AHORRO FOTOVOLTAICA'!G14 ->  | S11: ='AHORRO FOTOVOLTAICA'!H14 -> 0 | T11: ='AHORRO FOTOVOLTAICA'!I14 ->  | U11: ='AHORRO FOTOVOLTAICA'!J14 -> 0 | V11: ='AHORRO FOTOVOLTAICA'!K14 ->  | W11: ='AHORRO FOTOVOLTAICA'!L14 -> 0 | X11: ='AHORRO FOTOVOLTAICA'!M14 ->  | Z11: 0 | AA11: 0 | AB11: 0 | AC11: 0 | AD11: 0
L12: Agosto | M12: ='AHORRO FOTOVOLTAICA'!B15 -> 4479 | N12: ='AHORRO FOTOVOLTAICA'!C15 -> 0.1104271942 | O12: ='AHORRO FOTOVOLTAICA'!D15 -> 0 | P12: ='AHORRO FOTOVOLTAICA'!E15 ->  | Q12: ='AHORRO FOTOVOLTAICA'!F15 -> 0 | R12: ='AHORRO FOTOVOLTAICA'!G15 ->  | S12: ='AHORRO FOTOVOLTAICA'!H15 -> 0 | T12: ='AHORRO FOTOVOLTAICA'!I15 ->  | U12: ='AHORRO FOTOVOLTAICA'!J15 -> 0 | V12: ='AHORRO FOTOVOLTAICA'!K15 ->  | W12: ='AHORRO FOTOVOLTAICA'!L15 -> 0 | X12: ='AHORRO FOTOVOLTAICA'!M15 ->  | Z12: 0 | AA12: 0 | AB12: 0 | AC12: 0 | AD12: 0
L13: Septiembre | M13: ='AHORRO FOTOVOLTAICA'!B16 -> 3333 | N13: ='AHORRO FOTOVOLTAICA'!C16 -> 0.1104271942 | O13: ='AHORRO FOTOVOLTAICA'!D16 -> 0 | P13: ='AHORRO FOTOVOLTAICA'!E16 ->  | Q13: ='AHORRO FOTOVOLTAICA'!F16 -> 0 | R13: ='AHORRO FOTOVOLTAICA'!G16 ->  | S13: ='AHORRO FOTOVOLTAICA'!H16 -> 0 | T13: ='AHORRO FOTOVOLTAICA'!I16 ->  | U13: ='AHORRO FOTOVOLTAICA'!J16 -> 0 | V13: ='AHORRO FOTOVOLTAICA'!K16 ->  | W13: ='AHORRO FOTOVOLTAICA'!L16 -> 0 | X13: ='AHORRO FOTOVOLTAICA'!M16 ->  | Z13: 0 | AA13: 0 | AB13: 0 | AC13: 0 | AD13: 0
L14: Octubre | M14: ='AHORRO FOTOVOLTAICA'!B17 -> 2087 | N14: ='AHORRO FOTOVOLTAICA'!C17 -> 0.1104271942 | O14: ='AHORRO FOTOVOLTAICA'!D17 -> 0 | P14: ='AHORRO FOTOVOLTAICA'!E17 ->  | Q14: ='AHORRO FOTOVOLTAICA'!F17 -> 0 | R14: ='AHORRO FOTOVOLTAICA'!G17 ->  | S14: ='AHORRO FOTOVOLTAICA'!H17 -> 0 | T14: ='AHORRO FOTOVOLTAICA'!I17 ->  | U14: ='AHORRO FOTOVOLTAICA'!J17 -> 0 | V14: ='AHORRO FOTOVOLTAICA'!K17 ->  | W14: ='AHORRO FOTOVOLTAICA'!L17 -> 0 | X14: ='AHORRO FOTOVOLTAICA'!M17 ->  | Z14: 0 | AA14: 0 | AB14: 0 | AC14: 0 | AD14: 0
L15: Noviembre | M15: ='AHORRO FOTOVOLTAICA'!B18 -> 219 | N15: ='AHORRO FOTOVOLTAICA'!C18 -> 0.1104271942 | O15: ='AHORRO FOTOVOLTAICA'!D18 -> 0 | P15: ='AHORRO FOTOVOLTAICA'!E18 ->  | Q15: ='AHORRO FOTOVOLTAICA'!F18 -> 0 | R15: ='AHORRO FOTOVOLTAICA'!G18 ->  | S15: ='AHORRO FOTOVOLTAICA'!H18 -> 0 | T15: ='AHORRO FOTOVOLTAICA'!I18 ->  | U15: ='AHORRO FOTOVOLTAICA'!J18 -> 0 | V15: ='AHORRO FOTOVOLTAICA'!K18 ->  | W15: ='AHORRO FOTOVOLTAICA'!L18 -> 0 | X15: ='AHORRO FOTOVOLTAICA'!M18 ->  | Z15: 0 | AA15: 0 | AB15: 0 | AC15: 0 | AD15: 0
L16: Diciembre | M16: ='AHORRO FOTOVOLTAICA'!B19 -> 217 | N16: ='AHORRO FOTOVOLTAICA'!C19 -> 0.1104271942 | O16: ='AHORRO FOTOVOLTAICA'!D19 -> 0 | P16: ='AHORRO FOTOVOLTAICA'!E19 ->  | Q16: ='AHORRO FOTOVOLTAICA'!F19 -> 0 | R16: ='AHORRO FOTOVOLTAICA'!G19 ->  | S16: ='AHORRO FOTOVOLTAICA'!H19 -> 0 | T16: ='AHORRO FOTOVOLTAICA'!I19 ->  | U16: ='AHORRO FOTOVOLTAICA'!J19 -> 0 | V16: ='AHORRO FOTOVOLTAICA'!K19 ->  | W16: ='AHORRO FOTOVOLTAICA'!L19 -> 0 | X16: ='AHORRO FOTOVOLTAICA'!M19 ->  | Z16: 0 | AA16: 0 | AB16: 0 | AC16: 0 | AD16: 0
L17: Total | M17: =SUM(M5:M16) -> 32094 | O17: =SUM(O5:O16) -> 0 | Q17: =SUM(Q5:Q16) -> 0 | S17: =SUM(S5:S16) -> 0 | U17: =SUM(U5:U16) -> 0 | W17: =SUM(W5:W16) -> 0
A18: no incluido IBIZA Y FORMENTERA
M19: precio p1 | N19: precio p2 | O19: precio p3 | P19: precio p4 | Q19: precio p5 | R19: precio p6 | S19: Total mes
A20: AÑO | B20: PRECIO CONSUMO ANUAL | C20: AHORRO FOTOVOLTAICA | D20: PRECIO COSTE FOTOVOLTAICA | E20: PRECIO PEAJE RESPALDO | F20: REDUCCIÓN EXCESOS POTENCIA | G20: AHORRO REAL | H20: %AHORRO FRENTE A CONSUMO | I20: AHORRO ACUMULADO | K20: %RENTABILIDAD | L20: Enero | M20: =M5*N5 -> 26.9442354 | N20: =O5*Z5 -> 0 | O20: =Q5*AA5 -> 0 | P20: =S5*AB5 -> 0 | Q20: =U5*AC5 -> 0 | R20: =W5*AD5 -> 0 | S20: =SUM(M20:R20) -> 26.9442354 | AZ20: COSTE | BA20: ='CUADRO RENTING'!D3 -> 12500
A21: 0 | C21: =S96 -> 0 | D21: ='CUADRO RENTING'!M16 -> 12500 | E21: =AA97 -> 0 | G21: =C21-D21-E21 -> -12500 | I21: =G21 -> -12500
A22: 1 | B22: =S33 -> 3544.050372 | C22: =S97 -> 1366.091011 | D22: ='CUADRO RENTING'!M17 -> 100 | E22: =AA98 -> 678.9557 | F22: 1769 | G22: =C22-D22-E22+F22 -> 2356.135311 | H22: =G22/B22 -> 0.6648142842 | I22: =G22+I21 -> -10143.86469 | J22: =IF(ISERROR(IRR($G$22:$G22)),"",IRR($G$22:$G22)) ->  | L22: Febrero | M22: =M6*N6 -> 29.70491525 | N22: =O6*Z6 -> 0 | O22: =Q6*AA6 -> 0 | P22: =S6*AB6 -> 0 | Q22: =U6*AC6 -> 0 | R22: =W6*AD6 -> 0 | S22: =SUM(M22:R22) -> 29.70491525 | BA22: =BA20-G22 -> 10143.86469
A23: 2 | B23: =B22*(1+'CUADRO RENTING'!$F$11) -> 3614.93138 | C23: =C22*0.996*(1+'CUADRO RENTING'!$F$13) -> 1415.051713 | D23: ='CUADRO RENTING'!M18 -> 202 | E23: =E22*(1+'CUADRO RENTING'!$F$11) -> 692.534814 | F23: =F22*0.99*(1+'CUADRO RENTING'!$F$11) -> 1786.3362 | G23: =C23-D23-E23+F23 -> 2306.853099 | H23: 0.6381457507 | I23: =G23+I22 -> -7837.01159 | J23: =IF(ISERROR(IRR($G$22:$G23)),"",IRR($G$22:$G23)) ->  | L23: Marzo | M23: 207.2718436 | N23: 0 | O23: 0 | P23: 0 | Q23: 0 | R23: 0 | S23: 207.2718436 | BA23: =BA22-G23 -> 7837.01159
A24: 3 | B24: =B23*(1+'CUADRO RENTING'!$F$11) -> 3687.230007 | C24: =C23*0.996*(1+'CUADRO RENTING'!$F$13) -> 1465.767166 | D24: ='CUADRO RENTING'!M19 -> 206.04 | E24: =E23*(1+'CUADRO RENTING'!$F$11) -> 706.3855103 | F24: =F23*0.99*(1+'CUADRO RENTING'!$F$11) -> 1803.842295 | G24: 2357.183951 | H24: 0.639283133 | I24: =G24+I23 -> -5479.827639 | J24: =IF(ISERROR(IRR($G$22:$G24)),"",IRR($G$22:$G24)) ->  | L24: Abril | M24: 397.7587537 | N24: 0 | O24: 0 | P24: 0 | Q24: 0 | R24: 0 | S24: 397.7587537 | BA24: 5479.827639
A25: 4 | B25: =B24*(1+'CUADRO RENTING'!$F$11) -> 3760.974607 | C25: =C24*0.996*(1+'CUADRO RENTING'!$F$13) -> 1518.300262 | D25: ='CUADRO RENTING'!M20 -> 210.1608 | E25: =E24*(1+'CUADRO RENTING'!$F$11) -> 720.5132205 | F25: =F24*0.99*(1+'CUADRO RENTING'!$F$11) -> 1821.519949 | G25: 2409.14619 | H25: 0.6405643329 | I25: -3070.681448 | J25: =IF(ISERROR(IRR($G$22:$G25)),"",IRR($G$22:$G25)) ->  | L25: Mayo | M25: 456.3955938 | N25: 0 | O25: 0 | P25: 0 | Q25: 0 | R25: 0 | S25: 456.3955938 | BA25: 3070.681448
A26: 5 | B26: =B25*(1+'CUADRO RENTING'!$F$11) -> 3836.194099 | C26: =C25*0.996*(1+'CUADRO RENTING'!$F$13) -> 1572.716143 | D26: ='CUADRO RENTING'!M21 -> 214.364016 | E26: =E25*(1+'CUADRO RENTING'!$F$11) -> 734.9234849 | F26: =F25*0.99*(1+'CUADRO RENTING'!$F$11) -> 1839.370845 | G26: 2462.799487 | H26: 0.6419903225 | I26: -607.8819614 | J26: =IF(ISERROR(IRR($G$22:$G26)),"",IRR($G$22:$G26)) ->  | L26: Junio | M26: 635.8397845 | N26: 0 | O26: 0 | P26: 0 | Q26: 0 | R26: 0 | S26: 635.8397845 | BA26: 607.8819614
A27: 6 | B27: =B26*(1+'CUADRO RENTING'!$F$11) -> 3912.917981 | C27: =C26*0.996*(1+'CUADRO RENTING'!$F$13) -> 1629.08229 | D27: ='CUADRO RENTING'!M22 -> 218.6512963 | E27: =E26*(1+'CUADRO RENTING'!$F$11) -> 749.6219546 | F27: =F26*0.99*(1+'CUADRO RENTING'!$F$11) -> 1857.396679 | G27: 2518.205718 | H27: 0.6435621011 | I27: 1910.323756 | J27: =IF(ISERROR(IRR($G$22:$G27)),"",IRR($G$22:$G27)) ->  | L27: Julio | M27: 648.8701934 | N27: 0 | O27: 0 | P27: 0 | Q27: 0 | R27: 0 | S27: 648.8701934 | BA27: -1910.323756
A28: 7 | B28: =B27*(1+'CUADRO RENTING'!$F$11) -> 3991.176341 | C28: =C27*0.996*(1+'CUADRO RENTING'!$F$13) -> 1687.468599 | D28: ='CUADRO RENTING'!M23 -> 223.0243222 | E28: =E27*(1+'CUADRO RENTING'!$F$11) -> 764.6143937 | F28: =F27*0.99*(1+'CUADRO RENTING'!$F$11) -> 1875.599166 | G28: 2575.429049 | H28: 0.6452806966 | I28: 4485.752806 | J28: =IF(ISERROR(IRR($G$22:$G28)),"",IRR($G$22:$G28)) ->  | L28: Agosto | M28: 494.603403 | N28: 0 | O28: 0 | P28: 0 | Q28: 0 | R28: 0 | S28: 494.603403 | BA28: -4485.752806
A29: 8 | B29: =B28*(1+'CUADRO RENTING'!$F$11) -> 4070.999868 | C29: =C28*0.996*(1+'CUADRO RENTING'!$F$13) -> 1747.947473 | D29: ='CUADRO RENTING'!M24 -> 227.4848087 | E29: =E28*(1+'CUADRO RENTING'!$F$11) -> 779.9066816 | F29: =F28*0.99*(1+'CUADRO RENTING'!$F$11) -> 1893.980038 | G29: 2634.536022 | H29: 0.6471471646 | I29: 7120.288827 | J29: =IF(ISERROR(IRR($G$22:$G29)),"",IRR($G$22:$G29)) ->  | L29: Septiembre | M29: 368.0538384 | N29: 0 | O29: 0 | P29: 0 | Q29: 0 | R29: 0 | S29: 368.0538384 | BA29: -7120.288827
A30: 9 | B30: =B29*(1+'CUADRO RENTING'!$F$11) -> 4152.419865 | C30: =C29*0.996*(1+'CUADRO RENTING'!$F$13) -> 1810.593911 | D30: ='CUADRO RENTING'!M25 -> 232.0345049 | E30: =E29*(1+'CUADRO RENTING'!$F$11) -> 795.5048152 | F30: =F29*0.99*(1+'CUADRO RENTING'!$F$11) -> 1912.541043 | G30: 2695.595634 | H30: 0.6491625898 | I30: 9815.884461 | J30: =IF(ISERROR(IRR($G$22:$G30)),"",IRR($G$22:$G30)) ->  | L30: Octubre | M30: 230.4615544 | N30: 0 | O30: 0 | P30: 0 | Q30: 0 | R30: 0 | S30: 230.4615544 | BA30: -9815.884461
A31: 10 | B31: =B30*(1+'CUADRO RENTING'!$F$11) -> 4235.468263 | C31: =C30*0.996*(1+'CUADRO RENTING'!$F$13) -> 1875.485597 | D31: ='CUADRO RENTING'!M26 -> 236.675195 | E31: =E30*(1+'CUADRO RENTING'!$F$11) -> 811.4149115 | F31: =F30*0.99*(1+'CUADRO RENTING'!$F$11) -> 1931.283945 | G31: 2758.679435 | H31: 0.6513280856 | I31: 12574.5639 | J31: =IF(ISERROR(IRR($G$22:$G31)),"",IRR($G$22:$G31)) ->  | L31: Noviembre | M31: 24.18355554 | N31: 0 | O31: 0 | P31: 0 | Q31: 0 | R31: 0 | S31: 24.18355554 | BA31: -12574.5639
A32: 11 | B32: =B31*(1+'CUADRO RENTING'!$F$11) -> 4320.177628 | C32: =C31*0.996*(1+'CUADRO RENTING'!$F$13) -> 1942.703 | D32: ='CUADRO RENTING'!M27 -> 241.4086989 | E32: =E31*(1+'CUADRO RENTING'!$F$11) -> 827.6432097 | F32: =F31*0.99*(1+'CUADRO RENTING'!$F$11) -> 1950.210528 | G32: 2823.861619 | H32: 0.6536447949 | I32: 15398.42552 | J32: =IF(ISERROR(IRR($G$22:$G32)),"",IRR($G$22:$G32)) ->  | L32: Diciembre | M32: =M16*N16 -> 23.96270115 | N32: 0 | O32: 0 | P32: 0 | Q32: 0 | R32: 0 | S32: 23.96270115 | T32: =SUM(S20:S32) -> 3544.050372 | BA32: -15398.42552
A33: 12 | B33: =B32*(1+'CUADRO RENTING'!$F$11) -> 4406.58118 | C33: =C32*0.996*(1+'CUADRO RENTING'!$F$13) -> 2012.329476 | D33: ='CUADRO RENTING'!M28 -> 246.2368728 | E33: =E32*(1+'CUADRO RENTING'!$F$11) -> 844.1960739 | F33: =F32*0.99*(1+'CUADRO RENTING'!$F$11) -> 1969.322591 | G33: 2891.21912 | H33: 0.65611389 | I33: 18289.64464 | J33: =IF(ISERROR(IRR($G$22:$G33)),"",IRR($G$22:$G33)) ->  | L33: Total periodo | M33: =SUM(M20:M32) -> 3544.050372 | N33: 0 | O33: 0 | P33: 0 | Q33: 0 | R33: 0 | S33: =SUM(M33:R33) -> 3544.050372 | BA33: -18289.64464
A34: 13 | B34: =B33*(1+'CUADRO RENTING'!$F$11) -> 4494.712804 | C34: =C33*0.996*(1+'CUADRO RENTING'!$F$13) -> 2084.451364 | D34: ='CUADRO RENTING'!M29 -> 251.1616103 | E34: =E33*(1+'CUADRO RENTING'!$F$11) -> 861.0799954 | F34: =F33*0.99*(1+'CUADRO RENTING'!$F$11) -> 1988.621952 | G34: 2960.831711 | H34: 0.6587365734 | I34: 21250.47635 | J34: =IF(ISERROR(IRR($G$22:$G34)),"",IRR($G$22:$G34)) ->  | BA34: -21250.47635
A35: 14 | B35: =B34*(1+'CUADRO RENTING'!$F$11) -> 4584.60706 | C35: =C34*0.996*(1+'CUADRO RENTING'!$F$13) -> 2159.158101 | D35: ='CUADRO RENTING'!M30 -> 256.1848425 | E35: =E34*(1+'CUADRO RENTING'!$F$11) -> 878.3015953 | F35: =F34*0.99*(1+'CUADRO RENTING'!$F$11) -> 2008.110447 | G35: 3032.782111 | H35: 0.6615140777 | I35: 24283.25846 | J35: =IF(ISERROR(IRR($G$22:$G35)),"",IRR($G$22:$G35)) ->  | L35: PRODUCCION FOTOVOLTAICA | BA35: -24283.25846
A36: 15 | B36: =B35*(1+'CUADRO RENTING'!$F$11) -> 4676.299201 | C36: =C35*0.996*(1+'CUADRO RENTING'!$F$13) -> 2236.542328 | D36: ='CUADRO RENTING'!M31 -> 261.3085394 | E36: =E35*(1+'CUADRO RENTING'!$F$11) -> 895.8676272 | F36: =F35*0.99*(1+'CUADRO RENTING'!$F$11) -> 2027.78993 | G36: 3107.156091 | H36: 0.6644476662 | I36: 27390.41455 | J36: =IF(ISERROR(IRR($G$22:$G36)),"",IRR($G$22:$G36)) ->  | BA36: -27390.41455
A37: 16 | B37: =B36*(1+'CUADRO RENTING'!$F$11) -> 4769.825185 | C37: =C36*0.996*(1+'CUADRO RENTING'!$F$13) -> 2316.700005 | D37: ='CUADRO RENTING'!M32 -> 266.5347101 | E37: =E36*(1+'CUADRO RENTING'!$F$11) -> 913.7849798 | F37: =F36*0.99*(1+'CUADRO RENTING'!$F$11) -> 2047.662271 | G37: 3184.042586 | H37: 0.6675386334 | I37: 30574.45713 | J37: =IF(ISERROR(IRR($G$22:$G37)),"",IRR($G$22:$G37)) ->  | M37: p1 | N37: precio p1 | O37: p2 | P37: precio p2 | Q37: p3 | R37: precio p3 | S37: p4 | T37: precio p4 | U37: p5 | V37: precio p5 | W37: p6 | X37: precio p6 | Z37: PRECIO P2 | AA37: PRECIO P3 | AB37: PRECIO P4 | AC37: PRECIO P5 | AD37: PRECIO P6 | BA37: -30574.45713
A38: 17 | B38: =B37*(1+'CUADRO RENTING'!$F$11) -> 4865.221689 | C38: =C37*0.996*(1+'CUADRO RENTING'!$F$13) -> 2399.730533 | D38: ='CUADRO RENTING'!M33 -> 271.8654043 | E38: =E37*(1+'CUADRO RENTING'!$F$11) -> 932.0606794 | F38: =F37*0.99*(1+'CUADRO RENTING'!$F$11) -> 2067.729361 | G38: 3263.53381 | H38: 0.670788305 | I38: 33837.99094 | J38: =IF(ISERROR(IRR($G$22:$G38)),"",IRR($G$22:$G38)) ->  | L38: Enero | M38: ='AHORRO FOTOVOLTAICA'!B24 -> 961.6464621 | N38: ='AHORRO FOTOVOLTAICA'!C24 -> 0.006566850538 | O38: ='AHORRO FOTOVOLTAICA'!D24 ->  | P38: ='AHORRO FOTOVOLTAICA'!E24 ->  | Q38: ='AHORRO FOTOVOLTAICA'!F24 ->  | R38: ='AHORRO FOTOVOLTAICA'!G24 ->  | S38: ='AHORRO FOTOVOLTAICA'!H24 ->  | T38: ='AHORRO FOTOVOLTAICA'!I24 ->  | U38: ='AHORRO FOTOVOLTAICA'!J24 ->  | V38: ='AHORRO FOTOVOLTAICA'!K24 ->  | W38: ='AHORRO FOTOVOLTAICA'!L24 ->  | X38: ='AHORRO FOTOVOLTAICA'!M24 ->  | Y38: Enero | Z38: =IF(P38="",0,P38) -> 0 | AA38: =IF(R38="",0,R38) -> 0 | AB38: =IF(T38="",0,T38) -> 0 | AC38: =IF(V38="",0,V38) -> 0 | AD38: =IF(X38="",0,X38) -> 0 | BA38: -33837.99094
A39: 18 | B39: =B38*(1+'CUADRO RENTING'!$F$11) -> 4962.526123 | C39: =C38*0.996*(1+'CUADRO RENTING'!$F$13) -> 2485.736875 | D39: ='CUADRO RENTING'!M34 -> 277.3027124 | E39: =E38*(1+'CUADRO RENTING'!$F$11) -> 950.7018929 | F39: =F38*0.99*(1+'CUADRO RENTING'!$F$11) -> 2087.993109 | G39: 3345.725379 | H39: 0.6741980387 | I39: 37183.71632 | J39: =IF(ISERROR(IRR($G$22:$G39)),"",IRR($G$22:$G39)) ->  | L39: Febrero | M39: ='AHORRO FOTOVOLTAICA'!B25 -> 1042.749176 | N39: ='AHORRO FOTOVOLTAICA'!C25 -> 0.006566850538 | O39: ='AHORRO FOTOVOLTAICA'!D25 ->  | P39: ='AHORRO FOTOVOLTAICA'!E25 ->  | Q39: ='AHORRO FOTOVOLTAICA'!F25 ->  | R39: ='AHORRO FOTOVOLTAICA'!G25 ->  | S39: ='AHORRO FOTOVOLTAICA'!H25 ->  | T39: ='AHORRO FOTOVOLTAICA'!I25 ->  | U39: ='AHORRO FOTOVOLTAICA'!J25 ->  | V39: ='AHORRO FOTOVOLTAICA'!K25 ->  | W39: ='AHORRO FOTOVOLTAICA'!L25 ->  | X39: ='AHORRO FOTOVOLTAICA'!M25 ->  | Y39: Febrero | Z39: =IF(P39="",0,P39) -> 0 | AA39: =IF(R39="",0,R39) -> 0 | AB39: =IF(T39="",0,T39) -> 0 | AC39: =IF(V39="",0,V39) -> 0 | AD39: =IF(X39="",0,X39) -> 0 | BA39: -37183.71632
A40: 19 | B40: =B39*(1+'CUADRO RENTING'!$F$11) -> 5061.776645 | C40: =C39*0.996*(1+'CUADRO RENTING'!$F$13) -> 2574.825685 | D40: ='CUADRO RENTING'!M35 -> 282.8487667 | E40: =E39*(1+'CUADRO RENTING'!$F$11) -> 969.7159308 | F40: =F39*0.99*(1+'CUADRO RENTING'!$F$11) -> 2108.455441 | G40: 3430.716429 | H40: 0.677769224 | I40: 40614.43275 | J40: =IF(ISERROR(IRR($G$22:$G40)),"",IRR($G$22:$G40)) ->  | L40: Marzo | M40: ='AHORRO FOTOVOLTAICA'!B26 -> 1390.332234 | N40: ='AHORRO FOTOVOLTAICA'!C26 -> 0.006566850538 | O40: ='AHORRO FOTOVOLTAICA'!D26 ->  | P40: ='AHORRO FOTOVOLTAICA'!E26 ->  | Q40: ='AHORRO FOTOVOLTAICA'!F26 ->  | R40: ='AHORRO FOTOVOLTAICA'!G26 ->  | S40: ='AHORRO FOTOVOLTAICA'!H26 ->  | T40: ='AHORRO FOTOVOLTAICA'!I26 ->  | U40: ='AHORRO FOTOVOLTAICA'!J26 ->  | V40: ='AHORRO FOTOVOLTAICA'!K26 ->  | W40: ='AHORRO FOTOVOLTAICA'!L26 ->  | X40: ='AHORRO FOTOVOLTAICA'!M26 ->  | Y40: Marzo | Z40: 0 | AA40: 0 | AB40: 0 | AC40: 0 | AD40: 0 | BA40: -40614.43275
A41: 20 | B41: =B40*(1+'CUADRO RENTING'!$F$11) -> 5163.012178 | C41: =C40*0.996*(1+'CUADRO RENTING'!$F$13) -> 2667.107437 | D41: ='CUADRO RENTING'!M36 -> 288.505742 | E41: =E40*(1+'CUADRO RENTING'!$F$11) -> 989.1102494 | F41: =F40*0.99*(1+'CUADRO RENTING'!$F$11) -> 2129.118305 | G41: 3518.609751 | H41: 0.6815032832 | I41: 44133.0425 | J41: =IF(ISERROR(IRR($G$22:$G41)),"",IRR($G$22:$G41)) ->  | L41: Abril | M41: ='AHORRO FOTOVOLTAICA'!B27 -> 1371.022064 | N41: ='AHORRO FOTOVOLTAICA'!C27 -> 0.006566850538 | O41: ='AHORRO FOTOVOLTAICA'!D27 ->  | P41: ='AHORRO FOTOVOLTAICA'!E27 ->  | Q41: ='AHORRO FOTOVOLTAICA'!F27 ->  | R41: ='AHORRO FOTOVOLTAICA'!G27 ->  | S41: ='AHORRO FOTOVOLTAICA'!H27 ->  | T41: ='AHORRO FOTOVOLTAICA'!I27 ->  | U41: ='AHORRO FOTOVOLTAICA'!J27 ->  | V41: ='AHORRO FOTOVOLTAICA'!K27 ->  | W41: ='AHORRO FOTOVOLTAICA'!L27 ->  | X41: ='AHORRO FOTOVOLTAICA'!M27 ->  | Y41: Abril | Z41: 0 | AA41: 0 | AB41: 0 | AC41: 0 | AD41: 0 | BA41: -44133.0425
A42: 21 | B42: =B41*(1+'CUADRO RENTING'!$F$11) -> 5266.272422 | C42: =C41*0.996*(1+'CUADRO RENTING'!$F$13) -> 2762.696568 | D42: ='CUADRO RENTING'!M37 -> 294.2758569 | E42: =E41*(1+'CUADRO RENTING'!$F$11) -> 1008.892454 | F42: =F41*0.99*(1+'CUADRO RENTING'!$F$11) -> 2149.983664 | G42: 3609.511921 | H42: 0.6854016716 | I42: 47742.55442 | J42: =IF(ISERROR(IRR($G$22:$G42)),"",IRR($G$22:$G42)) ->  | L42: Mayo | M42: ='AHORRO FOTOVOLTAICA'!B28 -> 1506.193254 | N42: ='AHORRO FOTOVOLTAICA'!C28 -> 0.006566850538 | O42: ='AHORRO FOTOVOLTAICA'!D28 ->  | P42: ='AHORRO FOTOVOLTAICA'!E28 ->  | Q42: ='AHORRO FOTOVOLTAICA'!F28 ->  | R42: ='AHORRO FOTOVOLTAICA'!G28 ->  | S42: ='AHORRO FOTOVOLTAICA'!H28 ->  | T42: ='AHORRO FOTOVOLTAICA'!I28 ->  | U42: ='AHORRO FOTOVOLTAICA'!J28 ->  | V42: ='AHORRO FOTOVOLTAICA'!K28 ->  | W42: ='AHORRO FOTOVOLTAICA'!L28 ->  | X42: ='AHORRO FOTOVOLTAICA'!M28 ->  | Y42: Mayo | Z42: 0 | AA42: 0 | AB42: 0 | AC42: 0 | AD42: 0 | BA42: -47742.55442
A43: 22 | B43: =B42*(1+'CUADRO RENTING'!$F$11) -> 5371.59787 | C43: =C42*0.996*(1+'CUADRO RENTING'!$F$13) -> 2861.711613 | D43: ='CUADRO RENTING'!M38 -> 300.161374 | E43: =E42*(1+'CUADRO RENTING'!$F$11) -> 1029.070303 | F43: =F42*0.99*(1+'CUADRO RENTING'!$F$11) -> 2171.053504 | G43: 3703.533439 | H43: 0.6894658776 | I43: 51446.08786 | J43: =IF(ISERROR(IRR($G$22:$G43)),"",IRR($G$22:$G43)) ->  | L43: Junio | M43: ='AHORRO FOTOVOLTAICA'!B29 -> 1535.158509 | N43: ='AHORRO FOTOVOLTAICA'!C29 -> 0.006566850538 | O43: ='AHORRO FOTOVOLTAICA'!D29 ->  | P43: ='AHORRO FOTOVOLTAICA'!E29 ->  | Q43: ='AHORRO FOTOVOLTAICA'!F29 ->  | R43: ='AHORRO FOTOVOLTAICA'!G29 ->  | S43: ='AHORRO FOTOVOLTAICA'!H29 ->  | T43: ='AHORRO FOTOVOLTAICA'!I29 ->  | U43: ='AHORRO FOTOVOLTAICA'!J29 ->  | V43: ='AHORRO FOTOVOLTAICA'!K29 ->  | W43: ='AHORRO FOTOVOLTAICA'!L29 ->  | X43: ='AHORRO FOTOVOLTAICA'!M29 ->  | Y43: Junio | Z43: 0 | AA43: 0 | AB43: 0 | AC43: 0 | AD43: 0 | BA43: -51446.08786
A44: 23 | B44: =B43*(1+'CUADRO RENTING'!$F$11) -> 5479.029828 | C44: =C43*0.996*(1+'CUADRO RENTING'!$F$13) -> 2964.275357 | D44: ='CUADRO RENTING'!M39 -> 306.1646015 | E44: =E43*(1+'CUADRO RENTING'!$F$11) -> 1049.65171 | F44: =F43*0.99*(1+'CUADRO RENTING'!$F$11) -> 2192.329828 | G44: 3800.788874 | H44: 0.6936974235 | I44: 55246.87674 | J44: =IF(ISERROR(IRR($G$22:$G44)),"",IRR($G$22:$G44)) ->  | L44: Julio | M44: ='AHORRO FOTOVOLTAICA'!B30 -> 1583.433934 | N44: ='AHORRO FOTOVOLTAICA'!C30 -> 0.006566850538 | O44: ='AHORRO FOTOVOLTAICA'!D30 ->  | P44: ='AHORRO FOTOVOLTAICA'!E30 ->  | Q44: ='AHORRO FOTOVOLTAICA'!F30 ->  | R44: ='AHORRO FOTOVOLTAICA'!G30 ->  | S44: ='AHORRO FOTOVOLTAICA'!H30 ->  | T44: ='AHORRO FOTOVOLTAICA'!I30 ->  | U44: ='AHORRO FOTOVOLTAICA'!J30 ->  | V44: ='AHORRO FOTOVOLTAICA'!K30 ->  | W44: ='AHORRO FOTOVOLTAICA'!L30 ->  | X44: ='AHORRO FOTOVOLTAICA'!M30 ->  | Y44: Julio | Z44: 0 | AA44: 0 | AB44: 0 | AC44: 0 | AD44: 0 | BA44: -55246.87674
A45: 24 | B45: =B44*(1+'CUADRO RENTING'!$F$11) -> 5588.610424 | C45: =C44*0.996*(1+'CUADRO RENTING'!$F$13) -> 3070.514986 | D45: ='CUADRO RENTING'!M40 -> 312.2878935 | E45: =E44*(1+'CUADRO RENTING'!$F$11) -> 1070.644744 | F45: =F44*0.99*(1+'CUADRO RENTING'!$F$11) -> 2213.814661 | G45: 3901.397009 | H45: 0.6980978657 | I45: 59148.27375 | J45: =IF(ISERROR(IRR($G$22:$G45)),"",IRR($G$22:$G45)) ->  | K45: TIR A 25 AÑOS | L45: Agosto | M45: ='AHORRO FOTOVOLTAICA'!B31 -> 1525.503424 | N45: ='AHORRO FOTOVOLTAICA'!C31 -> 0.006566850538 | O45: ='AHORRO FOTOVOLTAICA'!D31 ->  | P45: ='AHORRO FOTOVOLTAICA'!E31 ->  | Q45: ='AHORRO FOTOVOLTAICA'!F31 ->  | R45: ='AHORRO FOTOVOLTAICA'!G31 ->  | S45: ='AHORRO FOTOVOLTAICA'!H31 ->  | T45: ='AHORRO FOTOVOLTAICA'!I31 ->  | U45: ='AHORRO FOTOVOLTAICA'!J31 ->  | V45: ='AHORRO FOTOVOLTAICA'!K31 ->  | W45: ='AHORRO FOTOVOLTAICA'!L31 ->  | X45: ='AHORRO FOTOVOLTAICA'!M31 ->  | Y45: Agosto | Z45: 0 | AA45: 0 | AB45: 0 | AC45: 0 | AD45: 0 | BA45: -59148.27375
A46: 25 | B46: =B45*(1+'CUADRO RENTING'!$F$11) -> 5700.382633 | C46: =C45*0.996*(1+'CUADRO RENTING'!$F$13) -> 3180.562243 | D46: ='CUADRO RENTING'!M41 -> 318.5336514 | E46: =E45*(1+'CUADRO RENTING'!$F$11) -> 1092.057639 | F46: =F45*0.99*(1+'CUADRO RENTING'!$F$11) -> 2235.510044 | G46: 4005.480997 | H46: 0.7026687953 | I46: 63153.75474 | J46: =IF(ISERROR(IRR($G$22:$G46)),"",IRR($G$22:$G46)) ->  | K46: =IRR(G21:G46) -> 0.201235803 | L46: Septiembre | M46: ='AHORRO FOTOVOLTAICA'!B32 -> 1303.43647 | N46: ='AHORRO FOTOVOLTAICA'!C32 -> 0.006566850538 | O46: ='AHORRO FOTOVOLTAICA'!D32 ->  | P46: ='AHORRO FOTOVOLTAICA'!E32 ->  | Q46: ='AHORRO FOTOVOLTAICA'!F32 ->  | R46: ='AHORRO FOTOVOLTAICA'!G32 ->  | S46: ='AHORRO FOTOVOLTAICA'!H32 ->  | T46: ='AHORRO FOTOVOLTAICA'!I32 ->  | U46: ='AHORRO FOTOVOLTAICA'!J32 ->  | V46: ='AHORRO FOTOVOLTAICA'!K32 ->  | W46: ='AHORRO FOTOVOLTAICA'!L32 ->  | X46: ='AHORRO FOTOVOLTAICA'!M32 ->  | Y46: Septiembre | Z46: 0 | AA46: 0 | AB46: 0 | AC46: 0 | AD46: 0 | BA46: -63153.75474
A47: 26 | B47: =B46*(1+'CUADRO RENTING'!$F$11) -> 5814.390285 | C47: =C46*0.996*(1+'CUADRO RENTING'!$F$13) -> 3294.553594 | D47: ='CUADRO RENTING'!M42 -> 324.9043244 | E47: =E46*(1+'CUADRO RENTING'!$F$11) -> 1113.898791 | F47: =F46*0.99*(1+'CUADRO RENTING'!$F$11) -> 2257.418043 | G47: 4113.168521 | H47: 0.7074118384 | I47: 67266.92326 | J47: =IF(ISERROR(IRR($G$22:$G47)),"",IRR($G$22:$G47)) ->  | L47: Octubre | M47: ='AHORRO FOTOVOLTAICA'!B33 -> 1206.88562 | N47: ='AHORRO FOTOVOLTAICA'!C33 -> 0.006566850538 | O47: ='AHORRO FOTOVOLTAICA'!D33 ->  | P47: ='AHORRO FOTOVOLTAICA'!E33 ->  | Q47: ='AHORRO FOTOVOLTAICA'!F33 ->  | R47: ='AHORRO FOTOVOLTAICA'!G33 ->  | S47: ='AHORRO FOTOVOLTAICA'!H33 ->  | T47: ='AHORRO FOTOVOLTAICA'!I33 ->  | U47: ='AHORRO FOTOVOLTAICA'!J33 ->  | V47: ='AHORRO FOTOVOLTAICA'!K33 ->  | W47: ='AHORRO FOTOVOLTAICA'!L33 ->  | X47: ='AHORRO FOTOVOLTAICA'!M33 ->  | Y47: Octubre | Z47: 0 | AA47: 0 | AB47: 0 | AC47: 0 | AD47: 0 | BA47: -67266.92326
A48: 27 | B48: =B47*(1+'CUADRO RENTING'!$F$11) -> 5930.678091 | C48: =C47*0.996*(1+'CUADRO RENTING'!$F$13) -> 3412.630395 | D48: ='CUADRO RENTING'!M43 -> 331.4024109 | E48: =E47*(1+'CUADRO RENTING'!$F$11) -> 1136.176767 | F48: =F47*0.99*(1+'CUADRO RENTING'!$F$11) -> 2279.54074 | G48: 4224.591956 | H48: 0.7123286564 | I48: 71491.51522 | J48: =IF(ISERROR(IRR($G$22:$G48)),"",IRR($G$22:$G48)) ->  | L48: Noviembre | M48: ='AHORRO FOTOVOLTAICA'!B34 -> 939.4397667 | N48: ='AHORRO FOTOVOLTAICA'!C34 -> 0.006566850538 | O48: ='AHORRO FOTOVOLTAICA'!D34 ->  | P48: ='AHORRO FOTOVOLTAICA'!E34 ->  | Q48: ='AHORRO FOTOVOLTAICA'!F34 ->  | R48: ='AHORRO FOTOVOLTAICA'!G34 ->  | S48: ='AHORRO FOTOVOLTAICA'!H34 ->  | T48: ='AHORRO FOTOVOLTAICA'!I34 ->  | U48: ='AHORRO FOTOVOLTAICA'!J34 ->  | V48: ='AHORRO FOTOVOLTAICA'!K34 ->  | W48: ='AHORRO FOTOVOLTAICA'!L34 ->  | X48: ='AHORRO FOTOVOLTAICA'!M34 ->  | Y48: Noviembre | Z48: 0 | AA48: 0 | AB48: 0 | AC48: 0 | AD48: 0 | BA48: -71491.51522
A49: 28 | B49: =B48*(1+'CUADRO RENTING'!$F$11) -> 6049.291653 | C49: =C48*0.996*(1+'CUADRO RENTING'!$F$13) -> 3534.939068 | D49: ='CUADRO RENTING'!M44 -> 338.0304591 | E49: =E48*(1+'CUADRO RENTING'!$F$11) -> 1158.900303 | F49: =F48*0.99*(1+'CUADRO RENTING'!$F$11) -> 2301.880239 | G49: 4339.888545 | H49: 0.7174209468 | I49: 75831.40377 | J49: =IF(ISERROR(IRR($G$22:$G49)),"",IRR($G$22:$G49)) ->  | L49: Diciembre | M49: ='AHORRO FOTOVOLTAICA'!B35 -> 862.199087 | N49: ='AHORRO FOTOVOLTAICA'!C35 -> 0.006566850538 | O49: ='AHORRO FOTOVOLTAICA'!D35 ->  | P49: ='AHORRO FOTOVOLTAICA'!E35 ->  | Q49: ='AHORRO FOTOVOLTAICA'!F35 ->  | R49: ='AHORRO FOTOVOLTAICA'!G35 ->  | S49: ='AHORRO FOTOVOLTAICA'!H35 ->  | T49: ='AHORRO FOTOVOLTAICA'!I35 ->  | U49: ='AHORRO FOTOVOLTAICA'!J35 ->  | V49: ='AHORRO FOTOVOLTAICA'!K35 ->  | W49: ='AHORRO FOTOVOLTAICA'!L35 ->  | X49: ='AHORRO FOTOVOLTAICA'!M35 ->  | Y49: Diciembre | Z49: 0 | AA49: 0 | AB49: 0 | AC49: 0 | AD49: 0 | BA49: -75831.40377
A50: 29 | B50: =B49*(1+'CUADRO RENTING'!$F$11) -> 6170.277486 | C50: =C49*0.996*(1+'CUADRO RENTING'!$F$13) -> 3661.631284 | D50: ='CUADRO RENTING'!M45 -> 344.7910683 | E50: =E49*(1+'CUADRO RENTING'!$F$11) -> 1182.078309 | F50: =F49*0.99*(1+'CUADRO RENTING'!$F$11) -> 2324.438665 | G50: 4459.200572 | H50: 0.7226904435 | I50: 80290.60434 | J50: =IF(ISERROR(IRR($G$22:$G50)),"",IRR($G$22:$G50)) ->  | BA50: -80290.60434
A51: 30 | B51: =B50*(1+'CUADRO RENTING'!$F$11) -> 6293.683035 | C51: =C50*0.996*(1+'CUADRO RENTING'!$F$13) -> 3792.864149 | D51: ='CUADRO RENTING'!M46 -> 351.6868896 | E51: =E50*(1+'CUADRO RENTING'!$F$11) -> 1205.719875 | F51: =F50*0.99*(1+'CUADRO RENTING'!$F$11) -> 2347.218164 | G51: 4582.675549 | H51: 0.7281389169 | I51: 84873.27989 | J51: =IF(ISERROR(IRR($G$22:$G51)),"",IRR($G$22:$G51)) ->  | Z51: p2 | AA51: p3 | AB51: p4 | AC51: p5 | AD51: p6 | BA51: -84873.27989
A52: 31 | B52: =B51*(1+'CUADRO RENTING'!$F$11) -> 6419.556696 | C52: =C51*0.996*(1+'CUADRO RENTING'!$F$13) -> 3928.8004 | D52: ='CUADRO RENTING'!M47 -> 358.7206274 | E52: =E51*(1+'CUADRO RENTING'!$F$11) -> 1229.834272 | F52: =F51*0.99*(1+'CUADRO RENTING'!$F$11) -> 2370.220902 | G52: 4710.466403 | H52: 0.7337681752 | I52: 89583.74629 | J52: =IF(ISERROR(IRR($G$22:$G52)),"",IRR($G$22:$G52)) ->  | M52: precio p1 | N52: precio p2 | O52: precio p3 | P52: precio p4 | Q52: precio p5 | R52: precio p6 | S52: Total mes | Y52: Enero | Z52: =IF(O38="",0,O38) -> 0 | AA52: =IF(Q38="",0,Q38) -> 0 | AB52: =IF(S38="",0,S38) -> 0 | AC52: =IF(U38="",0,U38) -> 0 | AD52: =IF(W38="",0,W38) -> 0 | BA52: -89583.74629
A53: 32 | B53: =B52*(1+'CUADRO RENTING'!$F$11) -> 6547.94783 | C53: =C52*0.996*(1+'CUADRO RENTING'!$F$13) -> 4069.608607 | D53: ='CUADRO RENTING'!M48 -> 365.89504 | E53: =E52*(1+'CUADRO RENTING'!$F$11) -> 1254.430958 | F53: =F52*0.99*(1+'CUADRO RENTING'!$F$11) -> 2393.449067 | G53: 4842.731676 | H53: 0.7395800641 | I53: 94426.47797 | J53: =IF(ISERROR(IRR($G$22:$G53)),"",IRR($G$22:$G53)) ->  | L53: Enero | M53: =M38*N38 -> 6.314988587 | N53: =Z52*Z38 -> 0 | O53: =AA52*AA38 -> 0 | P53: =AB52*AB38 -> 0 | Q53: =AC52*AC38 -> 0 | R53: =AD52*AD38 -> 0 | S53: =SUM(M53:R53) -> 6.314988587 | Y53: Febrero | Z53: =IF(O39="",0,O39) -> 0 | AA53: =IF(Q39="",0,Q39) -> 0 | AB53: =IF(S39="",0,S39) -> 0 | AC53: =IF(U39="",0,U39) -> 0 | AD53: =IF(W39="",0,W39) -> 0 | BA53: -94426.47797
A54: 33 | B54: =B53*(1+'CUADRO RENTING'!$F$11) -> 6678.906787 | C54: =C53*0.996*(1+'CUADRO RENTING'!$F$13) -> 4215.463379 | D54: ='CUADRO RENTING'!M49 -> 373.2129408 | E54: =E53*(1+'CUADRO RENTING'!$F$11) -> 1279.519577 | F54: =F53*0.99*(1+'CUADRO RENTING'!$F$11) -> 2416.904868 | G54: 4979.635729 | H54: 0.7455764676 | I54: 99406.1137 | J54: =IF(ISERROR(IRR($G$22:$G54)),"",IRR($G$22:$G54)) ->  | L54: Febrero | M54: =M39*N39 -> 6.847577986 | N54: =Z53*Z39 -> 0 | O54: 0 | P54: 0 | Q54: 0 | R54: 0 | S54: =SUM(M54:R54) -> 6.847577986 | Y54: Marzo | Z54: 0 | AA54: 0 | AB54: 0 | AC54: 0 | AD54: 0 | BA54: -99406.1137
A55: 34 | B55: =B54*(1+'CUADRO RENTING'!$F$11) -> 6812.484922 | C55: =C54*0.996*(1+'CUADRO RENTING'!$F$13) -> 4366.545587 | D55: ='CUADRO RENTING'!M50 -> 380.6771996 | E55: =E54*(1+'CUADRO RENTING'!$F$11) -> 1305.109968 | F55: =F54*0.99*(1+'CUADRO RENTING'!$F$11) -> 2440.590536 | G55: 5121.348954 | H55: 0.7517593085 | I55: 104527.4627 | J55: =IF(ISERROR(IRR($G$22:$G55)),"",IRR($G$22:$G55)) ->  | L55: Marzo | M55: 9.130103982 | N55: 0 | O55: 0 | P55: 0 | Q55: 0 | R55: 0 | S55: 9.130103982 | Y55: Abril | Z55: 0 | AA55: 0 | AB55: 0 | AC55: 0 | AD55: 0 | BA55: -104527.4627
A56: 35 | B56: =B55*(1+'CUADRO RENTING'!$F$11) -> 6948.734621 | C56: =C55*0.996*(1+'CUADRO RENTING'!$F$13) -> 4523.042581 | D56: ='CUADRO RENTING'!M51 -> 388.2907436 | E56: =E55*(1+'CUADRO RENTING'!$F$11) -> 1331.212168 | F56: =F55*0.99*(1+'CUADRO RENTING'!$F$11) -> 2464.508323 | G56: 5268.047992 | H56: 0.7581305489 | I56: 109795.5106 | J56: =IF(ISERROR(IRR($G$22:$G56)),"",IRR($G$22:$G56)) ->  | L56: Abril | M56: 9.003296982 | N56: 0 | O56: 0 | P56: 0 | Q56: 0 | R56: 0 | S56: 9.003296982 | Y56: Mayo | Z56: 0 | AA56: 0 | AB56: 0 | AC56: 0 | AD56: 0 | BA56: -109795.5106
A57: 36 | B57: =B56*(1+'CUADRO RENTING'!$F$11) -> 7087.709313 | C57: =C56*0.996*(1+'CUADRO RENTING'!$F$13) -> 4685.148427 | D57: ='CUADRO RENTING'!M52 -> 396.0565585 | E57: =E56*(1+'CUADRO RENTING'!$F$11) -> 1357.836411 | F57: =F56*0.99*(1+'CUADRO RENTING'!$F$11) -> 2488.660504 | G57: 5419.915961 | H57: 0.7646921906 | I57: 115215.4266 | J57: =IF(ISERROR(IRR($G$22:$G57)),"",IRR($G$22:$G57)) ->  | L57: Mayo | M57: 9.89094598 | N57: 0 | O57: 0 | P57: 0 | Q57: 0 | R57: 0 | S57: 9.89094598 | Y57: Junio | Z57: 0 | AA57: 0 | AB57: 0 | AC57: 0 | AD57: 0 | BA57: -115215.4266
A58: 37 | B58: =B57*(1+'CUADRO RENTING'!$F$11) -> 7229.4635 | C58: =C57*0.996*(1+'CUADRO RENTING'!$F$13) -> 4853.064146 | D58: ='CUADRO RENTING'!M53 -> 403.9776896 | E58: =E57*(1+'CUADRO RENTING'!$F$11) -> 1384.993139 | F58: =F57*0.99*(1+'CUADRO RENTING'!$F$11) -> 2513.049377 | G58: 5577.142695 | H58: 0.7714462761 | I58: 120792.5693 | J58: =IF(ISERROR(IRR($G$22:$G58)),"",IRR($G$22:$G58)) ->  | L58: Junio | M58: 10.08115648 | N58: 0 | O58: 0 | P58: 0 | Q58: 0 | R58: 0 | S58: 10.08115648 | Y58: Julio | Z58: 0 | AA58: 0 | AB58: 0 | AC58: 0 | AD58: 0 | BA58: -120792.5693
A59: 38 | B59: =B58*(1+'CUADRO RENTING'!$F$11) -> 7374.05277 | C59: =C58*0.996*(1+'CUADRO RENTING'!$F$13) -> 5026.997965 | D59: ='CUADRO RENTING'!M54 -> 412.0572434 | E59: =E58*(1+'CUADRO RENTING'!$F$11) -> 1412.693002 | F59: =F58*0.99*(1+'CUADRO RENTING'!$F$11) -> 2537.677261 | G59: 5739.924981 | H59: 0.7783948882 | I59: 126532.4943 | J59: =IF(ISERROR(IRR($G$22:$G59)),"",IRR($G$22:$G59)) ->  | L59: Julio | M59: 10.39817398 | N59: 0 | O59: 0 | P59: 0 | Q59: 0 | R59: 0 | S59: 10.39817398 | Y59: Agosto | Z59: 0 | AA59: 0 | AB59: 0 | AC59: 0 | AD59: 0 | BA59: -126532.4943
A60: 39 | B60: =B59*(1+'CUADRO RENTING'!$F$11) -> 7521.533825 | C60: =C59*0.996*(1+'CUADRO RENTING'!$F$13) -> 5207.165572 | D60: ='CUADRO RENTING'!M55 -> 420.2983883 | E60: =E59*(1+'CUADRO RENTING'!$F$11) -> 1440.946862 | F60: =F59*0.99*(1+'CUADRO RENTING'!$F$11) -> 2562.546498 | G60: 5908.46682 | H60: 0.7855401515 | I60: 132440.9611 | J60: =IF(ISERROR(IRR($G$22:$G60)),"",IRR($G$22:$G60)) ->  | K60: TIR A 40 AÑOS | L60: Agosto | M60: 10.01775298 | N60: 0 | O60: 0 | P60: 0 | Q60: 0 | R60: 0 | S60: 10.01775298 | Y60: Septiembre | Z60: 0 | AA60: 0 | AB60: 0 | AC60: 0 | AD60: 0 | BA60: -132440.9611
A61: 40 | B61: =B60*(1+'CUADRO RENTING'!$F$11) -> 7671.964501 | C61: =C60*0.996*(1+'CUADRO RENTING'!$F$13) -> 5393.790387 | D61: ='CUADRO RENTING'!M56 -> 428.7043561 | E61: =E60*(1+'CUADRO RENTING'!$F$11) -> 1469.765799 | F61: =F60*0.99*(1+'CUADRO RENTING'!$F$11) -> 2587.659454 | G61: 6082.979685 | H61: 0.7928842324 | I61: 138523.9408 | J61: =IF(ISERROR(IRR($G$22:$G61)),"",IRR($G$22:$G61)) ->  | K61: =IRR(G21:G61) -> 0.2043880407 | L61: Septiembre | M61: 8.559472483 | N61: 0 | O61: 0 | P61: 0 | Q61: 0 | R61: 0 | S61: 8.559472483 | Y61: Octubre | Z61: 0 | AA61: 0 | AB61: 0 | AC61: 0 | AD61: 0 | BA61: -138523.9408
L62: Octubre | M62: 7.925437484 | N62: 0 | O62: 0 | P62: 0 | Q62: 0 | R62: 0 | S62: 7.925437484 | Y62: Noviembre | Z62: 0 | AA62: 0 | AB62: 0 | AC62: 0 | AD62: 0
L63: Noviembre | M63: 6.169160538 | N63: 0 | O63: 0 | P63: 0 | Q63: 0 | R63: 0 | S63: 6.169160538 | Y63: Diciembre | Z63: 0 | AA63: 0 | AB63: 0 | AC63: 0 | AD63: 0
L64: Diciembre | M64: 5.661932539 | N64: 0 | O64: 0 | P64: 0 | Q64: 0 | R64: 0 | S64: 5.661932539
L65: Total periodo | M65: =SUM(M53:M64) -> 100 | N65: 0 | O65: 0 | P65: 0 | Q65: 0 | R65: 0 | S65: =SUM(M65:R65) -> 100 | T65: =SUM(S53:S64) -> 100
M68: PRODUCCIÓN FOTOVOLTAICA | U68: PRECIO CONSUMO | AC68: EXCESOS(NEGATIVO, TE FALTA) | AK68: FALTA(NEGATIVO, TE SOBRA) | AR68: PRECIO FALTA ENERGÍA Y QUE CONSUMES DE RED
M69: P1 | N69: p2 | O69: p3 | P69: p4 | Q69: p5 | R69: p6 | U69: PRECIO 1 | V69: PRECIO 2 | W69: PRECIO 3 | X69: PRECIO 4 | Y69: PRECIO 5 | Z69: PRECIO 6 | AC69: P1 | AD69: p2 | AE69: p3 | AF69: p4 | AG69: p5 | AH69: p6 | AK69: P1 | AL69: p2 | AM69: p3 | AN69: p4 | AO69: p5 | AP69: p6 | AS69: P1 | AT69: p2 | AU69: p3 | AV69: p4 | AW69: p5 | AX69: p6
L70: Enero | M70: =M38 -> 961.6464621 | N70: =Z52 -> 0 | O70: 0 | P70: 0 | Q70: 0 | R70: 0 | S70: =SUM(M70:R70) -> 961.6464621 | T70: Enero | U70: =N5 -> 0.1104271942 | V70: =Z5 -> 0 | W70: 0 | X70: 0 | Y70: 0 | Z70: 0 | AB70: Enero | AC70: =M70-M5 -> 717.6464621 | AD70: =N70-O5 -> 0 | AE70: =O70-Q5 -> 0 | AF70: =P70-S5 -> 0 | AG70: =Q70-U5 -> 0 | AH70: =R70-W5 -> 0 | AJ70: Enero | AK70: =M5-M70 -> -717.6464621 | AL70: =O5-N70 -> 0 | AM70: =Q5-O70 -> 0 | AN70: =S5-P70 -> 0 | AO70: =U5-Q70 -> 0 | AP70: =W5-R70 -> 0 | AR70: Enero | AS70: =IF(AK70<0,0,AK70*'AHORRO FOTOVOLTAICA'!$B$3) -> 0 | AT70: =IF(AL70<0,0,AL70*'AHORRO FOTOVOLTAICA'!$C$3) -> 0 | AU70: =IF(AM70<0,0,AM70*'AHORRO FOTOVOLTAICA'!$D$3) -> 0 | AV70: =IF(AN70<0,0,AN70*'AHORRO FOTOVOLTAICA'!$E$3) -> 0 | AW70: =IF(AO70<0,0,AO70*'AHORRO FOTOVOLTAICA'!$F$3) -> 0 | AX70: =IF(AP70<0,0,AP70*'AHORRO FOTOVOLTAICA'!$G$3) -> 0
L71: Febrero | M71: 1042.749176 | N71: 0 | O71: 0 | P71: 0 | Q71: 0 | R71: 0 | S71: =SUM(M71:R71) -> 1042.749176 | T71: Febrero | U71: 0.1104271942 | V71: 0 | W71: 0 | X71: 0 | Y71: 0 | Z71: 0 | AB71: Febrero | AC71: 773.7491758 | AD71: 0 | AE71: 0 | AF71: 0 | AG71: 0 | AH71: 0 | AJ71: Febrero | AK71: -773.7491758 | AL71: 0 | AM71: 0 | AN71: 0 | AO71: 0 | AP71: 0 | AR71: Febrero | AS71: =IF(AK71<0,0,AK71*'AHORRO FOTOVOLTAICA'!$B$3) -> 0 | AT71: =IF(AL71<0,0,AL71*'AHORRO FOTOVOLTAICA'!$C$3) -> 0 | AU71: =IF(AM71<0,0,AM71*'AHORRO FOTOVOLTAICA'!$D$3) -> 0 | AV71: =IF(AN71<0,0,AN71*'AHORRO FOTOVOLTAICA'!$E$3) -> 0 | AW71: =IF(AO71<0,0,AO71*'AHORRO FOTOVOLTAICA'!$F$3) -> 0 | AX71: =IF(AP71<0,0,AP71*'AHORRO FOTOVOLTAICA'!$G$3) -> 0
L72: Marzo | M72: 1390.332234 | N72: 0 | O72: 0 | P72: 0 | Q72: 0 | R72: 0 | S72: 1390.332234 | T72: Marzo | U72: 0.1104271942 | V72: 0 | W72: 0 | X72: 0 | Y72: 0 | Z72: 0 | AB72: Marzo | AC72: -486.6677657 | AD72: 0 | AE72: 0 | AF72: 0 | AG72: 0 | AH72: 0 | AJ72: Marzo | AK72: 486.6677657 | AL72: 0 | AM72: 0 | AN72: 0 | AO72: 0 | AP72: 0 | AR72: Marzo | AS72: =IF(AK72<0,0,AK72*'AHORRO FOTOVOLTAICA'!$B$3) -> 51.12736879 | AT72: =IF(AL72<0,0,AL72*'AHORRO FOTOVOLTAICA'!$C$3) -> 0 | AU72: =IF(AM72<0,0,AM72*'AHORRO FOTOVOLTAICA'!$D$3) -> 0 | AV72: =IF(AN72<0,0,AN72*'AHORRO FOTOVOLTAICA'!$E$3) -> 0 | AW72: =IF(AO72<0,0,AO72*'AHORRO FOTOVOLTAICA'!$F$3) -> 0 | AX72: =IF(AP72<0,0,AP72*'AHORRO FOTOVOLTAICA'!$G$3) -> 0
L73: Abril | M73: 1371.022064 | N73: 0 | O73: 0 | P73: 0 | Q73: 0 | R73: 0 | S73: 1371.022064 | T73: Abril | U73: 0.1104271942 | V73: 0 | W73: 0 | X73: 0 | Y73: 0 | Z73: 0 | AB73: Abril | AC73: -2230.977936 | AD73: 0 | AE73: 0 | AF73: 0 | AG73: 0 | AH73: 0 | AJ73: Abril | AK73: 2230.977936 | AL73: 0 | AM73: 0 | AN73: 0 | AO73: 0 | AP73: 0 | AR73: Abril | AS73: =IF(AK73<0,0,AK73*'AHORRO FOTOVOLTAICA'!$B$3) -> 234.377618 | AT73: =IF(AL73<0,0,AL73*'AHORRO FOTOVOLTAICA'!$C$3) -> 0 | AU73: =IF(AM73<0,0,AM73*'AHORRO FOTOVOLTAICA'!$D$3) -> 0 | AV73: =IF(AN73<0,0,AN73*'AHORRO FOTOVOLTAICA'!$E$3) -> 0 | AW73: =IF(AO73<0,0,AO73*'AHORRO FOTOVOLTAICA'!$F$3) -> 0 | AX73: =IF(AP73<0,0,AP73*'AHORRO FOTOVOLTAICA'!$G$3) -> 0
L74: Mayo | M74: 1506.193254 | N74: 0 | O74: 0 | P74: 0 | Q74: 0 | R74: 0 | S74: 1506.193254 | T74: Mayo | U74: 0.1104271942 | V74: 0 | W74: 0 | X74: 0 | Y74: 0 | Z74: 0 | AB74: Mayo | AC74: -2626.806746 | AD74: 0 | AE74: 0 | AF74: 0 | AG74: 0 | AH74: 0 | AJ74: Mayo | AK74: 2626.806746 | AL74: 0 | AM74: 0 | AN74: 0 | AO74: 0 | AP74: 0 | AR74: Mayo | AS74: =IF(AK74<0,0,AK74*'AHORRO FOTOVOLTAICA'!$B$3) -> 275.9618095 | AT74: =IF(AL74<0,0,AL74*'AHORRO FOTOVOLTAICA'!$C$3) -> 0 | AU74: =IF(AM74<0,0,AM74*'AHORRO FOTOVOLTAICA'!$D$3) -> 0 | AV74: =IF(AN74<0,0,AN74*'AHORRO FOTOVOLTAICA'!$E$3) -> 0 | AW74: =IF(AO74<0,0,AO74*'AHORRO FOTOVOLTAICA'!$F$3) -> 0 | AX74: =IF(AP74<0,0,AP74*'AHORRO FOTOVOLTAICA'!$G$3) -> 0
L75: Junio | M75: 1535.158509 | N75: 0 | O75: 0 | P75: 0 | Q75: 0 | R75: 0 | S75: 1535.158509 | T75: Junio | U75: 0.1104271942 | V75: 0 | W75: 0 | X75: 0 | Y75: 0 | Z75: 0 | AB75: Junio | AC75: -4222.841491 | AD75: 0 | AE75: 0 | AF75: 0 | AG75: 0 | AH75: 0 | AJ75: Junio | AK75: 4222.841491 | AL75: 0 | AM75: 0 | AN75: 0 | AO75: 0 | AP75: 0 | AR75: Junio | AS75: =IF(AK75<0,0,AK75*'AHORRO FOTOVOLTAICA'!$B$3) -> 443.6348357 | AT75: =IF(AL75<0,0,AL75*'AHORRO FOTOVOLTAICA'!$C$3) -> 0 | AU75: =IF(AM75<0,0,AM75*'AHORRO FOTOVOLTAICA'!$D$3) -> 0 | AV75: =IF(AN75<0,0,AN75*'AHORRO FOTOVOLTAICA'!$E$3) -> 0 | AW75: =IF(AO75<0,0,AO75*'AHORRO FOTOVOLTAICA'!$F$3) -> 0 | AX75: =IF(AP75<0,0,AP75*'AHORRO FOTOVOLTAICA'!$G$3) -> 0
L76: Julio | M76: 1583.433934 | N76: 0 | O76: 0 | P76: 0 | Q76: 0 | R76: 0 | S76: 1583.433934 | T76: Julio | U76: 0.1104271942 | V76: 0 | W76: 0 | X76: 0 | Y76: 0 | Z76: 0 | AB76: Julio | AC76: -4292.566066 | AD76: 0 | AE76: 0 | AF76: 0 | AG76: 0 | AH76: 0 | AJ76: Julio | AK76: 4292.566066 | AL76: 0 | AM76: 0 | AN76: 0 | AO76: 0 | AP76: 0 | AR76: Julio | AS76: =IF(AK76<0,0,AK76*'AHORRO FOTOVOLTAICA'!$B$3) -> 450.9598207 | AT76: =IF(AL76<0,0,AL76*'AHORRO FOTOVOLTAICA'!$C$3) -> 0 | AU76: =IF(AM76<0,0,AM76*'AHORRO FOTOVOLTAICA'!$D$3) -> 0 | AV76: =IF(AN76<0,0,AN76*'AHORRO FOTOVOLTAICA'!$E$3) -> 0 | AW76: =IF(AO76<0,0,AO76*'AHORRO FOTOVOLTAICA'!$F$3) -> 0 | AX76: =IF(AP76<0,0,AP76*'AHORRO FOTOVOLTAICA'!$G$3) -> 0
L77: Agosto | M77: 1525.503424 | N77: 0 | O77: 0 | P77: 0 | Q77: 0 | R77: 0 | S77: 1525.503424 | T77: Agosto | U77: 0.1104271942 | V77: 0 | W77: 0 | X77: 0 | Y77: 0 | Z77: 0 | AB77: Agosto | AC77: -2953.496576 | AD77: 0 | AE77: 0 | AF77: 0 | AG77: 0 | AH77: 0 | AJ77: Agosto | AK77: 2953.496576 | AL77: 0 | AM77: 0 | AN77: 0 | AO77: 0 | AP77: 0 | AR77: Agosto | AS77: =IF(AK77<0,0,AK77*'AHORRO FOTOVOLTAICA'!$B$3) -> 310.2825363 | AT77: =IF(AL77<0,0,AL77*'AHORRO FOTOVOLTAICA'!$C$3) -> 0 | AU77: =IF(AM77<0,0,AM77*'AHORRO FOTOVOLTAICA'!$D$3) -> 0 | AV77: =IF(AN77<0,0,AN77*'AHORRO FOTOVOLTAICA'!$E$3) -> 0 | AW77: =IF(AO77<0,0,AO77*'AHORRO FOTOVOLTAICA'!$F$3) -> 0 | AX77: =IF(AP77<0,0,AP77*'AHORRO FOTOVOLTAICA'!$G$3) -> 0
L78: Septiembre | M78: 1303.43647 | N78: 0 | O78: 0 | P78: 0 | Q78: 0 | R78: 0 | S78: 1303.43647 | T78: Septiembre | U78: 0.1104271942 | V78: 0 | W78: 0 | X78: 0 | Y78: 0 | Z78: 0 | AB78: Septiembre | AC78: -2029.56353 | AD78: 0 | AE78: 0 | AF78: 0 | AG78: 0 | AH78: 0 | AJ78: Septiembre | AK78: 2029.56353 | AL78: 0 | AM78: 0 | AN78: 0 | AO78: 0 | AP78: 0 | AR78: Septiembre | AS78: =IF(AK78<0,0,AK78*'AHORRO FOTOVOLTAICA'!$B$3) -> 213.2178262 | AT78: =IF(AL78<0,0,AL78*'AHORRO FOTOVOLTAICA'!$C$3) -> 0 | AU78: =IF(AM78<0,0,AM78*'AHORRO FOTOVOLTAICA'!$D$3) -> 0 | AV78: =IF(AN78<0,0,AN78*'AHORRO FOTOVOLTAICA'!$E$3) -> 0 | AW78: =IF(AO78<0,0,AO78*'AHORRO FOTOVOLTAICA'!$F$3) -> 0 | AX78: =IF(AP78<0,0,AP78*'AHORRO FOTOVOLTAICA'!$G$3) -> 0
L79: Octubre | M79: 1206.88562 | N79: 0 | O79: 0 | P79: 0 | Q79: 0 | R79: 0 | S79: 1206.88562 | T79: Octubre | U79: 0.1104271942 | V79: 0 | W79: 0 | X79: 0 | Y79: 0 | Z79: 0 | AB79: Octubre | AC79: -880.1143799 | AD79: 0 | AE79: 0 | AF79: 0 | AG79: 0 | AH79: 0 | AJ79: Octubre | AK79: 880.1143799 | AL79: 0 | AM79: 0 | AN79: 0 | AO79: 0 | AP79: 0 | AR79: Octubre | AS79: =IF(AK79<0,0,AK79*'AHORRO FOTOVOLTAICA'!$B$3) -> 92.4612963 | AT79: =IF(AL79<0,0,AL79*'AHORRO FOTOVOLTAICA'!$C$3) -> 0 | AU79: =IF(AM79<0,0,AM79*'AHORRO FOTOVOLTAICA'!$D$3) -> 0 | AV79: =IF(AN79<0,0,AN79*'AHORRO FOTOVOLTAICA'!$E$3) -> 0 | AW79: =IF(AO79<0,0,AO79*'AHORRO FOTOVOLTAICA'!$F$3) -> 0 | AX79: =IF(AP79<0,0,AP79*'AHORRO FOTOVOLTAICA'!$G$3) -> 0
L80: Noviembre | M80: 939.4397667 | N80: 0 | O80: 0 | P80: 0 | Q80: 0 | R80: 0 | S80: 939.4397667 | T80: Noviembre | U80: 0.1104271942 | V80: 0 | W80: 0 | X80: 0 | Y80: 0 | Z80: 0 | AB80: Noviembre | AC80: 720.4397667 | AD80: 0 | AE80: 0 | AF80: 0 | AG80: 0 | AH80: 0 | AJ80: Noviembre | AK80: -720.4397667 | AL80: 0 | AM80: 0 | AN80: 0 | AO80: 0 | AP80: 0 | AR80: Noviembre | AS80: =IF(AK80<0,0,AK80*'AHORRO FOTOVOLTAICA'!$B$3) -> 0 | AT80: =IF(AL80<0,0,AL80*'AHORRO FOTOVOLTAICA'!$C$3) -> 0 | AU80: =IF(AM80<0,0,AM80*'AHORRO FOTOVOLTAICA'!$D$3) -> 0 | AV80: =IF(AN80<0,0,AN80*'AHORRO FOTOVOLTAICA'!$E$3) -> 0 | AW80: =IF(AO80<0,0,AO80*'AHORRO FOTOVOLTAICA'!$F$3) -> 0 | AX80: =IF(AP80<0,0,AP80*'AHORRO FOTOVOLTAICA'!$G$3) -> 0
L81: Diciembre | M81: 862.199087 | N81: 0 | O81: 0 | P81: 0 | Q81: 0 | R81: 0 | S81: 862.199087 | T81: Diciembre | U81: 0.1104271942 | V81: 0 | W81: 0 | X81: 0 | Y81: 0 | Z81: 0 | AB81: Diciembre | AC81: 645.199087 | AD81: 0 | AE81: 0 | AF81: 0 | AG81: 0 | AH81: 0 | AJ81: Diciembre | AK81: -645.199087 | AL81: 0 | AM81: 0 | AN81: 0 | AO81: 0 | AP81: 0 | AR81: Diciembre | AS81: =IF(AK81<0,0,AK81*'AHORRO FOTOVOLTAICA'!$B$3) -> 0 | AT81: =IF(AL81<0,0,AL81*'AHORRO FOTOVOLTAICA'!$C$3) -> 0 | AU81: =IF(AM81<0,0,AM81*'AHORRO FOTOVOLTAICA'!$D$3) -> 0 | AV81: =IF(AN81<0,0,AN81*'AHORRO FOTOVOLTAICA'!$E$3) -> 0 | AW81: =IF(AO81<0,0,AO81*'AHORRO FOTOVOLTAICA'!$F$3) -> 0 | AX81: =IF(AP81<0,0,AP81*'AHORRO FOTOVOLTAICA'!$G$3) -> 0 | AY81: PRECIO ENERGÍA NO PRODUCIDA Y QUE CONSUMES DE RED
M82: =SUM(M70:M81) -> 15228 | N82: 0 | O82: 0 | P82: 0 | Q82: 0 | R82: 0 | S82: 15228 | AS82: =SUM(AS70:AS81) -> 2072.023112 | AT82: 0 | AU82: 0 | AV82: 0 | AW82: 0 | AX82: 0 | AY82: =SUM(AS82:AX82) -> 2072.023112
U84: PRECIO PEAJE
L85: Enero | M85: =IF( M70<M5,M70*U70,M5*U70) -> 26.9442354 | N85: =IF( N70<O5,N70*V70,O5*V70) -> 0 | O85: =IF(O70<Q5,O70*W70,Q5*W70) -> 0 | P85: =IF(P70<S5,P70*X70,S5*X70) -> 0 | Q85: =IF(Q70<U5,Q70*Y70,U5*Y70) -> 0 | R85: =IF(R70<W5,R70*Z70,W5*Z70) -> 0 | U85: PRECIO 1 | V85: PRECIO 2 | W85: PRECIO 3 | X85: PRECIO 4 | Y85: PRECIO 5 | Z85: PRECIO 6
L86: Febrero | M86: 29.70491525 | N86: 0 | O86: 0 | P86: 0 | Q86: 0 | R86: 0 | T86: Enero | U86: =IF(M70<M5,M70*$C$3,M5*$C$3) -> 13.391452 | V86: =IF(N70<O5,N70*$D$3,O5*$D$3) -> 0 | W86: =IF(O70<Q5,O70*$E$3,Q5*$E$3) -> 0 | X86: =IF(P70<S5,P70*$G$3,S5*$G$3) -> 0 | Y86: =IF(Q70<U5,Q70*$H$3,U5*$H$3) -> 0 | Z86: =IF(R70<W5,R70*$K$3,W5*$K$3) -> 0
L87: Marzo | M87: 153.5304877 | N87: 0 | O87: 0 | P87: 0 | Q87: 0 | R87: 0 | T87: Febrero | U87: 14.763527 | V87: 0 | W87: 0 | X87: 0 | Y87: 0 | Z87: 0
L88: Abril | M88: 151.3981198 | N88: 0 | O88: 0 | P88: 0 | Q88: 0 | R88: 0 | T88: Marzo | U88: 76.30560402 | V88: 0 | W88: 0 | X88: 0 | Y88: 0 | Z88: 0
L89: Mayo | M89: 166.324695 | N89: 0 | O89: 0 | P89: 0 | Q89: 0 | R89: 0 | T89: Abril | U89: 75.24580396 | V89: 0 | W89: 0 | X89: 0 | Y89: 0 | Z89: 0
L90: Junio | M90: 169.5232468 | N90: 0 | O90: 0 | P90: 0 | Q90: 0 | R90: 0 | T90: Mayo | U90: 82.66440435 | V90: 0 | W90: 0 | X90: 0 | Y90: 0 | Z90: 0
L91: Julio | M91: 174.8541666 | N91: 0 | O91: 0 | P91: 0 | Q91: 0 | R91: 0 | T91: Junio | U91: 84.25410444 | V91: 0 | W91: 0 | X91: 0 | Y91: 0 | Z91: 0
L92: Agosto | M92: 168.4570629 | N92: 0 | O92: 0 | P92: 0 | Q92: 0 | R92: 0 | T92: Julio | U92: 86.90360458 | V92: 0 | W92: 0 | X92: 0 | Y92: 0 | Z92: 0
L93: Septiembre | M93: 143.9348322 | N93: 0 | O93: 0 | P93: 0 | Q93: 0 | R93: 0 | T93: Agosto | U93: 83.72420441 | V93: 0 | W93: 0 | X93: 0 | Y93: 0 | Z93: 0
L94: Octubre | M94: 133.2729928 | N94: 0 | O94: 0 | P94: 0 | Q94: 0 | R94: 0 | T94: Septiembre | U94: 71.53650377 | V94: 0 | W94: 0 | X94: 0 | Y94: 0 | Z94: 0
L95: Noviembre | M95: 24.18355554 | N95: 0 | O95: 0 | P95: 0 | Q95: 0 | R95: 0 | T95: Octubre | U95: 66.23750349 | V95: 0 | W95: 0 | X95: 0 | Y95: 0 | Z95: 0
L96: Diciembre | M96: 23.96270115 | N96: 0 | O96: 0 | P96: 0 | Q96: 0 | R96: 0 | T96: Noviembre | U96: 12.019377 | V96: 0 | W96: 0 | X96: 0 | Y96: 0 | Z96: 0
M97: =SUM(M85:M96) -> 1366.091011 | N97: 0 | O97: 0 | P97: 0 | Q97: 0 | R97: 0 | S97: =SUM(M97:R97) -> 1366.091011 | T97: Diciembre | U97: 11.909611 | V97: 0 | W97: 0 | X97: 0 | Y97: 0 | Z97: 0
U98: =SUM(U86:U97) -> 678.9557 | V98: 0 | W98: 0 | X98: 0 | Y98: 0 | Z98: 0 | AA98: =SUM(U98:Z98) -> 678.9557
M117: P1 | N117: P2 | O117: P3 | P117: P4 | Q117: P5 | R117: P6
I118: 2.0A | L118: 2.0A | M118: 0.043187 | N118: 0 | O118: 0 | P118: 0 | Q118: 0 | R118: 0
I119: 2.0DHA | L119: 2.0DHA | M119: 0.057144 | O119: 0.06148
L120: 2.0DHS | M120: 0.057938 | N120: 0.00643 | O120: 0.006112
L121: 2.1A | M121: 0.054883
I122: 2.1A | L122: 2.1DHA | M122: 0.068081 | O122: 0.01545
I123: 2.1DHA | L123: 2.1DHS | M123: 0.068875 | N123: 0.01822 | O123: 0.01137
I124: 3.0A | L124: 3.0A | M124: 0.020568 | N124: 0.013696 | O124: 0.008951
I125: 3.1A | L125: 3.1A | M125: 0.015301 | N125: 0.009998 | O125: 0.012035
I126: 6.1A | L126: 6.1A | M126: 0.011775 | N126: 0.011336 | O126: 0.007602 | P126: 0.009164 | Q126: 0.009986 | R126: 0.00672
L127: 6.1B | M127: 0.011775 | N127: 0.008312 | O127: 0.007881 | P127: 0.008377 | Q127: 0.008716 | R127: 0.006245
L128: 6.2 | M128: 0.012669 | N128: 0.011554 | O128: 0.007881 | P128: 0.008377 | Q128: 0.008716 | R128: 0.006245
L129: 6.3 | M129: 0.015106 | N129: 0.012816 | O129: 0.00853 | P129: 0.00851 | Q129: 0.008673 | R129: 0.006278
L130: 6.4 | M130: 0.011775 | N130: 0.008531 | O130: 0.007322 | P130: 0.007788 | Q130: 0.008257 | R130: 0.006104

Sheet PORCENTAJES (hidden)
G1: 2.0 A | H1: 2.0 DHA | J1: 2.1 A | K1: 2.1 DHA | M1: 3.0 | Q1: 3.1 | T1: 6.1 | Z1: CITY | AA1: ZONA
A2: Month | B2: Ed | C2: Em | D2: Hd | E2: Hm | G2: P | H2: P1(punta) | I2: P3 (valle) | J2: P | K2: P1 | L2: P2 | M2: P1 | N2: P2 | O2: P3 | P2: P1 | Q2: P2 | R2: P3 | S2: P1 | T2: P2 | U2: P3 | V2: P4 | W2: P5 | X2: P6 | Z2: Alicante | AA2: 5 | AB2: 0:00-1:00 | AC2: 1:00-2:00 | AD2: 2:00-3:00 | AE2: 3:00-4:00 | AF2: 4:00-5:00 | AG2: 5:00-6:00 | AH2: 6:00-7:00 | AI2: 7:00-8:00 | AJ2: 8:00-9:00 | AK2: 9:00-10:00 | AL2: 10:00-11:00 | AM2: 11:00-12:00 | AN2: 12:00-13:00 | AO2: 13:00-14:00 | AP2: 14:00-15:00 | AQ2: 15:00-16:00 | AR2: 16:00-17:00 | AS2: 17:00-18:00 | AT2: 18:00-19:00 | AU2: 19:00-20:00 | AV2: 20:00-21:00 | AW2: 21:00-22:00 | AX2: 22:00-23:00 | AY2: 23:00-24:00 | BA2: PRUEBA
A3: Jan | B3: ='IMPORTACIÓN DATOS ANUALES PVGIS'!C6 -> 3,21 | C3: ='IMPORTACIÓN DATOS ANUALES PVGIS'!D6 -> 99,6 | D3: ='IMPORTACIÓN DATOS ANUALES PVGIS'!E6 -> 4,10 | E3: ='IMPORTACIÓN DATOS ANUALES PVGIS'!F6 -> 127 | F3: =C3/$B$17 -> 0.06314988587 | G3: =F3 -> 0.06314988587 | H3: =F3*SUM(AN3:AW3) -> 0.04158282885 | I3: =G3-H3 -> 0.02156705703 | J3: =F3 -> 0.06314988587 | K3: =H3 -> 0.04158282885 | L3: =I3 -> 0.02156705703 | M3: =F3*SUM(AT3:AW3) -> 0 | N3: =F3-M3-O3 -> 0.06314988587 | O3: =F3*SUM(AB3:AI3) -> 0 | P3: =F3*((X40-Y40-Z40)*SUM(AS3:AX3))/X40 -> 0.0009107545403 | Q3: =F3-P3-R3 -> 0.04186820041 | R3: =F3*((X40-Y40-Z40)*SUM(AB3:AI3)+(Y40+PORCENTAJES!Z40)*SUM(AB3:AS3))/X40 -> 0.02037093093 | S3: =F3*((X40-Y40-Z40)*(SUM(AL3:AN3)+SUM(AT3:AV3)))/X40 -> 0.01752587115 | T3: =F3*((X40-Y40-Z40)*(SUM(AJ3:AK3)+SUM(AO3:AS3)+SUM(AW3:AY3)))/X40 -> 0.02525308379 | X3: =F3*((X40-Y40-Z40)*SUM(AB3:AI3)+(Y40+Z40)*SUM(AB3:AY3))/X40 -> 0.02037093093 | Y3: =SUM(S3:X3) -> 0.06314988587 | Z3: ENERO | AA3: ENERO | AB3: =AD25/$BB25 -> 0 | AC3: =AE25/$BB25 -> 0 | AD3: 0 | AE3: 0 | AF3: 0 | AG3: 0 | AH3: 0 | AI3: 0 | AJ3: 0.0172619838 | AK3: 0.07103970256 | AL3: 0.1119815872 | AM3: 0.1412384367 | AN3: 0.1564643916 | AO3: 0.1564643916 | AP3: 0.1412384367 | AQ3: 0.1119815872 | AR3: 0.07103970256 | AS3: 0.02128978002 | AT3: 0 | AU3: 0 | AV3: 0 | AW3: 0 | AX3: 0 | AY3: 0 | BA3: =SUM(AB3:AY3) -> 1 | BB3: enero | BC3: =IF(F3=Y3,"si","no") -> si
A4: Feb | B4: ='IMPORTACIÓN DATOS ANUALES PVGIS'!C7 -> 3,84 | C4: ='IMPORTACIÓN DATOS ANUALES PVGIS'!D7 -> 108 | D4: ='IMPORTACIÓN DATOS ANUALES PVGIS'!E7 -> 4,93 | E4: ='IMPORTACIÓN DATOS ANUALES PVGIS'!F7 -> 138 | F4: =C4/$B$17 -> 0.06847577986 | G4: =F4 -> 0.06847577986 | H4: =F4*SUM(AN4:AW4) -> 0.04446148311 | I4: =G4-H4 -> 0.02401429675 | J4: =F4 -> 0.06847577986 | K4: =H4 -> 0.04446148311 | L4: 0.02401429675 | M4: =F4*SUM(AT4:AW4) -> 0.0001486295997 | N4: =F4-M4-O4 -> 0.06832715026 | O4: =F4*SUM(AB4:AI4) -> 0 | P4: =F4*((X41-Y41-Z41)*SUM(AS4:AX4))/X41 -> 0.001706207139 | Q4: =F4-P4-R4 -> 0.04724752979 | R4: =F4*((X41-Y41-Z41)*SUM(AB4:AI4)+(Y41+PORCENTAJES!Z41)*SUM(AB4:AS4))/X41 -> 0.01952204293 | S4: =F4*((X41-Y41-Z41)*(SUM(AL4:AN4)+SUM(AT4:AV4)))/X41 -> 0.01930099432 | T4: =F4*((X41-Y41-Z41)*(SUM(AJ4:AK4)+SUM(AO4:AS4)+SUM(AW4:AY4)))/X41 -> 0.02961027701 | X4: =F4*((X41-Y41-Z41)*SUM(AB4:AI4)+(Y41+Z41)*SUM(AB4:AY4))/X41 -> 0.01956450853 | Y4: =SUM(S4:X4) -> 0.06847577986 | Z4: FEBRERO | AA4: FEBRERO | AB4: =AD26/$BB26 -> 0 | AC4: 0 | AD4: 0 | AE4: 0 | AF4: 0 | AG4: 0 | AH4: 0 | AI4: 0 | AJ4: 0.03271317829 | AK4: 0.07375968992 | AL4: 0.1093023256 | AM4: 0.1349224806 | AN4: 0.1482170543 | AO4: 0.1482170543 | AP4: 0.1349224806 | AQ4: 0.1093023256 | AR4: 0.07375968992 | AS4: 0.03271317829 | AT4: 0.002170542636 | AU4: 0 | AV4: 0 | AW4: 0 | AX4: 0 | AY4: 0 | BA4: =SUM(AB4:AY4) -> 1 | BB4: febrero | BC4: =IF(F4=Y4,"si","no") -> si
A5: Mar | B5: ='IMPORTACIÓN DATOS ANUALES PVGIS'!C8 -> 4,66 | C5: ='IMPORTACIÓN DATOS ANUALES PVGIS'!D8 -> 144 | D5: ='IMPORTACIÓN DATOS ANUALES PVGIS'!E8 -> 6,11 | E5: ='IMPORTACIÓN DATOS ANUALES PVGIS'!F8 -> 189 | F5: =C5/$B$17 -> 0.09130103982 | G5: 0.09130103982 | H5: =F5*SUM(AN5:AW5) -> 0.05834590666 | I5: 0.03295513315 | J5: 0.09130103982 | K5: 0.05834590666 | L5: 0.03295513315 | M5: =F5*SUM(AT5:AW5) -> 0.0009102466131 | N5: 0.08951659596 | O5: 0.0008741972423 | P5: =F5*((X42-Y42-Z42)*SUM(AS5:AX5))/X42 -> 0.003485935395 | Q5: 0.06383985016 | R5: =F5*((X42-Y42-Z42)*SUM(AB5:AI5)+(Y42+PORCENTAJES!Z42)*SUM(AB5:AS5))/X42 -> 0.02397525426 | U5: =F5*(SUM(AR5:AW5))*(X42-Y42-Z42)/X42 -> 0.008647972719 | V5: =F5*(SUM(AJ5:AQ5)+SUM(AX5:AY5))*(X42-Y42-Z42)/X42 -> 0.05844291048 | X5: =F5*((X42-Y42-Z42)*SUM(AB5:AI5)+(Y42+Z42)*SUM(AB5:AY5))/X42 -> 0.02421015662 | Y5: 0.09130103982 | Z5: MARZO | AA5: MARZO | AB5: 0 | AC5: 0 | AD5: 0 | AE5: 0 | AF5: 0 | AG5: 0 | AH5: 0 | AI5: 0.009574888128 | AJ5: 0.04149118189 | AK5: 0.07620426428 | AL5: 0.1061792577 | AM5: 0.1275006581 | AN5: 0.1388523296 | AO5: 0.1388523296 | AP5: 0.1275006581 | AQ5: 0.1061792577 | AR5: 0.07620426428 | AS5: 0.04149118189 | AT5: 0.009969728876 | AU5: 0 | AV5: 0 | AW5: 0 | AX5: 0 | AY5: 0 | BA5: 1 | BB5: marzo | BC5: si
A6: Apr | B6: ='IMPORTACIÓN DATOS ANUALES PVGIS'!C9 -> 4,74 | C6: ='IMPORTACIÓN DATOS ANUALES PVGIS'!D9 -> 142 | D6: ='IMPORTACIÓN DATOS ANUALES PVGIS'!E9 -> 6,27 | E6: ='IMPORTACIÓN DATOS ANUALES PVGIS'!F9 -> 188 | F6: 0.09003296982 | G6: 0.09003296982 | H6: =F6*SUM(AO6:AX6) -> 0.0570219369 | I6: 0.03301103292 | J6: 0.09003296982 | K6: 0.0570219369 | L6: 0.03301103292 | M6: =F6*SUM(AM6:AP6) -> 0.04442175639 | N6: 0.04553057227 | O6: 8.064115527e-05 | P6: =F6*((X43-Y43-Z43)*SUM(AL6:AQ6))/X43 -> 0.03955400665 | Q6: 0.01949826333 | R6: =F6*((X43-Y43-Z43)*SUM(AB6:AI6)+(Y43+PORCENTAJES!Z43)*SUM(AB6:AS6))/X43 -> 0.03098069983 | W6: =F6*SUM(AJ6:AY6)*(X43-Y43-Z43)/X43 -> 0.05696980815 | X6: =F6*((X43-Y43-Z43)*SUM(AB6:AI6)+(Y43+Z43)*SUM(AB6:AY6))/X43 -> 0.03306316167 | Y6: 0.09003296982 | Z6: ABRIL | AA6: ABRIL | AB6: 0 | AC6: 0 | AD6: 0 | AE6: 0 | AF6: 0 | AG6: 0 | AH6: 0 | AI6: 0.000895684719 | AJ6: 0.0160903362 | AK6: 0.04555196571 | AL6: 0.07686894213 | AM6: 0.1038354499 | AN6: 0.1234125588 | AO6: 0.1330731582 | AP6: 0.1330731582 | AQ6: 0.1234125588 | AR6: 0.1038354499 | AS6: 0.07686894213 | AT6: 0.04555196571 | AU6: 0.0160903362 | AV6: 0.001439493298 | AW6: 0 | AX6: 0 | AY6: 0 | BA6: 1 | BB6: abril | BC6: si
A7: May | B7: ='IMPORTACIÓN DATOS ANUALES PVGIS'!C10 -> 5,05 | C7: ='IMPORTACIÓN DATOS ANUALES PVGIS'!D10 -> 156 | D7: ='IMPORTACIÓN DATOS ANUALES PVGIS'!E10 -> 6,76 | E7: ='IMPORTACIÓN DATOS ANUALES PVGIS'!F10 -> 210 | F7: 0.0989094598 | G7: 0.0989094598 | H7: =F7*SUM(AO7:AX7) -> 0.06223756686 | I7: 0.03667189294 | J7: 0.0989094598 | K7: 0.06223756686 | L7: 0.03667189294 | M7: =F7*SUM(AM7:AP7) -> 0.04743870288 | N7: =F7-M7-O7 -> 0.05111249179 | O7: =F7*SUM(AB7:AI7) -> 0.0003582651294 | P7: =F7*((X44-Y44-Z44)*SUM(AL7:AQ7))/X44 -> 0.04748949259 | Q7: =F7-P7-R7 -> 0.02453122645 | R7: =F7*((X44-Y44-Z44)*SUM(AB7:AI7)+(Y44+PORCENTAJES!Z44)*SUM(AB7:AS7))/X44 -> 0.02688874076 | W7: =F7*SUM(AJ7:AY7)*(X44-Y44-Z44)/X44 -> 0.06993955751 | X7: =F7*((X44-Y44-Z44)*SUM(AB7:AI7)+(Y44+Z44)*SUM(AB7:AY7))/X44 -> 0.02896990229 | Y7: 0.0989094598 | Z7: MAYO | AA7: MAYO | AB7: 0 | AC7: 0 | AD7: 0 | AE7: 0 | AF7: 0 | AG7: 0 | AH7: 0 | AI7: 0.003622152321 | AJ7: 0.0200807041 | AK7: 0.04823181775 | AL7: 0.07714548978 | AM7: 0.101896864 | AN7: 0.1197852127 | AO7: 0.1289676866 | AP7: 0.1289676866 | AQ7: 0.1197852127 | AR7: 0.101896864 | AS7: 0.07714548978 | AT7: 0.04823181775 | AU7: 0.0200807041 | AV7: 0.004162297843 | AW7: 0 | AX7: 0 | AY7: 0 | BA7: 1 | BB7: mayo | BC7: si
A8: Jun | B8: ='IMPORTACIÓN DATOS ANUALES PVGIS'!C11 -> 5,29 | C8: ='IMPORTACIÓN DATOS ANUALES PVGIS'!D11 -> 159 | D8: ='IMPORTACIÓN DATOS ANUALES PVGIS'!E11 -> 7,18 | E8: ='IMPORTACIÓN DATOS ANUALES PVGIS'!F11 -> 215 | F8: 0.1008115648 | G8: 0.1008115648 | H8: 0.0632318891 | I8: 0.03757967569 | J8: 0.1008115648 | K8: 0.0632318891 | L8: 0.03757967569 | M8: 0.04764776098 | N8: 0.0525723324 | O8: 0.0005914714175 | P8: 0.04935355148 | Q8: 0.02622821725 | R8: =F8*((X45-Y45-Z45)*SUM(AB8:AI8)+(Y45+PORCENTAJES!Z45)*SUM(AB8:AS8))/X45 -> 0.02522979607 | S8: =G8*SUM(AL8:AT8)*(X45-Y45-Z45)/(X45*2) -> 0.03306412365 | T8: =F8*(SUM(AJ8:AK8)+SUM(AU8:AY8))*(X45-Y45-Z45)/(X45*2) -> 0.003683243924 | U8: =F8*SUM(AK8:AQ8)*(X45-Y45-Z45)/(X45*2) -> 0.02649443385 | V8: =F8*(SUM(AJ8)+SUM(AR8:AY8))*(X45-Y45-Z45)/(X45*2) -> 0.01025293372 | X8: =F8*((X45-Y45-Z45)*SUM(AB8:AI8)+(Y45+Z45)*SUM(AB8:AY8))/X45 -> 0.02731682965 | Y8: 0.1008115648 | Z8: JUNIO | AA8: JUNIO | AB8: 0 | AC8: 0 | AD8: 0 | AE8: 0 | AF8: 0 | AG8: 0 | AH8: 0 | AI8: 0.005867098865 | AJ8: 0.02200972447 | AK8: 0.04917341977 | AL8: 0.07695299838 | AM8: 0.1007779579 | AN8: 0.1179902755 | AO8: 0.1269367909 | AP8: 0.1269367909 | AQ8: 0.1179902755 | AR8: 0.1007779579 | AS8: 0.07695299838 | AT8: 0.04917341977 | AU8: 0.02200972447 | AV8: 0.005867098865 | AW8: 0.0005834683955 | AX8: 0 | AY8: 0 | BA8: 1 | BB8: junio | BC8: si
A9: Jul | B9: ='IMPORTACIÓN DATOS ANUALES PVGIS'!C12 -> 5,30 | C9: ='IMPORTACIÓN DATOS ANUALES PVGIS'!D12 -> 164 | D9: ='IMPORTACIÓN DATOS ANUALES PVGIS'!E12 -> 7,30 | E9: ='IMPORTACIÓN DATOS ANUALES PVGIS'!F12 -> 226 | F9: 0.1039817398 | G9: 0.1039817398 | H9: 0.06530473661 | I9: 0.03867700318 | J9: 0.1039817398 | K9: 0.06530473661 | L9: 0.03867700318 | M9: 0.0494481146 | N9: 0.05398099971 | O9: 0.0005526254837 | P9: 0.04727260973 | Q9: 0.0253284675 | R9: =F9*((X46-Y46-Z46)*SUM(AB9:AI9)+(Y46+PORCENTAJES!Z46)*SUM(AB9:AS9))/X46 -> 0.03138066256 | S9: =G9*SUM(AL9:AT9)*(X46-Y46-Z46)/X46 -> 0.06324144107 | T9: =F9*(SUM(AJ9:AK9)+SUM(AU9:AY9))*(X46-Y46-Z46)/X46 -> 0.006823442817 | X9: 0.03391685591 | Y9: 0.1039817398 | Z9: JULIO | AA9: JULIO | AB9: 0 | AC9: 0 | AD9: 0 | AE9: 0 | AF9: 0 | AG9: 0 | AH9: 0 | AI9: 0.005314639713 | AJ9: 0.02125855885 | AK9: 0.04864688621 | AL9: 0.07688294751 | AM9: 0.1011737855 | AN9: 0.1186827519 | AO9: 0.1278447995 | AP9: 0.1278447995 | AQ9: 0.1186827519 | AR9: 0.1011737855 | AS9: 0.07688294751 | AT9: 0.04864688621 | AU9: 0.02125855885 | AV9: 0.005314639713 | AW9: 0.0003912618194 | AX9: 0 | AY9: 0 | BA9: 1 | BB9: julio | BC9: si
A10: Aug | B10: ='IMPORTACIÓN DATOS ANUALES PVGIS'!C13 -> 5,09 | C10: ='IMPORTACIÓN DATOS ANUALES PVGIS'!D13 -> 158 | D10: ='IMPORTACIÓN DATOS ANUALES PVGIS'!E13 -> 7,03 | E10: ='IMPORTACIÓN DATOS ANUALES PVGIS'!F13 -> 218 | F10: 0.1001775298 | G10: 0.1001775298 | H10: 0.06330263115 | I10: 0.03687489865 | J10: 0.1001775298 | K10: 0.06330263115 | L10: 0.03687489865 | M10: 0.04889780128 | N10: 0.05106318968 | O10: 0.0002165388393 | P10: 0.04881591414 | Q10: 0.0240768622 | R10: =F10*((X47-Y47-Z47)*SUM(AB10:AI10)+(Y47+PORCENTAJES!Z47)*SUM(AB10:AS10))/X47 -> 0.02728475346 | X10: =F10 -> 0.1001775298 | Y10: 0.1001775298 | Z10: AGOSTO | AA10: AGOSTO | AB10: 0 | AC10: 0 | AD10: 0 | AE10: 0 | AF10: 0 | AG10: 0 | AH10: 0 | AI10: 0.002161550996 | AJ10: 0.01802400984 | AK10: 0.0464567191 | AL10: 0.07665192378 | AM10: 0.102923082 | AN10: 0.1218782215 | AO10: 0.131655083 | AP10: 0.131655083 | AQ10: 0.1218782215 | AR10: 0.102923082 | AS10: 0.07665192378 | AT10: 0.0464567191 | AU10: 0.01802400984 | AV10: 0.002660370457 | AW10: 0 | AX10: 0 | AY10: 0 | BA10: 1 | BB10: agosto | BC10: si
A11: Sep | B11: ='IMPORTACIÓN DATOS ANUALES PVGIS'!C14 -> 4,52 | C11: ='IMPORTACIÓN DATOS ANUALES PVGIS'!D14 -> 135 | D11: ='IMPORTACIÓN DATOS ANUALES PVGIS'!E14 -> 6,17 | E11: ='IMPORTACIÓN DATOS ANUALES PVGIS'!F14 -> 185 | F11: 0.08559472483 | G11: 0.08559472483 | H11: 0.05461499145 | I11: 0.03097973338 | J11: 0.08559472483 | K11: 0.05461499145 | L11: 0.03097973338 | M11: 0.04346803607 | N11: 0.04212668876 | O11: 0 | P11: 0.04256053078 | Q11: 0.01875431081 | R11: =F11*((X48-Y48-Z48)*SUM(AB11:AI11)+(Y48+PORCENTAJES!Z48)*SUM(AB11:AS11))/X48 -> 0.02427988324 | U11: =F11*SUM(AK11:AQ11)*(X48-Y48-Z48)/X48 -> 0.04507765283 | V11: =F11*(SUM(AJ11)+SUM(AR11:AY11))*(X48-Y48-Z48)/X48 -> 0.01483865455 | X11: 0.02567841745 | Y11: 0.08559472483 | Z11: SEPTIEMBRE | AA11: SEPTIEMBRE | AB11: 0 | AC11: 0 | AD11: 0 | AE11: 0 | AF11: 0 | AG11: 0 | AH11: 0 | AI11: 0 | AJ11: 0.01210298027 | AK11: 0.04201063383 | AL11: 0.07576605569 | AM11: 0.1053239121 | AN11: 0.1267314957 | AO11: 0.1378900238 | AP11: 0.1378900238 | AQ11: 0.1267314957 | AR11: 0.1053239121 | AS11: 0.07576605569 | AT11: 0.04201063383 | AU11: 0.01210298027 | AV11: 0.0003497971177 | AW11: 0 | AX11: 0 | AY11: 0 | BA11: 1 | BB11: septiembre | BC11: si
A12: Oct | B12: ='IMPORTACIÓN DATOS ANUALES PVGIS'!C15 -> 4,04 | C12: ='IMPORTACIÓN DATOS ANUALES PVGIS'!D15 -> 125 | D12: ='IMPORTACIÓN DATOS ANUALES PVGIS'!E15 -> 5,43 | E12: ='IMPORTACIÓN DATOS ANUALES PVGIS'!F15 -> 168 | F12: 0.07925437484 | G12: 0.07925437484 | H12: 0.05115581717 | I12: 0.02809855767 | J12: 0.07925437484 | K12: 0.05115581717 | L12: 0.02809855767 | M12: 0.04197460611 | N12: 0.03727976873 | O12: 0 | P12: 0.03954085636 | Q12: 0.01519890736 | R12: =F12*((X49-Y49-Z49)*SUM(AB12:AI12)+(Y49+PORCENTAJES!Z49)*SUM(AB12:AS12))/X49 -> 0.02451461112 | W12: =F12*SUM(AJ12:AY12)*(X49-Y49-Z49)/X49 -> 0.05368844747 | X12: 0.02556592737 | Y12: 0.07925437484 | Z12: OCTUBRE | AA12: OCTUBRE | AB12: 0 | AC12: 0 | AD12: 0 | AE12: 0 | AF12: 0 | AG12: 0 | AH12: 0 | AI12: 0 | AJ12: 0.003186011188 | AK12: 0.03641684881 | AL12: 0.07472307635 | AM12: 0.1080650539 | AN12: 0.132145371 | AO12: 0.1447041826 | AP12: 0.1447041826 | AQ12: 0.132145371 | AR12: 0.1080650539 | AS12: 0.07472307635 | AT12: 0.03641684881 | AU12: 0.004704923499 | AV12: 0 | AW12: 0 | AX12: 0 | AY12: 0 | BA12: 1 | BB12: octubre | BC12: si
A13: Nov | B13: ='IMPORTACIÓN DATOS ANUALES PVGIS'!C16 -> 3,24 | C13: ='IMPORTACIÓN DATOS ANUALES PVGIS'!D16 -> 97,3 | D13: ='IMPORTACIÓN DATOS ANUALES PVGIS'!E16 -> 4,22 | E13: ='IMPORTACIÓN DATOS ANUALES PVGIS'!F16 -> 127 | F13: 0.06169160538 | G13: 0.06169160538 | H13: =F13*SUM(AN13:AW13) -> 0.04042948683 | I13: 0.02126211855 | J13: 0.06169160538 | K13: 0.04042948683 | L13: 0.02126211855 | M13: =F13*SUM(AT13:AW13) -> 0 | N13: 0.06169160538 | O13: 0 | P13: =F13*((X50-Y50-Z50)*SUM(AS13:AX13))/X50 -> 0.001103037945 | Q13: 0.04208108582 | R13: =F13*((X50-Y50-Z50)*SUM(AB13:AI13)+(Y50+PORCENTAJES!Z50)*SUM(AB13:AS13))/X50 -> 0.01850748161 | U13: =F13*(SUM(AR13:AW13))*(X50-Y50-Z50)/X50 -> 0.004178744432 | V13: =F13*(SUM(AJ13:AQ13)+SUM(AX13:AY13))*(X50-Y50-Z50)/X50 -> 0.03900537933 | X13: 0.01850748161 | Y13: 0.06169160538 | Z13: NOVIEMBRE | AA13: NOVIEMBRE | AB13: 0 | AC13: 0 | AD13: 0 | AE13: 0 | AF13: 0 | AG13: 0 | AH13: 0 | AI13: 0 | AJ13: 0.02318891117 | AK13: 0.0712230843 | AL13: 0.1108447389 | AM13: 0.1393949961 | AN13: 0.1541713887 | AO13: 0.1541713887 | AP13: 0.1393949961 | AQ13: 0.1108447389 | AR13: 0.0712230843 | AS13: 0.02554267283 | AT13: 0 | AU13: 0 | AV13: 0 | AW13: 0 | AX13: 0 | AY13: 0 | BA13: 1 | BB13: noviembre | BC13: si
A14: Dec | B14: ='IMPORTACIÓN DATOS ANUALES PVGIS'!C17 -> 2,88 | C14: ='IMPORTACIÓN DATOS ANUALES PVGIS'!D17 -> 89,3 | D14: ='IMPORTACIÓN DATOS ANUALES PVGIS'!E17 -> 3,68 | E14: ='IMPORTACIÓN DATOS ANUALES PVGIS'!F17 -> 114 | F14: =C14/$B$17 -> 0.05661932539 | G14: 0.05661932539 | H14: =F14*SUM(AN14:AW14) -> 0.03736943349 | I14: 0.0192498919 | J14: 0.05661932539 | K14: 0.03736943349 | L14: 0.0192498919 | M14: =F14*SUM(AT14:AW14) -> 0 | N14: 0.05661932539 | O14: 0 | P14: =F14*((X51-Y51-Z51)*SUM(AS14:AX14))/X51 -> 0.0006047959422 | Q14: 0.03227094138 | R14: =F14*((X51-Y51-Z51)*SUM(AB14:AI14)+(Y51+PORCENTAJES!Z51)*SUM(AB14:AS14))/X51 -> 0.02374358807 | S14: =F14*((X51-Y51-Z51)*(SUM(AL14:AN14)+SUM(AT14:AV14)))/X51 -> 0.01359654036 | T14: =F14*((X51-Y51-Z51)*(SUM(AJ14:AK14)+SUM(AO14:AS14)+SUM(AW14:AY14)))/X51 -> 0.01927919697 | X14: 0.02374358807 | Y14: 0.05661932539 | Z14: DICIEMBRE | AA14: DICIEMBRE | AB14: 0 | AC14: 0 | AD14: 0 | AE14: =AG36/$BB36 -> 0 | AF14: 0 | AG14: 0 | AH14: 0 | AI14: 0 | AJ14: 0.01521508599 | AK14: 0.06962054498 | AL14: 0.112407211 | AM14: 0.1427451704 | AN14: 0.1584213196 | AO14: 0.1584213196 | AP14: 0.1427451704 | AQ14: 0.112407211 | AR14: 0.06962054498 | AS14: 0.01839642215 | AT14: 0 | AU14: 0 | AV14: 0 | AW14: 0 | AX14: 0 | AY14: 0 | BA14: 1 | BB14: diciembre | BC14: si
G15: ESTOS SON LOS DATOS DE PRODUCCIÓN EN UN DÍA PROMEDIO MULTIPLICANDO POR NUMERO DE DÍAS TIENES LA DEL MES HACER A LA DERECHA DE ESTA O ABAJO | Y15: =SUM(Y3:Y14) -> 1
A16: Yearly average | B16: ='IMPORTACIÓN DATOS ANUALES PVGIS'!C19 -> 4,33 | C16: ='IMPORTACIÓN DATOS ANUALES PVGIS'!D19 -> 132 | D16: ='IMPORTACIÓN DATOS ANUALES PVGIS'!E19 -> 5,77 | E16: ='IMPORTACIÓN DATOS ANUALES PVGIS'!F19 -> 176 | F16: ='IMPORTACIÓN DATOS ANUALES PVGIS'!H4 -> INVIERNO | G16: =SUM(A86:A97) -> 333322 | J16: http://www.tarifa-electrica.es/at_uno.php
A17: Total for year | B17: ='IMPORTACIÓN DATOS ANUALES PVGIS'!H20 -> 1577.2 | D17: 2110 | G17: =A86/G16 -> 0.06778130456 | J17: PARA VER LOS PERIODOS
A19: SI SE CAMBIAN DATOS DE DISCRIMINACIÓN HORARIA, MIRAR LAS SUMAS DE LO PRODUCIDO YA QUE CAMBIARÁN | AF19: =AR3 -> 0.07103970256 | AG19: 0.02128978002 | AH19: 0 | AI19: 0 | AJ19: 0 | AK19: 0 | AL19: 0 | AM19: 0
B20: RADIACIÓN
B21: ENERO | C21: FEBRERO | D21: MARZO | E21: ABRIL | F21: MAYO | G21: JUNIO | H21: JULIO | I21: AGOSTO | J21: SEPTIEMBRE | K21: OCTUBRE | L21: NOVIEMBRE | M21: DICIEMBRE
A22: 0 a 1 | B22: ='ORDENA HORAS'!T35 -> 0 | C22: ='ORDENA HORAS'!U35 -> 0 | D22: ='ORDENA HORAS'!V35 -> 0 | E22: ='ORDENA HORAS'!W35 -> 0 | F22: ='ORDENA HORAS'!X35 -> 0 | G22: ='ORDENA HORAS'!Y35 -> 0 | H22: ='ORDENA HORAS'!Z35 -> 0 | I22: ='ORDENA HORAS'!AA35 -> 0 | J22: ='ORDENA HORAS'!AB35 -> 0 | K22: ='ORDENA HORAS'!AC35 -> 0 | L22: ='ORDENA HORAS'!AD35 -> 0 | M22: ='ORDENA HORAS'!AE35 -> 0 | R22: Mes | S22: Ed | T22: Em | U22: Hd | V22: Hm
A23: 1 a 2 | B23: ='ORDENA HORAS'!T36 -> 0 | C23: ='ORDENA HORAS'!U36 -> 0 | D23: ='ORDENA HORAS'!V36 -> 0 | E23: ='ORDENA HORAS'!W36 -> 0 | F23: ='ORDENA HORAS'!X36 -> 0 | G23: ='ORDENA HORAS'!Y36 -> 0 | H23: ='ORDENA HORAS'!Z36 -> 0 | I23: ='ORDENA HORAS'!AA36 -> 0 | J23: ='ORDENA HORAS'!AB36 -> 0 | K23: ='ORDENA HORAS'!AC36 -> 0 | L23: ='ORDENA HORAS'!AD36 -> 0 | M23: ='ORDENA HORAS'!AE36 -> 0 | R23: Ene | S23: 4.17 | T23: 129 | U23: 5.58 | V23: 173 | W23: =T23/$S$37 -> 0.06683937824 | X23: 0.06325301205
A24: 2 a 3 | B24: ='ORDENA HORAS'!T37 -> 0 | C24: ='ORDENA HORAS'!U37 -> 0 | D24: ='ORDENA HORAS'!V37 -> 0 | E24: ='ORDENA HORAS'!W37 -> 0 | F24: ='ORDENA HORAS'!X37 -> 0 | G24: ='ORDENA HORAS'!Y37 -> 0 | H24: ='ORDENA HORAS'!Z37 -> 0 | I24: ='ORDENA HORAS'!AA37 -> 0 | J24: ='ORDENA HORAS'!AB37 -> 0 | K24: ='ORDENA HORAS'!AC37 -> 0 | L24: ='ORDENA HORAS'!AD37 -> 0 | M24: ='ORDENA HORAS'!AE37 -> 0 | R24: Feb | S24: 5.35 | T24: 150 | U24: 7.04 | V24: 197 | W24: =T24/$S$37 -> 0.07772020725 | X24: 0.06746987952 | AC24: =TRANSPOSE(A21:M46) -> 0 | AD24: 0 a 1 | AE24: 1 a 2 | AF24: 2 a 3 | AG24: 3 a 4 | AH24: 4 a 5 | AI24: 5 a 6 | AJ24: 6 a 7 | AK24: 7 a 8 | AL24: 8 a 9 | AM24: 9 a 10 | AN24: 10 a 11 | AO24: 11 a 12 | AP24: 12 a 13 | AQ24: 13 a 14 | AR24: 14 a 15 | AS24: 15 a 16 | AT24: 16 a 17 | AU24: 17 a 18 | AV24: 18 a 19 | AW24: 19 a 20 | AX24: 20 a 21 | AY24: 21 a 22 | AZ24: 22 a 23 | BA24: 23 a 24 | BB24: TOTAL
A25: 3 a 4 | B25: ='ORDENA HORAS'!T38 -> 0 | C25: ='ORDENA HORAS'!U38 -> 0 | D25: ='ORDENA HORAS'!V38 -> 0 | E25: ='ORDENA HORAS'!W38 -> 0 | F25: ='ORDENA HORAS'!X38 -> 0 | G25: ='ORDENA HORAS'!Y38 -> 0 | H25: ='ORDENA HORAS'!Z38 -> 0 | I25: ='ORDENA HORAS'!AA38 -> 0 | J25: ='ORDENA HORAS'!AB38 -> 0 | K25: ='ORDENA HORAS'!AC38 -> 0 | L25: ='ORDENA HORAS'!AD38 -> 0 | M25: ='ORDENA HORAS'!AE38 -> 0 | R25: Mar | S25: 6.05 | T25: 187 | U25: 7.87 | V25: 244 | W25: 0.09689119171 | X25: 0.09096385542 | AC25: ENERO | AD25: 0 | AE25: 0 | AF25: 0 | AG25: 0 | AH25: 0 | AI25: 0 | AJ25: 0 | AK25: 0 | AL25: 390 | AM25: 1605 | AN25: 2530 | AO25: 3191 | AP25: 3535 | AQ25: 3535 | AR25: 3191 | AS25: 2530 | AT25: 1605 | AU25: 481 | AV25: 0 | AW25: 0 | AX25: 0 | AY25: 0 | AZ25: 0 | BA25: 0 | BB25: 22593
A26: 4 a 5 | B26: ='ORDENA HORAS'!T39 -> 0 | C26: ='ORDENA HORAS'!U39 -> 0 | D26: ='ORDENA HORAS'!V39 -> 0 | E26: ='ORDENA HORAS'!W39 -> 0 | F26: ='ORDENA HORAS'!X39 -> 0 | G26: ='ORDENA HORAS'!Y39 -> 0 | H26: ='ORDENA HORAS'!Z39 -> 0 | I26: ='ORDENA HORAS'!AA39 -> 0 | J26: ='ORDENA HORAS'!AB39 -> 0 | K26: ='ORDENA HORAS'!AC39 -> 0 | L26: ='ORDENA HORAS'!AD39 -> 0 | M26: ='ORDENA HORAS'!AE39 -> 0 | R26: Abr | S26: 5.94 | T26: 178 | U26: 7.70 | V26: 231 | W26: 0.09222797927 | X26: 0.08975903614 | AC26: FEBRERO | AD26: 0 | AE26: 0 | AF26: 0 | AG26: 0 | AH26: 0 | AI26: 0 | AJ26: 0 | AK26: 0 | AL26: 844 | AM26: 1903 | AN26: 2820 | AO26: 3481 | AP26: 3824 | AQ26: 3824 | AR26: 3481 | AS26: 2820 | AT26: 1903 | AU26: 844 | AV26: 56 | AW26: 0 | AX26: 0 | AY26: 0 | AZ26: 0 | BA26: 0 | BB26: 25800
A27: 5 a 6 | B27: ='ORDENA HORAS'!T40 -> 0 | C27: ='ORDENA HORAS'!U40 -> 0 | D27: ='ORDENA HORAS'!V40 -> 0 | E27: ='ORDENA HORAS'!W40 -> 0 | F27: ='ORDENA HORAS'!X40 -> 0 | G27: ='ORDENA HORAS'!Y40 -> 0 | H27: ='ORDENA HORAS'!Z40 -> 0 | I27: ='ORDENA HORAS'!AA40 -> 0 | J27: ='ORDENA HORAS'!AB40 -> 0 | K27: ='ORDENA HORAS'!AC40 -> 0 | L27: ='ORDENA HORAS'!AD40 -> 0 | M27: ='ORDENA HORAS'!AE40 -> 0 | R27: Mayo | S27: 5.79 | T27: 180 | U27: 7.51 | V27: 233 | W27: 0.0932642487 | X27: 0.09879518072 | AC27: MARZO | AD27: 0 | AE27: 0 | AF27: 0 | AG27: 0 | AH27: 0 | AI27: 0 | AJ27: 0 | AK27: 291 | AL27: 1261 | AM27: 2316 | AN27: 3227 | AO27: 3875 | AP27: 4220 | AQ27: 4220 | AR27: 3875 | AS27: 3227 | AT27: 2316 | AU27: 1261 | AV27: 303 | AW27: 0 | AX27: 0 | AY27: 0 | AZ27: 0 | BA27: 0 | BB27: 30392
A28: 6 a 7 | B28: ='ORDENA HORAS'!T41 -> 0 | C28: ='ORDENA HORAS'!U41 -> 0 | D28: ='ORDENA HORAS'!V41 -> 0 | E28: ='ORDENA HORAS'!W41 -> 0 | F28: ='ORDENA HORAS'!X41 -> 0 | G28: ='ORDENA HORAS'!Y41 -> 0 | H28: ='ORDENA HORAS'!Z41 -> 0 | I28: ='ORDENA HORAS'!AA41 -> 0 | J28: ='ORDENA HORAS'!AB41 -> 0 | K28: ='ORDENA HORAS'!AC41 -> 0 | L28: ='ORDENA HORAS'!AD41 -> 0 | M28: ='ORDENA HORAS'!AE41 -> 0 | R28: Jun | S28: 5.62 | T28: 169 | U28: 7.34 | V28: 220 | W28: 0.08756476684 | X28: 0.1006024096 | AC28: ABRIL | AD28: 0 | AE28: 0 | AF28: 0 | AG28: 0 | AH28: 0 | AI28: 0 | AJ28: 0 | AK28: 28 | AL28: 503 | AM28: 1424 | AN28: 2403 | AO28: 3246 | AP28: 3858 | AQ28: 4160 | AR28: 4160 | AS28: 3858 | AT28: 3246 | AU28: 2403 | AV28: 1424 | AW28: 503 | AX28: 45 | AY28: 0 | AZ28: 0 | BA28: 0 | BB28: 31261
A29: 7 a 8 | B29: ='ORDENA HORAS'!T42 -> 0 | C29: ='ORDENA HORAS'!U42 -> 0 | D29: ='ORDENA HORAS'!V42 -> 291 | E29: ='ORDENA HORAS'!W42 -> 28 | F29: ='ORDENA HORAS'!X42 -> 114 | G29: ='ORDENA HORAS'!Y42 -> 181 | H29: ='ORDENA HORAS'!Z42 -> 163 | I29: ='ORDENA HORAS'!AA42 -> 65 | J29: ='ORDENA HORAS'!AB42 -> 0 | K29: ='ORDENA HORAS'!AC42 -> 0 | L29: ='ORDENA HORAS'!AD42 -> 0 | M29: ='ORDENA HORAS'!AE42 -> 0 | R29: Jul | S29: 5.59 | T29: 173 | U29: 7.35 | V29: 228 | W29: 0.0896373057 | X29: 0.1048192771 | AC29: MAYO | AD29: 0 | AE29: 0 | AF29: 0 | AG29: 0 | AH29: 0 | AI29: 0 | AJ29: 0 | AK29: 114 | AL29: 632 | AM29: 1518 | AN29: 2428 | AO29: 3207 | AP29: 3770 | AQ29: 4059 | AR29: 4059 | AS29: 3770 | AT29: 3207 | AU29: 2428 | AV29: 1518 | AW29: 632 | AX29: 131 | AY29: 0 | AZ29: 0 | BA29: 0 | BB29: 31473
A30: 8 a 9 | B30: ='ORDENA HORAS'!T43 -> 390 | C30: ='ORDENA HORAS'!U43 -> 844 | D30: ='ORDENA HORAS'!V43 -> 1261 | E30: ='ORDENA HORAS'!W43 -> 503 | F30: ='ORDENA HORAS'!X43 -> 632 | G30: ='ORDENA HORAS'!Y43 -> 679 | H30: ='ORDENA HORAS'!Z43 -> 652 | I30: ='ORDENA HORAS'!AA43 -> 542 | J30: ='ORDENA HORAS'!AB43 -> 346 | K30: ='ORDENA HORAS'!AC43 -> 86 | L30: ='ORDENA HORAS'!AD43 -> 532 | M30: ='ORDENA HORAS'!AE43 -> 330 | R30: Ago | S30: 5.87 | T30: 182 | U30: 7.77 | V30: 241 | W30: 0.09430051813 | X30: 0.1006024096 | AC30: JUNIO | AD30: 0 | AE30: 0 | AF30: 0 | AG30: 0 | AH30: 0 | AI30: 0 | AJ30: 0 | AK30: 181 | AL30: 679 | AM30: 1517 | AN30: 2374 | AO30: 3109 | AP30: 3640 | AQ30: 3916 | AR30: 3916 | AS30: 3640 | AT30: 3109 | AU30: 2374 | AV30: 1517 | AW30: 679 | AX30: 181 | AY30: 18 | AZ30: 0 | BA30: 0 | BB30: 30850
A31: 9 a 10 | B31: ='ORDENA HORAS'!T44 -> 1605 | C31: ='ORDENA HORAS'!U44 -> 1903 | D31: ='ORDENA HORAS'!V44 -> 2316 | E31: ='ORDENA HORAS'!W44 -> 1424 | F31: ='ORDENA HORAS'!X44 -> 1518 | G31: ='ORDENA HORAS'!Y44 -> 1517 | H31: ='ORDENA HORAS'!Z44 -> 1492 | I31: ='ORDENA HORAS'!AA44 -> 1397 | J31: ='ORDENA HORAS'!AB44 -> 1201 | K31: ='ORDENA HORAS'!AC44 -> 983 | L31: ='ORDENA HORAS'!AD44 -> 1634 | M31: ='ORDENA HORAS'!AE44 -> 1510 | R31: Sep | S31: 6.02 | T31: 181 | U31: 7.97 | V31: 239 | W31: 0.09378238342 | X31: 0.08614457831 | AC31: JULIO | AD31: 0 | AE31: 0 | AF31: 0 | AG31: 0 | AH31: 0 | AI31: 0 | AJ31: 0 | AK31: 163 | AL31: 652 | AM31: 1492 | AN31: 2358 | AO31: 3103 | AP31: 3640 | AQ31: 3921 | AR31: 3921 | AS31: 3640 | AT31: 3103 | AU31: 2358 | AV31: 1492 | AW31: 652 | AX31: 163 | AY31: 12 | AZ31: 0 | BA31: 0 | BB31: 30670
A32: 10 a 11 | B32: ='ORDENA HORAS'!T45 -> 2530 | C32: ='ORDENA HORAS'!U45 -> 2820 | D32: ='ORDENA HORAS'!V45 -> 3227 | E32: ='ORDENA HORAS'!W45 -> 2403 | F32: ='ORDENA HORAS'!X45 -> 2428 | G32: ='ORDENA HORAS'!Y45 -> 2374 | H32: ='ORDENA HORAS'!Z45 -> 2358 | I32: ='ORDENA HORAS'!AA45 -> 2305 | J32: ='ORDENA HORAS'!AB45 -> 2166 | K32: ='ORDENA HORAS'!AC45 -> 2017 | L32: ='ORDENA HORAS'!AD45 -> 2543 | M32: ='ORDENA HORAS'!AE45 -> 2438 | R32: Oct | S32: 5.36 | T32: 166 | U32: 7.14 | V32: 221 | W32: 0.08601036269 | X32: 0.07951807229 | AC32: AGOSTO | AD32: 0 | AE32: 0 | AF32: 0 | AG32: 0 | AH32: 0 | AI32: 0 | AJ32: 0 | AK32: 65 | AL32: 542 | AM32: 1397 | AN32: 2305 | AO32: 3095 | AP32: 3665 | AQ32: 3959 | AR32: 3959 | AS32: 3665 | AT32: 3095 | AU32: 2305 | AV32: 1397 | AW32: 542 | AX32: 80 | AY32: 0 | AZ32: 0 | BA32: 0 | BB32: 30071
A33: 11 a 12 | B33: ='ORDENA HORAS'!T46 -> 3191 | C33: ='ORDENA HORAS'!U46 -> 3481 | D33: ='ORDENA HORAS'!V46 -> 3875 | E33: ='ORDENA HORAS'!W46 -> 3246 | F33: ='ORDENA HORAS'!X46 -> 3207 | G33: ='ORDENA HORAS'!Y46 -> 3109 | H33: ='ORDENA HORAS'!Z46 -> 3103 | I33: ='ORDENA HORAS'!AA46 -> 3095 | J33: ='ORDENA HORAS'!AB46 -> 3011 | K33: ='ORDENA HORAS'!AC46 -> 2917 | L33: ='ORDENA HORAS'!AD46 -> 3198 | M33: ='ORDENA HORAS'!AE46 -> 3096 | R33: Nov | S33: 4.41 | T33: 132 | U33: 5.86 | V33: 176 | W33: 0.06839378238 | X33: 0.06144578313 | AC33: SEPTIEMBRE | AD33: 0 | AE33: 0 | AF33: 0 | AG33: 0 | AH33: 0 | AI33: 0 | AJ33: 0 | AK33: 0 | AL33: 346 | AM33: 1201 | AN33: 2166 | AO33: 3011 | AP33: 3623 | AQ33: 3942 | AR33: 3942 | AS33: 3623 | AT33: 3011 | AU33: 2166 | AV33: 1201 | AW33: 346 | AX33: 10 | AY33: 0 | AZ33: 0 | BA33: 0 | BB33: 28588
A34: 12 a 13 | B34: ='ORDENA HORAS'!T47 -> 3535 | C34: ='ORDENA HORAS'!U47 -> 3824 | D34: ='ORDENA HORAS'!V47 -> 4220 | E34: ='ORDENA HORAS'!W47 -> 3858 | F34: ='ORDENA HORAS'!X47 -> 3770 | G34: ='ORDENA HORAS'!Y47 -> 3640 | H34: ='ORDENA HORAS'!Z47 -> 3640 | I34: ='ORDENA HORAS'!AA47 -> 3665 | J34: ='ORDENA HORAS'!AB47 -> 3623 | K34: ='ORDENA HORAS'!AC47 -> 3567 | L34: ='ORDENA HORAS'!AD47 -> 3537 | M34: ='ORDENA HORAS'!AE47 -> 3436 | R34: Dic | S34: 3.41 | T34: 106 | U34: 4.54 | V34: 141 | W34: 0.05492227979 | X34: 0.05644578313 | AC34: OCTUBRE | AD34: 0 | AE34: 0 | AF34: 0 | AG34: 0 | AH34: 0 | AI34: 0 | AJ34: 0 | AK34: 0 | AL34: 86 | AM34: 983 | AN34: 2017 | AO34: 2917 | AP34: 3567 | AQ34: 3906 | AR34: 3906 | AS34: 3567 | AT34: 2917 | AU34: 2017 | AV34: 983 | AW34: 127 | AX34: 0 | AY34: 0 | AZ34: 0 | BA34: 0 | BB34: 26993
A35: 13 a 14 | B35: ='ORDENA HORAS'!T48 -> 3535 | C35: ='ORDENA HORAS'!U48 -> 3824 | D35: ='ORDENA HORAS'!V48 -> 4220 | E35: ='ORDENA HORAS'!W48 -> 4160 | F35: ='ORDENA HORAS'!X48 -> 4059 | G35: ='ORDENA HORAS'!Y48 -> 3916 | H35: ='ORDENA HORAS'!Z48 -> 3921 | I35: ='ORDENA HORAS'!AA48 -> 3959 | J35: ='ORDENA HORAS'!AB48 -> 3942 | K35: ='ORDENA HORAS'!AC48 -> 3906 | L35: ='ORDENA HORAS'!AD48 -> 3537 | M35: ='ORDENA HORAS'!AE48 -> 3436 | AC35: NOVIEMBRE | AD35: 0 | AE35: 0 | AF35: 0 | AG35: 0 | AH35: 0 | AI35: 0 | AJ35: 0 | AK35: 0 | AL35: 532 | AM35: 1634 | AN35: 2543 | AO35: 3198 | AP35: 3537 | AQ35: 3537 | AR35: 3198 | AS35: 2543 | AT35: 1634 | AU35: 586 | AV35: 0 | AW35: 0 | AX35: 0 | AY35: 0 | AZ35: 0 | BA35: 0 | BB35: 22942
A36: 14 a 15 | B36: ='ORDENA HORAS'!T49 -> 3191 | C36: ='ORDENA HORAS'!U49 -> 3481 | D36: ='ORDENA HORAS'!V49 -> 3875 | E36: ='ORDENA HORAS'!W49 -> 4160 | F36: ='ORDENA HORAS'!X49 -> 4059 | G36: ='ORDENA HORAS'!Y49 -> 3916 | H36: ='ORDENA HORAS'!Z49 -> 3921 | I36: ='ORDENA HORAS'!AA49 -> 3959 | J36: ='ORDENA HORAS'!AB49 -> 3942 | K36: ='ORDENA HORAS'!AC49 -> 3906 | L36: ='ORDENA HORAS'!AD49 -> 3198 | M36: ='ORDENA HORAS'!AE49 -> 3096 | R36: Media anual | S36: 5.30 | T36: 161 | U36: 6.97 | V36: 212 | AC36: DICIEMBRE | AD36: 0 | AE36: 0 | AF36: 0 | AG36: 0 | AH36: 0 | AI36: 0 | AJ36: 0 | AK36: 0 | AL36: 330 | AM36: 1510 | AN36: 2438 | AO36: 3096 | AP36: 3436 | AQ36: 3436 | AR36: 3096 | AS36: 2438 | AT36: 1510 | AU36: 399 | AV36: 0 | AW36: 0 | AX36: 0 | AY36: 0 | AZ36: 0 | BA36: 0 | BB36: 21689
A37: 15 a 16 | B37: ='ORDENA HORAS'!T50 -> 2530 | C37: ='ORDENA HORAS'!U50 -> 2820 | D37: ='ORDENA HORAS'!V50 -> 3227 | E37: ='ORDENA HORAS'!W50 -> 3858 | F37: ='ORDENA HORAS'!X50 -> 3770 | G37: ='ORDENA HORAS'!Y50 -> 3640 | H37: ='ORDENA HORAS'!Z50 -> 3640 | I37: ='ORDENA HORAS'!AA50 -> 3665 | J37: ='ORDENA HORAS'!AB50 -> 3623 | K37: ='ORDENA HORAS'!AC50 -> 3567 | L37: ='ORDENA HORAS'!AD50 -> 2543 | M37: ='ORDENA HORAS'!AE50 -> 2438 | R37: Total para el año | S37: 1930 | U37: 2540
A38: 16 a 17 | B38: ='ORDENA HORAS'!T51 -> 1605 | C38: ='ORDENA HORAS'!U51 -> 1903 | D38: ='ORDENA HORAS'!V51 -> 2316 | E38: ='ORDENA HORAS'!W51 -> 3246 | F38: ='ORDENA HORAS'!X51 -> 3207 | G38: ='ORDENA HORAS'!Y51 -> 3109 | H38: ='ORDENA HORAS'!Z51 -> 3103 | I38: ='ORDENA HORAS'!AA51 -> 3095 | J38: ='ORDENA HORAS'!AB51 -> 3011 | K38: ='ORDENA HORAS'!AC51 -> 2917 | L38: ='ORDENA HORAS'!AD51 -> 1634 | M38: ='ORDENA HORAS'!AE51 -> 1510
A39: 17 a 18 | B39: ='ORDENA HORAS'!T52 -> 481 | C39: ='ORDENA HORAS'!U52 -> 844 | D39: ='ORDENA HORAS'!V52 -> 1261 | E39: ='ORDENA HORAS'!W52 -> 2403 | F39: ='ORDENA HORAS'!X52 -> 2428 | G39: ='ORDENA HORAS'!Y52 -> 2374 | H39: ='ORDENA HORAS'!Z52 -> 2358 | I39: ='ORDENA HORAS'!AA52 -> 2305 | J39: ='ORDENA HORAS'!AB52 -> 2166 | K39: ='ORDENA HORAS'!AC52 -> 2017 | L39: ='ORDENA HORAS'!AD52 -> 586 | M39: ='ORDENA HORAS'!AE52 -> 399 | W39: ='IMPORTACIÓN DATOS ANUALES PVGIS'!K8 -> MESES | X39: ='IMPORTACIÓN DATOS ANUALES PVGIS'!L8 -> DÍAS | Y39: ='IMPORTACIÓN DATOS ANUALES PVGIS'!M8 -> DÍAS FINDE | Z39: ='IMPORTACIÓN DATOS ANUALES PVGIS'!N8 -> FESTIVOS
A40: 18 a 19 | B40: ='ORDENA HORAS'!T53 -> 0 | C40: ='ORDENA HORAS'!U53 -> 56 | D40: ='ORDENA HORAS'!V53 -> 303 | E40: ='ORDENA HORAS'!W53 -> 1424 | F40: ='ORDENA HORAS'!X53 -> 1518 | G40: ='ORDENA HORAS'!Y53 -> 1517 | H40: ='ORDENA HORAS'!Z53 -> 1492 | I40: ='ORDENA HORAS'!AA53 -> 1397 | J40: ='ORDENA HORAS'!AB53 -> 1201 | K40: ='ORDENA HORAS'!AC53 -> 983 | L40: ='ORDENA HORAS'!AD53 -> 0 | M40: ='ORDENA HORAS'!AE53 -> 0 | W40: ='IMPORTACIÓN DATOS ANUALES PVGIS'!K9 -> Enero | X40: ='IMPORTACIÓN DATOS ANUALES PVGIS'!L9 -> 31 | Y40: ='IMPORTACIÓN DATOS ANUALES PVGIS'!M9 -> 8 | Z40: ='IMPORTACIÓN DATOS ANUALES PVGIS'!N9 -> 2
A41: 19 a 20 | B41: ='ORDENA HORAS'!T54 -> 0 | C41: ='ORDENA HORAS'!U54 -> 0 | D41: ='ORDENA HORAS'!V54 -> 0 | E41: ='ORDENA HORAS'!W54 -> 503 | F41: ='ORDENA HORAS'!X54 -> 632 | G41: ='ORDENA HORAS'!Y54 -> 679 | H41: ='ORDENA HORAS'!Z54 -> 652 | I41: ='ORDENA HORAS'!AA54 -> 542 | J41: ='ORDENA HORAS'!AB54 -> 346 | K41: ='ORDENA HORAS'!AC54 -> 127 | L41: ='ORDENA HORAS'!AD54 -> 0 | M41: ='ORDENA HORAS'!AE54 -> 0 | W41: ='IMPORTACIÓN DATOS ANUALES PVGIS'!K10 -> Febrero | X41: ='IMPORTACIÓN DATOS ANUALES PVGIS'!L10 -> 28 | Y41: ='IMPORTACIÓN DATOS ANUALES PVGIS'!M10 -> 8 | Z41: ='IMPORTACIÓN DATOS ANUALES PVGIS'!N10 -> 0
A42: 20 a 21 | B42: ='ORDENA HORAS'!T55 -> 0 | C42: ='ORDENA HORAS'!U55 -> 0 | D42: ='ORDENA HORAS'!V55 -> 0 | E42: ='ORDENA HORAS'!W55 -> 45 | F42: ='ORDENA HORAS'!X55 -> 131 | G42: ='ORDENA HORAS'!Y55 -> 181 | H42: ='ORDENA HORAS'!Z55 -> 163 | I42: ='ORDENA HORAS'!AA55 -> 80 | J42: ='ORDENA HORAS'!AB55 -> 10 | K42: ='ORDENA HORAS'!AC55 -> 0 | L42: ='ORDENA HORAS'!AD55 -> 0 | M42: ='ORDENA HORAS'!AE55 -> 0 | W42: ='IMPORTACIÓN DATOS ANUALES PVGIS'!K11 -> Marzo | X42: ='IMPORTACIÓN DATOS ANUALES PVGIS'!L11 -> 31 | Y42: ='IMPORTACIÓN DATOS ANUALES PVGIS'!M11 -> 8 | Z42: ='IMPORTACIÓN DATOS ANUALES PVGIS'!N11 -> 0
A43: 21 a 22 | B43: ='ORDENA HORAS'!T56 -> 0 | C43: ='ORDENA HORAS'!U56 -> 0 | D43: ='ORDENA HORAS'!V56 -> 0 | E43: ='ORDENA HORAS'!W56 -> 0 | F43: ='ORDENA HORAS'!X56 -> 0 | G43: ='ORDENA HORAS'!Y56 -> 18 | H43: ='ORDENA HORAS'!Z56 -> 12 | I43: ='ORDENA HORAS'!AA56 -> 0 | J43: ='ORDENA HORAS'!AB56 -> 0 | K43: ='ORDENA HORAS'!AC56 -> 0 | L43: ='ORDENA HORAS'!AD56 -> 0 | M43: ='ORDENA HORAS'!AE56 -> 0 | W43: ='IMPORTACIÓN DATOS ANUALES PVGIS'!K12 -> Abril | X43: ='IMPORTACIÓN DATOS ANUALES PVGIS'!L12 -> 30 | Y43: ='IMPORTACIÓN DATOS ANUALES PVGIS'!M12 -> 10 | Z43: ='IMPORTACIÓN DATOS ANUALES PVGIS'!N12 -> 1
A44: 22 a 23 | B44: ='ORDENA HORAS'!T57 -> 0 | C44: ='ORDENA HORAS'!U57 -> 0 | D44: ='ORDENA HORAS'!V57 -> 0 | E44: ='ORDENA HORAS'!W57 -> 0 | F44: ='ORDENA HORAS'!X57 -> 0 | G44: ='ORDENA HORAS'!Y57 -> 0 | H44: ='ORDENA HORAS'!Z57 -> 0 | I44: ='ORDENA HORAS'!AA57 -> 0 | J44: ='ORDENA HORAS'!AB57 -> 0 | K44: ='ORDENA HORAS'!AC57 -> 0 | L44: ='ORDENA HORAS'!AD57 -> 0 | M44: ='ORDENA HORAS'!AE57 -> 0 | W44: ='IMPORTACIÓN DATOS ANUALES PVGIS'!K13 -> Mayo | X44: ='IMPORTACIÓN DATOS ANUALES PVGIS'!L13 -> 31 | Y44: ='IMPORTACIÓN DATOS ANUALES PVGIS'!M13 -> 8 | Z44: ='IMPORTACIÓN DATOS ANUALES PVGIS'!N13 -> 1
A45: 23 a 24 | B45: ='ORDENA HORAS'!T58 -> 0 | C45: ='ORDENA HORAS'!U58 -> 0 | D45: ='ORDENA HORAS'!V58 -> 0 | E45: ='ORDENA HORAS'!W58 -> 0 | F45: ='ORDENA HORAS'!X58 -> 0 | G45: ='ORDENA HORAS'!Y58 -> 0 | H45: ='ORDENA HORAS'!Z58 -> 0 | I45: ='ORDENA HORAS'!AA58 -> 0 | J45: ='ORDENA HORAS'!AB58 -> 0 | K45: ='ORDENA HORAS'!AC58 -> 0 | L45: ='ORDENA HORAS'!AD58 -> 0 | M45: ='ORDENA HORAS'!AE58 -> 0 | W45: ='IMPORTACIÓN DATOS ANUALES PVGIS'!K14 -> Junio | X45: ='IMPORTACIÓN DATOS ANUALES PVGIS'!L14 -> 30 | Y45: ='IMPORTACIÓN DATOS ANUALES PVGIS'!M14 -> 8 | Z45: ='IMPORTACIÓN DATOS ANUALES PVGIS'!N14 -> 0
A46: TOTAL | B46: =SUM(B22:B45) -> 22593 | C46: 25800 | D46: 30392 | E46: 31261 | F46: 31473 | G46: 30850 | H46: 30670 | I46: 30071 | J46: 28588 | K46: 26993 | L46: 22942 | M46: 21689 | W46: ='IMPORTACIÓN DATOS ANUALES PVGIS'!K15 -> Julio | X46: ='IMPORTACIÓN DATOS ANUALES PVGIS'!L15 -> 31 | Y46: ='IMPORTACIÓN DATOS ANUALES PVGIS'!M15 -> 10 | Z46: ='IMPORTACIÓN DATOS ANUALES PVGIS'!N15 -> 0
W47: ='IMPORTACIÓN DATOS ANUALES PVGIS'!K16 -> Agosto | X47: ='IMPORTACIÓN DATOS ANUALES PVGIS'!L16 -> 31 | Y47: ='IMPORTACIÓN DATOS ANUALES PVGIS'!M16 -> 8 | Z47: ='IMPORTACIÓN DATOS ANUALES PVGIS'!N16 -> 1
W48: ='IMPORTACIÓN DATOS ANUALES PVGIS'!K17 -> Septiembre | X48: ='IMPORTACIÓN DATOS ANUALES PVGIS'!L17 -> 30 | Y48: ='IMPORTACIÓN DATOS ANUALES PVGIS'!M17 -> 9 | Z48: ='IMPORTACIÓN DATOS ANUALES PVGIS'!N17 -> 0
A49: FESTIVOS NACIONALES 2015 EN FINDE NO SE TIENEN EN CUENTA | B49: 1 ENERO (JUEVES) | C49: 6 ENERO (MARTES) | D49: 3 ABRIL (VIERNES) | E49: 1 MAYO (VIERNES) | F49: 15 (AGOSTO)( SABADO) | G49: 12 OCTUBRE(LUNES) | H49: 8 DICIEMBRE (MARTES) | I49: 25 DICIEMBRE(VIERNES) | W49: ='IMPORTACIÓN DATOS ANUALES PVGIS'!K18 -> Octubre | X49: ='IMPORTACIÓN DATOS ANUALES PVGIS'!L18 -> 31 | Y49: ='IMPORTACIÓN DATOS ANUALES PVGIS'!M18 -> 9 | Z49: ='IMPORTACIÓN DATOS ANUALES PVGIS'!N18 -> 1
W50: ='IMPORTACIÓN DATOS ANUALES PVGIS'!K19 -> Noviembre | X50: ='IMPORTACIÓN DATOS ANUALES PVGIS'!L19 -> 30 | Y50: ='IMPORTACIÓN DATOS ANUALES PVGIS'!M19 -> 8 | Z50: ='IMPORTACIÓN DATOS ANUALES PVGIS'!N19 -> 1
A51: NºDIAS MES PERIODO | L51: COMO HAY FINES DE SEMANA SE HACE DIRECTAMENTE ARRIBA EL CÁLCULO | W51: ='IMPORTACIÓN DATOS ANUALES PVGIS'!K20 -> Diciembre | X51: ='IMPORTACIÓN DATOS ANUALES PVGIS'!L20 -> 31 | Y51: ='IMPORTACIÓN DATOS ANUALES PVGIS'!M20 -> 10 | Z51: ='IMPORTACIÓN DATOS ANUALES PVGIS'!N20 -> 3
D52: 2.0 A | E52: 2.0 DHA | G52: 2.1 A | H52: 2.1 DHA | J52: 3.0 | N52: 3.1 | Q52: 6.1
A53: FESTIVOS | C53: Nº DÍAS | D53: P | E53: P1 | F53: P2 | G53: P | H53: P1 | I53: P2 | J53: P1 | K53: P2 | L53: P3 | M53: P1 | N53: P2 | O53: P3 | P53: P1 | Q53: P2 | R53: P3 | S53: P4 | T53: P5 | U53: P6
A54: 2 | B54: Jan | C54: 31 | D54: =C54 -> 31 | E54: 31 | F54: 31 | G54: 31 | H54: 31 | I54: 31 | J54: 31 | K54: 31 | L54: 31 | M54: =C54-8-A54 -> 21 | N54: 21 | O54: =C54 -> 31 | P54: 21 | Q54: 21 | R54: 21 | S54: 21 | T54: 21 | U54: =I54 -> 31
B55: Feb | C55: 28 | D55: 28 | E55: 28 | F55: 28 | G55: 28 | H55: 28 | I55: 28 | J55: 28 | K55: 28 | L55: 28 | M55: =C55-8-A55 -> 20 | N55: 20 | O55: =C55 -> 28 | P55: 20 | Q55: 20 | R55: 20 | S55: 20 | T55: 20 | U55: =I55 -> 28
B56: Mar | C56: 31 | D56: 31 | E56: 31 | F56: 31 | G56: 31 | H56: 31 | I56: 31 | J56: 31 | K56: 31 | L56: 31 | M56: 23 | N56: 23 | O56: 31 | P56: 23 | Q56: 23 | R56: 23 | S56: 23 | T56: 23 | U56: 31
A57: 1 | B57: Apr | C57: 30 | D57: 30 | E57: 30 | F57: 30 | G57: 30 | H57: 30 | I57: 30 | J57: 30 | K57: 30 | L57: 30 | M57: 21 | N57: 21 | O57: 30 | P57: 21 | Q57: 21 | R57: 21 | S57: 21 | T57: 21 | U57: 30
A58: 1 | B58: May | C58: 31 | D58: 31 | E58: 31 | F58: 31 | G58: 31 | H58: 31 | I58: 31 | J58: 31 | K58: 31 | L58: 31 | M58: 22 | N58: 22 | O58: 31 | P58: 22 | Q58: 22 | R58: 22 | S58: 22 | T58: 22 | U58: 31
B59: Jun | C59: 30 | D59: 30 | E59: 30 | F59: 30 | G59: 30 | H59: 30 | I59: 30 | J59: 30 | K59: 30 | L59: 30 | M59: 22 | N59: 22 | O59: 30 | P59: 22 | Q59: 22 | R59: 22 | S59: 22 | T59: 22 | U59: 30
B60: Jul | C60: 31 | D60: 31 | E60: 31 | F60: 31 | G60: 31 | H60: 31 | I60: 31 | J60: 31 | K60: 31 | L60: 31 | M60: 23 | N60: 23 | O60: 31 | P60: 23 | Q60: 23 | R60: 23 | S60: 23 | T60: 23 | U60: 31
B61: Aug | C61: 31 | D61: 31 | E61: 31 | F61: 31 | G61: 31 | H61: 31 | I61: 31 | J61: 31 | K61: 31 | L61: 31 | M61: 23 | N61: 23 | O61: 31 | P61: 23 | Q61: 23 | R61: 23 | S61: 23 | T61: 23 | U61: 31
B62: Sep | C62: 30 | D62: 30 | E62: 30 | F62: 30 | G62: 30 | H62: 30 | I62: 30 | J62: 30 | K62: 30 | L62: 30 | M62: 22 | N62: 22 | O62: 30 | P62: 22 | Q62: 22 | R62: 22 | S62: 22 | T62: 22 | U62: 30
A63: 1 | B63: Oct | C63: 31 | D63: 31 | E63: 31 | F63: 31 | G63: 31 | H63: 31 | I63: 31 | J63: 31 | K63: 31 | L63: 31 | M63: 22 | N63: 22 | O63: 31 | P63: 22 | Q63: 22 | R63: 22 | S63: 22 | T63: 22 | U63: 31
B64: Nov | C64: 30 | D64: 30 | E64: 30 | F64: 30 | G64: 30 | H64: 30 | I64: 30 | J64: 30 | K64: 30 | L64: 30 | M64: 22 | N64: 22 | O64: 30 | P64: 22 | Q64: 22 | R64: 22 | S64: 22 | T64: 22 | U64: 30
A65: 2 | B65: Dec | C65: 31 | D65: 31 | E65: 31 | F65: 31 | G65: 31 | H65: 31 | I65: 31 | J65: 31 | K65: 31 | L65: 31 | M65: 21 | N65: 21 | O65: 31 | P65: 21 | Q65: 21 | R65: 21 | S65: 21 | T65: 21 | U65: 31
B66: TABLA DE VALORES POR Nº DIAS | D66: 2.0 A | E66: 2.0 DHA | G66: 2.1 A | H66: 2.1 DHA | J66: 3.0 | N66: 3.1 | Q66: 6.1
D67: P | E67: P1 | F67: P2 | G67: P | H67: P1 | I67: P2 | J67: P1 | K67: P2 | L67: P3 | M67: P1 | N67: P2 | O67: P3 | P67: P1 | Q67: P2 | R67: P3 | S67: P4 | T67: P5 | U67: P6
B68: Jan | D68: =D54*A86 -> 700383 | E68: 239196 | F68: 461187 | G68: 700383 | H68: 239196 | I68: 461187 | J68: 0 | K68: 700383 | L68: 0 | M68: =J86 -> 0 | N68: =K86 -> 474453 | O68: =L86 -> 225930
B69: Feb | D69: 722400 | E69: 253344 | F69: 469056 | G69: 722400 | H69: 253344 | I69: 469056 | J69: 1568 | K69: 720832 | L69: 0
B70: Mar | D70: 942152 | E70: 340070 | F70: 602082 | G70: 942152 | H70: 340070 | I70: 602082 | J70: 9393 | K70: 923738 | L70: 9021
B71: Apr | D71: 937830 | E71: 343860 | F71: 593970 | G71: 937830 | H71: 343860 | I71: 593970 | J71: 462720 | K71: 474270 | L71: 840
B72: May | D72: 975663 | E72: 361739 | F72: 613924 | G72: 975663 | H72: 361739 | I72: 613924 | J72: 467945 | K72: 504184 | L72: 3534
B73: Jun | D73: 925500 | E73: 345000 | F73: 580500 | G73: 925500 | H73: 345000 | I73: 580500 | J73: 437430 | K73: 482640 | L73: 5430
B74: Jul | D74: 950770 | E74: 353648 | F74: 597122 | G74: 950770 | H74: 353648 | I74: 597122 | J74: 452135 | K74: 493582 | L74: 5053
B75: Aug | D75: 932201 | E75: 343139 | F75: 589062 | G75: 932201 | H75: 343139 | I75: 589062 | J75: 455018 | K75: 475168 | L75: 2015
B76: Sep | D76: 857640 | E76: 310410 | F76: 547230 | G76: 857640 | H76: 310410 | I76: 547230 | J76: 435540 | K76: 422100 | L76: 0
B77: Oct | D77: 836783 | E77: 296670 | F77: 540113 | G77: 836783 | H77: 296670 | I77: 540113 | J77: 443176 | K77: 393607 | L77: 0
B78: Nov | D78: 688260 | E78: 237210 | F78: 451050 | G78: 688260 | H78: 237210 | I78: 451050 | J78: 0 | K78: 688260 | L78: 0
B79: Dec | D79: 672359 | E79: 228594 | F79: 443765 | G79: 672359 | H79: 228594 | I79: 443765 | J79: 0 | K79: 672359 | L79: 0
A84: 2.0 A | B84: 2.0 DHA | D84: 2.1 A | E84: 2.1 DHA | G84: 3.0 | K84: 3.1 | N84: 6.1
A85: P | B85: P1 | C85: P2 | D85: P | E85: P1 | F85: P2 | G85: P1 | H85: P2 | I85: P3 | J85: P1 | K85: P2 | L85: P3 | M85: P1 | N85: P2 | O85: P3 | P85: P4 | Q85: P5 | R85: P6
A86: =B46 -> 22593 | B86: =B46-C86 -> 7716 | C86: =SUM(B34:B43) -> 14877 | D86: =B46 -> 22593 | E86: =B46-F86 -> 7716 | F86: =SUM(B34:B43) -> 14877 | G86: =SUM(B40:B43) -> 0 | H86: =B46-G86-I86 -> 22593 | I86: =SUM(B22:B29) -> 0 | J86: =M54*SUM(B40:B43) -> 0 | K86: =21*(SUM(B30:B39)+B44+B45)+10*SUM(B40:B45) -> 474453 | L86: =21*SUM(B22:B29)+10*SUM(B22:B39) -> 225930
A87: =C46 -> 25800 | B87: =C46-C87 -> 9048 | C87: =SUM(C34:C43) -> 16752 | D87: =C46 -> 25800 | E87: =C46-F87 -> 9048 | F87: =SUM(C34:C43) -> 16752 | G87: =SUM(C40:C43) -> 56 | H87: =C46-G87-I87 -> 25744 | I87: =SUM(C22:C29) -> 0 | J87: =M55*SUM(C40:C43) -> 1120
A88: =D46 -> 30392 | B88: =D46-C88 -> 10970 | C88: =SUM(D34:D43) -> 19422 | D88: =D46 -> 30392 | E88: =D46-F88 -> 10970 | F88: =SUM(D34:D43) -> 19422 | G88: =SUM(D40:D43) -> 303 | H88: =D46-G88-I88 -> 29798 | I88: =SUM(D22:D29) -> 291 | J88: =M56*SUM(D40:D43) -> 6969
A89: =E46 -> 31261 | B89: =E46-C89 -> 11462 | C89: =SUM(E35:E44) -> 19799 | D89: =E46 -> 31261 | E89: =E46-F89 -> 11462 | F89: =SUM(E35:E44) -> 19799 | G89: =SUM(E33:E36) -> 15424 | H89: =E46-G89-I89 -> 15809 | I89: =SUM(E22:E29) -> 28 | J89: =M57*SUM(E33:E36) -> 323904
A90: =F46 -> 31473 | B90: =F46-C90 -> 11669 | C90: =SUM(F35:F44) -> 19804 | D90: =F46 -> 31473 | E90: =F46-F90 -> 11669 | F90: =SUM(F35:F44) -> 19804 | G90: =SUM(F33:F36) -> 15095 | H90: =F46-G90-I90 -> 16264 | I90: =SUM(F22:F29) -> 114 | J90: =SUM(F33:F36) -> 15095
A91: =G46 -> 30850 | B91: =G46-C91 -> 11500 | C91: =SUM(G35:G44) -> 19350 | D91: =G46 -> 30850 | E91: =G46-F91 -> 11500 | F91: =SUM(G35:G44) -> 19350 | G91: =SUM(G33:G36) -> 14581 | H91: =G46-G91-I91 -> 16088 | I91: =SUM(G22:G29) -> 181 | J91: =SUM(G33:G36) -> 14581
A92: =H46 -> 30670 | B92: =H46-C92 -> 11408 | C92: =SUM(H35:H44) -> 19262 | D92: =H46 -> 30670 | E92: =H46-F92 -> 11408 | F92: =SUM(H35:H44) -> 19262 | G92: =SUM(H33:H36) -> 14585 | H92: =H46-G92-I92 -> 15922 | I92: =SUM(H22:H29) -> 163 | J92: =SUM(H33:H36) -> 14585
A93: =I46 -> 30071 | B93: =I46-C93 -> 11069 | C93: =SUM(I35:I44) -> 19002 | D93: =I46 -> 30071 | E93: =I46-F93 -> 11069 | F93: =SUM(I35:I44) -> 19002 | G93: =SUM(I33:I36) -> 14678 | H93: =I46-G93-I93 -> 15328 | I93: =SUM(I22:I29) -> 65 | J93: =SUM(I33:I36) -> 14678
A94: =J46 -> 28588 | B94: =J46-C94 -> 10347 | C94: =SUM(J35:J44) -> 18241 | D94: =J46 -> 28588 | E94: =J46-F94 -> 10347 | F94: =SUM(J35:J44) -> 18241 | G94: =SUM(J33:J36) -> 14518 | H94: =J46-G94-I94 -> 14070 | I94: =SUM(J22:J29) -> 0 | J94: =SUM(J33:J36) -> 14518
A95: =K46 -> 26993 | B95: =K46-C95 -> 9570 | C95: =SUM(K35:K44) -> 17423 | D95: =K46 -> 26993 | E95: =K46-F95 -> 9570 | F95: =SUM(K35:K44) -> 17423 | G95: =SUM(K33:K36) -> 14296 | H95: =K46-G95-I95 -> 12697 | I95: =SUM(K22:K29) -> 0 | J95: =SUM(K33:K36) -> 14296
A96: =L46 -> 22942 | B96: =L46-C96 -> 7907 | C96: =SUM(L34:L43) -> 15035 | D96: =L46 -> 22942 | E96: =L46-F96 -> 7907 | F96: =SUM(L34:L43) -> 15035 | G96: =SUM(L40:L43) -> 0 | H96: =L46-G96-I96 -> 22942 | I96: =SUM(L22:L29) -> 0 | J96: =SUM(L40:L43) -> 0
A97: =M46 -> 21689 | B97: =M46-C97 -> 7374 | C97: =SUM(M34:M43) -> 14315 | D97: =M46 -> 21689 | E97: =M46-F97 -> 7374 | F97: =SUM(M34:M43) -> 14315 | G97: =SUM(M40:M43) -> 0 | H97: =M46-G97-I97 -> 21689 | I97: =SUM(M22:M29) -> 0 | J97: =SUM(M40:M43) -> 0
A100: 2.0 A | B100: 2.0 DHA | D100: 2.1 A | E100: 2.1 DHA | G100: 3.0 | K100: 3.1 | N100: 6.1
A101: P | B101: P1 | C101: P2 | D101: P | E101: P1 | F101: P2 | G101: P1 | H101: P2 | I101: P3 | J101: P1 | K101: P2 | L101: P3 | M101: P1 | N101: P2 | O101: P3 | P101: P4 | Q101: P5 | R101: P6
A102: =F3 -> 0.06314988587 | B102: =F3*(14/24) -> 0.03683743343 | C102: =F3-B102 -> 0.02631245245 | D102: =F3 -> 0.06314988587 | E102: =F3*(14/24) -> 0.03683743343 | F102: =F3-E102 -> 0.02631245245 | G102: =F3*(4/24)*(J54/C54) -> 0.01052498098 | H102: =F3-G102-I102 -> 0.03157494294 | I102: =F3*(8/24)*(L54/C54) -> 0.02104996196 | J102: =F3*(4/24)*(M54/C54) -> 0.007129825824 | K102: =A102*((12/24)*N54+(6/24)*(C54-N54))/C54 -> 0.02648221021 | L102: =A102-J102-K102 -> 0.02953784984 | M102: =$A102*6/9*P54/$C$54 -> 0.0285193033 | N102: =$A102*3/9*Q54/$C$54 -> 0.01425965165 | O102: =$A102*O117 -> 0 | P102: 0 | Q102: 0 | R102: =A102-M102-N102-O102-P102-Q102 -> 0.02037093093
A103: 0.06847577986 | B103: 0.03994420492 | C103: 0.02853157494 | D103: 0.06847577986 | E103: 0.03994420492 | F103: 0.02853157494 | G103: 0.01141262998 | H103: 0.03423788993 | I103: 0.02282525995 | J103: 0.008151878555 | K103: =A103*((12/24)*N55+(6/24)*(C55-N55))/C55 -> 0.0293467628 | L103: =A103-J103-K103 -> 0.03097713851 | M103: =$A103*6/9*P55/$C$54 -> 0.02945194833 | N103: =$A103*3/9*Q55/$C$54 -> 0.01472597416 | O103: 0 | P103: 0 | Q103: 0 | R103: =A103-M103-N103-O103-P103-Q103 -> 0.02429785737
A104: 0.09130103982 | B104: 0.05325893989 | C104: 0.03804209992 | D104: 0.09130103982 | E104: 0.05325893989 | F104: 0.03804209992 | G104: 0.01521683997 | H104: 0.04565051991 | I104: 0.03043367994 | J104: 0.01128991353 | K104: =A104*((12/24)*N56+(6/24)*(C56-N56))/C56 -> 0.03976013024 | L104: 0.04025099605 | M104: =$A104*M119 -> 0 | N104: 0 | O104: =$A104*3/11*R56/$C$54 -> 0.01847440395 | P104: =$A104*8/11*S56/$C$54 -> 0.0492650772 | Q104: 0 | R104: =A104-M104-N104-O104-P104-Q104 -> 0.02356155866
A105: 0.09003296982 | B105: 0.05251923239 | C105: 0.03751373742 | D105: 0.09003296982 | E105: 0.05251923239 | F105: 0.03751373742 | G105: 0.01500549497 | H105: 0.04501648491 | I105: 0.03001098994 | J105: 0.01050384648 | K105: 0.03826401217 | L105: 0.04126511117 | M105: 0 | N105: 0 | O105: 0 | P105: 0 | Q105: =$A105*T57/C57 -> 0.06302307887 | R105: =A105-M105-N105-O105-P105-Q105 -> 0.02700989095
A106: 0.0989094598 | B106: 0.05769718488 | C106: 0.04121227492 | D106: 0.0989094598 | E106: 0.05769718488 | F106: 0.04121227492 | G106: 0.01648490997 | H106: 0.0494547299 | I106: 0.03296981993 | J106: 0.01169896836 | K106: 0.0422758175 | L106: 0.04493467394 | M106: 0 | N106: 0 | O106: 0 | P106: 0 | Q106: =$A106*T58/C58 -> 0.07019381018 | R106: 0.02871564962
A107: 0.1008115648 | B107: 0.05880674613 | C107: 0.04200481867 | D107: 0.1008115648 | E107: 0.05880674613 | F107: 0.04200481867 | G107: 0.01680192747 | H107: 0.0504057824 | I107: 0.03360385493 | J107: 0.01232141348 | K107: 0.04368501141 | L107: 0.04480513991 | M107: 0 | N107: 0 | O107: =$A107*6/13*R59/C59 -> 0.03412083732 | P107: =$A107*7/13*S59/D59 -> 0.03980764354 | Q107: 0 | R107: 0.02688308395
A108: 0.1039817398 | B108: 0.06065601488 | C108: 0.04332572491 | D108: 0.1039817398 | E108: 0.06065601488 | F108: 0.04332572491 | G108: 0.01733028997 | H108: 0.0519908699 | I108: 0.03466057993 | J108: 0.01285795707 | K108: 0.04528237055 | L108: 0.04584141217 | M108: =$A108*8/12*0.5*P60/31 -> 0.02571591414 | N108: =$A108*4/12*0.5*Q60/31 -> 0.01285795707 | O108: 0 | P108: 0 | Q108: 0 | R108: 0.06540786858
A109: 0.1001775298 | B109: 0.05843689238 | C109: 0.04174063742 | D109: 0.1001775298 | E109: 0.05843689238 | F109: 0.04174063742 | G109: 0.01669625497 | H109: 0.0500887649 | I109: 0.03339250993 | J109: 0.01238754401 | K109: 0.04362569846 | L109: 0.04416428733 | M109: 0 | N109: 0 | O109: 0 | P109: 0 | Q109: 0 | R109: 0.1001775298
A110: 0.08559472483 | B110: 0.04993025615 | C110: 0.03566446868 | D110: 0.08559472483 | E110: 0.04993025615 | F110: 0.03566446868 | G110: 0.01426578747 | H110: 0.04279736241 | I110: 0.02853157494 | J110: =F11*(4/24)*(C62/C62) -> 0.01426578747 | K110: 0.03709104743 | L110: 0.03423788993 | M110: 0 | N110: 0 | O110: =$A110*6/11*R62/C62 -> 0.03423788993 | P110: =$A110*5/11*S62/D62 -> 0.02853157494 | Q110: 0 | R110: 0.02282525995
A111: 0.07925437484 | B111: 0.04623171866 | C111: 0.03302265618 | D111: 0.07925437484 | E111: 0.04623171866 | F111: 0.03302265618 | G111: 0.01320906247 | H111: 0.03962718742 | I111: 0.02641812495 | J111: =F12*(4/24)*(C63/C63) -> 0.01320906247 | K111: 0.03387485376 | L111: 0.03217045861 | M111: 0 | N111: 0 | O111: 0 | P111: 0 | Q111: =$A111*T63/C63 -> 0.05624504021 | R111: 0.02300933463
A112: 0.06169160538 | B112: 0.0359867698 | C112: 0.02570483557 | D112: 0.06169160538 | E112: 0.0359867698 | F112: 0.02570483557 | G112: 0.01028193423 | H112: 0.03084580269 | I112: 0.02056386846 | J112: =F13*(4/24)*(C64/C64) -> 0.01028193423 | K112: 0.026733029 | L112: 0.02467664215 | M112: 0 | N112: 0 | O112: =$A112*3/11*R64/C64 -> 0.01233832108 | P112: =$A112*8/11*S64/D64 -> 0.03290218953 | Q112: 0 | R112: 0.01645109477
A113: 0.05661932539 | B113: 0.03302793981 | C113: 0.02359138558 | D113: 0.05661932539 | E113: 0.03302793981 | F113: 0.02359138558 | G113: 0.009436554231 | H113: 0.02830966269 | I113: 0.01887310846 | J113: =F14*(4/24)*(C65/C65) -> 0.009436554231 | K113: 0.02374358807 | L113: 0.02343918309 | M113: =$A113*6/9*P65/$C$54 -> 0.02557001792 | N113: =$A113*3/9*Q65/$C$54 -> 0.01278500896 | O113: 0 | P113: 0 | Q113: 0 | R113: 0.01826429851
A115: 2.0 A | B115: 2.0 DHA | D115: 2.1 A | E115: 2.1 DHA | G115: 3.0 | K115: 3.1 | N115: 6.1
A116: P | B116: P1 | C116: P2 | D116: P | E116: P1 | F116: P2 | G116: P1 | H116: P2 | I116: P3 | J116: P1 | K116: P2 | L116: P3 | M116: P1 | N116: P2 | O116: P3 | P116: P4 | Q116: P5 | R116: P6
A117: 1 | B117: =A117*(14/24) -> 0.5833333333 | C117: =A117-B117 -> 0.4166666667 | D117: =A117 -> 1 | E117: =A117*(14/24) -> 0.5833333333 | F117: =A117-E117 -> 0.4166666667 | G117: =A117*(4/24)*(J54/C54) -> 0.1666666667 | H117: =A117-G117-I117 -> 0.5 | I117: =A117*(8/24)*(L54/C54) -> 0.3333333333 | J117: =A117*(4/24)*(M54/C54) -> 0.1129032258 | K117: =A117*((12/24)*N54+(6/24)*(C54-N54))/C54 -> 0.4193548387 | L117: =A117*((8/24)*N54+(C54-N54)*(18/24))/C54 -> 0.4677419355 | M117: =A117*(6/24)*P54/C54 -> 0.1693548387 | N117: =A117*(10/24)*Q54/C54 -> 0.2822580645 | O117: 0 | P117: 0 | Q117: 0 | R117: =A117*((8/24)*P54+24/24*(C54-P54))/C54 -> 0.5483870968 | S117: =SUM(M117:R117) -> 1
A118: 1 | B118: =A118*(14/24) -> 0.5833333333 | C118: =A118-B118 -> 0.4166666667 | D118: =A118 -> 1 | E118: =A118*(14/24) -> 0.5833333333 | F118: =A118-E118 -> 0.4166666667 | G118: =A118*(4/24)*(J55/C55) -> 0.1666666667 | H118: =A118-G118-I118 -> 0.5 | I118: =A118*(8/24)*(L55/C55) -> 0.3333333333 | J118: =A118*(4/24)*(M55/C55) -> 0.119047619 | K118: =A118*((12/24)*N55+(6/24)*(C55-N55))/C55 -> 0.4285714286 | L118: =A118*((8/24)*N55+(C55-N55)*(18/24))/C55 -> 0.4523809524 | M118: =A118*(6/24)*P55/C55 -> 0.1785714286 | N118: =A118*(10/24)*Q55/C55 -> 0.2976190476 | O118: 0 | P118: 0 | Q118: 0 | R118: =A118*((8/24)*P55+24/24*(C55-P55))/C55 -> 0.5238095238 | S118: 1
A119: 1 | B119: 0.5833333333 | C119: 0.4166666667 | D119: 1 | E119: 0.5833333333 | F119: 0.4166666667 | G119: 0.1666666667 | H119: 0.5 | I119: 0.3333333333 | J119: 0.123655914 | K119: 0.435483871 | L119: 0.4408602151 | M119: 0 | N119: 0 | O119: =A119*(10/24)*R56/C56 -> 0.3091397849 | P119: =A119*(6/24)*S56/C56 -> 0.185483871 | Q119: 0 | R119: =A119*((8/24)*P56+24/24*(C56-P56))/C56 -> 0.5053763441 | S119: 1
A120: 1 | B120: 0.5833333333 | C120: 0.4166666667 | D120: 1 | E120: 0.5833333333 | F120: 0.4166666667 | G120: 0.1666666667 | H120: 0.5 | I120: 0.3333333333 | J120: 0.1166666667 | K120: 0.425 | L120: 0.4583333333 | M120: 0 | N120: 0 | O120: 0 | P120: 0 | Q120: =A120*(16/24)*P57/C57 -> 0.4666666667 | R120: =A120*(8/24*P57+24/24*(C57-P57))/C57 -> 0.5333333333 | S120: 1
A121: 1 | B121: 0.5833333333 | C121: 0.4166666667 | D121: 1 | E121: 0.5833333333 | F121: 0.4166666667 | G121: 0.1666666667 | H121: 0.5 | I121: 0.3333333333 | J121: 0.1182795699 | K121: 0.4274193548 | L121: 0.4543010753 | M121: 0 | N121: 0 | O121: 0 | P121: 0 | Q121: =A121*(16/24)*P58/C58 -> 0.4731182796 | R121: =A121*(8/24*P58+24/24*(C58-P58))/C58 -> 0.5268817204 | S121: 1
A122: 1 | B122: 0.5833333333 | C122: 0.4166666667 | D122: 1 | E122: 0.5833333333 | F122: 0.4166666667 | G122: 0.1666666667 | H122: 0.5 | I122: 0.3333333333 | J122: 0.1222222222 | K122: 0.4333333333 | L122: 0.4444444444 | M122: 0 | N122: 0 | O122: =A122*(10/24)*R59/C59 -> 0.3055555556 | P122: =A122*(6/24)*S59/C59 -> 0.1833333333 | Q122: 0 | R122: =A122*((8/24)*P59+24/24*(C59-P59))/C59 -> 0.5111111111 | S122: 1
A123: 1 | B123: 0.5833333333 | C123: 0.4166666667 | D123: 1 | E123: 0.5833333333 | F123: 0.4166666667 | G123: 0.1666666667 | H123: 0.5 | I123: 0.3333333333 | J123: 0.123655914 | K123: 0.435483871 | L123: 0.4408602151 | M123: =A122*(8/24*P60)/C60 -> 0.247311828 | N123: =A122*(8/24*Q60)/C60 -> 0.247311828 | O123: 0 | P123: 0 | Q123: 0 | R123: =A122*(8/24*P60+24/24*(C60-P60))/C60 -> 0.5053763441 | S123: 1
A124: 1 | B124: 0.5833333333 | C124: 0.4166666667 | D124: 1 | E124: 0.5833333333 | F124: 0.4166666667 | G124: 0.1666666667 | H124: 0.5 | I124: 0.3333333333 | J124: 0.123655914 | K124: 0.435483871 | L124: 0.4408602151 | R124: 1 | S124: 1
A125: 1 | B125: 0.5833333333 | C125: 0.4166666667 | D125: =A125 -> 1 | E125: 0.5833333333 | F125: 0.4166666667 | G125: 0.1666666667 | H125: 0.5 | I125: 0.3333333333 | J125: 0.1222222222 | K125: 0.4333333333 | L125: 0.4444444444 | M125: 0 | N125: 0 | O125: =A125*(10/24)*R62/C62 -> 0.3055555556 | P125: =A125*(6/24)*S62/C62 -> 0.1833333333 | Q125: 0 | R125: =A125*((8/24)*P62+24/24*(C62-P62))/C62 -> 0.5111111111 | S125: 1
A126: 1 | B126: 0.5833333333 | C126: 0.4166666667 | D126: 1 | E126: 0.5833333333 | F126: 0.4166666667 | G126: 0.1666666667 | H126: 0.5 | I126: 0.3333333333 | J126: 0.1182795699 | K126: 0.4274193548 | L126: 0.4543010753 | M126: 0 | N126: 0 | O126: 0 | P126: 0 | Q126: =A126*(16/24)*P63/C63 -> 0.4731182796 | R126: =A126*(8/24*P63+24/24*(C63-P63))/C63 -> 0.5268817204 | S126: 1
A127: 1 | B127: 0.5833333333 | C127: 0.4166666667 | D127: 1 | E127: 0.5833333333 | F127: 0.4166666667 | G127: 0.1666666667 | H127: 0.5 | I127: 0.3333333333 | J127: 0.1222222222 | K127: 0.4333333333 | L127: 0.4444444444 | M127: 0 | N127: 0 | O127: =A127*(10/24)*R64/C64 -> 0.3055555556 | P127: =A127*(6/24)*S64/C64 -> 0.1833333333 | Q127: 0 | R127: =A127*((8/24)*P64+24/24*(C64-P64))/C64 -> 0.5111111111 | S127: 1
A128: 1 | B128: 0.5833333333 | C128: 0.4166666667 | D128: 1 | E128: 0.5833333333 | F128: 0.4166666667 | G128: 0.1666666667 | H128: 0.5 | I128: 0.3333333333 | J128: 0.1129032258 | K128: 0.4193548387 | L128: 0.4677419355 | M128: =A128*(6/24)*P65/C65 -> 0.1693548387 | N128: =A128*(10/24)*Q65/C65 -> 0.2822580645 | O128: 0 | P128: 0 | Q128: 0 | R128: =A128*((8/24)*P65+24/24*(C65-P65))/C65 -> 0.5483870968 | S128: 1
J130: =AVERAGE(J117:J128) -> 0.1196428571 | K130: =AVERAGE(K117:K128) -> 0.4294642857 | L130: 0.4508928571 | M130: 0.06950844854 | N130: 0.1008588186 | O130: 0.1114369501 | P130: 0.06686217009 | Q130: 0.1284457478 | R130: 0.5626472094

Sheet ORDENA HORAS (hidden)
O1: ='IMPORTACIÓN DATOS ANUALES PVGIS'!M4 -> INVIERNO | T1: MESES
S2: HORAS | T2: ENERO | U2: FEBRERO | V2: MARZO | W2: ABRIL | X2: MAYO | Y2: JUNIO | Z2: JULIO | AA2: AGOSTO | AB2: SEPTIEMBRE | AC2: OCTUBRE | AD2: NOVIEMBRE | AE2: DICIEMBRE
B3: MESES | S3: 0:00-1:00 | T3: =SUM(B5:B8) -> 0 | U3: 0 | V3: 0 | W3: 0 | X3: 0 | Y3: 0 | Z3: 0 | AA3: 0 | AB3: 0 | AC3: 0 | AD3: 0 | AE3: 0
A4: HORAS | B4: ENERO | C4: FEBRERO | D4: MARZO | E4: ABRIL | F4: MAYO | G4: JUNIO | H4: JULIO | I4: AGOSTO | J4: SEPTIEMBRE | K4: OCTUBRE | L4: NOVIEMBRE | M4: DICIEMBRE | S4: 1:00-2:00 | T4: =SUM(B9:B12) -> 0 | U4: 0 | V4: 0 | W4: 0 | X4: 0 | Y4: 0 | Z4: 0 | AA4: 0 | AB4: 0 | AC4: 0 | AD4: 0 | AE4: 0
A5: =Q5 -> 00:07:00 | B5: 0 | C5: 0 | D5: 0 | E5: 0 | F5: 0 | G5: 0 | H5: 0 | I5: 0 | J5: 0 | K5: 0 | L5: 0 | M5: 0 | Q5: 00:07:00 | S5: 2:00-3:00 | T5: =SUM(B13:B16) -> 0 | U5: 0 | V5: 0 | W5: 0 | X5: 0 | Y5: 0 | Z5: 0 | AA5: 0 | AB5: 0 | AC5: 0 | AD5: 0 | AE5: 0
A6: =Q6 -> 00:22:00 | B6: 0 | C6: 0 | D6: 0 | E6: 0 | F6: 0 | G6: 0 | H6: 0 | I6: 0 | J6: 0 | K6: 0 | L6: 0 | M6: 0 | Q6: 00:22:00 | S6: 3:00-4:00 | T6: =SUM(B17:B20) -> 0 | U6: 0 | V6: 0 | W6: 0 | X6: 0 | Y6: 0 | Z6: 0 | AA6: 0 | AB6: 0 | AC6: 0 | AD6: 0 | AE6: 0
A7: 00:37:00 | B7: 0 | C7: 0 | D7: 0 | E7: 0 | F7: 0 | G7: 0 | H7: 0 | I7: 0 | J7: 0 | K7: 0 | L7: 0 | M7: 0 | Q7: 00:37:00 | S7: 4:00-5:00 | T7: =SUM(B21:B24) -> 0 | U7: 0 | V7: 0 | W7: 0 | X7: 0 | Y7: 0 | Z7: 0 | AA7: 0 | AB7: 0 | AC7: 0 | AD7: 0 | AE7: 0
A8: 00:52:00 | B8: 0 | C8: 0 | D8: 0 | E8: 0 | F8: 0 | G8: 0 | H8: 0 | I8: 0 | J8: 0 | K8: 0 | L8: 0 | M8: 0 | Q8: 00:52:00 | S8: 5:00-6:00 | T8: =SUM(B25:B28) -> 0 | U8: 0 | V8: 0 | W8: 28 | X8: 114 | Y8: 181 | Z8: 163 | AA8: 65 | AB8: 0 | AC8: 0 | AD8: 0 | AE8: 0
A9: 01:07:00 | B9: 0 | C9: 0 | D9: 0 | E9: 0 | F9: 0 | G9: 0 | H9: 0 | I9: 0 | J9: 0 | K9: 0 | L9: 0 | M9: 0 | Q9: 01:07:00 | S9: 6:00-7:00 | T9: =SUM(B29:B32) -> 0 | U9: 0 | V9: 291 | W9: 503 | X9: 632 | Y9: 679 | Z9: 652 | AA9: 542 | AB9: 346 | AC9: 86 | AD9: 0 | AE9: 0
A10: 01:22:00 | B10: 0 | C10: 0 | D10: 0 | E10: 0 | F10: 0 | G10: 0 | H10: 0 | I10: 0 | J10: 0 | K10: 0 | L10: 0 | M10: 0 | Q10: 01:22:00 | S10: 7:00-8:00 | T10: =SUM(B33:B36) -> 390 | U10: 844 | V10: 1261 | W10: 1424 | X10: 1518 | Y10: 1517 | Z10: 1492 | AA10: 1397 | AB10: 1201 | AC10: 983 | AD10: 532 | AE10: 330
A11: 01:37:00 | B11: 0 | C11: 0 | D11: 0 | E11: 0 | F11: 0 | G11: 0 | H11: 0 | I11: 0 | J11: 0 | K11: 0 | L11: 0 | M11: 0 | Q11: 01:37:00 | S11: 8:00-9:00 | T11: =SUM(B37:B40) -> 1605 | U11: 1903 | V11: 2316 | W11: 2403 | X11: 2428 | Y11: 2374 | Z11: 2358 | AA11: 2305 | AB11: 2166 | AC11: 2017 | AD11: 1634 | AE11: 1510
A12: 01:52:00 | B12: 0 | C12: 0 | D12: 0 | E12: 0 | F12: 0 | G12: 0 | H12: 0 | I12: 0 | J12: 0 | K12: 0 | L12: 0 | M12: 0 | Q12: 01:52:00 | S12: 9:00-10:00 | T12: =SUM(B41:B44) -> 2530 | U12: 2820 | V12: 3227 | W12: 3246 | X12: 3207 | Y12: 3109 | Z12: 3103 | AA12: 3095 | AB12: 3011 | AC12: 2917 | AD12: 2543 | AE12: 2438
A13: 02:07:00 | B13: 0 | C13: 0 | D13: 0 | E13: 0 | F13: 0 | G13: 0 | H13: 0 | I13: 0 | J13: 0 | K13: 0 | L13: 0 | M13: 0 | Q13: 02:07:00 | S13: 10:00-11:00 | T13: =SUM(B45:B48) -> 3191 | U13: 3481 | V13: 3875 | W13: 3858 | X13: 3770 | Y13: 3640 | Z13: 3640 | AA13: 3665 | AB13: 3623 | AC13: 3567 | AD13: 3198 | AE13: 3096
A14: 02:22:00 | B14: 0 | C14: 0 | D14: 0 | E14: 0 | F14: 0 | G14: 0 | H14: 0 | I14: 0 | J14: 0 | K14: 0 | L14: 0 | M14: 0 | Q14: 02:22:00 | S14: 11:00-12:00 | T14: =SUM(B49:B52) -> 3535 | U14: 3824 | V14: 4220 | W14: 4160 | X14: 4059 | Y14: 3916 | Z14: 3921 | AA14: 3959 | AB14: 3942 | AC14: 3906 | AD14: 3537 | AE14: 3436
A15: 02:37:00 | B15: 0 | C15: 0 | D15: 0 | E15: 0 | F15: 0 | G15: 0 | H15: 0 | I15: 0 | J15: 0 | K15: 0 | L15: 0 | M15: 0 | Q15: 02:37:00 | S15: 12:00-13:00 | T15: =SUM(B53:B56) -> 3535 | U15: 3824 | V15: 4220 | W15: 4160 | X15: 4059 | Y15: 3916 | Z15: 3921 | AA15: 3959 | AB15: 3942 | AC15: 3906 | AD15: 3537 | AE15: 3436
A16: 02:52:00 | B16: 0 | C16: 0 | D16: 0 | E16: 0 | F16: 0 | G16: 0 | H16: 0 | I16: 0 | J16: 0 | K16: 0 | L16: 0 | M16: 0 | Q16: 02:52:00 | S16: 13:00-14:00 | T16: =SUM(B57:B60) -> 3191 | U16: 3481 | V16: 3875 | W16: 3858 | X16: 3770 | Y16: 3640 | Z16: 3640 | AA16: 3665 | AB16: 3623 | AC16: 3567 | AD16: 3198 | AE16: 3096
A17: 03:07:00 | B17: 0 | C17: 0 | D17: 0 | E17: 0 | F17: 0 | G17: 0 | H17: 0 | I17: 0 | J17: 0 | K17: 0 | L17: 0 | M17: 0 | Q17: 03:07:00 | S17: 14:00-15:00 | T17: =SUM(B61:B64) -> 2530 | U17: 2820 | V17: 3227 | W17: 3246 | X17: 3207 | Y17: 3109 | Z17: 3103 | AA17: 3095 | AB17: 3011 | AC17: 2917 | AD17: 2543 | AE17: 2438
A18: 03:22:00 | B18: 0 | C18: 0 | D18: 0 | E18: 0 | F18: 0 | G18: 0 | H18: 0 | I18: 0 | J18: 0 | K18: 0 | L18: 0 | M18: 0 | Q18: 03:22:00 | S18: 15:00-16:00 | T18: =SUM(B65:B68) -> 1605 | U18: 1903 | V18: 2316 | W18: 2403 | X18: 2428 | Y18: 2374 | Z18: 2358 | AA18: 2305 | AB18: 2166 | AC18: 2017 | AD18: 1634 | AE18: 1510
A19: 03:37:00 | B19: 0 | C19: 0 | D19: 0 | E19: 0 | F19: 0 | G19: 0 | H19: 0 | I19: 0 | J19: 0 | K19: 0 | L19: 0 | M19: 0 | Q19: 03:37:00 | S19: 16:00-17:00 | T19: =SUM(B69:B72) -> 481 | U19: 844 | V19: 1261 | W19: 1424 | X19: 1518 | Y19: 1517 | Z19: 1492 | AA19: 1397 | AB19: 1201 | AC19: 983 | AD19: 586 | AE19: 399
A20: 03:52:00 | B20: 0 | C20: 0 | D20: 0 | E20: 0 | F20: 0 | G20: 0 | H20: 0 | I20: 0 | J20: 0 | K20: 0 | L20: 0 | M20: 0 | Q20: 03:52:00 | S20: 17:00-18:00 | T20: =SUM(B73:B76) -> 0 | U20: 56 | V20: 303 | W20: 503 | X20: 632 | Y20: 679 | Z20: 652 | AA20: 542 | AB20: 346 | AC20: 127 | AD20: 0 | AE20: 0
A21: 04:07:00 | B21: 0 | C21: 0 | D21: 0 | E21: 0 | F21: 0 | G21: 0 | H21: 0 | I21: 0 | J21: 0 | K21: 0 | L21: 0 | M21: 0 | Q21: 04:07:00 | S21: 18:00-19:00 | T21: =SUM(B77:B80) -> 0 | U21: 0 | V21: 0 | W21: 45 | X21: 131 | Y21: 181 | Z21: 163 | AA21: 80 | AB21: 10 | AC21: 0 | AD21: 0 | AE21: 0
A22: 04:22:00 | B22: 0 | C22: 0 | D22: 0 | E22: 0 | F22: 0 | G22: 0 | H22: 0 | I22: 0 | J22: 0 | K22: 0 | L22: 0 | M22: 0 | Q22: 04:22:00 | S22: 19:00-20:00 | T22: =SUM(B81:B84) -> 0 | U22: 0 | V22: 0 | W22: 0 | X22: 0 | Y22: 18 | Z22: 12 | AA22: 0 | AB22: 0 | AC22: 0 | AD22: 0 | AE22: 0
A23: 04:37:00 | B23: 0 | C23: 0 | D23: 0 | E23: 0 | F23: 0 | G23: 0 | H23: 0 | I23: 0 | J23: 0 | K23: 0 | L23: 0 | M23: 0 | Q23: 04:37:00 | S23: 20:00-21:00 | T23: =SUM(B85:B88) -> 0 | U23: 0 | V23: 0 | W23: 0 | X23: 0 | Y23: 0 | Z23: 0 | AA23: 0 | AB23: 0 | AC23: 0 | AD23: 0 | AE23: 0
A24: 04:52:00 | B24: 0 | C24: 0 | D24: 0 | E24: 0 | F24: 0 | G24: 0 | H24: 0 | I24: 0 | J24: 0 | K24: 0 | L24: 0 | M24: 0 | Q24: 04:52:00 | S24: 21:00-22:00 | T24: =SUM(B89:B92) -> 0 | U24: 0 | V24: 0 | W24: 0 | X24: 0 | Y24: 0 | Z24: 0 | AA24: 0 | AB24: 0 | AC24: 0 | AD24: 0 | AE24: 0
A25: 05:07:00 | B25: 0 | C25: 0 | D25: 0 | E25: 0 | F25: 0 | G25: 29 | H25: 24 | I25: 0 | J25: 0 | K25: 0 | L25: 0 | M25: 0 | Q25: 05:07:00 | S25: 22:00-23:00 | T25: =SUM(B93:B96) -> 0 | U25: 0 | V25: 0 | W25: 0 | X25: 0 | Y25: 0 | Z25: 0 | AA25: 0 | AB25: 0 | AC25: 0 | AD25: 0 | AE25: 0
A26: 05:22:00 | B26: 0 | C26: 0 | D26: 0 | E26: 0 | F26: 28 | G26: 40 | H26: 36 | I26: 0 | J26: 0 | K26: 0 | L26: 0 | M26: 0 | Q26: 05:22:00 | S26: 23:00-24:00 | T26: =SUM(B97:B100) -> 0 | U26: 0 | V26: 0 | W26: 0 | X26: 0 | Y26: 0 | Z26: 0 | AA26: 0 | AB26: 0 | AC26: 0 | AD26: 0 | AE26: 0
A27: 05:37:00 | B27: 0 | C27: 0 | D27: 0 | E27: 0 | F27: 39 | G27: 51 | H27: 47 | I27: 28 | J27: 0 | K27: 0 | L27: 0 | M27: 0 | Q27: 05:37:00
A28: 05:52:00 | B28: 0 | C28: 0 | D28: 0 | E28: 28 | F28: 47 | G28: 61 | H28: 56 | I28: 37 | J28: 0 | K28: 0 | L28: 0 | M28: 0 | Q28: 05:52:00
A29: 06:07:00 | B29: 0 | C29: 0 | D29: 0 | E29: 55 | F29: 85 | G29: 100 | H29: 94 | I29: 69 | J29: 27 | K29: 0 | L29: 0 | M29: 0 | Q29: 06:07:00
A30: 06:22:00 | B30: 0 | C30: 0 | D30: 44 | E30: 97 | F30: 131 | G30: 144 | H30: 137 | I30: 109 | J30: 61 | K30: 0 | L30: 0 | M30: 0 | Q30: 06:22:00
A31: 06:37:00 | B31: 0 | C31: 0 | D31: 95 | E31: 148 | F31: 181 | G31: 192 | H31: 185 | I31: 156 | J31: 104 | K31: 0 | L31: 0 | M31: 0 | Q31: 06:37:00
A32: 06:52:00 | B32: 0 | C32: 0 | D32: 152 | E32: 203 | F32: 235 | G32: 243 | H32: 236 | I32: 208 | J32: 154 | K32: 86 | L32: 0 | M32: 0 | Q32: 06:52:00
A33: 07:07:00 | B33: 0 | C33: 109 | D33: 215 | E33: 263 | F33: 292 | G33: 297 | H33: 290 | I33: 263 | J33: 210 | K33: 149 | L33: 0 | M33: 0 | Q33: 07:07:00 | T33: MESES
A34: 07:22:00 | B34: 0 | C34: 178 | D34: 281 | E34: 324 | F34: 350 | G34: 351 | H34: 345 | I34: 320 | J34: 269 | K34: 212 | L34: 107 | M34: 0 | Q34: 07:22:00 | S34: HORAS | T34: ENERO | U34: FEBRERO | V34: MARZO | W34: ABRIL | X34: MAYO | Y34: JUNIO | Z34: JULIO | AA34: AGOSTO | AB34: SEPTIEMBRE | AC34: OCTUBRE | AD34: NOVIEMBRE | AE34: DICIEMBRE
A35: 07:37:00 | B35: 156 | C35: 245 | D35: 349 | E35: 387 | F35: 409 | G35: 407 | H35: 401 | I35: 378 | J35: 330 | K35: 278 | L35: 179 | M35: 129 | Q35: 07:37:00 | S35: 0:00-1:00
A36: 07:52:00 | B36: 234 | C36: 312 | D36: 416 | E36: 450 | F36: 467 | G36: 462 | H36: 456 | I36: 436 | J36: 392 | K36: 344 | L36: 246 | M36: 201 | Q36: 07:52:00 | S36: 1:00-2:00 | T36: =T3 -> 0 | U36: =U3 -> 0 | V36: =V3 -> 0 | AD36: =AD3 -> 0 | AE36: =AE3 -> 0
A37: 08:07:00 | B37: 303 | C37: 379 | D37: 483 | E37: 512 | F37: 525 | G37: 516 | H37: 511 | I37: 493 | J37: 453 | K37: 410 | L37: 313 | M37: 278 | Q37: 08:07:00 | S37: 2:00-3:00 | T37: =T4 -> 0 | U37: 0 | V37: 0 | W37: =W3 -> 0 | X37: =X3 -> 0 | Y37: 0 | Z37: 0 | AA37: 0 | AB37: 0 | AC37: 0 | AD37: =AD4 -> 0 | AE37: 0
A38: 08:22:00 | B38: 370 | C38: 445 | D38: 549 | E38: 573 | F38: 581 | G38: 569 | H38: 565 | I38: 550 | J38: 513 | K38: 474 | L38: 378 | M38: 346 | Q38: 08:22:00 | S38: 3:00-4:00 | T38: 0 | U38: 0 | V38: 0 | W38: =W4 -> 0 | X38: 0 | Y38: 0 | Z38: 0 | AA38: 0 | AB38: 0 | AC38: 0 | AD38: 0 | AE38: 0
A39: 08:37:00 | B39: 435 | C39: 509 | D39: 612 | E39: 631 | F39: 635 | G39: 620 | H39: 616 | I39: 605 | J39: 572 | K39: 537 | L39: 441 | M39: 412 | Q39: 08:37:00 | S39: 4:00-5:00 | T39: 0 | U39: 0 | V39: 0 | W39: 0 | X39: 0 | Y39: 0 | Z39: 0 | AA39: 0 | AB39: 0 | AC39: 0 | AD39: 0 | AE39: 0
A40: 08:52:00 | B40: 497 | C40: 570 | D40: 672 | E40: 687 | F40: 687 | G40: 669 | H40: 666 | I40: 657 | J40: 628 | K40: 596 | L40: 502 | M40: 474 | Q40: 08:52:00 | S40: 5:00-6:00 | T40: 0 | U40: 0 | V40: 0 | W40: 0 | X40: 0 | Y40: 0 | Z40: 0 | AA40: 0 | AB40: 0 | AC40: 0 | AD40: 0 | AE40: 0
A41: 09:07:00 | B41: 555 | C41: 628 | D41: 730 | E41: 740 | F41: 736 | G41: 715 | H41: 713 | I41: 707 | J41: 681 | K41: 653 | L41: 559 | M41: 532 | Q41: 09:07:00 | S41: 6:00-7:00 | T41: 0 | U41: 0 | V41: 0 | W41: 0 | X41: 0 | Y41: 0 | Z41: 0 | AA41: 0 | AB41: 0 | AC41: 0 | AD41: 0 | AE41: 0
A42: 09:22:00 | B42: 609 | C42: 682 | D42: 784 | E42: 790 | F42: 782 | G42: 759 | H42: 757 | I42: 754 | J42: 731 | K42: 707 | L42: 613 | M42: 586 | Q42: 09:22:00 | S42: 7:00-8:00 | T42: 0 | U42: 0 | V42: 291 | W42: 28 | X42: 114 | Y42: 181 | Z42: 163 | AA42: 65 | AB42: 0 | AC42: 0 | AD42: 0 | AE42: 0
A43: 09:37:00 | B43: 660 | C43: 732 | D43: 834 | E43: 837 | F43: 825 | G43: 799 | H43: 798 | I43: 797 | J43: 778 | K43: 756 | L43: 663 | M43: 637 | Q43: 09:37:00 | S43: 8:00-9:00 | T43: 390 | U43: 844 | V43: 1261 | W43: 503 | X43: 632 | Y43: 679 | Z43: 652 | AA43: 542 | AB43: 346 | AC43: 86 | AD43: 532 | AE43: 330
A44: 09:52:00 | B44: 706 | C44: 778 | D44: 879 | E44: 879 | F44: 864 | G44: 836 | H44: 835 | I44: 837 | J44: 821 | K44: 801 | L44: 708 | M44: 683 | Q44: 09:52:00 | S44: 9:00-10:00 | T44: 1605 | U44: 1903 | V44: 2316 | W44: 1424 | X44: 1518 | Y44: 1517 | Z44: 1492 | AA44: 1397 | AB44: 1201 | AC44: 983 | AD44: 1634 | AE44: 1510
A45: 10:07:00 | B45: 748 | C45: 820 | D45: 920 | E45: 917 | F45: 900 | G45: 870 | H45: 869 | I45: 873 | J45: 859 | K45: 842 | L45: 750 | M45: 724 | Q45: 10:07:00 | S45: 10:00-11:00 | T45: 2530 | U45: 2820 | V45: 3227 | W45: 2403 | X45: 2428 | Y45: 2374 | Z45: 2358 | AA45: 2305 | AB45: 2166 | AC45: 2017 | AD45: 2543 | AE45: 2438
A46: 10:22:00 | B46: 784 | C46: 857 | D46: 957 | E46: 951 | F46: 931 | G46: 899 | H46: 899 | I46: 905 | J46: 893 | K46: 879 | L46: 786 | M46: 761 | Q46: 10:22:00 | S46: 11:00-12:00 | T46: 3191 | U46: 3481 | V46: 3875 | W46: 3246 | X46: 3207 | Y46: 3109 | Z46: 3103 | AA46: 3095 | AB46: 3011 | AC46: 2917 | AD46: 3198 | AE46: 3096
A47: 10:37:00 | B47: 816 | C47: 889 | D47: 988 | E47: 980 | F47: 958 | G47: 925 | H47: 925 | I47: 932 | J47: 923 | K47: 910 | L47: 818 | M47: 792 | Q47: 10:37:00 | S47: 12:00-13:00 | T47: 3535 | U47: 3824 | V47: 4220 | W47: 3858 | X47: 3770 | Y47: 3640 | Z47: 3640 | AA47: 3665 | AB47: 3623 | AC47: 3567 | AD47: 3537 | AE47: 3436
A48: 10:52:00 | B48: 843 | C48: 915 | D48: 1010 | E48: 1010 | F48: 981 | G48: 946 | H48: 947 | I48: 955 | J48: 948 | K48: 936 | L48: 844 | M48: 819 | Q48: 10:52:00 | S48: 13:00-14:00 | T48: 3535 | U48: 3824 | V48: 4220 | W48: 4160 | X48: 4059 | Y48: 3916 | Z48: 3921 | AA48: 3959 | AB48: 3942 | AC48: 3906 | AD48: 3537 | AE48: 3436
A49: 11:07:00 | B49: 865 | C49: 937 | D49: 1040 | E49: 1020 | F49: 999 | G49: 964 | H49: 965 | I49: 974 | J49: 968 | K49: 958 | L49: 865 | M49: 840 | Q49: 11:07:00 | S49: 14:00-15:00 | T49: 3191 | U49: 3481 | V49: 3875 | W49: 4160 | X49: 4059 | Y49: 3916 | Z49: 3921 | AA49: 3959 | AB49: 3942 | AC49: 3906 | AD49: 3198 | AE49: 3096
A50: 11:22:00 | B50: 881 | C50: 953 | D50: 1050 | E50: 1040 | F50: 1010 | G50: 977 | H50: 978 | I50: 988 | J50: 983 | K50: 974 | L50: 882 | M50: 856 | Q50: 11:22:00 | S50: 15:00-16:00 | T50: 2530 | U50: 2820 | V50: 3227 | W50: 3858 | X50: 3770 | Y50: 3640 | Z50: 3640 | AA50: 3665 | AB50: 3623 | AC50: 3567 | AD50: 2543 | AE50: 2438
A51: 11:37:00 | B51: 892 | C51: 964 | D51: 1060 | E51: 1050 | F51: 1020 | G51: 985 | H51: 987 | I51: 997 | J51: 993 | K51: 984 | L51: 892 | M51: 867 | Q51: 11:37:00 | S51: 16:00-17:00 | T51: 1605 | U51: 1903 | V51: 2316 | W51: 3246 | X51: 3207 | Y51: 3109 | Z51: 3103 | AA51: 3095 | AB51: 3011 | AC51: 2917 | AD51: 1634 | AE51: 1510
A52: 11:52:00 | B52: 897 | C52: 970 | D52: 1070 | E52: 1050 | F52: 1030 | G52: 990 | H52: 991 | I52: 1000 | J52: 998 | K52: 990 | L52: 898 | M52: 873 | Q52: 11:52:00 | S52: 17:00-18:00 | T52: 481 | U52: 844 | V52: 1261 | W52: 2403 | X52: 2428 | Y52: 2374 | Z52: 2358 | AA52: 2305 | AB52: 2166 | AC52: 2017 | AD52: 586 | AE52: 399
A53: 12:07:00 | B53: 897 | C53: 970 | D53: 1070 | E53: 1050 | F53: 1030 | G53: 990 | H53: 991 | I53: 1000 | J53: 998 | K53: 990 | L53: 898 | M53: 873 | Q53: 12:07:00 | S53: 18:00-19:00 | T53: 0 | U53: 56 | V53: 303 | W53: 1424 | X53: 1518 | Y53: 1517 | Z53: 1492 | AA53: 1397 | AB53: 1201 | AC53: 983 | AD53: 0 | AE53: 0
A54: 12:22:00 | B54: 892 | C54: 964 | D54: 1060 | E54: 1050 | F54: 1020 | G54: 985 | H54: 987 | I54: 997 | J54: 993 | K54: 984 | L54: 892 | M54: 867 | Q54: 12:22:00 | S54: 19:00-20:00 | T54: 0 | U54: 0 | V54: 0 | W54: 503 | X54: 632 | Y54: 679 | Z54: 652 | AA54: 542 | AB54: 346 | AC54: 127 | AD54: 0 | AE54: 0
A55: 12:37:00 | B55: 881 | C55: 953 | D55: 1050 | E55: 1040 | F55: 1010 | G55: 977 | H55: 978 | I55: 988 | J55: 983 | K55: 974 | L55: 882 | M55: 856 | Q55: 12:37:00 | S55: 20:00-21:00 | T55: 0 | U55: 0 | V55: 0 | W55: 45 | X55: 131 | Y55: 181 | Z55: 163 | AA55: 80 | AB55: 10 | AC55: 0 | AD55: 0 | AE55: 0
A56: 12:52:00 | B56: 865 | C56: 937 | D56: 1040 | E56: 1020 | F56: 999 | G56: 964 | H56: 965 | I56: 974 | J56: 968 | K56: 958 | L56: 865 | M56: 840 | Q56: 12:52:00 | S56: 21:00-22:00 | T56: 0 | U56: 0 | V56: 0 | W56: 0 | X56: 0 | Y56: 18 | Z56: 12 | AA56: 0 | AB56: 0 | AC56: 0 | AD56: 0 | AE56: 0
A57: 13:07:00 | B57: 843 | C57: 915 | D57: 1010 | E57: 1010 | F57: 981 | G57: 946 | H57: 947 | I57: 955 | J57: 948 | K57: 936 | L57: 844 | M57: 819 | Q57: 13:07:00 | S57: 22:00-23:00 | T57: 0 | U57: 0 | V57: 0 | W57: 0 | X57: 0 | Y57: 0 | Z57: 0 | AA57: 0 | AB57: 0 | AC57: 0 | AD57: 0 | AE57: 0
A58: 13:22:00 | B58: 816 | C58: 889 | D58: 988 | E58: 980 | F58: 958 | G58: 925 | H58: 925 | I58: 932 | J58: 923 | K58: 910 | L58: 818 | M58: 792 | Q58: 13:22:00 | S58: 23:00-24:00 | T58: 0 | U58: 0 | V58: 0 | W58: 0 | X58: 0 | Y58: 0 | Z58: 0 | AA58: 0 | AB58: 0 | AC58: 0 | AD58: 0 | AE58: 0
A59: 13:37:00 | B59: 784 | C59: 857 | D59: 957 | E59: 951 | F59: 931 | G59: 899 | H59: 899 | I59: 905 | J59: 893 | K59: 879 | L59: 786 | M59: 761 | Q59: 13:37:00 | T59: 0 | U59: =U26 -> 0 | V59: =V26 -> 0 | W59: 0 | X59: 0 | Y59: 0 | Z59: 0 | AA59: 0 | AB59: 0 | AC59: 0 | AD59: 0 | AE59: 0
A60: 13:52:00 | B60: 748 | C60: 820 | D60: 920 | E60: 917 | F60: 900 | G60: 870 | H60: 869 | I60: 873 | J60: 859 | K60: 842 | L60: 750 | M60: 724 | Q60: 13:52:00 | W60: 0 | X60: 0 | Y60: 0 | Z60: 0 | AA60: 0 | AB60: 0 | AC60: 0
A61: 14:07:00 | B61: 706 | C61: 778 | D61: 879 | E61: 879 | F61: 864 | G61: 836 | H61: 835 | I61: 837 | J61: 821 | K61: 801 | L61: 708 | M61: 683 | Q61: 14:07:00
A62: 14:22:00 | B62: 660 | C62: 732 | D62: 834 | E62: 837 | F62: 825 | G62: 799 | H62: 798 | I62: 797 | J62: 778 | K62: 756 | L62: 663 | M62: 637 | Q62: 14:22:00
A63: 14:37:00 | B63: 609 | C63: 682 | D63: 784 | E63: 790 | F63: 782 | G63: 759 | H63: 757 | I63: 754 | J63: 731 | K63: 707 | L63: 613 | M63: 586 | Q63: 14:37:00
A64: 14:52:00 | B64: 555 | C64: 628 | D64: 730 | E64: 740 | F64: 736 | G64: 715 | H64: 713 | I64: 707 | J64: 681 | K64: 653 | L64: 559 | M64: 532 | Q64: 14:52:00
A65: 15:07:00 | B65: 497 | C65: 570 | D65: 672 | E65: 687 | F65: 687 | G65: 669 | H65: 666 | I65: 657 | J65: 628 | K65: 596 | L65: 502 | M65: 474 | Q65: 15:07:00
A66: 15:22:00 | B66: 435 | C66: 509 | D66: 612 | E66: 631 | F66: 635 | G66: 620 | H66: 616 | I66: 605 | J66: 572 | K66: 537 | L66: 441 | M66: 412 | Q66: 15:22:00
A67: 15:37:00 | B67: 370 | C67: 445 | D67: 549 | E67: 573 | F67: 581 | G67: 569 | H67: 565 | I67: 550 | J67: 513 | K67: 474 | L67: 378 | M67: 346 | Q67: 15:37:00
A68: 15:52:00 | B68: 303 | C68: 379 | D68: 483 | E68: 512 | F68: 525 | G68: 516 | H68: 511 | I68: 493 | J68: 453 | K68: 410 | L68: 313 | M68: 278 | Q68: 15:52:00
A69: 16:07:00 | B69: 234 | C69: 312 | D69: 416 | E69: 450 | F69: 467 | G69: 462 | H69: 456 | I69: 436 | J69: 392 | K69: 344 | L69: 246 | M69: 201 | Q69: 16:07:00
A70: =Q70 -> 16:22:00 | B70: 156 | C70: 245 | D70: 349 | E70: 387 | F70: 409 | G70: 407 | H70: 401 | I70: 378 | J70: 330 | K70: 278 | L70: 179 | M70: 129 | Q70: 16:22:00
A71: 16:37:00 | B71: 91 | C71: 178 | D71: 281 | E71: 324 | F71: 350 | G71: 351 | H71: 345 | I71: 320 | J71: 269 | K71: 212 | L71: 107 | M71: 69 | Q71: 16:37:00
A72: 16:52:00 | C72: 109 | D72: 215 | E72: 263 | F72: 292 | G72: 297 | H72: 290 | I72: 263 | J72: 210 | K72: 149 | L72: 54 | Q72: 16:52:00
A73: 17:07:00 | C73: 56 | D73: 152 | E73: 203 | F73: 235 | G73: 243 | H73: 236 | I73: 208 | J73: 154 | K73: 86 | Q73: 17:07:00
A74: 17:22:00 | D74: 95 | E74: 148 | F74: 181 | G74: 192 | H74: 185 | I74: 156 | J74: 104 | K74: 41 | Q74: 17:22:00
A75: 17:37:00 | D75: 44 | E75: 97 | F75: 131 | G75: 144 | H75: 137 | I75: 109 | J75: 61 | Q75: 17:37:00
A76: 17:52:00 | D76: 12 | E76: 55 | F76: 85 | G76: 100 | H76: 94 | I76: 69 | J76: 27 | Q76: 17:52:00
A77: 18:07:00 | E77: 28 | F77: 47 | G77: 61 | H77: 56 | I77: 37 | J77: 10 | Q77: 18:07:00
A78: 18:22:00 | E78: 17 | F78: 39 | G78: 51 | H78: 47 | I78: 28 | Q78: 18:22:00
A79: 18:37:00 | F79: 28 | G79: 40 | H79: 36 | I79: 15 | Q79: 18:37:00
A80: 18:52:00 | F80: 17 | G80: 29 | H80: 24 | Q80: 18:52:00
A81: 19:07:00 | G81: 18 | H81: 12 | Q81: 19:07:00
A82: 19:22:00 | Q82: 19:22:00
A83: 19:37:00 | Q83: 19:37:00
A84: 19:52:00 | Q84: 19:52:00
A85: 20:07:00 | Q85: 20:07:00
A86: 20:22:00 | Q86: 20:22:00
A87: 20:37:00 | Q87: 20:37:00
A88: 20:52:00 | Q88: 20:52:00
A89: 21:07:00 | Q89: 21:07:00
A90: 21:22:00 | Q90: 21:22:00
A91: 21:37:00 | Q91: 21:37:00
A92: 21:52:00 | Q92: 21:52:00
A93: 22:07:00 | Q93: 22:07:00
A94: 22:22:00 | Q94: 22:22:00
A95: 22:37:00 | Q95: 22:37:00
A96: 22:52:00 | Q96: 22:52:00
A97: 23:07:00 | Q97: 23:07:00
A98: 23:22:00 | Q98: 23:22:00
A99: 23:37:00 | Q99: 23:37:00
A100: 23:52:00 | Q100: 23:52:00
B103: MESES
B104: ENERO | D104: FEBRERO | F104: MARZO | H104: ABRIL | J104: MAYO | L104: JUNIO | N104: JULIO | P104: AGOSTO | R104: SEPTIEMBRE | T104: OCTUBRE | V104: NOVIEMBRE | X104: DICIEMBRE
A105: HORAS | B105: GC | C105: HORAS | D105: GC | E105: HORAS | F105: GC | G105: HORAS | H105: GC | I105: HORAS | J105: GC | K105: HORAS | L105: GC | M105: HORAS | N105: GC | O105: HORAS | P105: GC | Q105: HORAS | R105: GC | S105: HORAS | T105: GC | U105: HORAS | V105: GC | W105: HORAS | X105: GC
A106: ='IMPORTACIÓN DATOS ANUALES PVGIS'!B33 -> 07:37:00 | B106: ='IMPORTACIÓN DATOS ANUALES PVGIS'!C33 -> 156 | C106: ='IMPORTACIÓN DATOS ANUALES PVGIS'!E33 -> 07:07:00 | D106: ='IMPORTACIÓN DATOS ANUALES PVGIS'!F33 -> 109 | E106: ='IMPORTACIÓN DATOS ANUALES PVGIS'!H33 -> 06:22:00 | F106: ='IMPORTACIÓN DATOS ANUALES PVGIS'!I33 -> 44 | G106: ='IMPORTACIÓN DATOS ANUALES PVGIS'!K33 -> 05:52:00 | H106: ='IMPORTACIÓN DATOS ANUALES PVGIS'!L33 -> 28 | I106: ='IMPORTACIÓN DATOS ANUALES PVGIS'!N33 -> 05:22:00 | J106: ='IMPORTACIÓN DATOS ANUALES PVGIS'!O33 -> 28 | K106: ='IMPORTACIÓN DATOS ANUALES PVGIS'!Q33 -> 05:07:00 | L106: ='IMPORTACIÓN DATOS ANUALES PVGIS'!R33 -> 29 | M106: ='IMPORTACIÓN DATOS ANUALES PVGIS'!T33 -> 05:07:00 | N106: ='IMPORTACIÓN DATOS ANUALES PVGIS'!U33 -> 24 | O106: ='IMPORTACIÓN DATOS ANUALES PVGIS'!W33 -> 05:37:00 | P106: ='IMPORTACIÓN DATOS ANUALES PVGIS'!X33 -> 28 | Q106: ='IMPORTACIÓN DATOS ANUALES PVGIS'!Z33 -> 06:07:00 | R106: ='IMPORTACIÓN DATOS ANUALES PVGIS'!AA33 -> 27 | S106: ='IMPORTACIÓN DATOS ANUALES PVGIS'!AC33 -> 06:52:00 | T106: ='IMPORTACIÓN DATOS ANUALES PVGIS'!AD33 -> 86 | U106: ='IMPORTACIÓN DATOS ANUALES PVGIS'!AF33 -> 07:22:00 | V106: ='IMPORTACIÓN DATOS ANUALES PVGIS'!AG33 -> 107 | W106: ='IMPORTACIÓN DATOS ANUALES PVGIS'!AI33 -> 07:37:00 | X106: ='IMPORTACIÓN DATOS ANUALES PVGIS'!AJ33 -> 129
A107: ='IMPORTACIÓN DATOS ANUALES PVGIS'!B34 -> 07:52:00 | B107: ='IMPORTACIÓN DATOS ANUALES PVGIS'!C34 -> 234 | C107: ='IMPORTACIÓN DATOS ANUALES PVGIS'!E34 -> 07:22:00 | D107: ='IMPORTACIÓN DATOS ANUALES PVGIS'!F34 -> 178 | E107: ='IMPORTACIÓN DATOS ANUALES PVGIS'!H34 -> 06:37:00 | F107: ='IMPORTACIÓN DATOS ANUALES PVGIS'!I34 -> 95 | G107: ='IMPORTACIÓN DATOS ANUALES PVGIS'!K34 -> 06:07:00 | H107: ='IMPORTACIÓN DATOS ANUALES PVGIS'!L34 -> 55 | I107: ='IMPORTACIÓN DATOS ANUALES PVGIS'!N34 -> 05:37:00 | J107: ='IMPORTACIÓN DATOS ANUALES PVGIS'!O34 -> 39 | K107: ='IMPORTACIÓN DATOS ANUALES PVGIS'!Q34 -> 05:22:00 | L107: ='IMPORTACIÓN DATOS ANUALES PVGIS'!R34 -> 40 | M107: ='IMPORTACIÓN DATOS ANUALES PVGIS'!T34 -> 05:22:00 | N107: ='IMPORTACIÓN DATOS ANUALES PVGIS'!U34 -> 36 | O107: ='IMPORTACIÓN DATOS ANUALES PVGIS'!W34 -> 05:52:00 | P107: ='IMPORTACIÓN DATOS ANUALES PVGIS'!X34 -> 37 | Q107: ='IMPORTACIÓN DATOS ANUALES PVGIS'!Z34 -> 06:22:00 | R107: ='IMPORTACIÓN DATOS ANUALES PVGIS'!AA34 -> 61 | S107: ='IMPORTACIÓN DATOS ANUALES PVGIS'!AC34 -> 07:07:00 | T107: ='IMPORTACIÓN DATOS ANUALES PVGIS'!AD34 -> 149 | U107: ='IMPORTACIÓN DATOS ANUALES PVGIS'!AF34 -> 07:37:00 | V107: ='IMPORTACIÓN DATOS ANUALES PVGIS'!AG34 -> 179 | W107: ='IMPORTACIÓN DATOS ANUALES PVGIS'!AI34 -> 07:52:00 | X107: ='IMPORTACIÓN DATOS ANUALES PVGIS'!AJ34 -> 201
A108: ='IMPORTACIÓN DATOS ANUALES PVGIS'!B35 -> 08:07:00 | B108: ='IMPORTACIÓN DATOS ANUALES PVGIS'!C35 -> 303 | C108: ='IMPORTACIÓN DATOS ANUALES PVGIS'!E35 -> 07:37:00 | D108: ='IMPORTACIÓN DATOS ANUALES PVGIS'!F35 -> 245 | E108: ='IMPORTACIÓN DATOS ANUALES PVGIS'!H35 -> 06:52:00 | F108: ='IMPORTACIÓN DATOS ANUALES PVGIS'!I35 -> 152 | G108: ='IMPORTACIÓN DATOS ANUALES PVGIS'!K35 -> 06:22:00 | H108: ='IMPORTACIÓN DATOS ANUALES PVGIS'!L35 -> 97 | I108: ='IMPORTACIÓN DATOS ANUALES PVGIS'!N35 -> 05:52:00 | J108: ='IMPORTACIÓN DATOS ANUALES PVGIS'!O35 -> 47 | K108: ='IMPORTACIÓN DATOS ANUALES PVGIS'!Q35 -> 05:37:00 | L108: ='IMPORTACIÓN DATOS ANUALES PVGIS'!R35 -> 51 | M108: ='IMPORTACIÓN DATOS ANUALES PVGIS'!T35 -> 05:37:00 | N108: ='IMPORTACIÓN DATOS ANUALES PVGIS'!U35 -> 47 | O108: ='IMPORTACIÓN DATOS ANUALES PVGIS'!W35 -> 06:07:00 | P108: ='IMPORTACIÓN DATOS ANUALES PVGIS'!X35 -> 69 | Q108: ='IMPORTACIÓN DATOS ANUALES PVGIS'!Z35 -> 06:37:00 | R108: ='IMPORTACIÓN DATOS ANUALES PVGIS'!AA35 -> 104 | S108: ='IMPORTACIÓN DATOS ANUALES PVGIS'!AC35 -> 07:22:00 | T108: ='IMPORTACIÓN DATOS ANUALES PVGIS'!AD35 -> 212 | U108: ='IMPORTACIÓN DATOS ANUALES PVGIS'!AF35 -> 07:52:00 | V108: ='IMPORTACIÓN DATOS ANUALES PVGIS'!AG35 -> 246 | W108: ='IMPORTACIÓN DATOS ANUALES PVGIS'!AI35 -> 08:07:00 | X108: ='IMPORTACIÓN DATOS ANUALES PVGIS'!AJ35 -> 278
A109: ='IMPORTACIÓN DATOS ANUALES PVGIS'!B36 -> 08:22:00 | B109: ='IMPORTACIÓN DATOS ANUALES PVGIS'!C36 -> 370 | C109: ='IMPORTACIÓN DATOS ANUALES PVGIS'!E36 -> 07:52:00 | D109: ='IMPORTACIÓN DATOS ANUALES PVGIS'!F36 -> 312 | E109: ='IMPORTACIÓN DATOS ANUALES PVGIS'!H36 -> 07:07:00 | F109: ='IMPORTACIÓN DATOS ANUALES PVGIS'!I36 -> 215 | G109: ='IMPORTACIÓN DATOS ANUALES PVGIS'!K36 -> 06:37:00 | H109: ='IMPORTACIÓN DATOS ANUALES PVGIS'!L36 -> 148 | I109: ='IMPORTACIÓN DATOS ANUALES PVGIS'!N36 -> 06:07:00 | J109: ='IMPORTACIÓN DATOS ANUALES PVGIS'!O36 -> 85 | K109: ='IMPORTACIÓN DATOS ANUALES PVGIS'!Q36 -> 05:52:00 | L109: ='IMPORTACIÓN DATOS ANUALES PVGIS'!R36 -> 61 | M109: ='IMPORTACIÓN DATOS ANUALES PVGIS'!T36 -> 05:52:00 | N109: ='IMPORTACIÓN DATOS ANUALES PVGIS'!U36 -> 56 | O109: ='IMPORTACIÓN DATOS ANUALES PVGIS'!W36 -> 06:22:00 | P109: ='IMPORTACIÓN DATOS ANUALES PVGIS'!X36 -> 109 | Q109: ='IMPORTACIÓN DATOS ANUALES PVGIS'!Z36 -> 06:52:00 | R109: ='IMPORTACIÓN DATOS ANUALES PVGIS'!AA36 -> 154 | S109: ='IMPORTACIÓN DATOS ANUALES PVGIS'!AC36 -> 07:37:00 | T109: ='IMPORTACIÓN DATOS ANUALES PVGIS'!AD36 -> 278 | U109: ='IMPORTACIÓN DATOS ANUALES PVGIS'!AF36 -> 08:07:00 | V109: ='IMPORTACIÓN DATOS ANUALES PVGIS'!AG36 -> 313 | W109: ='IMPORTACIÓN DATOS ANUALES PVGIS'!AI36 -> 08:22:00 | X109: ='IMPORTACIÓN DATOS ANUALES PVGIS'!AJ36 -> 346
A110: ='IMPORTACIÓN DATOS ANUALES PVGIS'!B37 -> 08:37:00 | B110: ='IMPORTACIÓN DATOS ANUALES PVGIS'!C37 -> 435 | C110: ='IMPORTACIÓN DATOS ANUALES PVGIS'!E37 -> 08:07:00 | D110: ='IMPORTACIÓN DATOS ANUALES PVGIS'!F37 -> 379 | E110: ='IMPORTACIÓN DATOS ANUALES PVGIS'!H37 -> 07:22:00 | F110: ='IMPORTACIÓN DATOS ANUALES PVGIS'!I37 -> 281 | G110: ='IMPORTACIÓN DATOS ANUALES PVGIS'!K37 -> 06:52:00 | H110: ='IMPORTACIÓN DATOS ANUALES PVGIS'!L37 -> 203 | I110: ='IMPORTACIÓN DATOS ANUALES PVGIS'!N37 -> 06:22:00 | J110: ='IMPORTACIÓN DATOS ANUALES PVGIS'!O37 -> 131 | K110: ='IMPORTACIÓN DATOS ANUALES PVGIS'!Q37 -> 06:07:00 | L110: ='IMPORTACIÓN DATOS ANUALES PVGIS'!R37 -> 100 | M110: ='IMPORTACIÓN DATOS ANUALES PVGIS'!T37 -> 06:07:00 | N110: ='IMPORTACIÓN DATOS ANUALES PVGIS'!U37 -> 94 | O110: ='IMPORTACIÓN DATOS ANUALES PVGIS'!W37 -> 06:37:00 | P110: ='IMPORTACIÓN DATOS ANUALES PVGIS'!X37 -> 156 | Q110: ='IMPORTACIÓN DATOS ANUALES PVGIS'!Z37 -> 07:07:00 | R110: ='IMPORTACIÓN DATOS ANUALES PVGIS'!AA37 -> 210 | S110: ='IMPORTACIÓN DATOS ANUALES PVGIS'!AC37 -> 07:52:00 | T110: ='IMPORTACIÓN DATOS ANUALES PVGIS'!AD37 -> 344 | U110: ='IMPORTACIÓN DATOS ANUALES PVGIS'!AF37 -> 08:22:00 | V110: ='IMPORTACIÓN DATOS ANUALES PVGIS'!AG37 -> 378 | W110: ='IMPORTACIÓN DATOS ANUALES PVGIS'!AI37 -> 08:37:00 | X110: ='IMPORTACIÓN DATOS ANUALES PVGIS'!AJ37 -> 412
A111: ='IMPORTACIÓN DATOS ANUALES PVGIS'!B38 -> 08:52:00 | B111: ='IMPORTACIÓN DATOS ANUALES PVGIS'!C38 -> 497 | C111: ='IMPORTACIÓN DATOS ANUALES PVGIS'!E38 -> 08:22:00 | D111: ='IMPORTACIÓN DATOS ANUALES PVGIS'!F38 -> 445 | E111: ='IMPORTACIÓN DATOS ANUALES PVGIS'!H38 -> 07:37:00 | F111: ='IMPORTACIÓN DATOS ANUALES PVGIS'!I38 -> 349 | G111: ='IMPORTACIÓN DATOS ANUALES PVGIS'!K38 -> 07:07:00 | H111: ='IMPORTACIÓN DATOS ANUALES PVGIS'!L38 -> 263 | I111: ='IMPORTACIÓN DATOS ANUALES PVGIS'!N38 -> 06:37:00 | J111: ='IMPORTACIÓN DATOS ANUALES PVGIS'!O38 -> 181 | K111: ='IMPORTACIÓN DATOS ANUALES PVGIS'!Q38 -> 06:22:00 | L111: ='IMPORTACIÓN DATOS ANUALES PVGIS'!R38 -> 144 | M111: ='IMPORTACIÓN DATOS ANUALES PVGIS'!T38 -> 06:22:00 | N111: ='IMPORTACIÓN DATOS ANUALES PVGIS'!U38 -> 137 | O111: ='IMPORTACIÓN DATOS ANUALES PVGIS'!W38 -> 06:52:00 | P111: ='IMPORTACIÓN DATOS ANUALES PVGIS'!X38 -> 208 | Q111: ='IMPORTACIÓN DATOS ANUALES PVGIS'!Z38 -> 07:22:00 | R111: ='IMPORTACIÓN DATOS ANUALES PVGIS'!AA38 -> 269 | S111: ='IMPORTACIÓN DATOS ANUALES PVGIS'!AC38 -> 08:07:00 | T111: ='IMPORTACIÓN DATOS ANUALES PVGIS'!AD38 -> 410 | U111: ='IMPORTACIÓN DATOS ANUALES PVGIS'!AF38 -> 08:37:00 | V111: ='IMPORTACIÓN DATOS ANUALES PVGIS'!AG38 -> 441 | W111: ='IMPORTACIÓN DATOS ANUALES PVGIS'!AI38 -> 08:52:00 | X111: ='IMPORTACIÓN DATOS ANUALES PVGIS'!AJ38 -> 474
A112: ='IMPORTACIÓN DATOS ANUALES PVGIS'!B39 -> 09:07:00 | B112: ='IMPORTACIÓN DATOS ANUALES PVGIS'!C39 -> 555 | C112: ='IMPORTACIÓN DATOS ANUALES PVGIS'!E39 -> 08:37:00 | D112: ='IMPORTACIÓN DATOS ANUALES PVGIS'!F39 -> 509 | E112: ='IMPORTACIÓN DATOS ANUALES PVGIS'!H39 -> 07:52:00 | F112: ='IMPORTACIÓN DATOS ANUALES PVGIS'!I39 -> 416 | G112: ='IMPORTACIÓN DATOS ANUALES PVGIS'!K39 -> 07:22:00 | H112: ='IMPORTACIÓN DATOS ANUALES PVGIS'!L39 -> 324 | I112: ='IMPORTACIÓN DATOS ANUALES PVGIS'!N39 -> 06:52:00 | J112: ='IMPORTACIÓN DATOS ANUALES PVGIS'!O39 -> 235 | K112: ='IMPORTACIÓN DATOS ANUALES PVGIS'!Q39 -> 06:37:00 | L112: ='IMPORTACIÓN DATOS ANUALES PVGIS'!R39 -> 192 | M112: ='IMPORTACIÓN DATOS ANUALES PVGIS'!T39 -> 06:37:00 | N112: ='IMPORTACIÓN DATOS ANUALES PVGIS'!U39 -> 185 | O112: ='IMPORTACIÓN DATOS ANUALES PVGIS'!W39 -> 07:07:00 | P112: ='IMPORTACIÓN DATOS ANUALES PVGIS'!X39 -> 263 | Q112: ='IMPORTACIÓN DATOS ANUALES PVGIS'!Z39 -> 07:37:00 | R112: ='IMPORTACIÓN DATOS ANUALES PVGIS'!AA39 -> 330 | S112: ='IMPORTACIÓN DATOS ANUALES PVGIS'!AC39 -> 08:22:00 | T112: ='IMPORTACIÓN DATOS ANUALES PVGIS'!AD39 -> 474 | U112: ='IMPORTACIÓN DATOS ANUALES PVGIS'!AF39 -> 08:52:00 | V112: ='IMPORTACIÓN DATOS ANUALES PVGIS'!AG39 -> 502 | W112: ='IMPORTACIÓN DATOS ANUALES PVGIS'!AI39 -> 09:07:00 | X112: ='IMPORTACIÓN DATOS ANUALES PVGIS'!AJ39 -> 532
A113: ='IMPORTACIÓN DATOS ANUALES PVGIS'!B40 -> 09:22:00 | B113: ='IMPORTACIÓN DATOS ANUALES PVGIS'!C40 -> 609 | C113: ='IMPORTACIÓN DATOS ANUALES PVGIS'!E40 -> 08:52:00 | D113: ='IMPORTACIÓN DATOS ANUALES PVGIS'!F40 -> 570 | E113: ='IMPORTACIÓN DATOS ANUALES PVGIS'!H40 -> 08:07:00 | F113: ='IMPORTACIÓN DATOS ANUALES PVGIS'!I40 -> 483 | G113: ='IMPORTACIÓN DATOS ANUALES PVGIS'!K40 -> 07:37:00 | H113: ='IMPORTACIÓN DATOS ANUALES PVGIS'!L40 -> 387 | I113: ='IMPORTACIÓN DATOS ANUALES PVGIS'!N40 -> 07:07:00 | J113: ='IMPORTACIÓN DATOS ANUALES PVGIS'!O40 -> 292 | K113: ='IMPORTACIÓN DATOS ANUALES PVGIS'!Q40 -> 06:52:00 | L113: ='IMPORTACIÓN DATOS ANUALES PVGIS'!R40 -> 243 | M113: ='IMPORTACIÓN DATOS ANUALES PVGIS'!T40 -> 06:52:00 | N113: ='IMPORTACIÓN DATOS ANUALES PVGIS'!U40 -> 236 | O113: ='IMPORTACIÓN DATOS ANUALES PVGIS'!W40 -> 07:22:00 | P113: ='IMPORTACIÓN DATOS ANUALES PVGIS'!X40 -> 320 | Q113: ='IMPORTACIÓN DATOS ANUALES PVGIS'!Z40 -> 07:52:00 | R113: ='IMPORTACIÓN DATOS ANUALES PVGIS'!AA40 -> 392 | S113: ='IMPORTACIÓN DATOS ANUALES PVGIS'!AC40 -> 08:37:00 | T113: ='IMPORTACIÓN DATOS ANUALES PVGIS'!AD40 -> 537 | U113: ='IMPORTACIÓN DATOS ANUALES PVGIS'!AF40 -> 09:07:00 | V113: ='IMPORTACIÓN DATOS ANUALES PVGIS'!AG40 -> 559 | W113: ='IMPORTACIÓN DATOS ANUALES PVGIS'!AI40 -> 09:22:00 | X113: ='IMPORTACIÓN DATOS ANUALES PVGIS'!AJ40 -> 586
A114: ='IMPORTACIÓN DATOS ANUALES PVGIS'!B41 -> 09:37:00 | B114: ='IMPORTACIÓN DATOS ANUALES PVGIS'!C41 -> 660 | C114: ='IMPORTACIÓN DATOS ANUALES PVGIS'!E41 -> 09:07:00 | D114: ='IMPORTACIÓN DATOS ANUALES PVGIS'!F41 -> 628 | E114: ='IMPORTACIÓN DATOS ANUALES PVGIS'!H41 -> 08:22:00 | F114: ='IMPORTACIÓN DATOS ANUALES PVGIS'!I41 -> 549 | G114: ='IMPORTACIÓN DATOS ANUALES PVGIS'!K41 -> 07:52:00 | H114: ='IMPORTACIÓN DATOS ANUALES PVGIS'!L41 -> 450 | I114: ='IMPORTACIÓN DATOS ANUALES PVGIS'!N41 -> 07:22:00 | J114: ='IMPORTACIÓN DATOS ANUALES PVGIS'!O41 -> 350 | K114: ='IMPORTACIÓN DATOS ANUALES PVGIS'!Q41 -> 07:07:00 | L114: ='IMPORTACIÓN DATOS ANUALES PVGIS'!R41 -> 297 | M114: ='IMPORTACIÓN DATOS ANUALES PVGIS'!T41 -> 07:07:00 | N114: ='IMPORTACIÓN DATOS ANUALES PVGIS'!U41 -> 290 | O114: ='IMPORTACIÓN DATOS ANUALES PVGIS'!W41 -> 07:37:00 | P114: ='IMPORTACIÓN DATOS ANUALES PVGIS'!X41 -> 378 | Q114: ='IMPORTACIÓN DATOS ANUALES PVGIS'!Z41 -> 08:07:00 | R114: ='IMPORTACIÓN DATOS ANUALES PVGIS'!AA41 -> 453 | S114: ='IMPORTACIÓN DATOS ANUALES PVGIS'!AC41 -> 08:52:00 | T114: ='IMPORTACIÓN DATOS ANUALES PVGIS'!AD41 -> 596 | U114: ='IMPORTACIÓN DATOS ANUALES PVGIS'!AF41 -> 09:22:00 | V114: ='IMPORTACIÓN DATOS ANUALES PVGIS'!AG41 -> 613 | W114: ='IMPORTACIÓN DATOS ANUALES PVGIS'!AI41 -> 09:37:00 | X114: ='IMPORTACIÓN DATOS ANUALES PVGIS'!AJ41 -> 637
A115: ='IMPORTACIÓN DATOS ANUALES PVGIS'!B42 -> 09:52:00 | B115: ='IMPORTACIÓN DATOS ANUALES PVGIS'!C42 -> 706 | C115: ='IMPORTACIÓN DATOS ANUALES PVGIS'!E42 -> 09:22:00 | D115: ='IMPORTACIÓN DATOS ANUALES PVGIS'!F42 -> 682 | E115: ='IMPORTACIÓN DATOS ANUALES PVGIS'!H42 -> 08:37:00 | F115: ='IMPORTACIÓN DATOS ANUALES PVGIS'!I42 -> 612 | G115: ='IMPORTACIÓN DATOS ANUALES PVGIS'!K42 -> 08:07:00 | H115: ='IMPORTACIÓN DATOS ANUALES PVGIS'!L42 -> 512 | I115: ='IMPORTACIÓN DATOS ANUALES PVGIS'!N42 -> 07:37:00 | J115: ='IMPORTACIÓN DATOS ANUALES PVGIS'!O42 -> 409 | K115: ='IMPORTACIÓN DATOS ANUALES PVGIS'!Q42 -> 07:22:00 | L115: ='IMPORTACIÓN DATOS ANUALES PVGIS'!R42 -> 351 | M115: ='IMPORTACIÓN DATOS ANUALES PVGIS'!T42 -> 07:22:00 | N115: ='IMPORTACIÓN DATOS ANUALES PVGIS'!U42 -> 345 | O115: ='IMPORTACIÓN DATOS ANUALES PVGIS'!W42 -> 07:52:00 | P115: ='IMPORTACIÓN DATOS ANUALES PVGIS'!X42 -> 436 | Q115: ='IMPORTACIÓN DATOS ANUALES PVGIS'!Z42 -> 08:22:00 | R115: ='IMPORTACIÓN DATOS ANUALES PVGIS'!AA42 -> 513 | S115: ='IMPORTACIÓN DATOS ANUALES PVGIS'!AC42 -> 09:07:00 | T115: ='IMPORTACIÓN DATOS ANUALES PVGIS'!AD42 -> 653 | U115: ='IMPORTACIÓN DATOS ANUALES PVGIS'!AF42 -> 09:37:00 | V115: ='IMPORTACIÓN DATOS ANUALES PVGIS'!AG42 -> 663 | W115: ='IMPORTACIÓN DATOS ANUALES PVGIS'!AI42 -> 09:52:00 | X115: ='IMPORTACIÓN DATOS ANUALES PVGIS'!AJ42 -> 683
A116: ='IMPORTACIÓN DATOS ANUALES PVGIS'!B43 -> 10:07:00 | B116: ='IMPORTACIÓN DATOS ANUALES PVGIS'!C43 -> 748 | C116: ='IMPORTACIÓN DATOS ANUALES PVGIS'!E43 -> 09:37:00 | D116: ='IMPORTACIÓN DATOS ANUALES PVGIS'!F43 -> 732 | E116: ='IMPORTACIÓN DATOS ANUALES PVGIS'!H43 -> 08:52:00 | F116: ='IMPORTACIÓN DATOS ANUALES PVGIS'!I43 -> 672 | G116: ='IMPORTACIÓN DATOS ANUALES PVGIS'!K43 -> 08:22:00 | H116: ='IMPORTACIÓN DATOS ANUALES PVGIS'!L43 -> 573 | I116: ='IMPORTACIÓN DATOS ANUALES PVGIS'!N43 -> 07:52:00 | J116: ='IMPORTACIÓN DATOS ANUALES PVGIS'!O43 -> 467 | K116: ='IMPORTACIÓN DATOS ANUALES PVGIS'!Q43 -> 07:37:00 | L116: ='IMPORTACIÓN DATOS ANUALES PVGIS'!R43 -> 407 | M116: ='IMPORTACIÓN DATOS ANUALES PVGIS'!T43 -> 07:37:00 | N116: ='IMPORTACIÓN DATOS ANUALES PVGIS'!U43 -> 401 | O116: ='IMPORTACIÓN DATOS ANUALES PVGIS'!W43 -> 08:07:00 | P116: ='IMPORTACIÓN DATOS ANUALES PVGIS'!X43 -> 493 | Q116: ='IMPORTACIÓN DATOS ANUALES PVGIS'!Z43 -> 08:37:00 | R116: ='IMPORTACIÓN DATOS ANUALES PVGIS'!AA43 -> 572 | S116: ='IMPORTACIÓN DATOS ANUALES PVGIS'!AC43 -> 09:22:00 | T116: ='IMPORTACIÓN DATOS ANUALES PVGIS'!AD43 -> 707 | U116: ='IMPORTACIÓN DATOS ANUALES PVGIS'!AF43 -> 09:52:00 | V116: ='IMPORTACIÓN DATOS ANUALES PVGIS'!AG43 -> 708 | W116: ='IMPORTACIÓN DATOS ANUALES PVGIS'!AI43 -> 10:07:00 | X116: ='IMPORTACIÓN DATOS ANUALES PVGIS'!AJ43 -> 724
A117: ='IMPORTACIÓN DATOS ANUALES PVGIS'!B44 -> 10:22:00 | B117: ='IMPORTACIÓN DATOS ANUALES PVGIS'!C44 -> 784 | C117: ='IMPORTACIÓN DATOS ANUALES PVGIS'!E44 -> 09:52:00 | D117: ='IMPORTACIÓN DATOS ANUALES PVGIS'!F44 -> 778 | E117: ='IMPORTACIÓN DATOS ANUALES PVGIS'!H44 -> 09:07:00 | F117: ='IMPORTACIÓN DATOS ANUALES PVGIS'!I44 -> 730 | G117: ='IMPORTACIÓN DATOS ANUALES PVGIS'!K44 -> 08:37:00 | H117: ='IMPORTACIÓN DATOS ANUALES PVGIS'!L44 -> 631 | I117: ='IMPORTACIÓN DATOS ANUALES PVGIS'!N44 -> 08:07:00 | J117: ='IMPORTACIÓN DATOS ANUALES PVGIS'!O44 -> 525 | K117: ='IMPORTACIÓN DATOS ANUALES PVGIS'!Q44 -> 07:52:00 | L117: ='IMPORTACIÓN DATOS ANUALES PVGIS'!R44 -> 462 | M117: ='IMPORTACIÓN DATOS ANUALES PVGIS'!T44 -> 07:52:00 | N117: ='IMPORTACIÓN DATOS ANUALES PVGIS'!U44 -> 456 | O117: ='IMPORTACIÓN DATOS ANUALES PVGIS'!W44 -> 08:22:00 | P117: ='IMPORTACIÓN DATOS ANUALES PVGIS'!X44 -> 550 | Q117: ='IMPORTACIÓN DATOS ANUALES PVGIS'!Z44 -> 08:52:00 | R117: ='IMPORTACIÓN DATOS ANUALES PVGIS'!AA44 -> 628 | S117: ='IMPORTACIÓN DATOS ANUALES PVGIS'!AC44 -> 09:37:00 | T117: ='IMPORTACIÓN DATOS ANUALES PVGIS'!AD44 -> 756 | U117: ='IMPORTACIÓN DATOS ANUALES PVGIS'!AF44 -> 10:07:00 | V117: ='IMPORTACIÓN DATOS ANUALES PVGIS'!AG44 -> 750 | W117: ='IMPORTACIÓN DATOS ANUALES PVGIS'!AI44 -> 10:22:00 | X117: ='IMPORTACIÓN DATOS ANUALES PVGIS'!AJ44 -> 761
A118: ='IMPORTACIÓN DATOS ANUALES PVGIS'!B45 -> 10:37:00 | B118: ='IMPORTACIÓN DATOS ANUALES PVGIS'!C45 -> 816 | C118: ='IMPORTACIÓN DATOS ANUALES PVGIS'!E45 -> 10:07:00 | D118: ='IMPORTACIÓN DATOS ANUALES PVGIS'!F45 -> 820 | E118: ='IMPORTACIÓN DATOS ANUALES PVGIS'!H45 -> 09:22:00 | F118: ='IMPORTACIÓN DATOS ANUALES PVGIS'!I45 -> 784 | G118: ='IMPORTACIÓN DATOS ANUALES PVGIS'!K45 -> 08:52:00 | H118: ='IMPORTACIÓN DATOS ANUALES PVGIS'!L45 -> 687 | I118: ='IMPORTACIÓN DATOS ANUALES PVGIS'!N45 -> 08:22:00 | J118: ='IMPORTACIÓN DATOS ANUALES PVGIS'!O45 -> 581 | K118: ='IMPORTACIÓN DATOS ANUALES PVGIS'!Q45 -> 08:07:00 | L118: ='IMPORTACIÓN DATOS ANUALES PVGIS'!R45 -> 516 | M118: ='IMPORTACIÓN DATOS ANUALES PVGIS'!T45 -> 08:07:00 | N118: ='IMPORTACIÓN DATOS ANUALES PVGIS'!U45 -> 511 | O118: ='IMPORTACIÓN DATOS ANUALES PVGIS'!W45 -> 08:37:00 | P118: ='IMPORTACIÓN DATOS ANUALES PVGIS'!X45 -> 605 | Q118: ='IMPORTACIÓN DATOS ANUALES PVGIS'!Z45 -> 09:07:00 | R118: ='IMPORTACIÓN DATOS ANUALES PVGIS'!AA45 -> 681 | S118: ='IMPORTACIÓN DATOS ANUALES PVGIS'!AC45 -> 09:52:00 | T118: ='IMPORTACIÓN DATOS ANUALES PVGIS'!AD45 -> 801 | U118: ='IMPORTACIÓN DATOS ANUALES PVGIS'!AF45 -> 10:22:00 | V118: ='IMPORTACIÓN DATOS ANUALES PVGIS'!AG45 -> 786 | W118: ='IMPORTACIÓN DATOS ANUALES PVGIS'!AI45 -> 10:37:00 | X118: ='IMPORTACIÓN DATOS ANUALES PVGIS'!AJ45 -> 792
A119: ='IMPORTACIÓN DATOS ANUALES PVGIS'!B46 -> 10:52:00 | B119: ='IMPORTACIÓN DATOS ANUALES PVGIS'!C46 -> 843 | C119: ='IMPORTACIÓN DATOS ANUALES PVGIS'!E46 -> 10:22:00 | D119: ='IMPORTACIÓN DATOS ANUALES PVGIS'!F46 -> 857 | E119: ='IMPORTACIÓN DATOS ANUALES PVGIS'!H46 -> 09:37:00 | F119: ='IMPORTACIÓN DATOS ANUALES PVGIS'!I46 -> 834 | G119: ='IMPORTACIÓN DATOS ANUALES PVGIS'!K46 -> 09:07:00 | H119: ='IMPORTACIÓN DATOS ANUALES PVGIS'!L46 -> 740 | I119: ='IMPORTACIÓN DATOS ANUALES PVGIS'!N46 -> 08:37:00 | J119: ='IMPORTACIÓN DATOS ANUALES PVGIS'!O46 -> 635 | K119: ='IMPORTACIÓN DATOS ANUALES PVGIS'!Q46 -> 08:22:00 | L119: ='IMPORTACIÓN DATOS ANUALES PVGIS'!R46 -> 569 | M119: ='IMPORTACIÓN DATOS ANUALES PVGIS'!T46 -> 08:22:00 | N119: ='IMPORTACIÓN DATOS ANUALES PVGIS'!U46 -> 565 | O119: ='IMPORTACIÓN DATOS ANUALES PVGIS'!W46 -> 08:52:00 | P119: ='IMPORTACIÓN DATOS ANUALES PVGIS'!X46 -> 657 | Q119: ='IMPORTACIÓN DATOS ANUALES PVGIS'!Z46 -> 09:22:00 | R119: ='IMPORTACIÓN DATOS ANUALES PVGIS'!AA46 -> 731 | S119: ='IMPORTACIÓN DATOS ANUALES PVGIS'!AC46 -> 10:07:00 | T119: ='IMPORTACIÓN DATOS ANUALES PVGIS'!AD46 -> 842 | U119: ='IMPORTACIÓN DATOS ANUALES PVGIS'!AF46 -> 10:37:00 | V119: ='IMPORTACIÓN DATOS ANUALES PVGIS'!AG46 -> 818 | W119: ='IMPORTACIÓN DATOS ANUALES PVGIS'!AI46 -> 10:52:00 | X119: ='IMPORTACIÓN DATOS ANUALES PVGIS'!AJ46 -> 819
A120: ='IMPORTACIÓN DATOS ANUALES PVGIS'!B47 -> 11:07:00 | B120: ='IMPORTACIÓN DATOS ANUALES PVGIS'!C47 -> 865 | C120: ='IMPORTACIÓN DATOS ANUALES PVGIS'!E47 -> 10:37:00 | D120: ='IMPORTACIÓN DATOS ANUALES PVGIS'!F47 -> 889 | E120: ='IMPORTACIÓN DATOS ANUALES PVGIS'!H47 -> 09:52:00 | F120: ='IMPORTACIÓN DATOS ANUALES PVGIS'!I47 -> 879 | G120: ='IMPORTACIÓN DATOS ANUALES PVGIS'!K47 -> 09:22:00 | H120: ='IMPORTACIÓN DATOS ANUALES PVGIS'!L47 -> 790 | I120: ='IMPORTACIÓN DATOS ANUALES PVGIS'!N47 -> 08:52:00 | J120: ='IMPORTACIÓN DATOS ANUALES PVGIS'!O47 -> 687 | K120: ='IMPORTACIÓN DATOS ANUALES PVGIS'!Q47 -> 08:37:00 | L120: ='IMPORTACIÓN DATOS ANUALES PVGIS'!R47 -> 620 | M120: ='IMPORTACIÓN DATOS ANUALES PVGIS'!T47 -> 08:37:00 | N120: ='IMPORTACIÓN DATOS ANUALES PVGIS'!U47 -> 616 | O120: ='IMPORTACIÓN DATOS ANUALES PVGIS'!W47 -> 09:07:00 | P120: ='IMPORTACIÓN DATOS ANUALES PVGIS'!X47 -> 707 | Q120: ='IMPORTACIÓN DATOS ANUALES PVGIS'!Z47 -> 09:37:00 | R120: ='IMPORTACIÓN DATOS ANUALES PVGIS'!AA47 -> 778 | S120: ='IMPORTACIÓN DATOS ANUALES PVGIS'!AC47 -> 10:22:00 | T120: ='IMPORTACIÓN DATOS ANUALES PVGIS'!AD47 -> 879 | U120: ='IMPORTACIÓN DATOS ANUALES PVGIS'!AF47 -> 10:52:00 | V120: ='IMPORTACIÓN DATOS ANUALES PVGIS'!AG47 -> 844 | W120: ='IMPORTACIÓN DATOS ANUALES PVGIS'!AI47 -> 11:07:00 | X120: ='IMPORTACIÓN DATOS ANUALES PVGIS'!AJ47 -> 840
A121: ='IMPORTACIÓN DATOS ANUALES PVGIS'!B48 -> 11:22:00 | B121: ='IMPORTACIÓN DATOS ANUALES PVGIS'!C48 -> 881 | C121: ='IMPORTACIÓN DATOS ANUALES PVGIS'!E48 -> 10:52:00 | D121: ='IMPORTACIÓN DATOS ANUALES PVGIS'!F48 -> 915 | E121: ='IMPORTACIÓN DATOS ANUALES PVGIS'!H48 -> 10:07:00 | F121: ='IMPORTACIÓN DATOS ANUALES PVGIS'!I48 -> 920 | G121: ='IMPORTACIÓN DATOS ANUALES PVGIS'!K48 -> 09:37:00 | H121: ='IMPORTACIÓN DATOS ANUALES PVGIS'!L48 -> 837 | I121: ='IMPORTACIÓN DATOS ANUALES PVGIS'!N48 -> 09:07:00 | J121: ='IMPORTACIÓN DATOS ANUALES PVGIS'!O48 -> 736 | K121: ='IMPORTACIÓN DATOS ANUALES PVGIS'!Q48 -> 08:52:00 | L121: ='IMPORTACIÓN DATOS ANUALES PVGIS'!R48 -> 669 | M121: ='IMPORTACIÓN DATOS ANUALES PVGIS'!T48 -> 08:52:00 | N121: ='IMPORTACIÓN DATOS ANUALES PVGIS'!U48 -> 666 | O121: ='IMPORTACIÓN DATOS ANUALES PVGIS'!W48 -> 09:22:00 | P121: ='IMPORTACIÓN DATOS ANUALES PVGIS'!X48 -> 754 | Q121: ='IMPORTACIÓN DATOS ANUALES PVGIS'!Z48 -> 09:52:00 | R121: ='IMPORTACIÓN DATOS ANUALES PVGIS'!AA48 -> 821 | S121: ='IMPORTACIÓN DATOS ANUALES PVGIS'!AC48 -> 10:37:00 | T121: ='IMPORTACIÓN DATOS ANUALES PVGIS'!AD48 -> 910 | U121: ='IMPORTACIÓN DATOS ANUALES PVGIS'!AF48 -> 11:07:00 | V121: ='IMPORTACIÓN DATOS ANUALES PVGIS'!AG48 -> 865 | W121: ='IMPORTACIÓN DATOS ANUALES PVGIS'!AI48 -> 11:22:00 | X121: ='IMPORTACIÓN DATOS ANUALES PVGIS'!AJ48 -> 856
A122: ='IMPORTACIÓN DATOS ANUALES PVGIS'!B49 -> 11:37:00 | B122: ='IMPORTACIÓN DATOS ANUALES PVGIS'!C49 -> 892 | C122: ='IMPORTACIÓN DATOS ANUALES PVGIS'!E49 -> 11:07:00 | D122: ='IMPORTACIÓN DATOS ANUALES PVGIS'!F49 -> 937 | E122: ='IMPORTACIÓN DATOS ANUALES PVGIS'!H49 -> 10:22:00 | F122: ='IMPORTACIÓN DATOS ANUALES PVGIS'!I49 -> 957 | G122: ='IMPORTACIÓN DATOS ANUALES PVGIS'!K49 -> 09:52:00 | H122: ='IMPORTACIÓN DATOS ANUALES PVGIS'!L49 -> 879 | I122: ='IMPORTACIÓN DATOS ANUALES PVGIS'!N49 -> 09:22:00 | J122: ='IMPORTACIÓN DATOS ANUALES PVGIS'!O49 -> 782 | K122: ='IMPORTACIÓN DATOS ANUALES PVGIS'!Q49 -> 09:07:00 | L122: ='IMPORTACIÓN DATOS ANUALES PVGIS'!R49 -> 715 | M122: ='IMPORTACIÓN DATOS ANUALES PVGIS'!T49 -> 09:07:00 | N122: ='IMPORTACIÓN DATOS ANUALES PVGIS'!U49 -> 713 | O122: ='IMPORTACIÓN DATOS ANUALES PVGIS'!W49 -> 09:37:00 | P122: ='IMPORTACIÓN DATOS ANUALES PVGIS'!X49 -> 797 | Q122: ='IMPORTACIÓN DATOS ANUALES PVGIS'!Z49 -> 10:07:00 | R122: ='IMPORTACIÓN DATOS ANUALES PVGIS'!AA49 -> 859 | S122: ='IMPORTACIÓN DATOS ANUALES PVGIS'!AC49 -> 10:52:00 | T122: ='IMPORTACIÓN DATOS ANUALES PVGIS'!AD49 -> 936 | U122: ='IMPORTACIÓN DATOS ANUALES PVGIS'!AF49 -> 11:22:00 | V122: ='IMPORTACIÓN DATOS ANUALES PVGIS'!AG49 -> 882 | W122: ='IMPORTACIÓN DATOS ANUALES PVGIS'!AI49 -> 11:37:00 | X122: ='IMPORTACIÓN DATOS ANUALES PVGIS'!AJ49 -> 867
A123: ='IMPORTACIÓN DATOS ANUALES PVGIS'!B50 -> 11:52:00 | B123: ='IMPORTACIÓN DATOS ANUALES PVGIS'!C50 -> 897 | C123: ='IMPORTACIÓN DATOS ANUALES PVGIS'!E50 -> 11:22:00 | D123: ='IMPORTACIÓN DATOS ANUALES PVGIS'!F50 -> 953 | E123: ='IMPORTACIÓN DATOS ANUALES PVGIS'!H50 -> 10:37:00 | F123: ='IMPORTACIÓN DATOS ANUALES PVGIS'!I50 -> 988 | G123: ='IMPORTACIÓN DATOS ANUALES PVGIS'!K50 -> 10:07:00 | H123: ='IMPORTACIÓN DATOS ANUALES PVGIS'!L50 -> 917 | I123: ='IMPORTACIÓN DATOS ANUALES PVGIS'!N50 -> 09:37:00 | J123: ='IMPORTACIÓN DATOS ANUALES PVGIS'!O50 -> 825 | K123: ='IMPORTACIÓN DATOS ANUALES PVGIS'!Q50 -> 09:22:00 | L123: ='IMPORTACIÓN DATOS ANUALES PVGIS'!R50 -> 759 | M123: ='IMPORTACIÓN DATOS ANUALES PVGIS'!T50 -> 09:22:00 | N123: ='IMPORTACIÓN DATOS ANUALES PVGIS'!U50 -> 757 | O123: ='IMPORTACIÓN DATOS ANUALES PVGIS'!W50 -> 09:52:00 | P123: ='IMPORTACIÓN DATOS ANUALES PVGIS'!X50 -> 837 | Q123: ='IMPORTACIÓN DATOS ANUALES PVGIS'!Z50 -> 10:22:00 | R123: ='IMPORTACIÓN DATOS ANUALES PVGIS'!AA50 -> 893 | S123: ='IMPORTACIÓN DATOS ANUALES PVGIS'!AC50 -> 11:07:00 | T123: ='IMPORTACIÓN DATOS ANUALES PVGIS'!AD50 -> 958 | U123: ='IMPORTACIÓN DATOS ANUALES PVGIS'!AF50 -> 11:37:00 | V123: ='IMPORTACIÓN DATOS ANUALES PVGIS'!AG50 -> 892 | W123: ='IMPORTACIÓN DATOS ANUALES PVGIS'!AI50 -> 11:52:00 | X123: ='IMPORTACIÓN DATOS ANUALES PVGIS'!AJ50 -> 873
A124: ='IMPORTACIÓN DATOS ANUALES PVGIS'!B51 -> 12:07:00 | B124: ='IMPORTACIÓN DATOS ANUALES PVGIS'!C51 -> 897 | C124: ='IMPORTACIÓN DATOS ANUALES PVGIS'!E51 -> 11:37:00 | D124: ='IMPORTACIÓN DATOS ANUALES PVGIS'!F51 -> 964 | E124: ='IMPORTACIÓN DATOS ANUALES PVGIS'!H51 -> 10:52:00 | F124: ='IMPORTACIÓN DATOS ANUALES PVGIS'!I51 -> 1010 | G124: ='IMPORTACIÓN DATOS ANUALES PVGIS'!K51 -> 10:22:00 | H124: ='IMPORTACIÓN DATOS ANUALES PVGIS'!L51 -> 951 | I124: ='IMPORTACIÓN DATOS ANUALES PVGIS'!N51 -> 09:52:00 | J124: ='IMPORTACIÓN DATOS ANUALES PVGIS'!O51 -> 864 | K124: ='IMPORTACIÓN DATOS ANUALES PVGIS'!Q51 -> 09:37:00 | L124: ='IMPORTACIÓN DATOS ANUALES PVGIS'!R51 -> 799 | M124: ='IMPORTACIÓN DATOS ANUALES PVGIS'!T51 -> 09:37:00 | N124: ='IMPORTACIÓN DATOS ANUALES PVGIS'!U51 -> 798 | O124: ='IMPORTACIÓN DATOS ANUALES PVGIS'!W51 -> 10:07:00 | P124: ='IMPORTACIÓN DATOS ANUALES PVGIS'!X51 -> 873 | Q124: ='IMPORTACIÓN DATOS ANUALES PVGIS'!Z51 -> 10:37:00 | R124: ='IMPORTACIÓN DATOS ANUALES PVGIS'!AA51 -> 923 | S124: ='IMPORTACIÓN DATOS ANUALES PVGIS'!AC51 -> 11:22:00 | T124: ='IMPORTACIÓN DATOS ANUALES PVGIS'!AD51 -> 974 | U124: ='IMPORTACIÓN DATOS ANUALES PVGIS'!AF51 -> 11:52:00 | V124: ='IMPORTACIÓN DATOS ANUALES PVGIS'!AG51 -> 898 | W124: ='IMPORTACIÓN DATOS ANUALES PVGIS'!AI51 -> 12:07:00 | X124: ='IMPORTACIÓN DATOS ANUALES PVGIS'!AJ51 -> 873
A125: ='IMPORTACIÓN DATOS ANUALES PVGIS'!B52 -> 12:22:00 | B125: ='IMPORTACIÓN DATOS ANUALES PVGIS'!C52 -> 892 | C125: ='IMPORTACIÓN DATOS ANUALES PVGIS'!E52 -> 11:52:00 | D125: ='IMPORTACIÓN DATOS ANUALES PVGIS'!F52 -> 970 | E125: ='IMPORTACIÓN DATOS ANUALES PVGIS'!H52 -> 11:07:00 | F125: ='IMPORTACIÓN DATOS ANUALES PVGIS'!I52 -> 1040 | G125: ='IMPORTACIÓN DATOS ANUALES PVGIS'!K52 -> 10:37:00 | H125: ='IMPORTACIÓN DATOS ANUALES PVGIS'!L52 -> 980 | I125: ='IMPORTACIÓN DATOS ANUALES PVGIS'!N52 -> 10:07:00 | J125: ='IMPORTACIÓN DATOS ANUALES PVGIS'!O52 -> 900 | K125: ='IMPORTACIÓN DATOS ANUALES PVGIS'!Q52 -> 09:52:00 | L125: ='IMPORTACIÓN DATOS ANUALES PVGIS'!R52 -> 836 | M125: ='IMPORTACIÓN DATOS ANUALES PVGIS'!T52 -> 09:52:00 | N125: ='IMPORTACIÓN DATOS ANUALES PVGIS'!U52 -> 835 | O125: ='IMPORTACIÓN DATOS ANUALES PVGIS'!W52 -> 10:22:00 | P125: ='IMPORTACIÓN DATOS ANUALES PVGIS'!X52 -> 905 | Q125: ='IMPORTACIÓN DATOS ANUALES PVGIS'!Z52 -> 10:52:00 | R125: ='IMPORTACIÓN DATOS ANUALES PVGIS'!AA52 -> 948 | S125: ='IMPORTACIÓN DATOS ANUALES PVGIS'!AC52 -> 11:37:00 | T125: ='IMPORTACIÓN DATOS ANUALES PVGIS'!AD52 -> 984 | U125: ='IMPORTACIÓN DATOS ANUALES PVGIS'!AF52 -> 12:07:00 | V125: ='IMPORTACIÓN DATOS ANUALES PVGIS'!AG52 -> 898 | W125: ='IMPORTACIÓN DATOS ANUALES PVGIS'!AI52 -> 12:22:00 | X125: ='IMPORTACIÓN DATOS ANUALES PVGIS'!AJ52 -> 867
A126: ='IMPORTACIÓN DATOS ANUALES PVGIS'!B53 -> 12:37:00 | B126: ='IMPORTACIÓN DATOS ANUALES PVGIS'!C53 -> 881 | C126: ='IMPORTACIÓN DATOS ANUALES PVGIS'!E53 -> 12:07:00 | D126: ='IMPORTACIÓN DATOS ANUALES PVGIS'!F53 -> 970 | E126: ='IMPORTACIÓN DATOS ANUALES PVGIS'!H53 -> 11:22:00 | F126: ='IMPORTACIÓN DATOS ANUALES PVGIS'!I53 -> 1050 | G126: ='IMPORTACIÓN DATOS ANUALES PVGIS'!K53 -> 10:52:00 | H126: ='IMPORTACIÓN DATOS ANUALES PVGIS'!L53 -> 1010 | I126: ='IMPORTACIÓN DATOS ANUALES PVGIS'!N53 -> 10:22:00 | J126: ='IMPORTACIÓN DATOS ANUALES PVGIS'!O53 -> 931 | K126: ='IMPORTACIÓN DATOS ANUALES PVGIS'!Q53 -> 10:07:00 | L126: ='IMPORTACIÓN DATOS ANUALES PVGIS'!R53 -> 870 | M126: ='IMPORTACIÓN DATOS ANUALES PVGIS'!T53 -> 10:07:00 | N126: ='IMPORTACIÓN DATOS ANUALES PVGIS'!U53 -> 869 | O126: ='IMPORTACIÓN DATOS ANUALES PVGIS'!W53 -> 10:37:00 | P126: ='IMPORTACIÓN DATOS ANUALES PVGIS'!X53 -> 932 | Q126: ='IMPORTACIÓN DATOS ANUALES PVGIS'!Z53 -> 11:07:00 | R126: ='IMPORTACIÓN DATOS ANUALES PVGIS'!AA53 -> 968 | S126: ='IMPORTACIÓN DATOS ANUALES PVGIS'!AC53 -> 11:52:00 | T126: ='IMPORTACIÓN DATOS ANUALES PVGIS'!AD53 -> 990 | U126: ='IMPORTACIÓN DATOS ANUALES PVGIS'!AF53 -> 12:22:00 | V126: ='IMPORTACIÓN DATOS ANUALES PVGIS'!AG53 -> 892 | W126: ='IMPORTACIÓN DATOS ANUALES PVGIS'!AI53 -> 12:37:00 | X126: ='IMPORTACIÓN DATOS ANUALES PVGIS'!AJ53 -> 856
A127: ='IMPORTACIÓN DATOS ANUALES PVGIS'!B54 -> 12:52:00 | B127: ='IMPORTACIÓN DATOS ANUALES PVGIS'!C54 -> 865 | C127: ='IMPORTACIÓN DATOS ANUALES PVGIS'!E54 -> 12:22:00 | D127: ='IMPORTACIÓN DATOS ANUALES PVGIS'!F54 -> 964 | E127: ='IMPORTACIÓN DATOS ANUALES PVGIS'!H54 -> 11:37:00 | F127: ='IMPORTACIÓN DATOS ANUALES PVGIS'!I54 -> 1060 | G127: ='IMPORTACIÓN DATOS ANUALES PVGIS'!K54 -> 11:07:00 | H127: ='IMPORTACIÓN DATOS ANUALES PVGIS'!L54 -> 1020 | I127: ='IMPORTACIÓN DATOS ANUALES PVGIS'!N54 -> 10:37:00 | J127: ='IMPORTACIÓN DATOS ANUALES PVGIS'!O54 -> 958 | K127: ='IMPORTACIÓN DATOS ANUALES PVGIS'!Q54 -> 10:22:00 | L127: ='IMPORTACIÓN DATOS ANUALES PVGIS'!R54 -> 899 | M127: ='IMPORTACIÓN DATOS ANUALES PVGIS'!T54 -> 10:22:00 | N127: ='IMPORTACIÓN DATOS ANUALES PVGIS'!U54 -> 899 | O127: ='IMPORTACIÓN DATOS ANUALES PVGIS'!W54 -> 10:52:00 | P127: ='IMPORTACIÓN DATOS ANUALES PVGIS'!X54 -> 955 | Q127: ='IMPORTACIÓN DATOS ANUALES PVGIS'!Z54 -> 11:22:00 | R127: ='IMPORTACIÓN DATOS ANUALES PVGIS'!AA54 -> 983 | S127: ='IMPORTACIÓN DATOS ANUALES PVGIS'!AC54 -> 12:07:00 | T127: ='IMPORTACIÓN DATOS ANUALES PVGIS'!AD54 -> 990 | U127: ='IMPORTACIÓN DATOS ANUALES PVGIS'!AF54 -> 12:37:00 | V127: ='IMPORTACIÓN DATOS ANUALES PVGIS'!AG54 -> 882 | W127: ='IMPORTACIÓN DATOS ANUALES PVGIS'!AI54 -> 12:52:00 | X127: ='IMPORTACIÓN DATOS ANUALES PVGIS'!AJ54 -> 840
A128: ='IMPORTACIÓN DATOS ANUALES PVGIS'!B55 -> 13:07:00 | B128: ='IMPORTACIÓN DATOS ANUALES PVGIS'!C55 -> 843 | C128: ='IMPORTACIÓN DATOS ANUALES PVGIS'!E55 -> 12:37:00 | D128: ='IMPORTACIÓN DATOS ANUALES PVGIS'!F55 -> 953 | E128: ='IMPORTACIÓN DATOS ANUALES PVGIS'!H55 -> 11:52:00 | F128: ='IMPORTACIÓN DATOS ANUALES PVGIS'!I55 -> 1070 | G128: ='IMPORTACIÓN DATOS ANUALES PVGIS'!K55 -> 11:22:00 | H128: ='IMPORTACIÓN DATOS ANUALES PVGIS'!L55 -> 1040 | I128: ='IMPORTACIÓN DATOS ANUALES PVGIS'!N55 -> 10:52:00 | J128: ='IMPORTACIÓN DATOS ANUALES PVGIS'!O55 -> 981 | K128: ='IMPORTACIÓN DATOS ANUALES PVGIS'!Q55 -> 10:37:00 | L128: ='IMPORTACIÓN DATOS ANUALES PVGIS'!R55 -> 925 | M128: ='IMPORTACIÓN DATOS ANUALES PVGIS'!T55 -> 10:37:00 | N128: ='IMPORTACIÓN DATOS ANUALES PVGIS'!U55 -> 925 | O128: ='IMPORTACIÓN DATOS ANUALES PVGIS'!W55 -> 11:07:00 | P128: ='IMPORTACIÓN DATOS ANUALES PVGIS'!X55 -> 974 | Q128: ='IMPORTACIÓN DATOS ANUALES PVGIS'!Z55 -> 11:37:00 | R128: ='IMPORTACIÓN DATOS ANUALES PVGIS'!AA55 -> 993 | S128: ='IMPORTACIÓN DATOS ANUALES PVGIS'!AC55 -> 12:22:00 | T128: ='IMPORTACIÓN DATOS ANUALES PVGIS'!AD55 -> 984 | U128: ='IMPORTACIÓN DATOS ANUALES PVGIS'!AF55 -> 12:52:00 | V128: ='IMPORTACIÓN DATOS ANUALES PVGIS'!AG55 -> 865 | W128: ='IMPORTACIÓN DATOS ANUALES PVGIS'!AI55 -> 13:07:00 | X128: ='IMPORTACIÓN DATOS ANUALES PVGIS'!AJ55 -> 819
A129: ='IMPORTACIÓN DATOS ANUALES PVGIS'!B56 -> 13:22:00 | B129: ='IMPORTACIÓN DATOS ANUALES PVGIS'!C56 -> 816 | C129: ='IMPORTACIÓN DATOS ANUALES PVGIS'!E56 -> 12:52:00 | D129: ='IMPORTACIÓN DATOS ANUALES PVGIS'!F56 -> 937 | E129: ='IMPORTACIÓN DATOS ANUALES PVGIS'!H56 -> 12:07:00 | F129: ='IMPORTACIÓN DATOS ANUALES PVGIS'!I56 -> 1070 | G129: ='IMPORTACIÓN DATOS ANUALES PVGIS'!K56 -> 11:37:00 | H129: ='IMPORTACIÓN DATOS ANUALES PVGIS'!L56 -> 1050 | I129: ='IMPORTACIÓN DATOS ANUALES PVGIS'!N56 -> 11:07:00 | J129: ='IMPORTACIÓN DATOS ANUALES PVGIS'!O56 -> 999 | K129: ='IMPORTACIÓN DATOS ANUALES PVGIS'!Q56 -> 10:52:00 | L129: ='IMPORTACIÓN DATOS ANUALES PVGIS'!R56 -> 946 | M129: ='IMPORTACIÓN DATOS ANUALES PVGIS'!T56 -> 10:52:00 | N129: ='IMPORTACIÓN DATOS ANUALES PVGIS'!U56 -> 947 | O129: ='IMPORTACIÓN DATOS ANUALES PVGIS'!W56 -> 11:22:00 | P129: ='IMPORTACIÓN DATOS ANUALES PVGIS'!X56 -> 988 | Q129: ='IMPORTACIÓN DATOS ANUALES PVGIS'!Z56 -> 11:52:00 | R129: ='IMPORTACIÓN DATOS ANUALES PVGIS'!AA56 -> 998 | S129: ='IMPORTACIÓN DATOS ANUALES PVGIS'!AC56 -> 12:37:00 | T129: ='IMPORTACIÓN DATOS ANUALES PVGIS'!AD56 -> 974 | U129: ='IMPORTACIÓN DATOS ANUALES PVGIS'!AF56 -> 13:07:00 | V129: ='IMPORTACIÓN DATOS ANUALES PVGIS'!AG56 -> 844 | W129: ='IMPORTACIÓN DATOS ANUALES PVGIS'!AI56 -> 13:22:00 | X129: ='IMPORTACIÓN DATOS ANUALES PVGIS'!AJ56 -> 792
